Workbook

Sheet Game Picker
C1: College Crosse Presents:
A2: Air Force | B2: Yes | C2: DIVISION I LACROSSE GAME PICKER
A3: Albany | B3: No | D3: Home | E3: Away | F3: Team A Probability | G3: Team B Probability | H3: Team A SRS | I3: TEAM B SRS | J3: TEAM A SPREAD | K3: TEAM B SPREAD | L3: HFA | M3: STDEV | O3: Notes
A4: Army | D4: Quinnipiac | E4: Hartford | F4: =NORMDIST(0,J4,M4,TRUE) -> 0.5325339802 | G4: =NORMDIST(0,K4,M4,TRUE) -> 0.4674660198 | H4: =VLOOKUP(D4,Sheet1!$A$1:$E$71,4,FALSE) -> 0.3017170536 | I4: =VLOOKUP(E4,Sheet1!$A$1:$E$71,4,FALSE) -> 0.006498494538 | J4: =I4-H4 -> -0.2952185591 | K4: =H4-I4 -> 0.2952185591 | L4: =Games!C542 -> 1.218487395 | M4: =Games!C539 -> 3.616048856 | O4: * Predictions are based on a Simple Ratings Systems application to
A5: Bellarmine | C5: Neutral Site? | D5: No | O5: Division I men's NCAA lacrosse. These ratings are similar to the
A6: Binghamton | C6: Spread | D6: =IF(D5="Yes",ROUND((I4-H4)/0.5,0)*0.5,ROUND((I4-H4-L4)/0.5,0)*0.5) -> -1.5 | E6: =IF(D5="Yes",ROUND((H4-I4)/0.5,0)*0.5,ROUND((H4-I4+L4)/0.5,0)*0.5) -> 1.5 | O6: LaxPower ratings in conceptual approach.
A7: Boston | C7: Favorite/Underdog/Pick 'Em | D7: =IF(D6>1,"Underdog",IF(D6<-1,"Favorite","Pick 'Em")) -> Favorite | E7: =IF(E6>1,"Underdog",IF(E6<-1,"Favorite","Pick 'Em")) -> Underdog | O7: * Please only populate the fields shaded in yellow and use the drop-
A8: Brown | C8: SRS Ranking | D8: =VLOOKUP(D4,Sheet1!$A:$E,5,FALSE) -> 33 | E8: =VLOOKUP(E4,Sheet1!$A:$E,5,FALSE) -> 35 | O8: down menus provided for those cells. Messing with other cells with
A9: Bryant | O9: cause Earth to explode.
A10: Bucknell | O10: * Pick 'Em designations are reserved for games with a predicted
A11: Canisius | O11: margin of less than one (1) goal. This may deviate slightly from
A12: Colgate | O12: an analysis based on probability bands.
A13: Cornell | O13: * Division I Lacrosse Game Picker is up to date through games
A14: Dartmouth | O14: played on May 8, 2016. It only considers games between Division I
A15: Delaware | O15: opponents.
A16: Denver
A17: Detroit
A18: Drexel
A19: Duke
A20: Fairfield
A21: Furman
A22: Georgetown
A23: Hampton
A24: Hartford
A25: Harvard
A26: High Point
A27: Hobart
A28: Hofstra
A29: Holy Cross
A30: Jacksonville
A31: Johns Hopkins
A32: Lafayette
A33: Lehigh
A34: Lowell
A35: Loyola
A36: Manhattan
A37: Marist
A38: Marquette
A39: Maryland
A40: Massachusetts
A41: Mercer
A42: Michigan
A43: Monmouth
A44: Mt. St. Marys
A45: Navy
A46: NJIT
A47: North Carolina
A48: Notre Dame
A49: Ohio State
A50: Penn
A51: Penn State
A52: Princeton
A53: Providence
A54: Quinnipiac
A55: Richmond
A56: Robert Morris
A57: Rutgers
A58: Sacred Heart
A59: Siena
A60: St. Johns
A61: St. Josephs
A62: Stony Brook
A63: Syracuse
A64: Towson
A65: UMBC
A66: Vermont
A67: Villanova
A68: Virginia
A69: VMI
A70: Wagner
A71: Yale

Sheet Games (hidden)
A1: Home | B1: Away | C1: Home | D1: Away | E1: MOV | F1: W/L | G1: N? | H1: HSRS | I1: ASRS | J1: Exp. | K1: Err. | L1: H % | M1: A % | N1: % W/L | O1: BAND | P1: BAND | Q1: G W/L | R1: Marg
A2: Furman | B2: Ohio State | C2: 7 | D2: 8 | E2: =IF(C2-D2<-10,-10,(IF(C2-D2>10,10,C2-D2))) -> -1 | F2: =IF(C2>D2,"W","L") -> L | H2: =VLOOKUP(A2,Sheet1!$A:$D,4,FALSE) -> -4.410627201 | I2: =VLOOKUP(B2,Sheet1!$A:$D,4,FALSE) -> 1.547138133 | J2: =IF(G2="N",H2-I2,(H2-I2+'Game Picker'!$L$4)) -> -4.739277939 | K2: =E2-J2 -> 3.739277939 | L2: =IF(G2="N",NORMDIST(0,I2-H2,$C$539,TRUE),NORMDIST(0,I2-H2-$C$542,$C$539,TRUE)) -> 0.09499252911 | M2: =IF(G2="N",NORMDIST(0,H2-I2,$C$539,TRUE),NORMDIST(0,H2-I2+$C$542,$C$539,TRUE)) -> 0.9050074709 | N2: =IF(E2<0,IF(L2<0.5,"W"),IF(E2>0,IF(L2>0.5,"W"),"L")) -> W | O2: =IF(M2>L2,M2,L2) -> 0.9050074709 | P2: =IF(AND(O2>=0.9,O2<1.01),"0.9-1",IF(AND(O2>=0.8,O2<0.9),"0.8-.89",IF(AND(O2>=0.7,O2<0.8),"0.7-.79",IF(AND(O2>=0.6,O2<0.7),"0.6-.69",IF(AND(O2>=0.5,O2<0.6),"0.5-.59"))))) -> 0.9-1 | Q2: =IF(AND(J2<=1,J2>=-1,K2<=3,K2>-3),"W",IF(AND(E2<=-1,J2<=-1),"W",IF(AND(E2>=1,J2>=1),"W","L"))) -> W | R2: =IF(K2<0,-K2,K2) -> 3.739277939
A3: Lehigh | B3: NJIT | C3: 21 | D3: 4 | E3: =IF(C3-D3<-10,-10,(IF(C3-D3>10,10,C3-D3))) -> 10 | F3: =IF(C3>D3,"W","L") -> W | H3: =VLOOKUP(A3,Sheet1!$A:$D,4,FALSE) -> -0.903365554 | I3: =VLOOKUP(B3,Sheet1!$A:$D,4,FALSE) -> -8.561709574 | J3: =IF(G3="N",H3-I3,(H3-I3+'Game Picker'!$L$4)) -> 8.876831414 | K3: =E3-J3 -> 1.123168586 | L3: 0.9929526891 | M3: 0.007047310895 | N3: W | O3: =IF(M3>L3,M3,L3) -> 0.9929526891 | P3: =IF(AND(O3>=0.9,O3<1.01),"0.9-1",IF(AND(O3>=0.8,O3<0.9),"0.8-.89",IF(AND(O3>=0.7,O3<0.8),"0.7-.79",IF(AND(O3>=0.6,O3<0.7),"0.6-.69",IF(AND(O3>=0.5,O3<0.6),"0.5-.59"))))) -> 0.9-1 | Q3: =IF(AND(J3<=1,J3>=-1,K3<=3,K3>-3),"W",IF(AND(E3<=-1,J3<=-1),"W",IF(AND(E3>=1,J3>=1),"W","L"))) -> W | R3: =IF(K3<0,-K3,K3) -> 1.123168586
A4: Navy | B4: Air Force | C4: 10 | D4: 6 | E4: 4 | F4: W | H4: =VLOOKUP(A4,Sheet1!$A:$D,4,FALSE) -> 3.111098872 | I4: =VLOOKUP(B4,Sheet1!$A:$D,4,FALSE) -> 1.194703694 | J4: =IF(G4="N",H4-I4,(H4-I4+'Game Picker'!$L$4)) -> 3.134882573 | K4: 0.8651174273 | L4: 0.8070114343 | M4: 0.1929885657 | N4: W | O4: 0.8070114343 | P4: 0.8-.89 | Q4: W | R4: 0.8651174273
A5: Penn State | B5: Robert Morris | C5: 20 | D5: 7 | E5: 10 | F5: W | H5: =VLOOKUP(A5,Sheet1!$A:$D,4,FALSE) -> 2.604208589 | I5: =VLOOKUP(B5,Sheet1!$A:$D,4,FALSE) -> -1.09985556 | J5: =IF(G5="N",H5-I5,(H5-I5+'Game Picker'!$L$4)) -> 4.922551543 | K5: 5.077448457 | L5: 0.9132916071 | M5: 0.08670839291 | N5: W | O5: 0.9132916071 | P5: 0.9-1 | Q5: W | R5: 5.077448457
A6: Bryant | B6: Manhattan | C6: 16 | D6: 3 | E6: 10 | F6: W | H6: =VLOOKUP(A6,Sheet1!$A:$D,4,FALSE) -> 2.088248266 | I6: =VLOOKUP(B6,Sheet1!$A:$D,4,FALSE) -> -6.500537463 | J6: =IF(G6="N",H6-I6,(H6-I6+'Game Picker'!$L$4)) -> 9.807273124 | K6: 0.1927268757 | L6: 0.9966576006 | M6: 0.003342399408 | N6: W | O6: 0.9966576006 | P6: 0.9-1 | Q6: W | R6: 0.1927268757
A7: Boston | B7: Providence | C7: 9 | D7: 5 | E7: 4 | F7: W | H7: =VLOOKUP(A7,Sheet1!$A:$D,4,FALSE) -> -0.4232576026 | I7: =VLOOKUP(B7,Sheet1!$A:$D,4,FALSE) -> -0.3891939228 | J7: =IF(G7="N",H7-I7,(H7-I7+'Game Picker'!$L$4)) -> 1.184423715 | K7: 2.815576285 | L7: 0.6283726654 | M7: 0.3716273346 | N7: W | O7: 0.6283726654 | P7: 0.6-.69 | Q7: W | R7: 2.815576285
A8: Jacksonville | B8: Vermont | C8: 17 | D8: 16 | E8: 1 | F8: W | H8: =VLOOKUP(A8,Sheet1!$A:$D,4,FALSE) -> -5.13423946 | I8: =VLOOKUP(B8,Sheet1!$A:$D,4,FALSE) -> -0.1882101278 | J8: =IF(G8="N",H8-I8,(H8-I8+'Game Picker'!$L$4)) -> -3.727541937 | K8: 4.727541937 | L8: 0.151309606 | M8: 0.848690394 | N8: FALSE | O8: 0.848690394 | P8: 0.8-.89 | Q8: L | R8: 4.727541937
A9: North Carolina | B9: Michigan | C9: 20 | D9: 10 | E9: 10 | F9: W | H9: =VLOOKUP(A9,Sheet1!$A:$D,4,FALSE) -> 4.050662015 | I9: =VLOOKUP(B9,Sheet1!$A:$D,4,FALSE) -> -1.686737857 | J9: =IF(G9="N",H9-I9,(H9-I9+'Game Picker'!$L$4)) -> 6.955887267 | K9: 3.044112733 | L9: 0.9727985954 | M9: 0.02720140463 | N9: W | O9: 0.9727985954 | P9: 0.9-1 | Q9: W | R9: 3.044112733
A10: Bucknell | B10: Delaware | C10: 13 | D10: 5 | E10: 8 | F10: W | H10: =VLOOKUP(A10,Sheet1!$A:$D,4,FALSE) -> 2.368675226 | I10: =VLOOKUP(B10,Sheet1!$A:$D,4,FALSE) -> -2.335784283 | J10: =IF(G10="N",H10-I10,(H10-I10+'Game Picker'!$L$4)) -> 5.922946904 | K10: 2.077053096 | L10: 0.9492850824 | M10: 0.0507149176 | N10: W | O10: 0.9492850824 | P10: 0.9-1 | Q10: W | R10: 2.077053096
A11: Navy | B11: Johns Hopkins | C11: 11 | D11: 12 | E11: -1 | F11: L | H11: =VLOOKUP(A11,Sheet1!$A:$D,4,FALSE) -> 3.111098872 | I11: =VLOOKUP(B11,Sheet1!$A:$D,4,FALSE) -> 3.565491294 | J11: =IF(G11="N",H11-I11,(H11-I11+'Game Picker'!$L$4)) -> 0.7640949727 | K11: -1.764094973 | L11: 0.5836759816 | M11: 0.4163240184 | N11: FALSE | O11: 0.5836759816 | P11: 0.5-.59 | Q11: W | R11: 1.764094973
A12: Boston | B12: Lowell | C12: 8 | D12: 5 | E12: 3 | F12: W | H12: =VLOOKUP(A12,Sheet1!$A:$D,4,FALSE) -> -0.4232576026 | I12: =VLOOKUP(B12,Sheet1!$A:$D,4,FALSE) -> -4.855540611 | J12: =IF(G12="N",H12-I12,(H12-I12+'Game Picker'!$L$4)) -> 5.650770403 | K12: -2.650770403 | L12: 0.9409374645 | M12: 0.05906253552 | N12: W | O12: 0.9409374645 | P12: 0.9-1 | Q12: W | R12: 2.650770403
A13: Delaware | B13: Mt. St. Marys | C13: 11 | D13: 14 | E13: -3 | F13: L | H13: =VLOOKUP(A13,Sheet1!$A:$D,4,FALSE) -> -2.335784283 | I13: =VLOOKUP(B13,Sheet1!$A:$D,4,FALSE) -> -2.24929111 | J13: =IF(G13="N",H13-I13,(H13-I13+'Game Picker'!$L$4)) -> 1.131994222 | K13: -4.131994222 | L13: 0.6228776253 | M13: 0.3771223747 | N13: FALSE | O13: 0.6228776253 | P13: 0.6-.69 | Q13: L | R13: 4.131994222
A14: Army | B14: Massachusetts | C14: 9 | D14: 5 | E14: 4 | F14: W | H14: =VLOOKUP(A14,Sheet1!$A:$D,4,FALSE) -> 2.862322697 | I14: =VLOOKUP(B14,Sheet1!$A:$D,4,FALSE) -> 1.176758718 | J14: =IF(G14="N",H14-I14,(H14-I14+'Game Picker'!$L$4)) -> 2.904051374 | K14: 1.095948626 | L14: 0.7890417339 | M14: 0.2109582661 | N14: W | O14: 0.7890417339 | P14: 0.7-.79 | Q14: W | R14: 1.095948626
A15: Rutgers | B15: St. Johns | C15: 19 | D15: 11 | E15: 8 | F15: W | H15: =VLOOKUP(A15,Sheet1!$A:$D,4,FALSE) -> 2.68887711 | I15: =VLOOKUP(B15,Sheet1!$A:$D,4,FALSE) -> -3.587636587 | J15: =IF(G15="N",H15-I15,(H15-I15+'Game Picker'!$L$4)) -> 7.495001091 | K15: 0.5049989086 | L15: 0.9809001102 | M15: 0.01909988979 | N15: W | O15: 0.9809001102 | P15: 0.9-1 | Q15: W | R15: 0.5049989086
A16: Wagner | B16: Manhattan | C16: 15 | D16: 8 | E16: 7 | F16: W | H16: =VLOOKUP(A16,Sheet1!$A:$D,4,FALSE) -> -5.690809046 | I16: =VLOOKUP(B16,Sheet1!$A:$D,4,FALSE) -> -6.500537463 | J16: =IF(G16="N",H16-I16,(H16-I16+'Game Picker'!$L$4)) -> 2.028215812 | K16: 4.971784188 | L16: 0.7125646948 | M16: 0.2874353052 | N16: W | O16: 0.7125646948 | P16: 0.7-.79 | Q16: W | R16: 4.971784188
A17: Lafayette | B17: Sacred Heart | C17: 8 | D17: 12 | E17: -4 | F17: L | H17: =VLOOKUP(A17,Sheet1!$A:$D,4,FALSE) -> -4.830394402 | I17: =VLOOKUP(B17,Sheet1!$A:$D,4,FALSE) -> -4.143034888 | J17: =IF(G17="N",H17-I17,(H17-I17+'Game Picker'!$L$4)) -> 0.531127881 | K17: -4.531127881 | L17: 0.5583869173 | M17: 0.4416130827 | N17: FALSE | O17: 0.5583869173 | P17: 0.5-.59 | Q17: L | R17: 4.531127881
A18: Providence | B18: Holy Cross | C18: 12 | D18: 8 | E18: 4 | F18: W | H18: =VLOOKUP(A18,Sheet1!$A:$D,4,FALSE) -> -0.3891939228 | I18: =VLOOKUP(B18,Sheet1!$A:$D,4,FALSE) -> -1.638314374 | J18: =IF(G18="N",H18-I18,(H18-I18+'Game Picker'!$L$4)) -> 2.467607846 | K18: 1.532392154 | L18: 0.75250838 | M18: 0.24749162 | N18: W | O18: 0.75250838 | P18: 0.7-.79 | Q18: W | R18: 1.532392154
A19: Towson | B19: Mercer | C19: 11 | D19: 2 | E19: 9 | F19: W | H19: =VLOOKUP(A19,Sheet1!$A:$D,4,FALSE) -> 3.242727074 | I19: =VLOOKUP(B19,Sheet1!$A:$D,4,FALSE) -> -3.467672595 | J19: =IF(G19="N",H19-I19,(H19-I19+'Game Picker'!$L$4)) -> 7.928887064 | K19: 1.071112936 | L19: 0.9858352677 | M19: 0.01416473227 | N19: W | O19: 0.9858352677 | P19: 0.9-1 | Q19: W | R19: 1.071112936
A20: Duke | B20: High Point | C20: 17 | D20: 6 | E20: 10 | F20: W | H20: =VLOOKUP(A20,Sheet1!$A:$D,4,FALSE) -> 4.972271547 | I20: =VLOOKUP(B20,Sheet1!$A:$D,4,FALSE) -> -1.040855576 | J20: =IF(G20="N",H20-I20,(H20-I20+'Game Picker'!$L$4)) -> 7.231614518 | K20: 2.768385482 | L20: 0.9772426526 | M20: 0.02275734744 | N20: W | O20: 0.9772426526 | P20: 0.9-1 | Q20: W | R20: 2.768385482
A21: Ohio State | B21: Detroit | C21: 16 | D21: 5 | E21: 10 | F21: W | H21: =VLOOKUP(A21,Sheet1!$A:$D,4,FALSE) -> 1.547138133 | I21: =VLOOKUP(B21,Sheet1!$A:$D,4,FALSE) -> -4.591272987 | J21: =IF(G21="N",H21-I21,(H21-I21+'Game Picker'!$L$4)) -> 7.356898515 | K21: 2.643101485 | L21: 0.9790500519 | M21: 0.0209499481 | N21: W | O21: 0.9790500519 | P21: 0.9-1 | Q21: W | R21: 2.643101485
A22: Air Force | B22: Denver | C22: 9 | D22: 10 | E22: -1 | F22: L | H22: =VLOOKUP(A22,Sheet1!$A:$D,4,FALSE) -> 1.194703694 | I22: =VLOOKUP(B22,Sheet1!$A:$D,4,FALSE) -> 5.537634311 | J22: =IF(G22="N",H22-I22,(H22-I22+'Game Picker'!$L$4)) -> -3.124443222 | K22: 2.124443222 | L22: 0.1937805001 | M22: 0.8062194999 | N22: W | O22: 0.8062194999 | P22: 0.8-.89 | Q22: W | R22: 2.124443222
A23: Bellarmine | B23: Robert Morris | C23: 11 | D23: 10 | E23: 1 | F23: W | H23: =VLOOKUP(A23,Sheet1!$A:$D,4,FALSE) -> -1.65294273 | I23: =VLOOKUP(B23,Sheet1!$A:$D,4,FALSE) -> -1.09985556 | J23: =IF(G23="N",H23-I23,(H23-I23+'Game Picker'!$L$4)) -> 0.6654002243 | K23: 0.3345997757 | L23: 0.5729983963 | M23: 0.4270016037 | N23: W | O23: 0.5729983963 | P23: 0.5-.59 | Q23: W | R23: 0.3345997757
A24: Syracuse | B24: Siena | C24: 18 | D24: 5 | E24: 10 | F24: W | H24: =VLOOKUP(A24,Sheet1!$A:$D,4,FALSE) -> 5.401447597 | I24: =VLOOKUP(B24,Sheet1!$A:$D,4,FALSE) -> -4.657485177 | J24: =IF(G24="N",H24-I24,(H24-I24+'Game Picker'!$L$4)) -> 11.27742017 | K24: -1.277420169 | L24: 0.9990917874 | M24: 0.0009082126328 | N24: W | O24: 0.9990917874 | P24: 0.9-1 | Q24: W | R24: 1.277420169
A25: North Carolina | B25: Furman | C25: 14 | D25: 6 | E25: 8 | F25: W | H25: =VLOOKUP(A25,Sheet1!$A:$D,4,FALSE) -> 4.050662015 | I25: =VLOOKUP(B25,Sheet1!$A:$D,4,FALSE) -> -4.410627201 | J25: =IF(G25="N",H25-I25,(H25-I25+'Game Picker'!$L$4)) -> 9.679776612 | K25: -1.679776612 | L25: 0.9962845842 | M25: 0.00371541581 | N25: W | O25: 0.9962845842 | P25: 0.9-1 | Q25: W | R25: 1.679776612
A26: Virginia | B26: Loyola | C26: 4 | D26: 11 | E26: -7 | F26: L | H26: =VLOOKUP(A26,Sheet1!$A:$D,4,FALSE) -> 1.86246706 | I26: =VLOOKUP(B26,Sheet1!$A:$D,4,FALSE) -> 3.665283498 | J26: =IF(G26="N",H26-I26,(H26-I26+'Game Picker'!$L$4)) -> -0.5843290429 | K26: -6.415670957 | L26: 0.4358130914 | M26: 0.5641869086 | N26: W | O26: 0.5641869086 | P26: 0.5-.59 | Q26: L | R26: 6.415670957
A27: Penn State | B27: Hobart | C27: 17 | D27: 12 | E27: 5 | F27: W | H27: =VLOOKUP(A27,Sheet1!$A:$D,4,FALSE) -> 2.604208589 | I27: =VLOOKUP(B27,Sheet1!$A:$D,4,FALSE) -> -0.5621296377 | J27: =IF(G27="N",H27-I27,(H27-I27+'Game Picker'!$L$4)) -> 4.384825621 | K27: 0.6151743786 | L27: 0.8873588583 | M27: 0.1126411417 | N27: W | O27: 0.8873588583 | P27: 0.8-.89 | Q27: W | R27: 0.6151743786
A28: Bryant | B28: Bucknell | C28: 10 | D28: 11 | E28: -1 | F28: L | G28: N | H28: =VLOOKUP(A28,Sheet1!$A:$D,4,FALSE) -> 2.088248266 | I28: =VLOOKUP(B28,Sheet1!$A:$D,4,FALSE) -> 2.368675226 | J28: =IF(G28="N",H28-I28,(H28-I28+'Game Picker'!$L$4)) -> -0.2804269595 | K28: -0.7195730405 | L28: 0.4690927476 | M28: 0.5309072524 | N28: W | O28: 0.5309072524 | P28: 0.5-.59 | Q28: W | R28: 0.7195730405
A29: Duke | B29: Lehigh | C29: 13 | D29: 11 | E29: 2 | F29: W | H29: =VLOOKUP(A29,Sheet1!$A:$D,4,FALSE) -> 4.972271547 | I29: =VLOOKUP(B29,Sheet1!$A:$D,4,FALSE) -> -0.903365554 | J29: =IF(G29="N",H29-I29,(H29-I29+'Game Picker'!$L$4)) -> 7.094124496 | K29: -5.094124496 | L29: 0.9751096874 | M29: 0.02489031263 | N29: W | O29: 0.9751096874 | P29: 0.9-1 | Q29: W | R29: 5.094124496
A30: Michigan | B30: Colgate | C30: 9 | D30: 8 | E30: 1 | F30: W | H30: =VLOOKUP(A30,Sheet1!$A:$D,4,FALSE) -> -1.686737857 | I30: =VLOOKUP(B30,Sheet1!$A:$D,4,FALSE) -> -2.119715781 | J30: =IF(G30="N",H30-I30,(H30-I30+'Game Picker'!$L$4)) -> 1.65146532 | K30: -0.6514653195 | L30: 0.6760582258 | M30: 0.3239417742 | N30: W | O30: 0.6760582258 | P30: 0.6-.69 | Q30: W | R30: 0.6514653195
A31: Jacksonville | B31: Monmouth | C31: 5 | D31: 11 | E31: -6 | F31: L | H31: =VLOOKUP(A31,Sheet1!$A:$D,4,FALSE) -> -5.13423946 | I31: =VLOOKUP(B31,Sheet1!$A:$D,4,FALSE) -> -2.541062319 | J31: =IF(G31="N",H31-I31,(H31-I31+'Game Picker'!$L$4)) -> -1.374689746 | K31: -4.625310254 | L31: 0.3519120303 | M31: 0.6480879697 | N31: W | O31: 0.6480879697 | P31: 0.6-.69 | Q31: W | R31: 4.625310254
A32: Fairfield | B32: Richmond | C32: 10 | D32: 11 | E32: -1 | F32: L | H32: =VLOOKUP(A32,Sheet1!$A:$D,4,FALSE) -> 0.7668907987 | I32: =VLOOKUP(B32,Sheet1!$A:$D,4,FALSE) -> 0.2412057204 | J32: =IF(G32="N",H32-I32,(H32-I32+'Game Picker'!$L$4)) -> 1.744172473 | K32: -2.744172473 | L32: 0.6852185152 | M32: 0.3147814848 | N32: FALSE | O32: 0.6852185152 | P32: 0.6-.69 | Q32: L | R32: 2.744172473
A33: NJIT | B33: Vermont | C33: 5 | D33: 19 | E33: -10 | F33: L | G33: N | H33: =VLOOKUP(A33,Sheet1!$A:$D,4,FALSE) -> -8.561709574 | I33: =VLOOKUP(B33,Sheet1!$A:$D,4,FALSE) -> -0.1882101278 | J33: =IF(G33="N",H33-I33,(H33-I33+'Game Picker'!$L$4)) -> -8.373499446 | K33: -1.626500554 | L33: 0.01028872412 | M33: 0.9897112759 | N33: W | O33: 0.9897112759 | P33: 0.9-1 | Q33: W | R33: 1.626500554
A34: High Point | B34: Boston | C34: 10 | D34: 13 | E34: -3 | F34: L | H34: =VLOOKUP(A34,Sheet1!$A:$D,4,FALSE) -> -1.040855576 | I34: =VLOOKUP(B34,Sheet1!$A:$D,4,FALSE) -> -0.4232576026 | J34: =IF(G34="N",H34-I34,(H34-I34+'Game Picker'!$L$4)) -> 0.6008894216 | K34: -3.600889422 | L34: 0.5659895677 | M34: 0.4340104323 | N34: FALSE | O34: 0.5659895677 | P34: 0.5-.59 | Q34: L | R34: 3.600889422
A35: Stony Brook | B35: Sacred Heart | C35: 17 | D35: 8 | E35: 9 | F35: W | H35: =VLOOKUP(A35,Sheet1!$A:$D,4,FALSE) -> 3.918435733 | I35: =VLOOKUP(B35,Sheet1!$A:$D,4,FALSE) -> -4.143034888 | J35: =IF(G35="N",H35-I35,(H35-I35+'Game Picker'!$L$4)) -> 9.279958016 | K35: -0.2799580156 | L35: 0.9948608821 | M35: 0.005139117852 | N35: W | O35: 0.9948608821 | P35: 0.9-1 | Q35: W | R35: 0.2799580156
A36: St. Johns | B36: Jacksonville | C36: 7 | D36: 8 | E36: -1 | F36: L | H36: =VLOOKUP(A36,Sheet1!$A:$D,4,FALSE) -> -3.587636587 | I36: =VLOOKUP(B36,Sheet1!$A:$D,4,FALSE) -> -5.13423946 | J36: =IF(G36="N",H36-I36,(H36-I36+'Game Picker'!$L$4)) -> 2.765090268 | K36: -3.765090268 | L36: 0.7777664724 | M36: 0.2222335276 | N36: FALSE | O36: 0.7777664724 | P36: 0.7-.79 | Q36: L | R36: 3.765090268
A37: Lafayette | B37: Wagner | C37: 12 | D37: 7 | E37: 5 | F37: W | H37: =VLOOKUP(A37,Sheet1!$A:$D,4,FALSE) -> -4.830394402 | I37: =VLOOKUP(B37,Sheet1!$A:$D,4,FALSE) -> -5.690809046 | J37: =IF(G37="N",H37-I37,(H37-I37+'Game Picker'!$L$4)) -> 2.07890204 | K37: 2.92109796 | L37: 0.7173238599 | M37: 0.2826761401 | N37: W | O37: 0.7173238599 | P37: 0.7-.79 | Q37: W | R37: 2.92109796
A38: Furman | B38: Lehigh | C38: 7 | D38: 15 | E38: -8 | F38: L | H38: =VLOOKUP(A38,Sheet1!$A:$D,4,FALSE) -> -4.410627201 | I38: =VLOOKUP(B38,Sheet1!$A:$D,4,FALSE) -> -0.903365554 | J38: =IF(G38="N",H38-I38,(H38-I38+'Game Picker'!$L$4)) -> -2.288774252 | K38: -5.711225748 | L38: 0.263383497 | M38: 0.736616503 | N38: W | O38: 0.736616503 | P38: 0.7-.79 | Q38: W | R38: 5.711225748
A39: Robert Morris | B39: Manhattan | C39: 19 | D39: 6 | E39: 10 | F39: W | H39: =VLOOKUP(A39,Sheet1!$A:$D,4,FALSE) -> -1.09985556 | I39: =VLOOKUP(B39,Sheet1!$A:$D,4,FALSE) -> -6.500537463 | J39: =IF(G39="N",H39-I39,(H39-I39+'Game Picker'!$L$4)) -> 6.619169298 | K39: 3.380830702 | L39: 0.9664122286 | M39: 0.03358777138 | N39: W | O39: 0.9664122286 | P39: 0.9-1 | Q39: W | R39: 3.380830702
A40: Georgetown | B40: Notre Dame | C40: 7 | D40: 12 | E40: -5 | F40: L | G40: N | H40: =VLOOKUP(A40,Sheet1!$A:$D,4,FALSE) -> -1.321751505 | I40: =VLOOKUP(B40,Sheet1!$A:$D,4,FALSE) -> 5.62151711 | J40: =IF(G40="N",H40-I40,(H40-I40+'Game Picker'!$L$4)) -> -6.943268615 | K40: 1.943268615 | L40: 0.02742100709 | M40: 0.9725789929 | N40: W | O40: 0.9725789929 | P40: 0.9-1 | Q40: W | R40: 1.943268615
A41: Fairfield | B41: Bucknell | C41: 8 | D41: 13 | E41: -5 | F41: L | H41: =VLOOKUP(A41,Sheet1!$A:$D,4,FALSE) -> 0.7668907987 | I41: =VLOOKUP(B41,Sheet1!$A:$D,4,FALSE) -> 2.368675226 | J41: =IF(G41="N",H41-I41,(H41-I41+'Game Picker'!$L$4)) -> -0.3832970321 | K41: -4.616702968 | L41: 0.457791631 | M41: 0.542208369 | N41: W | O41: 0.542208369 | P41: 0.5-.59 | Q41: L | R41: 4.616702968
A42: Harvard | B42: Villanova | C42: 13 | D42: 12 | E42: 1 | F42: W | H42: =VLOOKUP(A42,Sheet1!$A:$D,4,FALSE) -> 3.185121671 | I42: =VLOOKUP(B42,Sheet1!$A:$D,4,FALSE) -> 4.509438236 | J42: =IF(G42="N",H42-I42,(H42-I42+'Game Picker'!$L$4)) -> -0.1058291701 | K42: 1.10582917 | L42: 0.4883260139 | M42: 0.5116739861 | N42: FALSE | O42: 0.5116739861 | P42: 0.5-.59 | Q42: W | R42: 1.10582917
A43: Marist | B43: Air Force | C43: 6 | D43: 7 | E43: -1 | F43: L | H43: =VLOOKUP(A43,Sheet1!$A:$D,4,FALSE) -> -1.206918481 | I43: =VLOOKUP(B43,Sheet1!$A:$D,4,FALSE) -> 1.194703694 | J43: =IF(G43="N",H43-I43,(H43-I43+'Game Picker'!$L$4)) -> -1.18313478 | K43: 0.1831347798 | L43: 0.3717621176 | M43: 0.6282378824 | N43: W | O43: 0.6282378824 | P43: 0.6-.69 | Q43: W | R43: 0.1831347798
A44: Quinnipiac | B44: Brown | C44: 7 | D44: 20 | E44: -10 | F44: L | H44: =VLOOKUP(A44,Sheet1!$A:$D,4,FALSE) -> 0.3017170536 | I44: =VLOOKUP(B44,Sheet1!$A:$D,4,FALSE) -> 7.845985559 | J44: =IF(G44="N",H44-I44,(H44-I44+'Game Picker'!$L$4)) -> -6.325781111 | K44: -3.674218889 | L44: 0.04011416918 | M44: 0.9598858308 | N44: W | O44: 0.9598858308 | P44: 0.9-1 | Q44: W | R44: 3.674218889
A45: Massachusetts | B45: Ohio State | C45: 16 | D45: 9 | E45: 7 | F45: W | H45: =VLOOKUP(A45,Sheet1!$A:$D,4,FALSE) -> 1.176758718 | I45: =VLOOKUP(B45,Sheet1!$A:$D,4,FALSE) -> 1.547138133 | J45: =IF(G45="N",H45-I45,(H45-I45+'Game Picker'!$L$4)) -> 0.8481079801 | K45: 6.15189202 | L45: 0.5927170955 | M45: 0.4072829045 | N45: W | O45: 0.5927170955 | P45: 0.5-.59 | Q45: L | R45: 6.15189202
A46: UMBC | B46: Richmond | C46: 5 | D46: 7 | E46: -2 | F46: L | H46: =VLOOKUP(A46,Sheet1!$A:$D,4,FALSE) -> -2.424513977 | I46: =VLOOKUP(B46,Sheet1!$A:$D,4,FALSE) -> 0.2412057204 | J46: =IF(G46="N",H46-I46,(H46-I46+'Game Picker'!$L$4)) -> -1.447232302 | K46: -0.5527676977 | L46: 0.344495488 | M46: 0.655504512 | N46: W | O46: 0.655504512 | P46: 0.6-.69 | Q46: W | R46: 0.5527676977
A47: Maryland | B47: High Point | C47: 15 | D47: 10 | E47: 5 | F47: W | H47: =VLOOKUP(A47,Sheet1!$A:$D,4,FALSE) -> 5.430451986 | I47: =VLOOKUP(B47,Sheet1!$A:$D,4,FALSE) -> -1.040855576 | J47: =IF(G47="N",H47-I47,(H47-I47+'Game Picker'!$L$4)) -> 7.689794957 | K47: -2.689794957 | L47: 0.9832722466 | M47: 0.01672775336 | N47: W | O47: 0.9832722466 | P47: 0.9-1 | Q47: W | R47: 2.689794957
A48: Boston | B48: Hartford | C48: 10 | D48: 16 | E48: -6 | F48: L | H48: =VLOOKUP(A48,Sheet1!$A:$D,4,FALSE) -> -0.4232576026 | I48: =VLOOKUP(B48,Sheet1!$A:$D,4,FALSE) -> 0.006498494538 | J48: =IF(G48="N",H48-I48,(H48-I48+'Game Picker'!$L$4)) -> 0.7887312978 | K48: -6.788731298 | L48: 0.5863320548 | M48: 0.4136679452 | N48: FALSE | O48: 0.5863320548 | P48: 0.5-.59 | Q48: L | R48: 6.788731298
A49: Colgate | B49: Binghamton | C49: 11 | D49: 4 | E49: 7 | F49: W | H49: =VLOOKUP(A49,Sheet1!$A:$D,4,FALSE) -> -2.119715781 | I49: =VLOOKUP(B49,Sheet1!$A:$D,4,FALSE) -> -2.745774645 | J49: =IF(G49="N",H49-I49,(H49-I49+'Game Picker'!$L$4)) -> 1.844546259 | K49: 5.155453741 | L49: 0.695009272 | M49: 0.304990728 | N49: W | O49: 0.695009272 | P49: 0.6-.69 | Q49: W | R49: 5.155453741
A50: Drexel | B50: Virginia | C50: 7 | D50: 14 | E50: -7 | F50: L | H50: =VLOOKUP(A50,Sheet1!$A:$D,4,FALSE) -> 0.6270587359 | I50: =VLOOKUP(B50,Sheet1!$A:$D,4,FALSE) -> 1.86246706 | J50: =IF(G50="N",H50-I50,(H50-I50+'Game Picker'!$L$4)) -> -0.01692092966 | K50: -6.98307907 | L50: 0.4981331973 | M50: 0.5018668027 | N50: W | O50: 0.5018668027 | P50: 0.5-.59 | Q50: L | R50: 6.98307907
A51: Loyola | B51: Johns Hopkins | C51: 9 | D51: 8 | E51: 1 | F51: W | H51: =VLOOKUP(A51,Sheet1!$A:$D,4,FALSE) -> 3.665283498 | I51: =VLOOKUP(B51,Sheet1!$A:$D,4,FALSE) -> 3.565491294 | J51: =IF(G51="N",H51-I51,(H51-I51+'Game Picker'!$L$4)) -> 1.318279599 | K51: -0.3182795991 | L51: 0.6422813852 | M51: 0.3577186148 | N51: W | O51: 0.6422813852 | P51: 0.6-.69 | Q51: W | R51: 0.3182795991
A52: Mercer | B52: Detroit | C52: 9 | D52: 8 | E52: 1 | F52: W | H52: =VLOOKUP(A52,Sheet1!$A:$D,4,FALSE) -> -3.467672595 | I52: =VLOOKUP(B52,Sheet1!$A:$D,4,FALSE) -> -4.591272987 | J52: =IF(G52="N",H52-I52,(H52-I52+'Game Picker'!$L$4)) -> 2.342087787 | K52: -1.342087787 | L52: 0.7414080776 | M52: 0.2585919224 | N52: W | O52: 0.7414080776 | P52: 0.7-.79 | Q52: W | R52: 1.342087787
A53: Marquette | B53: Bellarmine | C53: 9 | D53: 7 | E53: 2 | F53: W | H53: =VLOOKUP(A53,Sheet1!$A:$D,4,FALSE) -> 3.009022758 | I53: =VLOOKUP(B53,Sheet1!$A:$D,4,FALSE) -> -1.65294273 | J53: =IF(G53="N",H53-I53,(H53-I53+'Game Picker'!$L$4)) -> 5.880452883 | K53: -3.880452883 | L53: 0.9480474485 | M53: 0.05195255146 | N53: W | O53: 0.9480474485 | P53: 0.9-1 | Q53: W | R53: 3.880452883
A54: Providence | B54: Bryant | C54: 10 | D54: 12 | E54: -2 | F54: L | H54: =VLOOKUP(A54,Sheet1!$A:$D,4,FALSE) -> -0.3891939228 | I54: =VLOOKUP(B54,Sheet1!$A:$D,4,FALSE) -> 2.088248266 | J54: =IF(G54="N",H54-I54,(H54-I54+'Game Picker'!$L$4)) -> -1.258954794 | K54: -0.741045206 | L54: 0.3638609243 | M54: 0.6361390757 | N54: W | O54: 0.6361390757 | P54: 0.6-.69 | Q54: W | R54: 0.741045206
A55: Sacred Heart | B55: Dartmouth | C55: 10 | D55: 8 | E55: 2 | F55: W | H55: =VLOOKUP(A55,Sheet1!$A:$D,4,FALSE) -> -4.143034888 | I55: =VLOOKUP(B55,Sheet1!$A:$D,4,FALSE) -> -5.622659345 | J55: =IF(G55="N",H55-I55,(H55-I55+'Game Picker'!$L$4)) -> 2.698111852 | K55: -0.6981118518 | L55: 0.7722113452 | M55: 0.2277886548 | N55: W | O55: 0.7722113452 | P55: 0.7-.79 | Q55: W | R55: 0.6981118518
A56: St. Josephs | B56: VMI | C56: 15 | D56: 5 | E56: 10 | F56: W | H56: =VLOOKUP(A56,Sheet1!$A:$D,4,FALSE) -> 2.328006084 | I56: =VLOOKUP(B56,Sheet1!$A:$D,4,FALSE) -> -9.770431817 | J56: =IF(G56="N",H56-I56,(H56-I56+'Game Picker'!$L$4)) -> 13.3169253 | K56: -3.316925296 | L56: 0.9998846245 | M56: 0.0001153755489 | N56: W | O56: 0.9998846245 | P56: 0.9-1 | Q56: W | R56: 3.316925296
A57: Lowell | B57: Yale | C57: 7 | D57: 17 | E57: -10 | F57: L | H57: =VLOOKUP(A57,Sheet1!$A:$D,4,FALSE) -> -4.855540611 | I57: =VLOOKUP(B57,Sheet1!$A:$D,4,FALSE) -> 5.159359488 | J57: =IF(G57="N",H57-I57,(H57-I57+'Game Picker'!$L$4)) -> -8.796412704 | K57: -1.203587296 | L57: 0.00749535553 | M57: 0.9925046445 | N57: W | O57: 0.9925046445 | P57: 0.9-1 | Q57: W | R57: 1.203587296
A58: Duke | B58: Denver | C58: 12 | D58: 14 | E58: -2 | F58: L | G58: N | H58: =VLOOKUP(A58,Sheet1!$A:$D,4,FALSE) -> 4.972271547 | I58: =VLOOKUP(B58,Sheet1!$A:$D,4,FALSE) -> 5.537634311 | J58: =IF(G58="N",H58-I58,(H58-I58+'Game Picker'!$L$4)) -> -0.565362764 | K58: -1.434637236 | L58: 0.4378792789 | M58: 0.5621207211 | N58: W | O58: 0.5621207211 | P58: 0.5-.59 | Q58: W | R58: 1.434637236
A59: Towson | B59: Mt. St. Marys | C59: 9 | D59: 5 | E59: 4 | F59: W | H59: =VLOOKUP(A59,Sheet1!$A:$D,4,FALSE) -> 3.242727074 | I59: =VLOOKUP(B59,Sheet1!$A:$D,4,FALSE) -> -2.24929111 | J59: =IF(G59="N",H59-I59,(H59-I59+'Game Picker'!$L$4)) -> 6.71050558 | K59: -2.71050558 | L59: 0.9682558517 | M59: 0.03174414835 | N59: W | O59: 0.9682558517 | P59: 0.9-1 | Q59: W | R59: 2.71050558
A60: North Carolina | B60: Hofstra | C60: 5 | D60: 10 | E60: -5 | F60: L | H60: =VLOOKUP(A60,Sheet1!$A:$D,4,FALSE) -> 4.050662015 | I60: =VLOOKUP(B60,Sheet1!$A:$D,4,FALSE) -> 1.096477794 | J60: =IF(G60="N",H60-I60,(H60-I60+'Game Picker'!$L$4)) -> 4.172671616 | K60: -9.172671616 | L60: 0.8757358129 | M60: 0.1242641871 | N60: FALSE | O60: 0.8757358129 | P60: 0.8-.89 | Q60: L | R60: 9.172671616
A61: Army | B61: Rutgers | C61: 11 | D61: 13 | E61: -2 | F61: L | H61: =VLOOKUP(A61,Sheet1!$A:$D,4,FALSE) -> 2.862322697 | I61: =VLOOKUP(B61,Sheet1!$A:$D,4,FALSE) -> 2.68887711 | J61: =IF(G61="N",H61-I61,(H61-I61+'Game Picker'!$L$4)) -> 1.391932982 | K61: -3.391932982 | L61: 0.6498561082 | M61: 0.3501438918 | N61: FALSE | O61: 0.6498561082 | P61: 0.6-.69 | Q61: L | R61: 3.391932982
A62: Cornell | B62: Penn State | C62: 7 | D62: 8 | E62: -1 | F62: L | H62: =VLOOKUP(A62,Sheet1!$A:$D,4,FALSE) -> 0.9382344466 | I62: =VLOOKUP(B62,Sheet1!$A:$D,4,FALSE) -> 2.604208589 | J62: =IF(G62="N",H62-I62,(H62-I62+'Game Picker'!$L$4)) -> -0.4474867472 | K62: -0.5525132528 | L62: 0.450756534 | M62: 0.549243466 | N62: W | O62: 0.549243466 | P62: 0.5-.59 | Q62: W | R62: 0.5525132528
A63: Holy Cross | B63: Vermont | C63: 8 | D63: 14 | E63: -6 | F63: L | H63: =VLOOKUP(A63,Sheet1!$A:$D,4,FALSE) -> -1.638314374 | I63: =VLOOKUP(B63,Sheet1!$A:$D,4,FALSE) -> -0.1882101278 | J63: =IF(G63="N",H63-I63,(H63-I63+'Game Picker'!$L$4)) -> -0.231616851 | K63: -5.768383149 | L63: 0.4744642248 | M63: 0.5255357752 | N63: W | O63: 0.5255357752 | P63: 0.5-.59 | Q63: L | R63: 5.768383149
A64: Princeton | B64: NJIT | C64: 21 | D64: 4 | E64: 10 | F64: W | H64: =VLOOKUP(A64,Sheet1!$A:$D,4,FALSE) -> -0.2651090919 | I64: =VLOOKUP(B64,Sheet1!$A:$D,4,FALSE) -> -8.561709574 | J64: =IF(G64="N",H64-I64,(H64-I64+'Game Picker'!$L$4)) -> 9.515087877 | K64: 0.4849121235 | L64: 0.9957476721 | M64: 0.004252327918 | N64: W | O64: 0.9957476721 | P64: 0.9-1 | Q64: W | R64: 0.4849121235
A65: Penn | B65: Michigan | C65: 12 | D65: 10 | E65: 2 | F65: W | H65: =VLOOKUP(A65,Sheet1!$A:$D,4,FALSE) -> 1.812881196 | I65: =VLOOKUP(B65,Sheet1!$A:$D,4,FALSE) -> -1.686737857 | J65: =IF(G65="N",H65-I65,(H65-I65+'Game Picker'!$L$4)) -> 4.718106447 | K65: -2.718106447 | L65: 0.9040141467 | M65: 0.09598585331 | N65: W | O65: 0.9040141467 | P65: 0.9-1 | Q65: W | R65: 2.718106447
A66: Hobart | B66: Siena | C66: 12 | D66: 9 | E66: 3 | F66: W | G66: N | H66: =VLOOKUP(A66,Sheet1!$A:$D,4,FALSE) -> -0.5621296377 | I66: =VLOOKUP(B66,Sheet1!$A:$D,4,FALSE) -> -4.657485177 | J66: =IF(G66="N",H66-I66,(H66-I66+'Game Picker'!$L$4)) -> 4.095355539 | K66: -1.095355539 | L66: =IF(G66="N",NORMDIST(0,I66-H66,$C$539,TRUE),NORMDIST(0,I66-H66-$C$542,$C$539,TRUE)) -> 0.8712983276 | M66: =IF(G66="N",NORMDIST(0,H66-I66,$C$539,TRUE),NORMDIST(0,H66-I66+$C$542,$C$539,TRUE)) -> 0.1287016724 | N66: =IF(E66<0,IF(L66<0.5,"W"),IF(E66>0,IF(L66>0.5,"W"),"L")) -> W | O66: 0.8712983276 | P66: 0.8-.89 | Q66: W | R66: 1.095355539
A67: Army | B67: VMI | C67: 22 | D67: 3 | E67: =IF(C67-D67<-10,-10,(IF(C67-D67>10,10,C67-D67))) -> 10 | F67: =IF(C67>D67,"W","L") -> W | H67: =VLOOKUP(A67,Sheet1!$A:$D,4,FALSE) -> 2.862322697 | I67: =VLOOKUP(B67,Sheet1!$A:$D,4,FALSE) -> -9.770431817 | J67: =IF(G67="N",H67-I67,(H67-I67+'Game Picker'!$L$4)) -> 13.85124191 | K67: =E67-J67 -> -3.851241908 | L67: 0.999936056 | M67: 6.394395519e-05 | N67: W | O67: =IF(M67>L67,M67,L67) -> 0.999936056 | P67: =IF(AND(O67>=0.9,O67<1.01),"0.9-1",IF(AND(O67>=0.8,O67<0.9),"0.8-.89",IF(AND(O67>=0.7,O67<0.8),"0.7-.79",IF(AND(O67>=0.6,O67<0.7),"0.6-.69",IF(AND(O67>=0.5,O67<0.6),"0.5-.59"))))) -> 0.9-1 | Q67: =IF(AND(J67<=1,J67>=-1,K67<=3,K67>-3),"W",IF(AND(E67<=-1,J67<=-1),"W",IF(AND(E67>=1,J67>=1),"W","L"))) -> W | R67: =IF(K67<0,-K67,K67) -> 3.851241908
A68: Navy | B68: Delaware | C68: 5 | D68: 1 | E68: 4 | F68: W | H68: =VLOOKUP(A68,Sheet1!$A:$D,4,FALSE) -> 3.111098872 | I68: =VLOOKUP(B68,Sheet1!$A:$D,4,FALSE) -> -2.335784283 | J68: =IF(G68="N",H68-I68,(H68-I68+'Game Picker'!$L$4)) -> 6.66537055 | K68: -2.66537055 | L68: 0.9673555269 | M68: 0.03264447311 | N68: W | O68: 0.9673555269 | P68: 0.9-1 | Q68: W | R68: 2.66537055
A69: Stony Brook | B69: St. Johns | C69: 14 | D69: 6 | E69: 8 | F69: W | H69: =VLOOKUP(A69,Sheet1!$A:$D,4,FALSE) -> 3.918435733 | I69: =VLOOKUP(B69,Sheet1!$A:$D,4,FALSE) -> -3.587636587 | J69: =IF(G69="N",H69-I69,(H69-I69+'Game Picker'!$L$4)) -> 8.724559715 | K69: -0.7245597145 | L69: 0.992083289 | M69: 0.007916710971 | N69: W | O69: 0.992083289 | P69: 0.9-1 | Q69: W | R69: 0.7245597145
A70: Syracuse | B70: Albany | C70: 16 | D70: 7 | E70: 9 | F70: W | H70: =VLOOKUP(A70,Sheet1!$A:$D,4,FALSE) -> 5.401447597 | I70: =VLOOKUP(B70,Sheet1!$A:$D,4,FALSE) -> 3.798556055 | J70: =IF(G70="N",H70-I70,(H70-I70+'Game Picker'!$L$4)) -> 2.821378937 | K70: 6.178621063 | L70: 0.7823746176 | M70: 0.2176253824 | N70: W | O70: 0.7823746176 | P70: 0.7-.79 | Q70: W | R70: 6.178621063
A71: Wagner | B71: Monmouth | C71: 4 | D71: 8 | E71: -4 | F71: L | H71: =VLOOKUP(A71,Sheet1!$A:$D,4,FALSE) -> -5.690809046 | I71: =VLOOKUP(B71,Sheet1!$A:$D,4,FALSE) -> -2.541062319 | J71: =IF(G71="N",H71-I71,(H71-I71+'Game Picker'!$L$4)) -> -1.931259333 | K71: -2.068740667 | L71: 0.296643097 | M71: 0.703356903 | N71: W | O71: 0.703356903 | P71: 0.7-.79 | Q71: W | R71: 2.068740667
A72: Harvard | B72: Holy Cross | C72: 11 | D72: 10 | E72: 1 | F72: W | H72: =VLOOKUP(A72,Sheet1!$A:$D,4,FALSE) -> 3.185121671 | I72: =VLOOKUP(B72,Sheet1!$A:$D,4,FALSE) -> -1.638314374 | J72: =IF(G72="N",H72-I72,(H72-I72+'Game Picker'!$L$4)) -> 6.04192344 | K72: -5.04192344 | L72: 0.9526256622 | M72: 0.04737433784 | N72: W | O72: 0.9526256622 | P72: 0.9-1 | Q72: W | R72: 5.04192344
A73: Richmond | B73: Mt. St. Marys | C73: 9 | D73: 6 | E73: 3 | F73: W | H73: =VLOOKUP(A73,Sheet1!$A:$D,4,FALSE) -> 0.2412057204 | I73: =VLOOKUP(B73,Sheet1!$A:$D,4,FALSE) -> -2.24929111 | J73: =IF(G73="N",H73-I73,(H73-I73+'Game Picker'!$L$4)) -> 3.708984226 | K73: -0.7089842256 | L73: 0.8474836828 | M73: 0.1525163172 | N73: W | O73: 0.8474836828 | P73: 0.8-.89 | Q73: W | R73: 0.7089842256
A74: Mercer | B74: Siena | C74: 12 | D74: 11 | E74: 1 | F74: W | H74: =VLOOKUP(A74,Sheet1!$A:$D,4,FALSE) -> -3.467672595 | I74: =VLOOKUP(B74,Sheet1!$A:$D,4,FALSE) -> -4.657485177 | J74: =IF(G74="N",H74-I74,(H74-I74+'Game Picker'!$L$4)) -> 2.408299977 | K74: -1.408299977 | L74: 0.7472954608 | M74: 0.2527045392 | N74: W | O74: 0.7472954608 | P74: 0.7-.79 | Q74: W | R74: 1.408299977
A75: Virginia | B75: High Point | C75: 11 | D75: 12 | E75: -1 | F75: L | H75: =VLOOKUP(A75,Sheet1!$A:$D,4,FALSE) -> 1.86246706 | I75: =VLOOKUP(B75,Sheet1!$A:$D,4,FALSE) -> -1.040855576 | J75: =IF(G75="N",H75-I75,(H75-I75+'Game Picker'!$L$4)) -> 4.121810031 | K75: -5.121810031 | L75: 0.8728288699 | M75: 0.1271711301 | N75: FALSE | O75: 0.8728288699 | P75: 0.8-.89 | Q75: L | R75: 5.121810031
A76: Notre Dame | B76: Bellarmine | C76: 11 | D76: 6 | E76: 5 | F76: W | H76: =VLOOKUP(A76,Sheet1!$A:$D,4,FALSE) -> 5.62151711 | I76: =VLOOKUP(B76,Sheet1!$A:$D,4,FALSE) -> -1.65294273 | J76: =IF(G76="N",H76-I76,(H76-I76+'Game Picker'!$L$4)) -> 8.492947235 | K76: -3.492947235 | L76: 0.990579994 | M76: 0.009420006025 | N76: W | O76: 0.990579994 | P76: 0.9-1 | Q76: W | R76: 3.492947235
A77: Ohio State | B77: UMBC | C77: 12 | D77: 7 | E77: 5 | F77: W | H77: =VLOOKUP(A77,Sheet1!$A:$D,4,FALSE) -> 1.547138133 | I77: =VLOOKUP(B77,Sheet1!$A:$D,4,FALSE) -> -2.424513977 | J77: =IF(G77="N",H77-I77,(H77-I77+'Game Picker'!$L$4)) -> 5.190139505 | K77: -0.1901395047 | L77: 0.9244001543 | M77: 0.07559984573 | N77: W | O77: 0.9244001543 | P77: 0.9-1 | Q77: W | R77: 0.1901395047
A78: Air Force | B78: Dartmouth | C78: 9 | D78: 3 | E78: 6 | F78: W | G78: N | H78: =VLOOKUP(A78,Sheet1!$A:$D,4,FALSE) -> 1.194703694 | I78: =VLOOKUP(B78,Sheet1!$A:$D,4,FALSE) -> -5.622659345 | J78: =IF(G78="N",H78-I78,(H78-I78+'Game Picker'!$L$4)) -> 6.817363039 | K78: -0.8173630391 | L78: 0.9703058145 | M78: 0.02969418554 | N78: W | O78: 0.9703058145 | P78: 0.9-1 | Q78: W | R78: 0.8173630391
A79: Robert Morris | B79: High Point | C79: 10 | D79: 15 | E79: -5 | F79: L | H79: =VLOOKUP(A79,Sheet1!$A:$D,4,FALSE) -> -1.09985556 | I79: =VLOOKUP(B79,Sheet1!$A:$D,4,FALSE) -> -1.040855576 | J79: =IF(G79="N",H79-I79,(H79-I79+'Game Picker'!$L$4)) -> 1.159487411 | K79: -6.159487411 | L79: 0.6257623199 | M79: 0.3742376801 | N79: FALSE | O79: 0.6257623199 | P79: 0.6-.69 | Q79: L | R79: 6.159487411
A80: Albany | B80: Drexel | C80: 20 | D80: 14 | E80: 6 | F80: W | H80: =VLOOKUP(A80,Sheet1!$A:$D,4,FALSE) -> 3.798556055 | I80: =VLOOKUP(B80,Sheet1!$A:$D,4,FALSE) -> 0.6270587359 | J80: =IF(G80="N",H80-I80,(H80-I80+'Game Picker'!$L$4)) -> 4.389984714 | K80: 1.610015286 | L80: 0.8876314921 | M80: 0.1123685079 | N80: W | O80: 0.8876314921 | P80: 0.8-.89 | Q80: W | R80: 1.610015286
A81: Bellarmine | B81: Quinnipiac | C81: 6 | D81: 12 | E81: -6 | F81: L | H81: =VLOOKUP(A81,Sheet1!$A:$D,4,FALSE) -> -1.65294273 | I81: =VLOOKUP(B81,Sheet1!$A:$D,4,FALSE) -> 0.3017170536 | J81: =IF(G81="N",H81-I81,(H81-I81+'Game Picker'!$L$4)) -> -0.736172389 | K81: -5.263827611 | L81: 0.4193390071 | M81: 0.5806609929 | N81: W | O81: 0.5806609929 | P81: 0.5-.59 | Q81: L | R81: 5.263827611
A82: Colgate | B82: Bucknell | C82: 11 | D82: 10 | E82: 1 | F82: W | H82: =VLOOKUP(A82,Sheet1!$A:$D,4,FALSE) -> -2.119715781 | I82: =VLOOKUP(B82,Sheet1!$A:$D,4,FALSE) -> 2.368675226 | J82: =IF(G82="N",H82-I82,(H82-I82+'Game Picker'!$L$4)) -> -3.269903612 | K82: 4.269903612 | L82: 0.1829247241 | M82: 0.8170752759 | N82: FALSE | O82: 0.8170752759 | P82: 0.8-.89 | Q82: L | R82: 4.269903612
A83: Lehigh | B83: Holy Cross | C83: 12 | D83: 11 | E83: 1 | F83: W | H83: =VLOOKUP(A83,Sheet1!$A:$D,4,FALSE) -> -0.903365554 | I83: =VLOOKUP(B83,Sheet1!$A:$D,4,FALSE) -> -1.638314374 | J83: =IF(G83="N",H83-I83,(H83-I83+'Game Picker'!$L$4)) -> 1.953436215 | K83: -0.9534362147 | L83: 0.705474889 | M83: 0.294525111 | N83: W | O83: 0.705474889 | P83: 0.7-.79 | Q83: W | R83: 0.9534362147
A84: Richmond | B84: Marquette | C84: 2 | D84: 7 | E84: -5 | F84: L | H84: =VLOOKUP(A84,Sheet1!$A:$D,4,FALSE) -> 0.2412057204 | I84: =VLOOKUP(B84,Sheet1!$A:$D,4,FALSE) -> 3.009022758 | J84: =IF(G84="N",H84-I84,(H84-I84+'Game Picker'!$L$4)) -> -1.549329643 | K84: -3.450670357 | L84: 0.3341583916 | M84: 0.6658416084 | N84: W | O84: 0.6658416084 | P84: 0.6-.69 | Q84: W | R84: 3.450670357
A85: St. Josephs | B85: Manhattan | C85: 16 | D85: 9 | E85: 7 | F85: W | H85: =VLOOKUP(A85,Sheet1!$A:$D,4,FALSE) -> 2.328006084 | I85: =VLOOKUP(B85,Sheet1!$A:$D,4,FALSE) -> -6.500537463 | J85: =IF(G85="N",H85-I85,(H85-I85+'Game Picker'!$L$4)) -> 10.04703094 | K85: -3.047030942 | L85: 0.9972691006 | M85: 0.002730899438 | N85: W | O85: 0.9972691006 | P85: 0.9-1 | Q85: W | R85: 3.047030942
A86: Towson | B86: Georgetown | C86: 10 | D86: 7 | E86: 3 | F86: W | H86: =VLOOKUP(A86,Sheet1!$A:$D,4,FALSE) -> 3.242727074 | I86: =VLOOKUP(B86,Sheet1!$A:$D,4,FALSE) -> -1.321751505 | J86: =IF(G86="N",H86-I86,(H86-I86+'Game Picker'!$L$4)) -> 5.782965974 | K86: -2.782965974 | L86: 0.9451174629 | M86: 0.05488253712 | N86: W | O86: 0.9451174629 | P86: 0.9-1 | Q86: W | R86: 2.782965974
A87: Boston | B87: Navy | C87: 10 | D87: 9 | E87: 1 | F87: W | H87: =VLOOKUP(A87,Sheet1!$A:$D,4,FALSE) -> -0.4232576026 | I87: =VLOOKUP(B87,Sheet1!$A:$D,4,FALSE) -> 3.111098872 | J87: =IF(G87="N",H87-I87,(H87-I87+'Game Picker'!$L$4)) -> -2.31586908 | K87: 3.31586908 | L87: 0.2609426858 | M87: 0.7390573142 | N87: FALSE | O87: 0.7390573142 | P87: 0.7-.79 | Q87: L | R87: 3.31586908
A88: Hartford | B88: Bryant | C88: 11 | D88: 16 | E88: -5 | F88: L | H88: =VLOOKUP(A88,Sheet1!$A:$D,4,FALSE) -> 0.006498494538 | I88: =VLOOKUP(B88,Sheet1!$A:$D,4,FALSE) -> 2.088248266 | J88: =IF(G88="N",H88-I88,(H88-I88+'Game Picker'!$L$4)) -> -0.8632623767 | K88: -4.136737623 | L88: 0.405657151 | M88: 0.594342849 | N88: W | O88: 0.594342849 | P88: 0.5-.59 | Q88: L | R88: 4.136737623
A89: Jacksonville | B89: Duke | C89: 5 | D89: 18 | E89: -10 | F89: L | H89: =VLOOKUP(A89,Sheet1!$A:$D,4,FALSE) -> -5.13423946 | I89: =VLOOKUP(B89,Sheet1!$A:$D,4,FALSE) -> 4.972271547 | J89: =IF(G89="N",H89-I89,(H89-I89+'Game Picker'!$L$4)) -> -8.888023612 | K89: -1.111976388 | L89: 0.006986866314 | M89: 0.9930131337 | N89: W | O89: 0.9930131337 | P89: 0.9-1 | Q89: W | R89: 1.111976388
A90: Loyola | B90: Lafayette | C90: 12 | D90: 8 | E90: 4 | F90: W | H90: =VLOOKUP(A90,Sheet1!$A:$D,4,FALSE) -> 3.665283498 | I90: =VLOOKUP(B90,Sheet1!$A:$D,4,FALSE) -> -4.830394402 | J90: =IF(G90="N",H90-I90,(H90-I90+'Game Picker'!$L$4)) -> 9.714165295 | K90: -5.714165295 | L90: 0.9963887066 | M90: 0.003611293414 | N90: W | O90: 0.9963887066 | P90: 0.9-1 | Q90: W | R90: 5.714165295
A91: Penn State | B91: Villanova | C91: 9 | D91: 19 | E91: -10 | F91: L | H91: =VLOOKUP(A91,Sheet1!$A:$D,4,FALSE) -> 2.604208589 | I91: =VLOOKUP(B91,Sheet1!$A:$D,4,FALSE) -> 4.509438236 | J91: =IF(G91="N",H91-I91,(H91-I91+'Game Picker'!$L$4)) -> -0.6867422523 | K91: -9.313257748 | L91: 0.4246878329 | M91: 0.5753121671 | N91: W | O91: 0.5753121671 | P91: 0.5-.59 | Q91: L | R91: 9.313257748
A92: Siena | B92: Lowell | C92: 11 | D92: 7 | E92: 4 | F92: W | H92: =VLOOKUP(A92,Sheet1!$A:$D,4,FALSE) -> -4.657485177 | I92: =VLOOKUP(B92,Sheet1!$A:$D,4,FALSE) -> -4.855540611 | J92: =IF(G92="N",H92-I92,(H92-I92+'Game Picker'!$L$4)) -> 1.416542828 | K92: 2.583457172 | L92: 0.6523740014 | M92: 0.3476259986 | N92: W | O92: 0.6523740014 | P92: 0.6-.69 | Q92: W | R92: 2.583457172
A93: Stony Brook | B93: Brown | C93: 14 | D93: 16 | E93: -2 | F93: L | H93: =VLOOKUP(A93,Sheet1!$A:$D,4,FALSE) -> 3.918435733 | I93: =VLOOKUP(B93,Sheet1!$A:$D,4,FALSE) -> 7.845985559 | J93: =IF(G93="N",H93-I93,(H93-I93+'Game Picker'!$L$4)) -> -2.709062432 | K93: 0.7090624318 | L93: 0.2268751151 | M93: 0.7731248849 | N93: W | O93: 0.7731248849 | P93: 0.7-.79 | Q93: W | R93: 0.7090624318
A94: Vermont | B94: Providence | C94: 8 | D94: 11 | E94: -3 | F94: L | H94: =VLOOKUP(A94,Sheet1!$A:$D,4,FALSE) -> -0.1882101278 | I94: =VLOOKUP(B94,Sheet1!$A:$D,4,FALSE) -> -0.3891939228 | J94: =IF(G94="N",H94-I94,(H94-I94+'Game Picker'!$L$4)) -> 1.41947119 | K94: -4.41947119 | L94: 0.6526731648 | M94: 0.3473268352 | N94: FALSE | O94: 0.6526731648 | P94: 0.6-.69 | Q94: L | R94: 4.41947119
A95: Yale | B95: Maryland | C95: 8 | D95: 5 | E95: 3 | F95: W | H95: =VLOOKUP(A95,Sheet1!$A:$D,4,FALSE) -> 5.159359488 | I95: =VLOOKUP(B95,Sheet1!$A:$D,4,FALSE) -> 5.430451986 | J95: =IF(G95="N",H95-I95,(H95-I95+'Game Picker'!$L$4)) -> 0.9473948974 | K95: 2.052605103 | L95: 0.6033382232 | M95: 0.3966617768 | N95: W | O95: 0.6033382232 | P95: 0.6-.69 | Q95: W | R95: 2.052605103
A96: Cornell | B96: Hobart | C96: 10 | D96: 8 | E96: 2 | F96: W | G96: N | H96: =VLOOKUP(A96,Sheet1!$A:$D,4,FALSE) -> 0.9382344466 | I96: =VLOOKUP(B96,Sheet1!$A:$D,4,FALSE) -> -0.5621296377 | J96: =IF(G96="N",H96-I96,(H96-I96+'Game Picker'!$L$4)) -> 1.500364084 | K96: 0.4996359157 | L96: 0.6608990667 | M96: 0.3391009333 | N96: W | O96: 0.6608990667 | P96: 0.6-.69 | Q96: W | R96: 0.4996359157
A97: Denver | B97: Sacred Heart | C97: 18 | D97: 7 | E97: 10 | F97: W | H97: =VLOOKUP(A97,Sheet1!$A:$D,4,FALSE) -> 5.537634311 | I97: =VLOOKUP(B97,Sheet1!$A:$D,4,FALSE) -> -4.143034888 | J97: =IF(G97="N",H97-I97,(H97-I97+'Game Picker'!$L$4)) -> 10.89915659 | K97: -0.8991565943 | L97: 0.9987113137 | M97: 0.001288686294 | N97: W | O97: 0.9987113137 | P97: 0.9-1 | Q97: W | R97: 0.8991565943
A98: Marist | B98: Binghamton | C98: 10 | D98: 8 | E98: 2 | F98: W | H98: =VLOOKUP(A98,Sheet1!$A:$D,4,FALSE) -> -1.206918481 | I98: =VLOOKUP(B98,Sheet1!$A:$D,4,FALSE) -> -2.745774645 | J98: =IF(G98="N",H98-I98,(H98-I98+'Game Picker'!$L$4)) -> 2.75734356 | K98: -0.7573435596 | L98: 0.7771279481 | M98: 0.2228720519 | N98: W | O98: 0.7771279481 | P98: 0.7-.79 | Q98: W | R98: 0.7573435596
A99: Notre Dame | B99: Detroit | C99: 14 | D99: 5 | E99: 9 | F99: W | H99: =VLOOKUP(A99,Sheet1!$A:$D,4,FALSE) -> 5.62151711 | I99: =VLOOKUP(B99,Sheet1!$A:$D,4,FALSE) -> -4.591272987 | J99: =IF(G99="N",H99-I99,(H99-I99+'Game Picker'!$L$4)) -> 11.43127749 | K99: -2.431277492 | L99: 0.9992145641 | M99: 0.0007854359235 | N99: W | O99: 0.9992145641 | P99: 0.9-1 | Q99: W | R99: 2.431277492
A100: Hofstra | B100: Princeton | C100: 11 | D100: 10 | E100: 1 | F100: W | H100: =VLOOKUP(A100,Sheet1!$A:$D,4,FALSE) -> 1.096477794 | I100: =VLOOKUP(B100,Sheet1!$A:$D,4,FALSE) -> -0.2651090919 | J100: =IF(G100="N",H100-I100,(H100-I100+'Game Picker'!$L$4)) -> 2.580074281 | K100: -1.580074281 | L100: 0.7622337968 | M100: 0.2377662032 | N100: W | O100: 0.7622337968 | P100: 0.7-.79 | Q100: W | R100: 1.580074281
A101: Rutgers | B101: Fairfield | C101: 12 | D101: 6 | E101: 6 | F101: W | H101: =VLOOKUP(A101,Sheet1!$A:$D,4,FALSE) -> 2.68887711 | I101: =VLOOKUP(B101,Sheet1!$A:$D,4,FALSE) -> 0.7668907987 | J101: =IF(G101="N",H101-I101,(H101-I101+'Game Picker'!$L$4)) -> 3.140473706 | K101: 2.859526294 | L101: 0.8074347665 | M101: 0.1925652335 | N101: W | O101: 0.8074347665 | P101: 0.8-.89 | Q101: W | R101: 2.859526294
A102: Massachusetts | B102: Harvard | C102: 9 | D102: 10 | E102: -1 | F102: L | H102: =VLOOKUP(A102,Sheet1!$A:$D,4,FALSE) -> 1.176758718 | I102: =VLOOKUP(B102,Sheet1!$A:$D,4,FALSE) -> 3.185121671 | J102: =IF(G102="N",H102-I102,(H102-I102+'Game Picker'!$L$4)) -> -0.789875558 | K102: -0.210124442 | L102: 0.413544676 | M102: 0.586455324 | N102: W | O102: 0.586455324 | P102: 0.5-.59 | Q102: W | R102: 0.210124442
A103: NJIT | B103: VMI | C103: 7 | D103: 10 | E103: -3 | F103: L | G103: N | H103: =VLOOKUP(A103,Sheet1!$A:$D,4,FALSE) -> -8.561709574 | I103: =VLOOKUP(B103,Sheet1!$A:$D,4,FALSE) -> -9.770431817 | J103: =IF(G103="N",H103-I103,(H103-I103+'Game Picker'!$L$4)) -> 1.208722243 | K103: -4.208722243 | L103: 0.6309105837 | M103: 0.3690894163 | N103: FALSE | O103: 0.6309105837 | P103: 0.6-.69 | Q103: L | R103: 4.208722243
A104: Michigan | B104: Delaware | C104: 10 | D104: 7 | E104: 3 | F104: W | G104: N | H104: =VLOOKUP(A104,Sheet1!$A:$D,4,FALSE) -> -1.686737857 | I104: =VLOOKUP(B104,Sheet1!$A:$D,4,FALSE) -> -2.335784283 | J104: =IF(G104="N",H104-I104,(H104-I104+'Game Picker'!$L$4)) -> 0.6490464263 | K104: 2.350953574 | L104: 0.5712237129 | M104: 0.4287762871 | N104: W | O104: 0.5712237129 | P104: 0.5-.59 | Q104: W | R104: 2.350953574
A105: Air Force | B105: Sacred Heart | C105: 13 | D105: 10 | E105: 3 | F105: W | G105: N | H105: =VLOOKUP(A105,Sheet1!$A:$D,4,FALSE) -> 1.194703694 | I105: =VLOOKUP(B105,Sheet1!$A:$D,4,FALSE) -> -4.143034888 | J105: =IF(G105="N",H105-I105,(H105-I105+'Game Picker'!$L$4)) -> 5.337738582 | K105: -2.337738582 | L105: 0.9300447737 | M105: 0.06995522633 | N105: W | O105: 0.9300447737 | P105: 0.9-1 | Q105: W | R105: 2.337738582
A106: Johns Hopkins | B106: North Carolina | C106: 11 | D106: 15 | E106: -4 | F106: L | H106: =VLOOKUP(A106,Sheet1!$A:$D,4,FALSE) -> 3.565491294 | I106: =VLOOKUP(B106,Sheet1!$A:$D,4,FALSE) -> 4.050662015 | J106: =IF(G106="N",H106-I106,(H106-I106+'Game Picker'!$L$4)) -> 0.7333166738 | K106: -4.733316674 | L106: 0.5803523719 | M106: 0.4196476281 | N106: FALSE | O106: 0.5803523719 | P106: 0.5-.59 | Q106: L | R106: 4.733316674
A107: Virginia | B107: Penn | C107: 15 | D107: 10 | E107: 5 | F107: W | H107: =VLOOKUP(A107,Sheet1!$A:$D,4,FALSE) -> 1.86246706 | I107: =VLOOKUP(B107,Sheet1!$A:$D,4,FALSE) -> 1.812881196 | J107: =IF(G107="N",H107-I107,(H107-I107+'Game Picker'!$L$4)) -> 1.26807326 | K107: 3.73192674 | L107: 0.6370854986 | M107: 0.3629145014 | N107: W | O107: 0.6370854986 | P107: 0.6-.69 | Q107: W | R107: 3.73192674
A108: Denver | B108: Dartmouth | C108: 16 | D108: 6 | E108: 10 | F108: W | H108: =VLOOKUP(A108,Sheet1!$A:$D,4,FALSE) -> 5.537634311 | I108: =VLOOKUP(B108,Sheet1!$A:$D,4,FALSE) -> -5.622659345 | J108: =IF(G108="N",H108-I108,(H108-I108+'Game Picker'!$L$4)) -> 12.37878105 | K108: -2.378781051 | L108: 0.9996906589 | M108: 0.0003093410668 | N108: W | O108: 0.9996906589 | P108: 0.9-1 | Q108: W | R108: 2.378781051
A109: Syracuse | B109: Army | C109: 9 | D109: 8 | E109: 1 | F109: W | H109: =VLOOKUP(A109,Sheet1!$A:$D,4,FALSE) -> 5.401447597 | I109: =VLOOKUP(B109,Sheet1!$A:$D,4,FALSE) -> 2.862322697 | J109: =IF(G109="N",H109-I109,(H109-I109+'Game Picker'!$L$4)) -> 3.757612296 | K109: -2.757612296 | L109: 0.8506321966 | M109: 0.1493678034 | N109: W | O109: 0.8506321966 | P109: 0.8-.89 | Q109: W | R109: 2.757612296
A110: Duke | B110: Mercer | C110: 19 | D110: 9 | E110: 10 | F110: W | H110: =VLOOKUP(A110,Sheet1!$A:$D,4,FALSE) -> 4.972271547 | I110: =VLOOKUP(B110,Sheet1!$A:$D,4,FALSE) -> -3.467672595 | J110: =IF(G110="N",H110-I110,(H110-I110+'Game Picker'!$L$4)) -> 9.658431537 | K110: 0.3415684627 | L110: 0.9962186088 | M110: 0.003781391242 | N110: W | O110: 0.9962186088 | P110: 0.9-1 | Q110: W | R110: 0.3415684627
A111: Villanova | B111: Drexel | C111: 14 | D111: 9 | E111: 5 | F111: W | H111: =VLOOKUP(A111,Sheet1!$A:$D,4,FALSE) -> 4.509438236 | I111: =VLOOKUP(B111,Sheet1!$A:$D,4,FALSE) -> 0.6270587359 | J111: =IF(G111="N",H111-I111,(H111-I111+'Game Picker'!$L$4)) -> 5.100866895 | K111: -0.1008668951 | L111: 0.9208214936 | M111: 0.07917850639 | N111: W | O111: 0.9208214936 | P111: 0.9-1 | Q111: W | R111: 0.1008668951
A112: Fairfield | B112: Lowell | C112: 12 | D112: 10 | E112: 2 | F112: W | H112: =VLOOKUP(A112,Sheet1!$A:$D,4,FALSE) -> 0.7668907987 | I112: =VLOOKUP(B112,Sheet1!$A:$D,4,FALSE) -> -4.855540611 | J112: =IF(G112="N",H112-I112,(H112-I112+'Game Picker'!$L$4)) -> 6.840918804 | K112: -4.840918804 | L112: 0.9707426131 | M112: 0.02925738691 | N112: W | O112: 0.9707426131 | P112: 0.9-1 | Q112: W | R112: 4.840918804
A113: Georgetown | B113: Mt. St. Marys | C113: 8 | D113: 11 | E113: -3 | F113: L | H113: =VLOOKUP(A113,Sheet1!$A:$D,4,FALSE) -> -1.321751505 | I113: =VLOOKUP(B113,Sheet1!$A:$D,4,FALSE) -> -2.24929111 | J113: =IF(G113="N",H113-I113,(H113-I113+'Game Picker'!$L$4)) -> 2.146027 | K113: -5.146027 | L113: 0.7235676429 | M113: 0.2764323571 | N113: FALSE | O113: 0.7235676429 | P113: 0.7-.79 | Q113: L | R113: 5.146027
A114: Delaware | B114: VMI | C114: 14 | D114: 6 | E114: 8 | F114: W | H114: =VLOOKUP(A114,Sheet1!$A:$D,4,FALSE) -> -2.335784283 | I114: =VLOOKUP(B114,Sheet1!$A:$D,4,FALSE) -> -9.770431817 | J114: =IF(G114="N",H114-I114,(H114-I114+'Game Picker'!$L$4)) -> 8.653134929 | K114: -0.653134929 | L114: 0.9916439387 | M114: 0.008356061299 | N114: W | O114: 0.9916439387 | P114: 0.9-1 | Q114: W | R114: 0.653134929
A115: Massachusetts | B115: Hartford | C115: 11 | D115: 3 | E115: 8 | F115: W | H115: =VLOOKUP(A115,Sheet1!$A:$D,4,FALSE) -> 1.176758718 | I115: =VLOOKUP(B115,Sheet1!$A:$D,4,FALSE) -> 0.006498494538 | J115: =IF(G115="N",H115-I115,(H115-I115+'Game Picker'!$L$4)) -> 2.388747618 | K115: 5.611252382 | L115: 0.745564301 | M115: 0.254435699 | N115: W | O115: 0.745564301 | P115: 0.7-.79 | Q115: W | R115: 5.611252382
A116: Wagner | B116: Rutgers | C116: 7 | D116: 15 | E116: -8 | F116: L | H116: =VLOOKUP(A116,Sheet1!$A:$D,4,FALSE) -> -5.690809046 | I116: =VLOOKUP(B116,Sheet1!$A:$D,4,FALSE) -> 2.68887711 | J116: =IF(G116="N",H116-I116,(H116-I116+'Game Picker'!$L$4)) -> -7.161198761 | K116: -0.838801239 | L116: 0.02382967869 | M116: 0.9761703213 | N116: W | O116: 0.9761703213 | P116: 0.9-1 | Q116: W | R116: 0.838801239
A117: Hofstra | B117: NJIT | C117: 19 | D117: 4 | E117: 10 | F117: W | H117: =VLOOKUP(A117,Sheet1!$A:$D,4,FALSE) -> 1.096477794 | I117: =VLOOKUP(B117,Sheet1!$A:$D,4,FALSE) -> -8.561709574 | J117: =IF(G117="N",H117-I117,(H117-I117+'Game Picker'!$L$4)) -> 10.87667476 | K117: -0.8766747629 | L117: 0.9986846554 | M117: 0.001315344605 | N117: W | O117: 0.9986846554 | P117: 0.9-1 | Q117: W | R117: 0.8766747629
A118: Loyola | B118: Towson | C118: 8 | D118: 10 | E118: -2 | F118: L | H118: =VLOOKUP(A118,Sheet1!$A:$D,4,FALSE) -> 3.665283498 | I118: =VLOOKUP(B118,Sheet1!$A:$D,4,FALSE) -> 3.242727074 | J118: =IF(G118="N",H118-I118,(H118-I118+'Game Picker'!$L$4)) -> 1.641043819 | K118: -3.641043819 | L118: 0.675021655 | M118: 0.324978345 | N118: FALSE | O118: 0.675021655 | P118: 0.6-.69 | Q118: L | R118: 3.641043819
A119: St. Josephs | B119: St. Johns | C119: 16 | D119: 8 | E119: 8 | F119: W | H119: =VLOOKUP(A119,Sheet1!$A:$D,4,FALSE) -> 2.328006084 | I119: =VLOOKUP(B119,Sheet1!$A:$D,4,FALSE) -> -3.587636587 | J119: =IF(G119="N",H119-I119,(H119-I119+'Game Picker'!$L$4)) -> 7.134130066 | K119: 0.8658699337 | L119: 0.9757469515 | M119: 0.0242530485 | N119: W | O119: 0.9757469515 | P119: 0.9-1 | Q119: W | R119: 0.8658699337
A120: Detroit | B120: Bellarmine | C120: 6 | D120: 7 | E120: -1 | F120: L | G120: N | H120: =VLOOKUP(A120,Sheet1!$A:$D,4,FALSE) -> -4.591272987 | I120: =VLOOKUP(B120,Sheet1!$A:$D,4,FALSE) -> -1.65294273 | J120: =IF(G120="N",H120-I120,(H120-I120+'Game Picker'!$L$4)) -> -2.938330256 | K120: 1.938330256 | L120: 0.2082293498 | M120: 0.7917706502 | N120: W | O120: 0.7917706502 | P120: 0.7-.79 | Q120: W | R120: 1.938330256
A121: Virginia | B121: Syracuse | C121: 13 | D121: 14 | E121: -1 | F121: L | H121: =VLOOKUP(A121,Sheet1!$A:$D,4,FALSE) -> 1.86246706 | I121: =VLOOKUP(B121,Sheet1!$A:$D,4,FALSE) -> 5.401447597 | J121: =IF(G121="N",H121-I121,(H121-I121+'Game Picker'!$L$4)) -> -2.320493142 | K121: 1.320493142 | L121: 0.2605272967 | M121: 0.7394727033 | N121: W | O121: 0.7394727033 | P121: 0.7-.79 | Q121: W | R121: 1.320493142
A122: Ohio State | B122: Marquette | C122: 12 | D122: 8 | E122: 4 | F122: W | H122: =VLOOKUP(A122,Sheet1!$A:$D,4,FALSE) -> 1.547138133 | I122: =VLOOKUP(B122,Sheet1!$A:$D,4,FALSE) -> 3.009022758 | J122: =IF(G122="N",H122-I122,(H122-I122+'Game Picker'!$L$4)) -> -0.2433972301 | K122: 4.24339723 | L122: 0.47316735 | M122: 0.52683265 | N122: FALSE | O122: 0.52683265 | P122: 0.5-.59 | Q122: L | R122: 4.24339723
A123: Robert Morris | B123: Air Force | C123: 10 | D123: 11 | E123: -1 | F123: L | H123: =VLOOKUP(A123,Sheet1!$A:$D,4,FALSE) -> -1.09985556 | I123: =VLOOKUP(B123,Sheet1!$A:$D,4,FALSE) -> 1.194703694 | J123: =IF(G123="N",H123-I123,(H123-I123+'Game Picker'!$L$4)) -> -1.076071859 | K123: 0.07607185897 | L123: 0.3830110219 | M123: 0.6169889781 | N123: W | O123: 0.6169889781 | P123: 0.6-.69 | Q123: W | R123: 0.07607185897
A124: Hofstra | B124: Georgetown | C124: 6 | D124: 11 | E124: -5 | F124: L | H124: =VLOOKUP(A124,Sheet1!$A:$D,4,FALSE) -> 1.096477794 | I124: =VLOOKUP(B124,Sheet1!$A:$D,4,FALSE) -> -1.321751505 | J124: =IF(G124="N",H124-I124,(H124-I124+'Game Picker'!$L$4)) -> 3.636716694 | K124: -8.636716694 | L124: 0.8427237982 | M124: 0.1572762018 | N124: FALSE | O124: 0.8427237982 | P124: 0.8-.89 | Q124: L | R124: 8.636716694
A125: High Point | B125: Marist | C125: 11 | D125: 9 | E125: 2 | F125: W | H125: =VLOOKUP(A125,Sheet1!$A:$D,4,FALSE) -> -1.040855576 | I125: =VLOOKUP(B125,Sheet1!$A:$D,4,FALSE) -> -1.206918481 | J125: =IF(G125="N",H125-I125,(H125-I125+'Game Picker'!$L$4)) -> 1.384550299 | K125: 0.6154497005 | L125: 0.6490994756 | M125: 0.3509005244 | N125: W | O125: 0.6490994756 | P125: 0.6-.69 | Q125: W | R125: 0.6154497005
A126: Lafayette | B126: Army | C126: 5 | D126: 14 | E126: -9 | F126: L | H126: =VLOOKUP(A126,Sheet1!$A:$D,4,FALSE) -> -4.830394402 | I126: =VLOOKUP(B126,Sheet1!$A:$D,4,FALSE) -> 2.862322697 | J126: =IF(G126="N",H126-I126,(H126-I126+'Game Picker'!$L$4)) -> -6.474229704 | K126: -2.525770296 | L126: 0.036693575 | M126: 0.963306425 | N126: W | O126: 0.963306425 | P126: 0.9-1 | Q126: W | R126: 2.525770296
A127: Lehigh | B127: Colgate | C127: 12 | D127: 9 | E127: 3 | F127: W | H127: =VLOOKUP(A127,Sheet1!$A:$D,4,FALSE) -> -0.903365554 | I127: =VLOOKUP(B127,Sheet1!$A:$D,4,FALSE) -> -2.119715781 | J127: =IF(G127="N",H127-I127,(H127-I127+'Game Picker'!$L$4)) -> 2.434837622 | K127: 0.5651623779 | L127: 0.7496351354 | M127: 0.2503648646 | N127: W | O127: 0.7496351354 | P127: 0.7-.79 | Q127: W | R127: 0.5651623779
A128: Mt. St. Marys | B128: Furman | C128: 10 | D128: 8 | E128: 2 | F128: W | H128: =VLOOKUP(A128,Sheet1!$A:$D,4,FALSE) -> -2.24929111 | I128: =VLOOKUP(B128,Sheet1!$A:$D,4,FALSE) -> -4.410627201 | J128: =IF(G128="N",H128-I128,(H128-I128+'Game Picker'!$L$4)) -> 3.379823486 | K128: -1.379823486 | L128: 0.8250215953 | M128: 0.1749784047 | N128: W | O128: 0.8250215953 | P128: 0.8-.89 | Q128: W | R128: 1.379823486
A129: Quinnipiac | B129: NJIT | C129: 9 | D129: 7 | E129: 2 | F129: W | H129: =VLOOKUP(A129,Sheet1!$A:$D,4,FALSE) -> 0.3017170536 | I129: =VLOOKUP(B129,Sheet1!$A:$D,4,FALSE) -> -8.561709574 | J129: =IF(G129="N",H129-I129,(H129-I129+'Game Picker'!$L$4)) -> 10.08191402 | K129: -8.081914022 | L129: 0.9973491098 | M129: 0.002650890198 | N129: W | O129: 0.9973491098 | P129: 0.9-1 | Q129: W | R129: 8.081914022
A130: Towson | B130: UMBC | C130: 14 | D130: 6 | E130: 8 | F130: W | H130: =VLOOKUP(A130,Sheet1!$A:$D,4,FALSE) -> 3.242727074 | I130: =VLOOKUP(B130,Sheet1!$A:$D,4,FALSE) -> -2.424513977 | J130: =IF(G130="N",H130-I130,(H130-I130+'Game Picker'!$L$4)) -> 6.885728446 | K130: 1.114271554 | L130: =IF(G130="N",NORMDIST(0,I130-H130,$C$539,TRUE),NORMDIST(0,I130-H130-$C$542,$C$539,TRUE)) -> 0.971558797 | M130: =IF(G130="N",NORMDIST(0,H130-I130,$C$539,TRUE),NORMDIST(0,H130-I130+$C$542,$C$539,TRUE)) -> 0.02844120295 | N130: =IF(E130<0,IF(L130<0.5,"W"),IF(E130>0,IF(L130>0.5,"W"),"L")) -> W | O130: 0.971558797 | P130: 0.9-1 | Q130: W | R130: 1.114271554
A131: Penn | B131: Penn State | C131: 11 | D131: 7 | E131: =IF(C131-D131<-10,-10,(IF(C131-D131>10,10,C131-D131))) -> 4 | F131: =IF(C131>D131,"W","L") -> W | H131: =VLOOKUP(A131,Sheet1!$A:$D,4,FALSE) -> 1.812881196 | I131: =VLOOKUP(B131,Sheet1!$A:$D,4,FALSE) -> 2.604208589 | J131: =IF(G131="N",H131-I131,(H131-I131+'Game Picker'!$L$4)) -> 0.427160002 | K131: =E131-J131 -> 3.572839998 | L131: 0.5470172516 | M131: 0.4529827484 | N131: W | O131: =IF(M131>L131,M131,L131) -> 0.5470172516 | P131: =IF(AND(O131>=0.9,O131<1.01),"0.9-1",IF(AND(O131>=0.8,O131<0.9),"0.8-.89",IF(AND(O131>=0.7,O131<0.8),"0.7-.79",IF(AND(O131>=0.6,O131<0.7),"0.6-.69",IF(AND(O131>=0.5,O131<0.6),"0.5-.59"))))) -> 0.5-.59 | Q131: =IF(AND(J131<=1,J131>=-1,K131<=3,K131>-3),"W",IF(AND(E131<=-1,J131<=-1),"W",IF(AND(E131>=1,J131>=1),"W","L"))) -> L | R131: =IF(K131<0,-K131,K131) -> 3.572839998
A132: Albany | B132: Cornell | C132: 12 | D132: 8 | E132: 4 | F132: W | H132: =VLOOKUP(A132,Sheet1!$A:$D,4,FALSE) -> 3.798556055 | I132: =VLOOKUP(B132,Sheet1!$A:$D,4,FALSE) -> 0.9382344466 | J132: =IF(G132="N",H132-I132,(H132-I132+'Game Picker'!$L$4)) -> 4.078809003 | K132: -0.07880900344 | L132: 0.870334545 | M132: 0.129665455 | N132: W | O132: 0.870334545 | P132: 0.8-.89 | Q132: W | R132: 0.07880900344
A133: Brown | B133: Massachusetts | C133: 15 | D133: 7 | E133: 8 | F133: W | H133: =VLOOKUP(A133,Sheet1!$A:$D,4,FALSE) -> 7.845985559 | I133: =VLOOKUP(B133,Sheet1!$A:$D,4,FALSE) -> 1.176758718 | J133: =IF(G133="N",H133-I133,(H133-I133+'Game Picker'!$L$4)) -> 7.887714236 | K133: 0.1122857637 | L133: 0.9854196574 | M133: 0.01458034262 | N133: W | O133: 0.9854196574 | P133: 0.9-1 | Q133: W | R133: 0.1122857637
A134: Bryant | B134: Yale | C134: 4 | D134: 14 | E134: -10 | F134: L | H134: =VLOOKUP(A134,Sheet1!$A:$D,4,FALSE) -> 2.088248266 | I134: =VLOOKUP(B134,Sheet1!$A:$D,4,FALSE) -> 5.159359488 | J134: =IF(G134="N",H134-I134,(H134-I134+'Game Picker'!$L$4)) -> -1.852623827 | K134: -8.147376173 | L134: 0.3042087285 | M134: 0.6957912715 | N134: W | O134: 0.6957912715 | P134: 0.6-.69 | Q134: W | R134: 8.147376173
A135: Bucknell | B135: Navy | C135: 6 | D135: 13 | E135: -7 | F135: L | H135: =VLOOKUP(A135,Sheet1!$A:$D,4,FALSE) -> 2.368675226 | I135: =VLOOKUP(B135,Sheet1!$A:$D,4,FALSE) -> 3.111098872 | J135: =IF(G135="N",H135-I135,(H135-I135+'Game Picker'!$L$4)) -> 0.4760637487 | K135: -7.476063749 | L135: 0.5523706263 | M135: 0.4476293737 | N135: FALSE | O135: 0.5523706263 | P135: 0.5-.59 | Q135: L | R135: 7.476063749
A136: Canisius | B136: Boston | C136: 8 | D136: 10 | E136: -2 | F136: L | H136: =VLOOKUP(A136,Sheet1!$A:$D,4,FALSE) -> -3.742755824 | I136: =VLOOKUP(B136,Sheet1!$A:$D,4,FALSE) -> -0.4232576026 | J136: =IF(G136="N",H136-I136,(H136-I136+'Game Picker'!$L$4)) -> -2.101010827 | K136: 0.1010108268 | L136: 0.2806121712 | M136: 0.7193878288 | N136: W | O136: 0.7193878288 | P136: 0.7-.79 | Q136: W | R136: 0.1010108268
A137: Dartmouth | B137: Wagner | C137: 6 | D137: 7 | E137: -1 | F137: L | H137: =VLOOKUP(A137,Sheet1!$A:$D,4,FALSE) -> -5.622659345 | I137: =VLOOKUP(B137,Sheet1!$A:$D,4,FALSE) -> -5.690809046 | J137: =IF(G137="N",H137-I137,(H137-I137+'Game Picker'!$L$4)) -> 1.286637097 | K137: -2.286637097 | L137: 0.6390096838 | M137: 0.3609903162 | N137: FALSE | O137: 0.6390096838 | P137: 0.6-.69 | Q137: L | R137: 2.286637097
A138: Fairfield | B138: Stony Brook | C138: 6 | D138: 9 | E138: -3 | F138: L | H138: =VLOOKUP(A138,Sheet1!$A:$D,4,FALSE) -> 0.7668907987 | I138: =VLOOKUP(B138,Sheet1!$A:$D,4,FALSE) -> 3.918435733 | J138: =IF(G138="N",H138-I138,(H138-I138+'Game Picker'!$L$4)) -> -1.933057539 | K138: -1.066942461 | L138: 0.2964711011 | M138: 0.7035288989 | N138: W | O138: 0.7035288989 | P138: 0.7-.79 | Q138: W | R138: 1.066942461
A139: Holy Cross | B139: Loyola | C139: 9 | D139: 10 | E139: -1 | F139: L | H139: =VLOOKUP(A139,Sheet1!$A:$D,4,FALSE) -> -1.638314374 | I139: =VLOOKUP(B139,Sheet1!$A:$D,4,FALSE) -> 3.665283498 | J139: =IF(G139="N",H139-I139,(H139-I139+'Game Picker'!$L$4)) -> -4.085110477 | K139: 3.085110477 | L139: 0.1292978267 | M139: 0.8707021733 | N139: W | O139: 0.8707021733 | P139: 0.8-.89 | Q139: W | R139: 3.085110477
A140: Johns Hopkins | B140: Princeton | C140: 17 | D140: 7 | E140: 10 | F140: W | H140: =VLOOKUP(A140,Sheet1!$A:$D,4,FALSE) -> 3.565491294 | I140: =VLOOKUP(B140,Sheet1!$A:$D,4,FALSE) -> -0.2651090919 | J140: =IF(G140="N",H140-I140,(H140-I140+'Game Picker'!$L$4)) -> 5.049087781 | K140: 4.950912219 | L140: 0.9186878616 | M140: 0.08131213837 | N140: W | O140: 0.9186878616 | P140: 0.9-1 | Q140: W | R140: 4.950912219
A141: Michigan | B141: Vermont | C141: 15 | D141: 13 | E141: 2 | F141: W | H141: =VLOOKUP(A141,Sheet1!$A:$D,4,FALSE) -> -1.686737857 | I141: =VLOOKUP(B141,Sheet1!$A:$D,4,FALSE) -> -0.1882101278 | J141: =IF(G141="N",H141-I141,(H141-I141+'Game Picker'!$L$4)) -> -0.2800403338 | K141: 2.280040334 | L141: 0.4691352744 | M141: 0.5308647256 | N141: FALSE | O141: 0.5308647256 | P141: 0.5-.59 | Q141: W | R141: 2.280040334
A142: Sacred Heart | B142: Providence | C142: 8 | D142: 11 | E142: -3 | F142: L | H142: =VLOOKUP(A142,Sheet1!$A:$D,4,FALSE) -> -4.143034888 | I142: =VLOOKUP(B142,Sheet1!$A:$D,4,FALSE) -> -0.3891939228 | J142: =IF(G142="N",H142-I142,(H142-I142+'Game Picker'!$L$4)) -> -2.53535357 | K142: -0.4646464297 | L142: 0.2416080772 | M142: 0.7583919228 | N142: W | O142: 0.7583919228 | P142: 0.7-.79 | Q142: W | R142: 0.4646464297
A143: St. Johns | B143: SIena | C143: 10 | D143: 9 | E143: 1 | F143: W | H143: =VLOOKUP(A143,Sheet1!$A:$D,4,FALSE) -> -3.587636587 | I143: =VLOOKUP(B143,Sheet1!$A:$D,4,FALSE) -> -4.657485177 | J143: =IF(G143="N",H143-I143,(H143-I143+'Game Picker'!$L$4)) -> 2.288335985 | K143: -1.288335985 | L143: 0.7365769266 | M143: 0.2634230734 | N143: W | O143: 0.7365769266 | P143: 0.7-.79 | Q143: W | R143: 1.288335985
A144: St. Josephs | B144: Drexel | C144: 9 | D144: 10 | E144: -1 | F144: L | H144: =VLOOKUP(A144,Sheet1!$A:$D,4,FALSE) -> 2.328006084 | I144: =VLOOKUP(B144,Sheet1!$A:$D,4,FALSE) -> 0.6270587359 | J144: =IF(G144="N",H144-I144,(H144-I144+'Game Picker'!$L$4)) -> 2.919434743 | K144: -3.919434743 | L144: 0.7902689772 | M144: 0.2097310228 | N144: FALSE | O144: 0.7902689772 | P144: 0.7-.79 | Q144: L | R144: 3.919434743
A145: Lowell | B145: Jacksonville | C145: 12 | D145: 9 | E145: 3 | F145: W | H145: =VLOOKUP(A145,Sheet1!$A:$D,4,FALSE) -> -4.855540611 | I145: =VLOOKUP(B145,Sheet1!$A:$D,4,FALSE) -> -5.13423946 | J145: =IF(G145="N",H145-I145,(H145-I145+'Game Picker'!$L$4)) -> 1.497186244 | K145: 1.502813756 | L145: 0.6605773278 | M145: 0.3394226722 | N145: W | O145: 0.6605773278 | P145: 0.6-.69 | Q145: W | R145: 1.502813756
A146: North Carolina | B146: Denver | C146: 12 | D146: 13 | E146: -1 | F146: L | H146: =VLOOKUP(A146,Sheet1!$A:$D,4,FALSE) -> 4.050662015 | I146: =VLOOKUP(B146,Sheet1!$A:$D,4,FALSE) -> 5.537634311 | J146: =IF(G146="N",H146-I146,(H146-I146+'Game Picker'!$L$4)) -> -0.268484901 | K146: -0.731515099 | L146: 0.4704064708 | M146: 0.5295935292 | N146: W | O146: 0.5295935292 | P146: 0.5-.59 | Q146: W | R146: 0.731515099
A147: Hobart | B147: Binghamton | C147: 12 | D147: 6 | E147: 6 | F147: W | H147: =VLOOKUP(A147,Sheet1!$A:$D,4,FALSE) -> -0.5621296377 | I147: =VLOOKUP(B147,Sheet1!$A:$D,4,FALSE) -> -2.745774645 | J147: =IF(G147="N",H147-I147,(H147-I147+'Game Picker'!$L$4)) -> 3.402132402 | K147: 2.597867598 | L147: 0.8266072081 | M147: 0.1733927919 | N147: W | O147: 0.8266072081 | P147: 0.8-.89 | Q147: W | R147: 2.597867598
A148: Monmouth | B148: Rutgers | C148: 6 | D148: 12 | E148: -6 | F148: L | H148: =VLOOKUP(A148,Sheet1!$A:$D,4,FALSE) -> -2.541062319 | I148: =VLOOKUP(B148,Sheet1!$A:$D,4,FALSE) -> 2.68887711 | J148: =IF(G148="N",H148-I148,(H148-I148+'Game Picker'!$L$4)) -> -4.011452033 | K148: -1.988547967 | L148: 0.1336403131 | M148: 0.8663596869 | N148: W | O148: 0.8663596869 | P148: 0.8-.89 | Q148: W | R148: 1.988547967
A149: Manhattan | B149: Hartford | C149: 4 | D149: 16 | E149: -10 | F149: L | H149: =VLOOKUP(A149,Sheet1!$A:$D,4,FALSE) -> -6.500537463 | I149: =VLOOKUP(B149,Sheet1!$A:$D,4,FALSE) -> 0.006498494538 | J149: =IF(G149="N",H149-I149,(H149-I149+'Game Picker'!$L$4)) -> -5.288548563 | K149: -4.711451437 | L149: 0.07179920255 | M149: 0.9282007974 | N149: W | O149: 0.9282007974 | P149: 0.9-1 | Q149: W | R149: 4.711451437
A150: Harvard | B150: Duke | C150: 14 | D150: 9 | E150: 5 | F150: W | G150: N | H150: =VLOOKUP(A150,Sheet1!$A:$D,4,FALSE) -> 3.185121671 | I150: =VLOOKUP(B150,Sheet1!$A:$D,4,FALSE) -> 4.972271547 | J150: =IF(G150="N",H150-I150,(H150-I150+'Game Picker'!$L$4)) -> -1.787149876 | K150: 6.787149876 | L150: 0.310572849 | M150: 0.689427151 | N150: FALSE | O150: 0.689427151 | P150: 0.6-.69 | Q150: L | R150: 6.787149876
A151: Delaware | B151: Villanova | C151: 13 | D151: 23 | E151: -10 | F151: L | H151: =VLOOKUP(A151,Sheet1!$A:$D,4,FALSE) -> -2.335784283 | I151: =VLOOKUP(B151,Sheet1!$A:$D,4,FALSE) -> 4.509438236 | J151: =IF(G151="N",H151-I151,(H151-I151+'Game Picker'!$L$4)) -> -5.626735124 | K151: -4.373264876 | L151: 0.0598486835 | M151: 0.9401513165 | N151: W | O151: 0.9401513165 | P151: 0.9-1 | Q151: W | R151: 4.373264876
A152: VMI | B152: Richmond | C152: 6 | D152: 11 | E152: -5 | F152: L | H152: =VLOOKUP(A152,Sheet1!$A:$D,4,FALSE) -> -9.770431817 | I152: =VLOOKUP(B152,Sheet1!$A:$D,4,FALSE) -> 0.2412057204 | J152: =IF(G152="N",H152-I152,(H152-I152+'Game Picker'!$L$4)) -> -8.793150142 | K152: 3.793150142 | L152: 0.007514050701 | M152: 0.9924859493 | N152: W | O152: 0.9924859493 | P152: 0.9-1 | Q152: W | R152: 3.793150142
A153: Notre Dame | B153: Maryland | C153: 9 | D153: 4 | E153: 5 | F153: W | G153: N | H153: =VLOOKUP(A153,Sheet1!$A:$D,4,FALSE) -> 5.62151711 | I153: =VLOOKUP(B153,Sheet1!$A:$D,4,FALSE) -> 5.430451986 | J153: =IF(G153="N",H153-I153,(H153-I153+'Game Picker'!$L$4)) -> 0.1910651243 | K153: 4.808934876 | L153: 0.5210695448 | M153: 0.4789304552 | N153: W | O153: 0.5210695448 | P153: 0.5-.59 | Q153: L | R153: 4.808934876
A154: Detroit | B154: Marquette | C154: 8 | D154: 10 | E154: -2 | F154: L | G154: N | H154: =VLOOKUP(A154,Sheet1!$A:$D,4,FALSE) -> -4.591272987 | I154: =VLOOKUP(B154,Sheet1!$A:$D,4,FALSE) -> 3.009022758 | J154: =IF(G154="N",H154-I154,(H154-I154+'Game Picker'!$L$4)) -> -7.600295745 | K154: 5.600295745 | L154: 0.01778437859 | M154: 0.9822156214 | N154: W | O154: 0.9822156214 | P154: 0.9-1 | Q154: W | R154: 5.600295745
A155: Ohio State | B155: Bellarmine | C155: 9 | D155: 5 | E155: 4 | F155: W | H155: =VLOOKUP(A155,Sheet1!$A:$D,4,FALSE) -> 1.547138133 | I155: =VLOOKUP(B155,Sheet1!$A:$D,4,FALSE) -> -1.65294273 | J155: =IF(G155="N",H155-I155,(H155-I155+'Game Picker'!$L$4)) -> 4.418568258 | K155: -0.4185682581 | L155: 0.8891334565 | M155: 0.1108665435 | N155: W | O155: 0.8891334565 | P155: 0.8-.89 | Q155: W | R155: 0.4185682581
A156: Duke | B156: Richmond | C156: 10 | D156: 12 | E156: -2 | F156: L | H156: =VLOOKUP(A156,Sheet1!$A:$D,4,FALSE) -> 4.972271547 | I156: =VLOOKUP(B156,Sheet1!$A:$D,4,FALSE) -> 0.2412057204 | J156: =IF(G156="N",H156-I156,(H156-I156+'Game Picker'!$L$4)) -> 5.949553222 | K156: -7.949553222 | L156: 0.9500479592 | M156: 0.04995204079 | N156: FALSE | O156: 0.9500479592 | P156: 0.9-1 | Q156: L | R156: 7.949553222
A157: Furman | B157: Penn State | C157: 7 | D157: 16 | E157: -9 | F157: L | H157: =VLOOKUP(A157,Sheet1!$A:$D,4,FALSE) -> -4.410627201 | I157: =VLOOKUP(B157,Sheet1!$A:$D,4,FALSE) -> 2.604208589 | J157: =IF(G157="N",H157-I157,(H157-I157+'Game Picker'!$L$4)) -> -5.796348395 | K157: -3.203651605 | L157: 0.05447275876 | M157: 0.9455272412 | N157: W | O157: 0.9455272412 | P157: 0.9-1 | Q157: W | R157: 3.203651605
A158: Mercer | B158: Robert Morris | C158: 10 | D158: 11 | E158: -1 | F158: L | H158: =VLOOKUP(A158,Sheet1!$A:$D,4,FALSE) -> -3.467672595 | I158: =VLOOKUP(B158,Sheet1!$A:$D,4,FALSE) -> -1.09985556 | J158: =IF(G158="N",H158-I158,(H158-I158+'Game Picker'!$L$4)) -> -1.14932964 | K158: 0.1493296404 | L158: 0.3753026635 | M158: 0.6246973365 | N158: W | O158: 0.6246973365 | P158: 0.6-.69 | Q158: W | R158: 0.1493296404
A159: Canisius | B159: Vermont | C159: 11 | D159: 6 | E159: 5 | F159: W | G159: N | H159: =VLOOKUP(A159,Sheet1!$A:$D,4,FALSE) -> -3.742755824 | I159: =VLOOKUP(B159,Sheet1!$A:$D,4,FALSE) -> -0.1882101278 | J159: =IF(G159="N",H159-I159,(H159-I159+'Game Picker'!$L$4)) -> -3.554545697 | K159: 8.554545697 | L159: 0.1628057833 | M159: 0.8371942167 | N159: FALSE | O159: 0.8371942167 | P159: 0.8-.89 | Q159: L | R159: 8.554545697
A160: Georgetown | B160: Fairfield | C160: 9 | D160: 13 | E160: -4 | F160: L | H160: =VLOOKUP(A160,Sheet1!$A:$D,4,FALSE) -> -1.321751505 | I160: =VLOOKUP(B160,Sheet1!$A:$D,4,FALSE) -> 0.7668907987 | J160: =IF(G160="N",H160-I160,(H160-I160+'Game Picker'!$L$4)) -> -0.8701549087 | K160: -3.129845091 | L160: 0.4049182611 | M160: 0.5950817389 | N160: W | O160: 0.5950817389 | P160: 0.5-.59 | Q160: L | R160: 3.129845091
A161: Holy Cross | B161: Brown | C161: 7 | D161: 20 | E161: -10 | F161: L | H161: =VLOOKUP(A161,Sheet1!$A:$D,4,FALSE) -> -1.638314374 | I161: =VLOOKUP(B161,Sheet1!$A:$D,4,FALSE) -> 7.845985559 | J161: =IF(G161="N",H161-I161,(H161-I161+'Game Picker'!$L$4)) -> -8.265812538 | K161: -1.734187462 | L161: 0.01113097344 | M161: 0.9888690266 | N161: W | O161: 0.9888690266 | P161: 0.9-1 | Q161: W | R161: 1.734187462
A162: Manhattan | B162: Delaware | C162: 5 | D162: 6 | E162: -1 | F162: L | H162: =VLOOKUP(A162,Sheet1!$A:$D,4,FALSE) -> -6.500537463 | I162: =VLOOKUP(B162,Sheet1!$A:$D,4,FALSE) -> -2.335784283 | J162: =IF(G162="N",H162-I162,(H162-I162+'Game Picker'!$L$4)) -> -2.946265785 | K162: 1.946265785 | L162: 0.2076005902 | M162: 0.7923994098 | N162: W | O162: 0.7923994098 | P162: 0.7-.79 | Q162: W | R162: 1.946265785
A163: Monmouth | B163: NJIT | C163: 12 | D163: 5 | E163: 7 | F163: W | H163: =VLOOKUP(A163,Sheet1!$A:$D,4,FALSE) -> -2.541062319 | I163: =VLOOKUP(B163,Sheet1!$A:$D,4,FALSE) -> -8.561709574 | J163: =IF(G163="N",H163-I163,(H163-I163+'Game Picker'!$L$4)) -> 7.23913465 | K163: -0.2391346497 | L163: 0.9773547318 | M163: 0.0226452682 | N163: W | O163: 0.9773547318 | P163: 0.9-1 | Q163: W | R163: 0.2391346497
A164: Massachusetts | B164: Albany | C164: 4 | D164: 16 | E164: -10 | F164: L | H164: =VLOOKUP(A164,Sheet1!$A:$D,4,FALSE) -> 1.176758718 | I164: =VLOOKUP(B164,Sheet1!$A:$D,4,FALSE) -> 3.798556055 | J164: =IF(G164="N",H164-I164,(H164-I164+'Game Picker'!$L$4)) -> -1.403309942 | K164: -8.596690058 | L164: 0.3489790604 | M164: 0.6510209396 | N164: W | O164: 0.6510209396 | P164: 0.6-.69 | Q164: W | R164: 8.596690058
A165: Hobart | B165: Colgate | C165: 6 | D165: 7 | E165: -1 | F165: L | H165: =VLOOKUP(A165,Sheet1!$A:$D,4,FALSE) -> -0.5621296377 | I165: =VLOOKUP(B165,Sheet1!$A:$D,4,FALSE) -> -2.119715781 | J165: =IF(G165="N",H165-I165,(H165-I165+'Game Picker'!$L$4)) -> 2.776073538 | K165: -3.776073538 | L165: 0.7786699796 | M165: 0.2213300204 | N165: FALSE | O165: 0.7786699796 | P165: 0.7-.79 | Q165: L | R165: 3.776073538
A166: Penn | B166: Lafayette | C166: 12 | D166: 6 | E166: 6 | F166: W | H166: =VLOOKUP(A166,Sheet1!$A:$D,4,FALSE) -> 1.812881196 | I166: =VLOOKUP(B166,Sheet1!$A:$D,4,FALSE) -> -4.830394402 | J166: =IF(G166="N",H166-I166,(H166-I166+'Game Picker'!$L$4)) -> 7.861762993 | K166: -1.861762993 | L166: 0.9851523412 | M166: 0.0148476588 | N166: W | O166: 0.9851523412 | P166: 0.9-1 | Q166: W | R166: 1.861762993
A167: VMI | B167: Wagner | C167: 6 | D167: 7 | E167: -1 | F167: L | H167: =VLOOKUP(A167,Sheet1!$A:$D,4,FALSE) -> -9.770431817 | I167: =VLOOKUP(B167,Sheet1!$A:$D,4,FALSE) -> -5.690809046 | J167: =IF(G167="N",H167-I167,(H167-I167+'Game Picker'!$L$4)) -> -2.861135375 | K167: 1.861135375 | L167: 0.2144041648 | M167: 0.7855958352 | N167: W | O167: 0.7855958352 | P167: 0.7-.79 | Q167: W | R167: 1.861135375
A168: Bryant | B168: Harvard | C168: 12 | D168: 9 | E168: 3 | F168: W | H168: =VLOOKUP(A168,Sheet1!$A:$D,4,FALSE) -> 2.088248266 | I168: =VLOOKUP(B168,Sheet1!$A:$D,4,FALSE) -> 3.185121671 | J168: =IF(G168="N",H168-I168,(H168-I168+'Game Picker'!$L$4)) -> 0.1216139902 | K168: 2.87838601 | L168: 0.5134145914 | M168: 0.4865854086 | N168: W | O168: 0.5134145914 | P168: 0.5-.59 | Q168: W | R168: 2.87838601
A169: Drexel | B169: Maryland | C169: 8 | D169: 12 | E169: -4 | F169: L | H169: =VLOOKUP(A169,Sheet1!$A:$D,4,FALSE) -> 0.6270587359 | I169: =VLOOKUP(B169,Sheet1!$A:$D,4,FALSE) -> 5.430451986 | J169: =IF(G169="N",H169-I169,(H169-I169+'Game Picker'!$L$4)) -> -3.584905855 | K169: -0.4150941451 | L169: 0.160748186 | M169: 0.839251814 | N169: W | O169: 0.839251814 | P169: 0.8-.89 | Q169: W | R169: 0.4150941451
A170: Virginia | B170: St. Josephs | C170: 9 | D170: 7 | E170: 2 | F170: W | H170: =VLOOKUP(A170,Sheet1!$A:$D,4,FALSE) -> 1.86246706 | I170: =VLOOKUP(B170,Sheet1!$A:$D,4,FALSE) -> 2.328006084 | J170: =IF(G170="N",H170-I170,(H170-I170+'Game Picker'!$L$4)) -> 0.752948371 | K170: 1.247051629 | L170: 0.5824729881 | M170: 0.4175270119 | N170: W | O170: 0.5824729881 | P170: 0.5-.59 | Q170: W | R170: 1.247051629
A171: Yale | B171: St. Johns | C171: 13 | D171: 8 | E171: 5 | F171: W | H171: =VLOOKUP(A171,Sheet1!$A:$D,4,FALSE) -> 5.159359488 | I171: =VLOOKUP(B171,Sheet1!$A:$D,4,FALSE) -> -3.587636587 | J171: =IF(G171="N",H171-I171,(H171-I171+'Game Picker'!$L$4)) -> 9.96548347 | K171: -4.96548347 | L171: 0.9970734913 | M171: 0.002926508733 | N171: W | O171: 0.9970734913 | P171: 0.9-1 | Q171: W | R171: 4.96548347
A172: Hampton | B172: Wagner | C172: 4 | D172: 18 | E172: -10 | F172: L | G172: N | H172: =VLOOKUP(A172,Sheet1!$A:$D,4,FALSE) -> -17.73062043 | I172: =VLOOKUP(B172,Sheet1!$A:$D,4,FALSE) -> -5.690809046 | J172: =IF(G172="N",H172-I172,(H172-I172+'Game Picker'!$L$4)) -> -12.03981139 | K172: 2.039811385 | L172: 0.0004349339861 | M172: 0.999565066 | N172: W | O172: 0.999565066 | P172: 0.9-1 | Q172: W | R172: 2.039811385
A173: Stony Brook | B173: Rutgers | C173: 15 | D173: 6 | E173: 9 | F173: W | H173: =VLOOKUP(A173,Sheet1!$A:$D,4,FALSE) -> 3.918435733 | I173: =VLOOKUP(B173,Sheet1!$A:$D,4,FALSE) -> 2.68887711 | J173: =IF(G173="N",H173-I173,(H173-I173+'Game Picker'!$L$4)) -> 2.448046018 | K173: 6.551953982 | L173: 0.7507953509 | M173: 0.2492046491 | N173: W | O173: 0.7507953509 | P173: 0.7-.79 | Q173: W | R173: 6.551953982
A174: Penn State | B174: Harvard | C174: 13 | D174: 12 | E174: 1 | F174: W | H174: =VLOOKUP(A174,Sheet1!$A:$D,4,FALSE) -> 2.604208589 | I174: =VLOOKUP(B174,Sheet1!$A:$D,4,FALSE) -> 3.185121671 | J174: =IF(G174="N",H174-I174,(H174-I174+'Game Picker'!$L$4)) -> 0.6375743127 | K174: 0.3624256873 | L174: 0.5699779186 | M174: 0.4300220814 | N174: W | O174: 0.5699779186 | P174: 0.5-.59 | Q174: W | R174: 0.3624256873
A175: High Point | B175: Providence | C175: 13 | D175: 12 | E175: 1 | F175: W | H175: =VLOOKUP(A175,Sheet1!$A:$D,4,FALSE) -> -1.040855576 | I175: =VLOOKUP(B175,Sheet1!$A:$D,4,FALSE) -> -0.3891939228 | J175: =IF(G175="N",H175-I175,(H175-I175+'Game Picker'!$L$4)) -> 0.5668257417 | K175: 0.4331742583 | L175: 0.562280159 | M175: 0.437719841 | N175: W | O175: 0.562280159 | P175: 0.5-.59 | Q175: W | R175: 0.4331742583
A176: Loyola | B176: Duke | C176: 6 | D176: 15 | E176: -9 | F176: L | H176: =VLOOKUP(A176,Sheet1!$A:$D,4,FALSE) -> 3.665283498 | I176: =VLOOKUP(B176,Sheet1!$A:$D,4,FALSE) -> 4.972271547 | J176: =IF(G176="N",H176-I176,(H176-I176+'Game Picker'!$L$4)) -> -0.08850065403 | K176: -8.911499346 | L176: 0.4902370986 | M176: 0.5097629014 | N176: W | O176: 0.5097629014 | P176: 0.5-.59 | Q176: L | R176: 8.911499346
A177: Air Force | B177: Furman | C177: 14 | D177: 4 | E177: 10 | F177: W | H177: =VLOOKUP(A177,Sheet1!$A:$D,4,FALSE) -> 1.194703694 | I177: =VLOOKUP(B177,Sheet1!$A:$D,4,FALSE) -> -4.410627201 | J177: =IF(G177="N",H177-I177,(H177-I177+'Game Picker'!$L$4)) -> 6.82381829 | K177: 3.17618171 | L177: 0.9704260502 | M177: 0.02957394981 | N177: W | O177: 0.9704260502 | P177: 0.9-1 | Q177: W | R177: 3.17618171
A178: Army | B178: Lehigh | C178: 13 | D178: 10 | E178: 3 | F178: W | H178: =VLOOKUP(A178,Sheet1!$A:$D,4,FALSE) -> 2.862322697 | I178: =VLOOKUP(B178,Sheet1!$A:$D,4,FALSE) -> -0.903365554 | J178: =IF(G178="N",H178-I178,(H178-I178+'Game Picker'!$L$4)) -> 4.984175646 | K178: -1.984175646 | L178: 0.9159521477 | M178: 0.08404785233 | N178: W | O178: 0.9159521477 | P178: 0.9-1 | Q178: W | R178: 1.984175646
A179: Cornell | B179: Virginia | C179: 14 | D179: 10 | E179: 4 | F179: W | H179: =VLOOKUP(A179,Sheet1!$A:$D,4,FALSE) -> 0.9382344466 | I179: =VLOOKUP(B179,Sheet1!$A:$D,4,FALSE) -> 1.86246706 | J179: =IF(G179="N",H179-I179,(H179-I179+'Game Picker'!$L$4)) -> 0.2942547811 | K179: 3.705745219 | L179: 0.5324280035 | M179: 0.4675719965 | N179: W | O179: 0.5324280035 | P179: 0.5-.59 | Q179: L | R179: 3.705745219
A180: Georgetown | B180: Hobart | C180: 9 | D180: 10 | E180: -1 | F180: L | H180: =VLOOKUP(A180,Sheet1!$A:$D,4,FALSE) -> -1.321751505 | I180: =VLOOKUP(B180,Sheet1!$A:$D,4,FALSE) -> -0.5621296377 | J180: =IF(G180="N",H180-I180,(H180-I180+'Game Picker'!$L$4)) -> 0.4588655277 | K180: -1.458865528 | L180: 0.5504890149 | M180: 0.4495109851 | N180: FALSE | O180: 0.5504890149 | P180: 0.5-.59 | Q180: W | R180: 1.458865528
A181: Hofstra | B181: Ohio State | C181: 8 | D181: 5 | E181: 3 | F181: W | H181: =VLOOKUP(A181,Sheet1!$A:$D,4,FALSE) -> 1.096477794 | I181: =VLOOKUP(B181,Sheet1!$A:$D,4,FALSE) -> 1.547138133 | J181: =IF(G181="N",H181-I181,(H181-I181+'Game Picker'!$L$4)) -> 0.7678270565 | K181: 2.232172943 | L181: 0.5840785911 | M181: 0.4159214089 | N181: W | O181: 0.5840785911 | P181: 0.5-.59 | Q181: W | R181: 2.232172943
A182: Mt. St. Marys | B182: VMI | C182: 14 | D182: 2 | E182: 10 | F182: W | H182: =VLOOKUP(A182,Sheet1!$A:$D,4,FALSE) -> -2.24929111 | I182: =VLOOKUP(B182,Sheet1!$A:$D,4,FALSE) -> -9.770431817 | J182: =IF(G182="N",H182-I182,(H182-I182+'Game Picker'!$L$4)) -> 8.739628102 | K182: 1.260371898 | L182: 0.9921733393 | M182: 0.007826660684 | N182: W | O182: 0.9921733393 | P182: 0.9-1 | Q182: W | R182: 1.260371898
A183: Princeton | B183: Maryland | C183: 5 | D183: 17 | E183: -10 | F183: L | H183: =VLOOKUP(A183,Sheet1!$A:$D,4,FALSE) -> -0.2651090919 | I183: =VLOOKUP(B183,Sheet1!$A:$D,4,FALSE) -> 5.430451986 | J183: =IF(G183="N",H183-I183,(H183-I183+'Game Picker'!$L$4)) -> -4.477073683 | K183: -5.522926317 | L183: 0.1078372572 | M183: 0.8921627428 | N183: W | O183: 0.8921627428 | P183: 0.8-.89 | Q183: W | R183: 5.522926317
A184: UMBC | B184: Marist | C184: 9 | D184: 8 | E184: 1 | F184: W | H184: =VLOOKUP(A184,Sheet1!$A:$D,4,FALSE) -> -2.424513977 | I184: =VLOOKUP(B184,Sheet1!$A:$D,4,FALSE) -> -1.206918481 | J184: =IF(G184="N",H184-I184,(H184-I184+'Game Picker'!$L$4)) -> 0.0008918985933 | K184: 0.9991081014 | L184: 0.5000983991 | M184: 0.4999016009 | N184: W | O184: 0.5000983991 | P184: 0.5-.59 | Q184: W | R184: 0.9991081014
A185: Bellarmine | B185: Mercer | C185: 11 | D185: 7 | E185: 4 | F185: W | H185: =VLOOKUP(A185,Sheet1!$A:$D,4,FALSE) -> -1.65294273 | I185: =VLOOKUP(B185,Sheet1!$A:$D,4,FALSE) -> -3.467672595 | J185: =IF(G185="N",H185-I185,(H185-I185+'Game Picker'!$L$4)) -> 3.03321726 | K185: 0.9667827403 | L185: 0.7992150822 | M185: 0.2007849178 | N185: W | O185: 0.7992150822 | P185: 0.7-.79 | Q185: W | R185: 0.9667827403
A186: Binghamton | B186: Delaware | C186: 11 | D186: 12 | E186: -1 | F186: L | H186: =VLOOKUP(A186,Sheet1!$A:$D,4,FALSE) -> -2.745774645 | I186: =VLOOKUP(B186,Sheet1!$A:$D,4,FALSE) -> -2.335784283 | J186: =IF(G186="N",H186-I186,(H186-I186+'Game Picker'!$L$4)) -> 0.8084970327 | K186: -1.808497033 | L186: 0.5884601776 | M186: 0.4115398224 | N186: FALSE | O186: 0.5884601776 | P186: 0.5-.59 | Q186: W | R186: 1.808497033
A187: Brown | B187: Michigan | C187: 22 | D187: 8 | E187: 10 | F187: W | H187: =VLOOKUP(A187,Sheet1!$A:$D,4,FALSE) -> 7.845985559 | I187: =VLOOKUP(B187,Sheet1!$A:$D,4,FALSE) -> -1.686737857 | J187: =IF(G187="N",H187-I187,(H187-I187+'Game Picker'!$L$4)) -> 10.75121081 | K187: -0.7512108109 | L187: 0.9985264042 | M187: 0.001473595793 | N187: W | O187: 0.9985264042 | P187: 0.9-1 | Q187: W | R187: 0.7512108109
A188: Bryant | B188: Drexel | C188: 5 | D188: 14 | E188: -9 | F188: L | H188: =VLOOKUP(A188,Sheet1!$A:$D,4,FALSE) -> 2.088248266 | I188: =VLOOKUP(B188,Sheet1!$A:$D,4,FALSE) -> 0.6270587359 | J188: =IF(G188="N",H188-I188,(H188-I188+'Game Picker'!$L$4)) -> 2.679676925 | K188: -11.67967693 | L188: 0.7706687665 | M188: 0.2293312335 | N188: FALSE | O188: 0.7706687665 | P188: 0.7-.79 | Q188: L | R188: 11.67967693
A189: Boston | B189: Colgate | C189: 11 | D189: 6 | E189: 5 | F189: W | H189: =VLOOKUP(A189,Sheet1!$A:$D,4,FALSE) -> -0.4232576026 | I189: =VLOOKUP(B189,Sheet1!$A:$D,4,FALSE) -> -2.119715781 | J189: =IF(G189="N",H189-I189,(H189-I189+'Game Picker'!$L$4)) -> 2.914945574 | K189: 2.085054426 | L189: 0.7899112779 | M189: 0.2100887221 | N189: W | O189: 0.7899112779 | P189: 0.7-.79 | Q189: W | R189: 2.085054426
A190: Fairfield | B190: Yale | C190: 5 | D190: 10 | E190: -5 | F190: L | H190: =VLOOKUP(A190,Sheet1!$A:$D,4,FALSE) -> 0.7668907987 | I190: =VLOOKUP(B190,Sheet1!$A:$D,4,FALSE) -> 5.159359488 | J190: =IF(G190="N",H190-I190,(H190-I190+'Game Picker'!$L$4)) -> -3.173981295 | K190: -1.826018705 | L190: 0.1900401214 | M190: 0.8099598786 | N190: W | O190: 0.8099598786 | P190: 0.8-.89 | Q190: W | R190: 1.826018705
A191: Hartford | B191: Quinnipiac | C191: 10 | D191: 11 | E191: -1 | F191: L | H191: =VLOOKUP(A191,Sheet1!$A:$D,4,FALSE) -> 0.006498494538 | I191: =VLOOKUP(B191,Sheet1!$A:$D,4,FALSE) -> 0.3017170536 | J191: =IF(G191="N",H191-I191,(H191-I191+'Game Picker'!$L$4)) -> 0.9232688359 | K191: -1.923268836 | L191: 0.6007640778 | M191: 0.3992359222 | N191: FALSE | O191: 0.6007640778 | P191: 0.6-.69 | Q191: W | R191: 1.923268836
A192: Holy Cross | B192: Bucknell | C192: 12 | D192: 18 | E192: -6 | F192: L | H192: =VLOOKUP(A192,Sheet1!$A:$D,4,FALSE) -> -1.638314374 | I192: =VLOOKUP(B192,Sheet1!$A:$D,4,FALSE) -> 2.368675226 | J192: =IF(G192="N",H192-I192,(H192-I192+'Game Picker'!$L$4)) -> -2.788502205 | K192: -3.211497795 | L192: 0.2203101501 | M192: 0.7796898499 | N192: W | O192: 0.7796898499 | P192: 0.7-.79 | Q192: W | R192: 3.211497795
A193: Monmouth | B193: St. Josephs | C193: 8 | D193: 18 | E193: -10 | F193: L | H193: =VLOOKUP(A193,Sheet1!$A:$D,4,FALSE) -> -2.541062319 | I193: =VLOOKUP(B193,Sheet1!$A:$D,4,FALSE) -> 2.328006084 | J193: =IF(G193="N",H193-I193,(H193-I193+'Game Picker'!$L$4)) -> -3.650581008 | K193: -6.349418992 | L193: 0.1563555414 | M193: 0.8436444586 | N193: W | O193: 0.8436444586 | P193: 0.8-.89 | Q193: W | R193: 6.349418992
A194: Marquette | B194: Robert Morris | C194: 13 | D194: 5 | E194: 8 | F194: W | H194: =VLOOKUP(A194,Sheet1!$A:$D,4,FALSE) -> 3.009022758 | I194: =VLOOKUP(B194,Sheet1!$A:$D,4,FALSE) -> -1.09985556 | J194: =IF(G194="N",H194-I194,(H194-I194+'Game Picker'!$L$4)) -> 5.327365712 | K194: 2.672634288 | L194: =IF(G194="N",NORMDIST(0,I194-H194,$C$539,TRUE),NORMDIST(0,I194-H194-$C$542,$C$539,TRUE)) -> 0.9296589914 | M194: =IF(G194="N",NORMDIST(0,H194-I194,$C$539,TRUE),NORMDIST(0,H194-I194+$C$542,$C$539,TRUE)) -> 0.07034100861 | N194: =IF(E194<0,IF(L194<0.5,"W"),IF(E194>0,IF(L194>0.5,"W"),"L")) -> W | O194: 0.9296589914 | P194: 0.9-1 | Q194: W | R194: 2.672634288
A195: Richmond | B195: Jacksonville | C195: 12 | D195: 6 | E195: =IF(C195-D195<-10,-10,(IF(C195-D195>10,10,C195-D195))) -> 6 | F195: =IF(C195>D195,"W","L") -> W | H195: =VLOOKUP(A195,Sheet1!$A:$D,4,FALSE) -> 0.2412057204 | I195: =VLOOKUP(B195,Sheet1!$A:$D,4,FALSE) -> -5.13423946 | J195: =IF(G195="N",H195-I195,(H195-I195+'Game Picker'!$L$4)) -> 6.593932575 | K195: =E195-J195 -> -0.593932575 | L195: 0.9658875635 | M195: 0.03411243653 | N195: W | O195: =IF(M195>L195,M195,L195) -> 0.9658875635 | P195: =IF(AND(O195>=0.9,O195<1.01),"0.9-1",IF(AND(O195>=0.8,O195<0.9),"0.8-.89",IF(AND(O195>=0.7,O195<0.8),"0.7-.79",IF(AND(O195>=0.6,O195<0.7),"0.6-.69",IF(AND(O195>=0.5,O195<0.6),"0.5-.59"))))) -> 0.9-1 | Q195: =IF(AND(J195<=1,J195>=-1,K195<=3,K195>-3),"W",IF(AND(E195<=-1,J195<=-1),"W",IF(AND(E195>=1,J195>=1),"W","L"))) -> W | R195: =IF(K195<0,-K195,K195) -> 0.593932575
A196: Massachusetts | B196: North Carolina | C196: 14 | D196: 9 | E196: 5 | F196: W | H196: =VLOOKUP(A196,Sheet1!$A:$D,4,FALSE) -> 1.176758718 | I196: =VLOOKUP(B196,Sheet1!$A:$D,4,FALSE) -> 4.050662015 | J196: =IF(G196="N",H196-I196,(H196-I196+'Game Picker'!$L$4)) -> -1.655415902 | K196: 6.655415902 | L196: 0.323549187 | M196: 0.676450813 | N196: FALSE | O196: 0.676450813 | P196: 0.6-.69 | Q196: L | R196: 6.655415902
A197: Lowell | B197: Manhattan | C197: 5 | D197: 8 | E197: -3 | F197: L | H197: =VLOOKUP(A197,Sheet1!$A:$D,4,FALSE) -> -4.855540611 | I197: =VLOOKUP(B197,Sheet1!$A:$D,4,FALSE) -> -6.500537463 | J197: =IF(G197="N",H197-I197,(H197-I197+'Game Picker'!$L$4)) -> 2.863484247 | K197: -5.863484247 | L197: 0.7857852782 | M197: 0.2142147218 | N197: FALSE | O197: 0.7857852782 | P197: 0.7-.79 | Q197: L | R197: 5.863484247
A198: Vermont | B198: Sacred Heart | C198: 9 | D198: 8 | E198: 1 | F198: W | H198: =VLOOKUP(A198,Sheet1!$A:$D,4,FALSE) -> -0.1882101278 | I198: =VLOOKUP(B198,Sheet1!$A:$D,4,FALSE) -> -4.143034888 | J198: =IF(G198="N",H198-I198,(H198-I198+'Game Picker'!$L$4)) -> 5.173312155 | K198: -4.173312155 | L198: 0.9237351953 | M198: 0.07626480472 | N198: W | O198: 0.9237351953 | P198: 0.9-1 | Q198: W | R198: 4.173312155
A199: Johns Hopkins | B199: Towson | C199: 14 | D199: 8 | E199: 6 | F199: W | H199: =VLOOKUP(A199,Sheet1!$A:$D,4,FALSE) -> 3.565491294 | I199: =VLOOKUP(B199,Sheet1!$A:$D,4,FALSE) -> 3.242727074 | J199: =IF(G199="N",H199-I199,(H199-I199+'Game Picker'!$L$4)) -> 1.541251615 | K199: 4.458748385 | L199: 0.6650281688 | M199: 0.3349718312 | N199: W | O199: 0.6650281688 | P199: 0.6-.69 | Q199: W | R199: 4.458748385
A200: Syracuse | B200: St. Johns | C200: 15 | D200: 4 | E200: 10 | F200: W | H200: =VLOOKUP(A200,Sheet1!$A:$D,4,FALSE) -> 5.401447597 | I200: =VLOOKUP(B200,Sheet1!$A:$D,4,FALSE) -> -3.587636587 | J200: =IF(G200="N",H200-I200,(H200-I200+'Game Picker'!$L$4)) -> 10.20757158 | K200: -0.2075715792 | L200: 0.9976200748 | M200: 0.002379925228 | N200: W | O200: 0.9976200748 | P200: 0.9-1 | Q200: W | R200: 0.2075715792
... 337 more rows

Sheet Sheet1 (hidden)
A1: Team | B1: MOV | C1: SOS | D1: SRS | E1: RANK | F1: SOS RANK | G1: GF | H1: GA | I1: Pyth. % | J1: W/L % | K1: SRS Win% | L1: RANK | M1: League
A2: Brown | B2: =((SUMIF(Games!$A:$A,A2,Games!$E:$E))+-(SUMIF(Games!$B:$B,A2,Games!$E:$E)))/((COUNTIF(Games!$A:$A,A2))+(COUNTIF(Games!$B:$B,A2))) -> 6.6875 | C2: =((SUMIF(Games!$A:$A,A2,Games!$I:$I))+(SUMIF(Games!$B:$B,A2,Games!$H:$H)))/((COUNTIF(Games!$A:$A,A2))+(COUNTIF(Games!$B:$B,A2))) -> 1.158485559 | D2: =B2+C2 -> 7.845985559 | E2: =RANK(D2,$D$2:$D$71) -> 1 | F2: =RANK(C2,$C$2:$C$71,0) -> 21 | G2: =(((SUMIF(Games!A:A,A2,Games!C:C)+(SUMIF(Games!B:B,A2,Games!D:D)))))/(COUNTIF(Games!A:A,A2)+COUNTIF(Games!B:B,A2)) -> 16.75 | H2: =(((SUMIF(Games!A:A,A2,Games!D:D)+(SUMIF(Games!B:B,A2,Games!C:C)))))/(COUNTIF(Games!A:A,A2)+COUNTIF(Games!B:B,A2)) -> 8.625 | I2: =(G2^3.12)/((G2^3.12)+(H2^3.12)) -> 0.8880372915 | J2: =((COUNTIFS(Games!$A:$A,A2,Games!$F:$F,"W"))+(COUNTIFS(Games!$B:$B,A2,Games!$F:$F,"L")))/(COUNTIF(Games!$A:$A,A2)+COUNTIF(Games!$B:$B,A2)) -> 0.875 | K2: =Brown!$V$17 -> 0.9265354505 | L2: =RANK(K2,$K$2:$K$71,0) -> 1 | M2: Ivy
A3: Notre Dame | B3: =((SUMIF(Games!$A:$A,A3,Games!$E:$E))+-(SUMIF(Games!$B:$B,A3,Games!$E:$E)))/((COUNTIF(Games!$A:$A,A3))+(COUNTIF(Games!$B:$B,A3))) -> 3.153846154 | C3: =((SUMIF(Games!$A:$A,A3,Games!$I:$I))+(SUMIF(Games!$B:$B,A3,Games!$H:$H)))/((COUNTIF(Games!$A:$A,A3))+(COUNTIF(Games!$B:$B,A3))) -> 2.467670956 | D3: 5.62151711 | E3: 2 | F3: 2 | G3: =(((SUMIF(Games!A:A,A3,Games!C:C)+(SUMIF(Games!B:B,A3,Games!D:D)))))/(COUNTIF(Games!A:A,A3)+COUNTIF(Games!B:B,A3)) -> 10.84615385 | H3: =(((SUMIF(Games!A:A,A3,Games!D:D)+(SUMIF(Games!B:B,A3,Games!C:C)))))/(COUNTIF(Games!A:A,A3)+COUNTIF(Games!B:B,A3)) -> 7.692307692 | I3: 0.7449770512 | J3: =((COUNTIFS(Games!$A:$A,A3,Games!$F:$F,"W"))+(COUNTIFS(Games!$B:$B,A3,Games!$F:$F,"L")))/(COUNTIF(Games!$A:$A,A3)+COUNTIF(Games!$B:$B,A3)) -> 0.7692307692 | K3: ='Notre Dame'!$V$17 -> 0.7522964043 | L3: 9 | M3: ACC
A4: Denver | B4: =((SUMIF(Games!$A:$A,A4,Games!$E:$E))+-(SUMIF(Games!$B:$B,A4,Games!$E:$E)))/((COUNTIF(Games!$A:$A,A4))+(COUNTIF(Games!$B:$B,A4))) -> 4.533333333 | C4: =((SUMIF(Games!$A:$A,A4,Games!$I:$I))+(SUMIF(Games!$B:$B,A4,Games!$H:$H)))/((COUNTIF(Games!$A:$A,A4))+(COUNTIF(Games!$B:$B,A4))) -> 1.004300978 | D4: 5.537634311 | E4: 3 | F4: 24 | G4: =(((SUMIF(Games!A:A,A4,Games!C:C)+(SUMIF(Games!B:B,A4,Games!D:D)))))/(COUNTIF(Games!A:A,A4)+COUNTIF(Games!B:B,A4)) -> 13.86666667 | H4: =(((SUMIF(Games!A:A,A4,Games!D:D)+(SUMIF(Games!B:B,A4,Games!C:C)))))/(COUNTIF(Games!A:A,A4)+COUNTIF(Games!B:B,A4)) -> 9.066666667 | I4: 0.7901177897 | J4: =((COUNTIFS(Games!$A:$A,A4,Games!$F:$F,"W"))+(COUNTIFS(Games!$B:$B,A4,Games!$F:$F,"L")))/(COUNTIF(Games!$A:$A,A4)+COUNTIF(Games!$B:$B,A4)) -> 0.8666666667 | K4: =Denver!$V$17 -> 0.7950245232 | L4: 5 | M4: Big East
A5: Maryland | B5: =((SUMIF(Games!$A:$A,A5,Games!$E:$E))+-(SUMIF(Games!$B:$B,A5,Games!$E:$E)))/((COUNTIF(Games!$A:$A,A5))+(COUNTIF(Games!$B:$B,A5))) -> 3.125 | C5: =((SUMIF(Games!$A:$A,A5,Games!$I:$I))+(SUMIF(Games!$B:$B,A5,Games!$H:$H)))/((COUNTIF(Games!$A:$A,A5))+(COUNTIF(Games!$B:$B,A5))) -> 2.305451986 | D5: 5.430451986 | E5: 4 | F5: 3 | G5: =(((SUMIF(Games!A:A,A5,Games!C:C)+(SUMIF(Games!B:B,A5,Games!D:D)))))/(COUNTIF(Games!A:A,A5)+COUNTIF(Games!B:B,A5)) -> 11.125 | H5: =(((SUMIF(Games!A:A,A5,Games!D:D)+(SUMIF(Games!B:B,A5,Games!C:C)))))/(COUNTIF(Games!A:A,A5)+COUNTIF(Games!B:B,A5)) -> 7.875 | I5: 0.7461087094 | J5: =((COUNTIFS(Games!$A:$A,A5,Games!$F:$F,"W"))+(COUNTIFS(Games!$B:$B,A5,Games!$F:$F,"L")))/(COUNTIF(Games!$A:$A,A5)+COUNTIF(Games!$B:$B,A5)) -> 0.875 | K5: =Maryland!$V$17 -> 0.7650712327 | L5: 8 | M5: Big Ten
A6: Syracuse | B6: =((SUMIF(Games!$A:$A,A6,Games!$E:$E))+-(SUMIF(Games!$B:$B,A6,Games!$E:$E)))/((COUNTIF(Games!$A:$A,A6))+(COUNTIF(Games!$B:$B,A6))) -> 3.866666667 | C6: =((SUMIF(Games!$A:$A,A6,Games!$I:$I))+(SUMIF(Games!$B:$B,A6,Games!$H:$H)))/((COUNTIF(Games!$A:$A,A6))+(COUNTIF(Games!$B:$B,A6))) -> 1.534780931 | D6: 5.401447597 | E6: 5 | F6: 16 | G6: =(((SUMIF(Games!A:A,A6,Games!C:C)+(SUMIF(Games!B:B,A6,Games!D:D)))))/(COUNTIF(Games!A:A,A6)+COUNTIF(Games!B:B,A6)) -> 12.93333333 | H6: =(((SUMIF(Games!A:A,A6,Games!D:D)+(SUMIF(Games!B:B,A6,Games!C:C)))))/(COUNTIF(Games!A:A,A6)+COUNTIF(Games!B:B,A6)) -> 8.466666667 | I6: 0.7894899563 | J6: =((COUNTIFS(Games!$A:$A,A6,Games!$F:$F,"W"))+(COUNTIFS(Games!$B:$B,A6,Games!$F:$F,"L")))/(COUNTIF(Games!$A:$A,A6)+COUNTIF(Games!$B:$B,A6)) -> 0.7333333333 | K6: =Syracuse!$V$17 -> 0.7744339662 | L6: 7 | M6: ACC
A7: Yale | B7: =((SUMIF(Games!$A:$A,A7,Games!$E:$E))+-(SUMIF(Games!$B:$B,A7,Games!$E:$E)))/((COUNTIF(Games!$A:$A,A7))+(COUNTIF(Games!$B:$B,A7))) -> 4.333333333 | C7: =((SUMIF(Games!$A:$A,A7,Games!$I:$I))+(SUMIF(Games!$B:$B,A7,Games!$H:$H)))/((COUNTIF(Games!$A:$A,A7))+(COUNTIF(Games!$B:$B,A7))) -> 0.8260261548 | D7: 5.159359488 | E7: 6 | F7: 25 | G7: =(((SUMIF(Games!A:A,A7,Games!C:C)+(SUMIF(Games!B:B,A7,Games!D:D)))))/(COUNTIF(Games!A:A,A7)+COUNTIF(Games!B:B,A7)) -> 12.53333333 | H7: =(((SUMIF(Games!A:A,A7,Games!D:D)+(SUMIF(Games!B:B,A7,Games!C:C)))))/(COUNTIF(Games!A:A,A7)+COUNTIF(Games!B:B,A7)) -> 7.8 | I7: 0.8145297177 | J7: =((COUNTIFS(Games!$A:$A,A7,Games!$F:$F,"W"))+(COUNTIFS(Games!$B:$B,A7,Games!$F:$F,"L")))/(COUNTIF(Games!$A:$A,A7)+COUNTIF(Games!$B:$B,A7)) -> 0.8666666667 | K7: =Yale!$V$17 -> 0.7989024281 | L7: 4 | M7: Ivy
A8: Duke | B8: =((SUMIF(Games!$A:$A,A8,Games!$E:$E))+-(SUMIF(Games!$B:$B,A8,Games!$E:$E)))/((COUNTIF(Games!$A:$A,A8))+(COUNTIF(Games!$B:$B,A8))) -> 3.166666667 | C8: =((SUMIF(Games!$A:$A,A8,Games!$I:$I))+(SUMIF(Games!$B:$B,A8,Games!$H:$H)))/((COUNTIF(Games!$A:$A,A8))+(COUNTIF(Games!$B:$B,A8))) -> 1.805604881 | D8: 4.972271547 | E8: 7 | F8: 10 | G8: =(((SUMIF(Games!A:A,A8,Games!C:C)+(SUMIF(Games!B:B,A8,Games!D:D)))))/(COUNTIF(Games!A:A,A8)+COUNTIF(Games!B:B,A8)) -> 13.5 | H8: =(((SUMIF(Games!A:A,A8,Games!D:D)+(SUMIF(Games!B:B,A8,Games!C:C)))))/(COUNTIF(Games!A:A,A8)+COUNTIF(Games!B:B,A8)) -> 9.611111111 | I8: 0.7427062016 | J8: =((COUNTIFS(Games!$A:$A,A8,Games!$F:$F,"W"))+(COUNTIFS(Games!$B:$B,A8,Games!$F:$F,"L")))/(COUNTIF(Games!$A:$A,A8)+COUNTIF(Games!$B:$B,A8)) -> 0.6111111111 | K8: =Duke!$V$17 -> 0.7395294917 | L8: 10 | M8: ACC
A9: Villanova | B9: =((SUMIF(Games!$A:$A,A9,Games!$E:$E))+-(SUMIF(Games!$B:$B,A9,Games!$E:$E)))/((COUNTIF(Games!$A:$A,A9))+(COUNTIF(Games!$B:$B,A9))) -> 2.857142857 | C9: =((SUMIF(Games!$A:$A,A9,Games!$I:$I))+(SUMIF(Games!$B:$B,A9,Games!$H:$H)))/((COUNTIF(Games!$A:$A,A9))+(COUNTIF(Games!$B:$B,A9))) -> 1.652295379 | D9: 4.509438236 | E9: 8 | F9: 12 | G9: =(((SUMIF(Games!A:A,A9,Games!C:C)+(SUMIF(Games!B:B,A9,Games!D:D)))))/(COUNTIF(Games!A:A,A9)+COUNTIF(Games!B:B,A9)) -> 13.57142857 | H9: =(((SUMIF(Games!A:A,A9,Games!D:D)+(SUMIF(Games!B:B,A9,Games!C:C)))))/(COUNTIF(Games!A:A,A9)+COUNTIF(Games!B:B,A9)) -> 10.64285714 | I9: 0.6810068272 | J9: =((COUNTIFS(Games!$A:$A,A9,Games!$F:$F,"W"))+(COUNTIFS(Games!$B:$B,A9,Games!$F:$F,"L")))/(COUNTIF(Games!$A:$A,A9)+COUNTIF(Games!$B:$B,A9)) -> 0.6428571429 | K9: =Villanova!$V$17 -> 0.7288034422 | L9: 12 | M9: Big East
A10: North Carolina | B10: =((SUMIF(Games!$A:$A,A10,Games!$E:$E))+-(SUMIF(Games!$B:$B,A10,Games!$E:$E)))/((COUNTIF(Games!$A:$A,A10))+(COUNTIF(Games!$B:$B,A10))) -> 2.071428571 | C10: =((SUMIF(Games!$A:$A,A10,Games!$I:$I))+(SUMIF(Games!$B:$B,A10,Games!$H:$H)))/((COUNTIF(Games!$A:$A,A10))+(COUNTIF(Games!$B:$B,A10))) -> 1.979233444 | D10: 4.050662015 | E10: 9 | F10: 6 | G10: =(((SUMIF(Games!A:A,A10,Games!C:C)+(SUMIF(Games!B:B,A10,Games!D:D)))))/(COUNTIF(Games!A:A,A10)+COUNTIF(Games!B:B,A10)) -> 12.85714286 | H10: =(((SUMIF(Games!A:A,A10,Games!D:D)+(SUMIF(Games!B:B,A10,Games!C:C)))))/(COUNTIF(Games!A:A,A10)+COUNTIF(Games!B:B,A10)) -> 10.35714286 | I10: 0.662536009 | J10: =((COUNTIFS(Games!$A:$A,A10,Games!$F:$F,"W"))+(COUNTIFS(Games!$B:$B,A10,Games!$F:$F,"L")))/(COUNTIF(Games!$A:$A,A10)+COUNTIF(Games!$B:$B,A10)) -> 0.5714285714 | K10: ='North Carolina'!$V$17 -> 0.6210840861 | L10: 21 | M10: ACC
A11: Stony Brook | B11: =((SUMIF(Games!$A:$A,A11,Games!$E:$E))+-(SUMIF(Games!$B:$B,A11,Games!$E:$E)))/((COUNTIF(Games!$A:$A,A11))+(COUNTIF(Games!$B:$B,A11))) -> 4.1875 | C11: =((SUMIF(Games!$A:$A,A11,Games!$I:$I))+(SUMIF(Games!$B:$B,A11,Games!$H:$H)))/((COUNTIF(Games!$A:$A,A11))+(COUNTIF(Games!$B:$B,A11))) -> -0.2690642674 | D11: 3.918435733 | E11: 10 | F11: 43 | G11: =(((SUMIF(Games!A:A,A11,Games!C:C)+(SUMIF(Games!B:B,A11,Games!D:D)))))/(COUNTIF(Games!A:A,A11)+COUNTIF(Games!B:B,A11)) -> 13.3125 | H11: =(((SUMIF(Games!A:A,A11,Games!D:D)+(SUMIF(Games!B:B,A11,Games!C:C)))))/(COUNTIF(Games!A:A,A11)+COUNTIF(Games!B:B,A11)) -> 9.125 | I11: 0.7646562 | J11: =((COUNTIFS(Games!$A:$A,A11,Games!$F:$F,"W"))+(COUNTIFS(Games!$B:$B,A11,Games!$F:$F,"L")))/(COUNTIF(Games!$A:$A,A11)+COUNTIF(Games!$B:$B,A11)) -> 0.75 | K11: ='Stony Brook'!$V$17 -> 0.81967154 | L11: 2 | M11: America East
A12: Albany | B12: =((SUMIF(Games!$A:$A,A12,Games!$E:$E))+-(SUMIF(Games!$B:$B,A12,Games!$E:$E)))/((COUNTIF(Games!$A:$A,A12))+(COUNTIF(Games!$B:$B,A12))) -> 3.066666667 | C12: =((SUMIF(Games!$A:$A,A12,Games!$I:$I))+(SUMIF(Games!$B:$B,A12,Games!$H:$H)))/((COUNTIF(Games!$A:$A,A12))+(COUNTIF(Games!$B:$B,A12))) -> 0.7318893884 | D12: 3.798556055 | E12: 11 | F12: 27 | G12: =(((SUMIF(Games!A:A,A12,Games!C:C)+(SUMIF(Games!B:B,A12,Games!D:D)))))/(COUNTIF(Games!A:A,A12)+COUNTIF(Games!B:B,A12)) -> 13.2 | H12: =(((SUMIF(Games!A:A,A12,Games!D:D)+(SUMIF(Games!B:B,A12,Games!C:C)))))/(COUNTIF(Games!A:A,A12)+COUNTIF(Games!B:B,A12)) -> 10 | I12: 0.7039566785 | J12: =((COUNTIFS(Games!$A:$A,A12,Games!$F:$F,"W"))+(COUNTIFS(Games!$B:$B,A12,Games!$F:$F,"L")))/(COUNTIF(Games!$A:$A,A12)+COUNTIF(Games!$B:$B,A12)) -> 0.8 | K12: =Albany!$V$17 -> 0.723901035 | L12: 13 | M12: America East
A13: Loyola | B13: =((SUMIF(Games!$A:$A,A13,Games!$E:$E))+-(SUMIF(Games!$B:$B,A13,Games!$E:$E)))/((COUNTIF(Games!$A:$A,A13))+(COUNTIF(Games!$B:$B,A13))) -> 2.6 | C13: =((SUMIF(Games!$A:$A,A13,Games!$I:$I))+(SUMIF(Games!$B:$B,A13,Games!$H:$H)))/((COUNTIF(Games!$A:$A,A13))+(COUNTIF(Games!$B:$B,A13))) -> 1.065283498 | D13: 3.665283498 | E13: 12 | F13: 23 | G13: =(((SUMIF(Games!A:A,A13,Games!C:C)+(SUMIF(Games!B:B,A13,Games!D:D)))))/(COUNTIF(Games!A:A,A13)+COUNTIF(Games!B:B,A13)) -> 10.53333333 | H13: =(((SUMIF(Games!A:A,A13,Games!D:D)+(SUMIF(Games!B:B,A13,Games!C:C)))))/(COUNTIF(Games!A:A,A13)+COUNTIF(Games!B:B,A13)) -> 7.866666667 | I13: 0.7131557542 | J13: =((COUNTIFS(Games!$A:$A,A13,Games!$F:$F,"W"))+(COUNTIFS(Games!$B:$B,A13,Games!$F:$F,"L")))/(COUNTIF(Games!$A:$A,A13)+COUNTIF(Games!$B:$B,A13)) -> 0.8 | K13: =Loyola!$V$17 -> 0.7297637486 | L13: 11 | M13: Patriot
A14: Johns Hopkins | B14: =((SUMIF(Games!$A:$A,A14,Games!$E:$E))+-(SUMIF(Games!$B:$B,A14,Games!$E:$E)))/((COUNTIF(Games!$A:$A,A14))+(COUNTIF(Games!$B:$B,A14))) -> 1.285714286 | C14: =((SUMIF(Games!$A:$A,A14,Games!$I:$I))+(SUMIF(Games!$B:$B,A14,Games!$H:$H)))/((COUNTIF(Games!$A:$A,A14))+(COUNTIF(Games!$B:$B,A14))) -> 2.279777008 | D14: 3.565491294 | E14: 13 | F14: 4 | G14: =(((SUMIF(Games!A:A,A14,Games!C:C)+(SUMIF(Games!B:B,A14,Games!D:D)))))/(COUNTIF(Games!A:A,A14)+COUNTIF(Games!B:B,A14)) -> 12.64285714 | H14: =(((SUMIF(Games!A:A,A14,Games!D:D)+(SUMIF(Games!B:B,A14,Games!C:C)))))/(COUNTIF(Games!A:A,A14)+COUNTIF(Games!B:B,A14)) -> 11.21428571 | I14: 0.5924493713 | J14: =((COUNTIFS(Games!$A:$A,A14,Games!$F:$F,"W"))+(COUNTIFS(Games!$B:$B,A14,Games!$F:$F,"L")))/(COUNTIF(Games!$A:$A,A14)+COUNTIF(Games!$B:$B,A14)) -> 0.5714285714 | K14: ='Johns Hopkins'!$V$17 -> 0.6061816152 | L14: 23 | M14: Big Ten
A15: Towson | B15: =((SUMIF(Games!$A:$A,A15,Games!$E:$E))+-(SUMIF(Games!$B:$B,A15,Games!$E:$E)))/((COUNTIF(Games!$A:$A,A15))+(COUNTIF(Games!$B:$B,A15))) -> 3.5625 | C15: =((SUMIF(Games!$A:$A,A15,Games!$I:$I))+(SUMIF(Games!$B:$B,A15,Games!$H:$H)))/((COUNTIF(Games!$A:$A,A15))+(COUNTIF(Games!$B:$B,A15))) -> -0.3197729256 | D15: 3.242727074 | E15: 14 | F15: 44 | G15: =(((SUMIF(Games!A:A,A15,Games!C:C)+(SUMIF(Games!B:B,A15,Games!D:D)))))/(COUNTIF(Games!A:A,A15)+COUNTIF(Games!B:B,A15)) -> 10.6875 | H15: =(((SUMIF(Games!A:A,A15,Games!D:D)+(SUMIF(Games!B:B,A15,Games!C:C)))))/(COUNTIF(Games!A:A,A15)+COUNTIF(Games!B:B,A15)) -> 7.125 | I15: 0.7798944073 | J15: =((COUNTIFS(Games!$A:$A,A15,Games!$F:$F,"W"))+(COUNTIFS(Games!$B:$B,A15,Games!$F:$F,"L")))/(COUNTIF(Games!$A:$A,A15)+COUNTIF(Games!$B:$B,A15)) -> 0.875 | K15: =Towson!$V$17 -> 0.7915953202 | L15: 6 | M15: CAA
A16: Harvard | B16: =((SUMIF(Games!$A:$A,A16,Games!$E:$E))+-(SUMIF(Games!$B:$B,A16,Games!$E:$E)))/((COUNTIF(Games!$A:$A,A16))+(COUNTIF(Games!$B:$B,A16))) -> 0.6875 | C16: =((SUMIF(Games!$A:$A,A16,Games!$I:$I))+(SUMIF(Games!$B:$B,A16,Games!$H:$H)))/((COUNTIF(Games!$A:$A,A16))+(COUNTIF(Games!$B:$B,A16))) -> 2.497621671 | D16: 3.185121671 | E16: 15 | F16: 1 | G16: =(((SUMIF(Games!A:A,A16,Games!C:C)+(SUMIF(Games!B:B,A16,Games!D:D)))))/(COUNTIF(Games!A:A,A16)+COUNTIF(Games!B:B,A16)) -> 11.4375 | H16: =(((SUMIF(Games!A:A,A16,Games!D:D)+(SUMIF(Games!B:B,A16,Games!C:C)))))/(COUNTIF(Games!A:A,A16)+COUNTIF(Games!B:B,A16)) -> 10.75 | I16: 0.5482033311 | J16: =((COUNTIFS(Games!$A:$A,A16,Games!$F:$F,"W"))+(COUNTIFS(Games!$B:$B,A16,Games!$F:$F,"L")))/(COUNTIF(Games!$A:$A,A16)+COUNTIF(Games!$B:$B,A16)) -> 0.5 | K16: =Harvard!$V$17 -> 0.5131387702 | L16: 32 | M16: Ivy
A17: Navy | B17: =((SUMIF(Games!$A:$A,A17,Games!$E:$E))+-(SUMIF(Games!$B:$B,A17,Games!$E:$E)))/((COUNTIF(Games!$A:$A,A17))+(COUNTIF(Games!$B:$B,A17))) -> 2.714285714 | C17: =((SUMIF(Games!$A:$A,A17,Games!$I:$I))+(SUMIF(Games!$B:$B,A17,Games!$H:$H)))/((COUNTIF(Games!$A:$A,A17))+(COUNTIF(Games!$B:$B,A17))) -> 0.3968131576 | D17: 3.111098872 | E17: 16 | F17: 30 | G17: =(((SUMIF(Games!A:A,A17,Games!C:C)+(SUMIF(Games!B:B,A17,Games!D:D)))))/(COUNTIF(Games!A:A,A17)+COUNTIF(Games!B:B,A17)) -> 9.642857143 | H17: =(((SUMIF(Games!A:A,A17,Games!D:D)+(SUMIF(Games!B:B,A17,Games!C:C)))))/(COUNTIF(Games!A:A,A17)+COUNTIF(Games!B:B,A17)) -> 6.928571429 | I17: 0.7371792923 | J17: =((COUNTIFS(Games!$A:$A,A17,Games!$F:$F,"W"))+(COUNTIFS(Games!$B:$B,A17,Games!$F:$F,"L")))/(COUNTIF(Games!$A:$A,A17)+COUNTIF(Games!$B:$B,A17)) -> 0.7142857143 | K17: =Navy!$V$17 -> 0.7171025241 | L17: 14 | M17: Patriot
A18: Marquette | B18: =((SUMIF(Games!$A:$A,A18,Games!$E:$E))+-(SUMIF(Games!$B:$B,A18,Games!$E:$E)))/((COUNTIF(Games!$A:$A,A18))+(COUNTIF(Games!$B:$B,A18))) -> 1.666666667 | C18: =((SUMIF(Games!$A:$A,A18,Games!$I:$I))+(SUMIF(Games!$B:$B,A18,Games!$H:$H)))/((COUNTIF(Games!$A:$A,A18))+(COUNTIF(Games!$B:$B,A18))) -> 1.342356091 | D18: 3.009022758 | E18: 17 | F18: 18 | G18: =(((SUMIF(Games!A:A,A18,Games!C:C)+(SUMIF(Games!B:B,A18,Games!D:D)))))/(COUNTIF(Games!A:A,A18)+COUNTIF(Games!B:B,A18)) -> 9.333333333 | H18: =(((SUMIF(Games!A:A,A18,Games!D:D)+(SUMIF(Games!B:B,A18,Games!C:C)))))/(COUNTIF(Games!A:A,A18)+COUNTIF(Games!B:B,A18)) -> 8 | I18: 0.6179722069 | J18: =((COUNTIFS(Games!$A:$A,A18,Games!$F:$F,"W"))+(COUNTIFS(Games!$B:$B,A18,Games!$F:$F,"L")))/(COUNTIF(Games!$A:$A,A18)+COUNTIF(Games!$B:$B,A18)) -> 0.7333333333 | K18: =Marquette!$V$17 -> 0.5940025782 | L18: 25 | M18: Big East
A19: Army | B19: =((SUMIF(Games!$A:$A,A19,Games!$E:$E))+-(SUMIF(Games!$B:$B,A19,Games!$E:$E)))/((COUNTIF(Games!$A:$A,A19))+(COUNTIF(Games!$B:$B,A19))) -> 2.764705882 | C19: =((SUMIF(Games!$A:$A,A19,Games!$I:$I))+(SUMIF(Games!$B:$B,A19,Games!$H:$H)))/((COUNTIF(Games!$A:$A,A19))+(COUNTIF(Games!$B:$B,A19))) -> 0.0976168143 | D19: 2.862322697 | E19: 18 | F19: 36 | G19: =(((SUMIF(Games!A:A,A19,Games!C:C)+(SUMIF(Games!B:B,A19,Games!D:D)))))/(COUNTIF(Games!A:A,A19)+COUNTIF(Games!B:B,A19)) -> 11.35294118 | H19: =(((SUMIF(Games!A:A,A19,Games!D:D)+(SUMIF(Games!B:B,A19,Games!C:C)))))/(COUNTIF(Games!A:A,A19)+COUNTIF(Games!B:B,A19)) -> 8 | I19: 0.7487788675 | J19: =((COUNTIFS(Games!$A:$A,A19,Games!$F:$F,"W"))+(COUNTIFS(Games!$B:$B,A19,Games!$F:$F,"L")))/(COUNTIF(Games!$A:$A,A19)+COUNTIF(Games!$B:$B,A19)) -> 0.5882352941 | K19: =Army!$V$17 -> 0.6661460113 | L19: 17 | M19: Patriot
A20: Rutgers | B20: =((SUMIF(Games!$A:$A,A20,Games!$E:$E))+-(SUMIF(Games!$B:$B,A20,Games!$E:$E)))/((COUNTIF(Games!$A:$A,A20))+(COUNTIF(Games!$B:$B,A20))) -> 2.375 | C20: =((SUMIF(Games!$A:$A,A20,Games!$I:$I))+(SUMIF(Games!$B:$B,A20,Games!$H:$H)))/((COUNTIF(Games!$A:$A,A20))+(COUNTIF(Games!$B:$B,A20))) -> 0.3138771095 | D20: 2.68887711 | E20: 19 | F20: 31 | G20: =(((SUMIF(Games!A:A,A20,Games!C:C)+(SUMIF(Games!B:B,A20,Games!D:D)))))/(COUNTIF(Games!A:A,A20)+COUNTIF(Games!B:B,A20)) -> 12.4375 | H20: =(((SUMIF(Games!A:A,A20,Games!D:D)+(SUMIF(Games!B:B,A20,Games!C:C)))))/(COUNTIF(Games!A:A,A20)+COUNTIF(Games!B:B,A20)) -> 9.875 | I20: 0.6725661784 | J20: =((COUNTIFS(Games!$A:$A,A20,Games!$F:$F,"W"))+(COUNTIFS(Games!$B:$B,A20,Games!$F:$F,"L")))/(COUNTIF(Games!$A:$A,A20)+COUNTIF(Games!$B:$B,A20)) -> 0.6875 | K20: =Rutgers!$V$17 -> 0.6333437927 | L20: 20 | M20: Big Ten
A21: Penn State | B21: =((SUMIF(Games!$A:$A,A21,Games!$E:$E))+-(SUMIF(Games!$B:$B,A21,Games!$E:$E)))/((COUNTIF(Games!$A:$A,A21))+(COUNTIF(Games!$B:$B,A21))) -> 0.7333333333 | C21: =((SUMIF(Games!$A:$A,A21,Games!$I:$I))+(SUMIF(Games!$B:$B,A21,Games!$H:$H)))/((COUNTIF(Games!$A:$A,A21))+(COUNTIF(Games!$B:$B,A21))) -> 1.870875255 | D21: 2.604208589 | E21: 20 | F21: 9 | G21: =(((SUMIF(Games!A:A,A21,Games!C:C)+(SUMIF(Games!B:B,A21,Games!D:D)))))/(COUNTIF(Games!A:A,A21)+COUNTIF(Games!B:B,A21)) -> 11.86666667 | H21: =(((SUMIF(Games!A:A,A21,Games!D:D)+(SUMIF(Games!B:B,A21,Games!C:C)))))/(COUNTIF(Games!A:A,A21)+COUNTIF(Games!B:B,A21)) -> 10.93333333 | I21: 0.5635497989 | J21: =((COUNTIFS(Games!$A:$A,A21,Games!$F:$F,"W"))+(COUNTIFS(Games!$B:$B,A21,Games!$F:$F,"L")))/(COUNTIF(Games!$A:$A,A21)+COUNTIF(Games!$B:$B,A21)) -> 0.5333333333 | K21: ='Penn State'!$V$17 -> 0.5728424761 | L21: 28 | M21: Big Ten
A22: Bucknell | B22: =((SUMIF(Games!$A:$A,A22,Games!$E:$E))+-(SUMIF(Games!$B:$B,A22,Games!$E:$E)))/((COUNTIF(Games!$A:$A,A22))+(COUNTIF(Games!$B:$B,A22))) -> 2.066666667 | C22: =((SUMIF(Games!$A:$A,A22,Games!$I:$I))+(SUMIF(Games!$B:$B,A22,Games!$H:$H)))/((COUNTIF(Games!$A:$A,A22))+(COUNTIF(Games!$B:$B,A22))) -> 0.302008559 | D22: 2.368675226 | E22: 21 | F22: 32 | G22: =(((SUMIF(Games!A:A,A22,Games!C:C)+(SUMIF(Games!B:B,A22,Games!D:D)))))/(COUNTIF(Games!A:A,A22)+COUNTIF(Games!B:B,A22)) -> 11.06666667 | H22: =(((SUMIF(Games!A:A,A22,Games!D:D)+(SUMIF(Games!B:B,A22,Games!C:C)))))/(COUNTIF(Games!A:A,A22)+COUNTIF(Games!B:B,A22)) -> 9.066666667 | I22: 0.6506547911 | J22: =((COUNTIFS(Games!$A:$A,A22,Games!$F:$F,"W"))+(COUNTIFS(Games!$B:$B,A22,Games!$F:$F,"L")))/(COUNTIF(Games!$A:$A,A22)+COUNTIF(Games!$B:$B,A22)) -> 0.6666666667 | K22: =Bucknell!$V$17 -> 0.6785503877 | L22: 15 | M22: Patriot
A23: St. Josephs | B23: =((SUMIF(Games!$A:$A,A23,Games!$E:$E))+-(SUMIF(Games!$B:$B,A23,Games!$E:$E)))/((COUNTIF(Games!$A:$A,A23))+(COUNTIF(Games!$B:$B,A23))) -> 4.4375 | C23: =((SUMIF(Games!$A:$A,A23,Games!$I:$I))+(SUMIF(Games!$B:$B,A23,Games!$H:$H)))/((COUNTIF(Games!$A:$A,A23))+(COUNTIF(Games!$B:$B,A23))) -> -2.109493916 | D23: 2.328006084 | E23: 22 | F23: 64 | G23: =(((SUMIF(Games!A:A,A23,Games!C:C)+(SUMIF(Games!B:B,A23,Games!D:D)))))/(COUNTIF(Games!A:A,A23)+COUNTIF(Games!B:B,A23)) -> 12.3125 | H23: =(((SUMIF(Games!A:A,A23,Games!D:D)+(SUMIF(Games!B:B,A23,Games!C:C)))))/(COUNTIF(Games!A:A,A23)+COUNTIF(Games!B:B,A23)) -> 7.875 | I23: 0.8012931256 | J23: =((COUNTIFS(Games!$A:$A,A23,Games!$F:$F,"W"))+(COUNTIFS(Games!$B:$B,A23,Games!$F:$F,"L")))/(COUNTIF(Games!$A:$A,A23)+COUNTIF(Games!$B:$B,A23)) -> 0.75 | K23: ='St. Josephs'!$V$17 -> 0.8178042291 | L23: 3 | M23: Northeast
A24: Bryant | B24: =((SUMIF(Games!$A:$A,A24,Games!$E:$E))+-(SUMIF(Games!$B:$B,A24,Games!$E:$E)))/((COUNTIF(Games!$A:$A,A24))+(COUNTIF(Games!$B:$B,A24))) -> 2.066666667 | C24: =((SUMIF(Games!$A:$A,A24,Games!$I:$I))+(SUMIF(Games!$B:$B,A24,Games!$H:$H)))/((COUNTIF(Games!$A:$A,A24))+(COUNTIF(Games!$B:$B,A24))) -> 0.02158159955 | D24: 2.088248266 | E24: 23 | F24: 38 | G24: =(((SUMIF(Games!A:A,A24,Games!C:C)+(SUMIF(Games!B:B,A24,Games!D:D)))))/(COUNTIF(Games!A:A,A24)+COUNTIF(Games!B:B,A24)) -> 11.2 | H24: =(((SUMIF(Games!A:A,A24,Games!D:D)+(SUMIF(Games!B:B,A24,Games!C:C)))))/(COUNTIF(Games!A:A,A24)+COUNTIF(Games!B:B,A24)) -> 8.533333333 | I24: 0.7002383656 | J24: =((COUNTIFS(Games!$A:$A,A24,Games!$F:$F,"W"))+(COUNTIFS(Games!$B:$B,A24,Games!$F:$F,"L")))/(COUNTIF(Games!$A:$A,A24)+COUNTIF(Games!$B:$B,A24)) -> 0.6666666667 | K24: =Bryant!$V$17 -> 0.6533317819 | L24: 19 | M24: Northeast
A25: Virginia | B25: =((SUMIF(Games!$A:$A,A25,Games!$E:$E))+-(SUMIF(Games!$B:$B,A25,Games!$E:$E)))/((COUNTIF(Games!$A:$A,A25))+(COUNTIF(Games!$B:$B,A25))) -> -0.06666666667 | C25: =((SUMIF(Games!$A:$A,A25,Games!$I:$I))+(SUMIF(Games!$B:$B,A25,Games!$H:$H)))/((COUNTIF(Games!$A:$A,A25))+(COUNTIF(Games!$B:$B,A25))) -> 1.929133727 | D25: 1.86246706 | E25: 24 | F25: 8 | G25: =(((SUMIF(Games!A:A,A25,Games!C:C)+(SUMIF(Games!B:B,A25,Games!D:D)))))/(COUNTIF(Games!A:A,A25)+COUNTIF(Games!B:B,A25)) -> 10.6 | H25: =(((SUMIF(Games!A:A,A25,Games!D:D)+(SUMIF(Games!B:B,A25,Games!C:C)))))/(COUNTIF(Games!A:A,A25)+COUNTIF(Games!B:B,A25)) -> 10.33333333 | I25: 0.5198632273 | J25: =((COUNTIFS(Games!$A:$A,A25,Games!$F:$F,"W"))+(COUNTIFS(Games!$B:$B,A25,Games!$F:$F,"L")))/(COUNTIF(Games!$A:$A,A25)+COUNTIF(Games!$B:$B,A25)) -> 0.4666666667 | K25: =Virginia!$V$17 -> 0.4712303781 | L25: 36 | M25: ACC
A26: Penn | B26: =((SUMIF(Games!$A:$A,A26,Games!$E:$E))+-(SUMIF(Games!$B:$B,A26,Games!$E:$E)))/((COUNTIF(Games!$A:$A,A26))+(COUNTIF(Games!$B:$B,A26))) -> 0.2 | C26: =((SUMIF(Games!$A:$A,A26,Games!$I:$I))+(SUMIF(Games!$B:$B,A26,Games!$H:$H)))/((COUNTIF(Games!$A:$A,A26))+(COUNTIF(Games!$B:$B,A26))) -> 1.612881196 | D26: 1.812881196 | E26: 25 | F26: 14 | G26: =(((SUMIF(Games!A:A,A26,Games!C:C)+(SUMIF(Games!B:B,A26,Games!D:D)))))/(COUNTIF(Games!A:A,A26)+COUNTIF(Games!B:B,A26)) -> 10.2 | H26: =(((SUMIF(Games!A:A,A26,Games!D:D)+(SUMIF(Games!B:B,A26,Games!C:C)))))/(COUNTIF(Games!A:A,A26)+COUNTIF(Games!B:B,A26)) -> 10.06666667 | I26: 0.5102618648 | J26: =((COUNTIFS(Games!$A:$A,A26,Games!$F:$F,"W"))+(COUNTIFS(Games!$B:$B,A26,Games!$F:$F,"L")))/(COUNTIF(Games!$A:$A,A26)+COUNTIF(Games!$B:$B,A26)) -> 0.5333333333 | K26: =Penn!$V$17 -> 0.508765732 | L26: 33 | M26: Ivy
A27: Ohio State | B27: =((SUMIF(Games!$A:$A,A27,Games!$E:$E))+-(SUMIF(Games!$B:$B,A27,Games!$E:$E)))/((COUNTIF(Games!$A:$A,A27))+(COUNTIF(Games!$B:$B,A27))) -> 0.2666666667 | C27: =((SUMIF(Games!$A:$A,A27,Games!$I:$I))+(SUMIF(Games!$B:$B,A27,Games!$H:$H)))/((COUNTIF(Games!$A:$A,A27))+(COUNTIF(Games!$B:$B,A27))) -> 1.280471466 | D27: 1.547138133 | E27: 26 | F27: 19 | G27: =(((SUMIF(Games!A:A,A27,Games!C:C)+(SUMIF(Games!B:B,A27,Games!D:D)))))/(COUNTIF(Games!A:A,A27)+COUNTIF(Games!B:B,A27)) -> 9.4 | H27: =(((SUMIF(Games!A:A,A27,Games!D:D)+(SUMIF(Games!B:B,A27,Games!C:C)))))/(COUNTIF(Games!A:A,A27)+COUNTIF(Games!B:B,A27)) -> 9.066666667 | I27: 0.5281321614 | J27: =((COUNTIFS(Games!$A:$A,A27,Games!$F:$F,"W"))+(COUNTIFS(Games!$B:$B,A27,Games!$F:$F,"L")))/(COUNTIF(Games!$A:$A,A27)+COUNTIF(Games!$B:$B,A27)) -> 0.4666666667 | K27: ='Ohio State'!$V$17 -> 0.5252151102 | L27: 31 | M27: Big Ten
A28: Air Force | B28: =((SUMIF(Games!$A:$A,A28,Games!$E:$E))+-(SUMIF(Games!$B:$B,A28,Games!$E:$E)))/((COUNTIF(Games!$A:$A,A28))+(COUNTIF(Games!$B:$B,A28))) -> 2.941176471 | C28: =((SUMIF(Games!$A:$A,A28,Games!$I:$I))+(SUMIF(Games!$B:$B,A28,Games!$H:$H)))/((COUNTIF(Games!$A:$A,A28))+(COUNTIF(Games!$B:$B,A28))) -> -1.746472776 | D28: 1.194703694 | E28: 27 | F28: 58 | G28: =(((SUMIF(Games!A:A,A28,Games!C:C)+(SUMIF(Games!B:B,A28,Games!D:D)))))/(COUNTIF(Games!A:A,A28)+COUNTIF(Games!B:B,A28)) -> 10.23529412 | H28: =(((SUMIF(Games!A:A,A28,Games!D:D)+(SUMIF(Games!B:B,A28,Games!C:C)))))/(COUNTIF(Games!A:A,A28)+COUNTIF(Games!B:B,A28)) -> 7.294117647 | I28: 0.7421118576 | J28: =((COUNTIFS(Games!$A:$A,A28,Games!$F:$F,"W"))+(COUNTIFS(Games!$B:$B,A28,Games!$F:$F,"L")))/(COUNTIF(Games!$A:$A,A28)+COUNTIF(Games!$B:$B,A28)) -> 0.8823529412 | K28: ='Air Force'!$V$17 -> 0.6784067401 | L28: 16 | M28: Southern
A29: Massachusetts | B29: =((SUMIF(Games!$A:$A,A29,Games!$E:$E))+-(SUMIF(Games!$B:$B,A29,Games!$E:$E)))/((COUNTIF(Games!$A:$A,A29))+(COUNTIF(Games!$B:$B,A29))) -> -1.076923077 | C29: =((SUMIF(Games!$A:$A,A29,Games!$I:$I))+(SUMIF(Games!$B:$B,A29,Games!$H:$H)))/((COUNTIF(Games!$A:$A,A29))+(COUNTIF(Games!$B:$B,A29))) -> 2.253681795 | D29: 1.176758718 | E29: 28 | F29: 5 | G29: =(((SUMIF(Games!A:A,A29,Games!C:C)+(SUMIF(Games!B:B,A29,Games!D:D)))))/(COUNTIF(Games!A:A,A29)+COUNTIF(Games!B:B,A29)) -> 8.615384615 | H29: =(((SUMIF(Games!A:A,A29,Games!D:D)+(SUMIF(Games!B:B,A29,Games!C:C)))))/(COUNTIF(Games!A:A,A29)+COUNTIF(Games!B:B,A29)) -> 9.846153846 | I29: 0.3973263288 | J29: =((COUNTIFS(Games!$A:$A,A29,Games!$F:$F,"W"))+(COUNTIFS(Games!$B:$B,A29,Games!$F:$F,"L")))/(COUNTIF(Games!$A:$A,A29)+COUNTIF(Games!$B:$B,A29)) -> 0.3076923077 | K29: =Massachusetts!$V$17 -> 0.4260349625 | L29: 42 | M29: CAA
A30: Hofstra | B30: =((SUMIF(Games!$A:$A,A30,Games!$E:$E))+-(SUMIF(Games!$B:$B,A30,Games!$E:$E)))/((COUNTIF(Games!$A:$A,A30))+(COUNTIF(Games!$B:$B,A30))) -> 1.133333333 | C30: =((SUMIF(Games!$A:$A,A30,Games!$I:$I))+(SUMIF(Games!$B:$B,A30,Games!$H:$H)))/((COUNTIF(Games!$A:$A,A30))+(COUNTIF(Games!$B:$B,A30))) -> -0.03685553895 | D30: 1.096477794 | E30: 29 | F30: 41 | G30: =(((SUMIF(Games!A:A,A30,Games!C:C)+(SUMIF(Games!B:B,A30,Games!D:D)))))/(COUNTIF(Games!A:A,A30)+COUNTIF(Games!B:B,A30)) -> 10 | H30: =(((SUMIF(Games!A:A,A30,Games!D:D)+(SUMIF(Games!B:B,A30,Games!C:C)))))/(COUNTIF(Games!A:A,A30)+COUNTIF(Games!B:B,A30)) -> 8.533333333 | I30: 0.6212477584 | J30: =((COUNTIFS(Games!$A:$A,A30,Games!$F:$F,"W"))+(COUNTIFS(Games!$B:$B,A30,Games!$F:$F,"L")))/(COUNTIF(Games!$A:$A,A30)+COUNTIF(Games!$B:$B,A30)) -> 0.6 | K30: =Hofstra!$V$17 -> 0.5928910648 | L30: 27 | M30: CAA
A31: Cornell | B31: =((SUMIF(Games!$A:$A,A31,Games!$E:$E))+-(SUMIF(Games!$B:$B,A31,Games!$E:$E)))/((COUNTIF(Games!$A:$A,A31))+(COUNTIF(Games!$B:$B,A31))) -> -0.7692307692 | C31: =((SUMIF(Games!$A:$A,A31,Games!$I:$I))+(SUMIF(Games!$B:$B,A31,Games!$H:$H)))/((COUNTIF(Games!$A:$A,A31))+(COUNTIF(Games!$B:$B,A31))) -> 1.707465216 | D31: 0.9382344466 | E31: 30 | F31: 11 | G31: =(((SUMIF(Games!A:A,A31,Games!C:C)+(SUMIF(Games!B:B,A31,Games!D:D)))))/(COUNTIF(Games!A:A,A31)+COUNTIF(Games!B:B,A31)) -> 9.307692308 | H31: =(((SUMIF(Games!A:A,A31,Games!D:D)+(SUMIF(Games!B:B,A31,Games!C:C)))))/(COUNTIF(Games!A:A,A31)+COUNTIF(Games!B:B,A31)) -> 10.23076923 | I31: 0.426774655 | J31: =((COUNTIFS(Games!$A:$A,A31,Games!$F:$F,"W"))+(COUNTIFS(Games!$B:$B,A31,Games!$F:$F,"L")))/(COUNTIF(Games!$A:$A,A31)+COUNTIF(Games!$B:$B,A31)) -> 0.4615384615 | K31: =Cornell!$V$17 -> 0.4344603153 | L31: 41 | M31: Ivy
A32: Fairfield | B32: =((SUMIF(Games!$A:$A,A32,Games!$E:$E))+-(SUMIF(Games!$B:$B,A32,Games!$E:$E)))/((COUNTIF(Games!$A:$A,A32))+(COUNTIF(Games!$B:$B,A32))) -> -0.3529411765 | C32: =((SUMIF(Games!$A:$A,A32,Games!$I:$I))+(SUMIF(Games!$B:$B,A32,Games!$H:$H)))/((COUNTIF(Games!$A:$A,A32))+(COUNTIF(Games!$B:$B,A32))) -> 1.119831975 | D32: 0.7668907987 | E32: 31 | F32: 22 | G32: =(((SUMIF(Games!A:A,A32,Games!C:C)+(SUMIF(Games!B:B,A32,Games!D:D)))))/(COUNTIF(Games!A:A,A32)+COUNTIF(Games!B:B,A32)) -> 9 | H32: =(((SUMIF(Games!A:A,A32,Games!D:D)+(SUMIF(Games!B:B,A32,Games!C:C)))))/(COUNTIF(Games!A:A,A32)+COUNTIF(Games!B:B,A32)) -> 9.352941176 | I32: 0.4700322625 | J32: =((COUNTIFS(Games!$A:$A,A32,Games!$F:$F,"W"))+(COUNTIFS(Games!$B:$B,A32,Games!$F:$F,"L")))/(COUNTIF(Games!$A:$A,A32)+COUNTIF(Games!$B:$B,A32)) -> 0.5294117647 | K32: =Fairfield!$V$17 -> 0.4639557399 | L32: 39 | M32: CAA
A33: Drexel | B33: =((SUMIF(Games!$A:$A,A33,Games!$E:$E))+-(SUMIF(Games!$B:$B,A33,Games!$E:$E)))/((COUNTIF(Games!$A:$A,A33))+(COUNTIF(Games!$B:$B,A33))) -> -0.5333333333 | C33: =((SUMIF(Games!$A:$A,A33,Games!$I:$I))+(SUMIF(Games!$B:$B,A33,Games!$H:$H)))/((COUNTIF(Games!$A:$A,A33))+(COUNTIF(Games!$B:$B,A33))) -> 1.160392069 | D33: 0.6270587359 | E33: 32 | F33: 20 | G33: =(((SUMIF(Games!A:A,A33,Games!C:C)+(SUMIF(Games!B:B,A33,Games!D:D)))))/(COUNTIF(Games!A:A,A33)+COUNTIF(Games!B:B,A33)) -> 8.933333333 | H33: =(((SUMIF(Games!A:A,A33,Games!D:D)+(SUMIF(Games!B:B,A33,Games!C:C)))))/(COUNTIF(Games!A:A,A33)+COUNTIF(Games!B:B,A33)) -> 9.466666667 | I33: 0.4548929096 | J33: =((COUNTIFS(Games!$A:$A,A33,Games!$F:$F,"W"))+(COUNTIFS(Games!$B:$B,A33,Games!$F:$F,"L")))/(COUNTIF(Games!$A:$A,A33)+COUNTIF(Games!$B:$B,A33)) -> 0.4 | K33: =Drexel!$V$17 -> 0.4176593541 | L33: 45 | M33: CAA
A34: Quinnipiac | B34: =((SUMIF(Games!$A:$A,A34,Games!$E:$E))+-(SUMIF(Games!$B:$B,A34,Games!$E:$E)))/((COUNTIF(Games!$A:$A,A34))+(COUNTIF(Games!$B:$B,A34))) -> 2.214285714 | C34: =((SUMIF(Games!$A:$A,A34,Games!$I:$I))+(SUMIF(Games!$B:$B,A34,Games!$H:$H)))/((COUNTIF(Games!$A:$A,A34))+(COUNTIF(Games!$B:$B,A34))) -> -1.912568661 | D34: =B34+C34 -> 0.3017170536 | E34: =RANK(D34,$D$2:$D$71) -> 33 | F34: =RANK(C34,$C$2:$C$71,0) -> 60 | G34: =(((SUMIF(Games!A:A,A34,Games!C:C)+(SUMIF(Games!B:B,A34,Games!D:D)))))/(COUNTIF(Games!A:A,A34)+COUNTIF(Games!B:B,A34)) -> 10.35714286 | H34: =(((SUMIF(Games!A:A,A34,Games!D:D)+(SUMIF(Games!B:B,A34,Games!C:C)))))/(COUNTIF(Games!A:A,A34)+COUNTIF(Games!B:B,A34)) -> 8.357142857 | I34: =(G34^3.12)/((G34^3.12)+(H34^3.12)) -> 0.6613747534 | J34: =((COUNTIFS(Games!$A:$A,A34,Games!$F:$F,"W"))+(COUNTIFS(Games!$B:$B,A34,Games!$F:$F,"L")))/(COUNTIF(Games!$A:$A,A34)+COUNTIF(Games!$B:$B,A34)) -> 0.7857142857 | K34: =Quinnipiac!$V$17 -> 0.6622845415 | L34: =RANK(K34,$K$2:$K$71,0) -> 18 | M34: MAAC
A35: Richmond | B35: =((SUMIF(Games!$A:$A,A35,Games!$E:$E))+-(SUMIF(Games!$B:$B,A35,Games!$E:$E)))/((COUNTIF(Games!$A:$A,A35))+(COUNTIF(Games!$B:$B,A35))) -> 1.125 | C35: =((SUMIF(Games!$A:$A,A35,Games!$I:$I))+(SUMIF(Games!$B:$B,A35,Games!$H:$H)))/((COUNTIF(Games!$A:$A,A35))+(COUNTIF(Games!$B:$B,A35))) -> -0.8837942796 | D35: 0.2412057204 | E35: 34 | F35: 48 | G35: =(((SUMIF(Games!A:A,A35,Games!C:C)+(SUMIF(Games!B:B,A35,Games!D:D)))))/(COUNTIF(Games!A:A,A35)+COUNTIF(Games!B:B,A35)) -> 8.625 | H35: =(((SUMIF(Games!A:A,A35,Games!D:D)+(SUMIF(Games!B:B,A35,Games!C:C)))))/(COUNTIF(Games!A:A,A35)+COUNTIF(Games!B:B,A35)) -> 7.4375 | I35: 0.6135279328 | J35: =((COUNTIFS(Games!$A:$A,A35,Games!$F:$F,"W"))+(COUNTIFS(Games!$B:$B,A35,Games!$F:$F,"L")))/(COUNTIF(Games!$A:$A,A35)+COUNTIF(Games!$B:$B,A35)) -> 0.6875 | K35: =Richmond!$V$17 -> 0.6070643026 | L35: 22 | M35: Southern
A36: Hartford | B36: =((SUMIF(Games!$A:$A,A36,Games!$E:$E))+-(SUMIF(Games!$B:$B,A36,Games!$E:$E)))/((COUNTIF(Games!$A:$A,A36))+(COUNTIF(Games!$B:$B,A36))) -> 0.8235294118 | C36: =((SUMIF(Games!$A:$A,A36,Games!$I:$I))+(SUMIF(Games!$B:$B,A36,Games!$H:$H)))/((COUNTIF(Games!$A:$A,A36))+(COUNTIF(Games!$B:$B,A36))) -> -0.8170309172 | D36: 0.006498494538 | E36: 35 | F36: 46 | G36: =(((SUMIF(Games!A:A,A36,Games!C:C)+(SUMIF(Games!B:B,A36,Games!D:D)))))/(COUNTIF(Games!A:A,A36)+COUNTIF(Games!B:B,A36)) -> 10.94117647 | H36: =(((SUMIF(Games!A:A,A36,Games!D:D)+(SUMIF(Games!B:B,A36,Games!C:C)))))/(COUNTIF(Games!A:A,A36)+COUNTIF(Games!B:B,A36)) -> 9.941176471 | I36: 0.5742091969 | J36: =((COUNTIFS(Games!$A:$A,A36,Games!$F:$F,"W"))+(COUNTIFS(Games!$B:$B,A36,Games!$F:$F,"L")))/(COUNTIF(Games!$A:$A,A36)+COUNTIF(Games!$B:$B,A36)) -> 0.6470588235 | K36: =Hartford!$V$17 -> 0.5586278452 | L36: 30 | M36: America East
A37: Vermont | B37: =((SUMIF(Games!$A:$A,A37,Games!$E:$E))+-(SUMIF(Games!$B:$B,A37,Games!$E:$E)))/((COUNTIF(Games!$A:$A,A37))+(COUNTIF(Games!$B:$B,A37))) -> 1.470588235 | C37: =((SUMIF(Games!$A:$A,A37,Games!$I:$I))+(SUMIF(Games!$B:$B,A37,Games!$H:$H)))/((COUNTIF(Games!$A:$A,A37))+(COUNTIF(Games!$B:$B,A37))) -> -1.658798363 | D37: -0.1882101278 | E37: 36 | F37: 56 | G37: =(((SUMIF(Games!A:A,A37,Games!C:C)+(SUMIF(Games!B:B,A37,Games!D:D)))))/(COUNTIF(Games!A:A,A37)+COUNTIF(Games!B:B,A37)) -> 12.35294118 | H37: =(((SUMIF(Games!A:A,A37,Games!D:D)+(SUMIF(Games!B:B,A37,Games!C:C)))))/(COUNTIF(Games!A:A,A37)+COUNTIF(Games!B:B,A37)) -> 10.64705882 | I37: 0.6138831978 | J37: =((COUNTIFS(Games!$A:$A,A37,Games!$F:$F,"W"))+(COUNTIFS(Games!$B:$B,A37,Games!$F:$F,"L")))/(COUNTIF(Games!$A:$A,A37)+COUNTIF(Games!$B:$B,A37)) -> 0.5294117647 | K37: =Vermont!$V$17 -> 0.6041249604 | L37: 24 | M37: America East
A38: Princeton | B38: =((SUMIF(Games!$A:$A,A38,Games!$E:$E))+-(SUMIF(Games!$B:$B,A38,Games!$E:$E)))/((COUNTIF(Games!$A:$A,A38))+(COUNTIF(Games!$B:$B,A38))) -> -1.846153846 | C38: =((SUMIF(Games!$A:$A,A38,Games!$I:$I))+(SUMIF(Games!$B:$B,A38,Games!$H:$H)))/((COUNTIF(Games!$A:$A,A38))+(COUNTIF(Games!$B:$B,A38))) -> 1.581044754 | D38: -0.2651090919 | E38: 37 | F38: 15 | G38: =(((SUMIF(Games!A:A,A38,Games!C:C)+(SUMIF(Games!B:B,A38,Games!D:D)))))/(COUNTIF(Games!A:A,A38)+COUNTIF(Games!B:B,A38)) -> 10 | H38: =(((SUMIF(Games!A:A,A38,Games!D:D)+(SUMIF(Games!B:B,A38,Games!C:C)))))/(COUNTIF(Games!A:A,A38)+COUNTIF(Games!B:B,A38)) -> 11.53846154 | I38: 0.39019928 | J38: =((COUNTIFS(Games!$A:$A,A38,Games!$F:$F,"W"))+(COUNTIFS(Games!$B:$B,A38,Games!$F:$F,"L")))/(COUNTIF(Games!$A:$A,A38)+COUNTIF(Games!$B:$B,A38)) -> 0.3846153846 | K38: =Princeton!$V$17 -> 0.3603731564 | L38: 49 | M38: Ivy
A39: Providence | B39: =((SUMIF(Games!$A:$A,A39,Games!$E:$E))+-(SUMIF(Games!$B:$B,A39,Games!$E:$E)))/((COUNTIF(Games!$A:$A,A39))+(COUNTIF(Games!$B:$B,A39))) -> -1.0625 | C39: =((SUMIF(Games!$A:$A,A39,Games!$I:$I))+(SUMIF(Games!$B:$B,A39,Games!$H:$H)))/((COUNTIF(Games!$A:$A,A39))+(COUNTIF(Games!$B:$B,A39))) -> 0.6733060772 | D39: -0.3891939228 | E39: 38 | F39: 28 | G39: =(((SUMIF(Games!A:A,A39,Games!C:C)+(SUMIF(Games!B:B,A39,Games!D:D)))))/(COUNTIF(Games!A:A,A39)+COUNTIF(Games!B:B,A39)) -> 9.75 | H39: =(((SUMIF(Games!A:A,A39,Games!D:D)+(SUMIF(Games!B:B,A39,Games!C:C)))))/(COUNTIF(Games!A:A,A39)+COUNTIF(Games!B:B,A39)) -> 10.8125 | I39: 0.4200132422 | J39: =((COUNTIFS(Games!$A:$A,A39,Games!$F:$F,"W"))+(COUNTIFS(Games!$B:$B,A39,Games!$F:$F,"L")))/(COUNTIF(Games!$A:$A,A39)+COUNTIF(Games!$B:$B,A39)) -> 0.4375 | K39: =Providence!$V$17 -> 0.4245117668 | L39: 43 | M39: Big East
A40: Boston | B40: =((SUMIF(Games!$A:$A,A40,Games!$E:$E))+-(SUMIF(Games!$B:$B,A40,Games!$E:$E)))/((COUNTIF(Games!$A:$A,A40))+(COUNTIF(Games!$B:$B,A40))) -> -0.4666666667 | C40: =((SUMIF(Games!$A:$A,A40,Games!$I:$I))+(SUMIF(Games!$B:$B,A40,Games!$H:$H)))/((COUNTIF(Games!$A:$A,A40))+(COUNTIF(Games!$B:$B,A40))) -> 0.04340906404 | D40: -0.4232576026 | E40: 39 | F40: 37 | G40: =(((SUMIF(Games!A:A,A40,Games!C:C)+(SUMIF(Games!B:B,A40,Games!D:D)))))/(COUNTIF(Games!A:A,A40)+COUNTIF(Games!B:B,A40)) -> 9.333333333 | H40: =(((SUMIF(Games!A:A,A40,Games!D:D)+(SUMIF(Games!B:B,A40,Games!C:C)))))/(COUNTIF(Games!A:A,A40)+COUNTIF(Games!B:B,A40)) -> 9.866666667 | I40: 0.4567637683 | J40: =((COUNTIFS(Games!$A:$A,A40,Games!$F:$F,"W"))+(COUNTIFS(Games!$B:$B,A40,Games!$F:$F,"L")))/(COUNTIF(Games!$A:$A,A40)+COUNTIF(Games!$B:$B,A40)) -> 0.5333333333 | K40: =Boston!$V$17 -> 0.4675794815 | L40: 38 | M40: Patriot
A41: Hobart | B41: =((SUMIF(Games!$A:$A,A41,Games!$E:$E))+-(SUMIF(Games!$B:$B,A41,Games!$E:$E)))/((COUNTIF(Games!$A:$A,A41))+(COUNTIF(Games!$B:$B,A41))) -> 0.0625 | C41: =((SUMIF(Games!$A:$A,A41,Games!$I:$I))+(SUMIF(Games!$B:$B,A41,Games!$H:$H)))/((COUNTIF(Games!$A:$A,A41))+(COUNTIF(Games!$B:$B,A41))) -> -0.6246296377 | D41: -0.5621296377 | E41: 40 | F41: 45 | G41: =(((SUMIF(Games!A:A,A41,Games!C:C)+(SUMIF(Games!B:B,A41,Games!D:D)))))/(COUNTIF(Games!A:A,A41)+COUNTIF(Games!B:B,A41)) -> 9.5 | H41: =(((SUMIF(Games!A:A,A41,Games!D:D)+(SUMIF(Games!B:B,A41,Games!C:C)))))/(COUNTIF(Games!A:A,A41)+COUNTIF(Games!B:B,A41)) -> 9.625 | I41: 0.4898051895 | J41: =((COUNTIFS(Games!$A:$A,A41,Games!$F:$F,"W"))+(COUNTIFS(Games!$B:$B,A41,Games!$F:$F,"L")))/(COUNTIF(Games!$A:$A,A41)+COUNTIF(Games!$B:$B,A41)) -> 0.625 | K41: =Hobart!$V$17 -> 0.5064239487 | L41: 34 | M41: Northeast
A42: Lehigh | B42: =((SUMIF(Games!$A:$A,A42,Games!$E:$E))+-(SUMIF(Games!$B:$B,A42,Games!$E:$E)))/((COUNTIF(Games!$A:$A,A42))+(COUNTIF(Games!$B:$B,A42))) -> -1.066666667 | C42: =((SUMIF(Games!$A:$A,A42,Games!$I:$I))+(SUMIF(Games!$B:$B,A42,Games!$H:$H)))/((COUNTIF(Games!$A:$A,A42))+(COUNTIF(Games!$B:$B,A42))) -> 0.1633011126 | D42: -0.903365554 | E42: 41 | F42: 34 | G42: =(((SUMIF(Games!A:A,A42,Games!C:C)+(SUMIF(Games!B:B,A42,Games!D:D)))))/(COUNTIF(Games!A:A,A42)+COUNTIF(Games!B:B,A42)) -> 10.26666667 | H42: =(((SUMIF(Games!A:A,A42,Games!D:D)+(SUMIF(Games!B:B,A42,Games!C:C)))))/(COUNTIF(Games!A:A,A42)+COUNTIF(Games!B:B,A42)) -> 10.86666667 | I42: 0.4558134448 | J42: =((COUNTIFS(Games!$A:$A,A42,Games!$F:$F,"W"))+(COUNTIFS(Games!$B:$B,A42,Games!$F:$F,"L")))/(COUNTIF(Games!$A:$A,A42)+COUNTIF(Games!$B:$B,A42)) -> 0.4 | K42: =Lehigh!$V$17 -> 0.3920040725 | L42: 46 | M42: Patriot
A43: High Point | B43: =((SUMIF(Games!$A:$A,A43,Games!$E:$E))+-(SUMIF(Games!$B:$B,A43,Games!$E:$E)))/((COUNTIF(Games!$A:$A,A43))+(COUNTIF(Games!$B:$B,A43))) -> -0.1333333333 | C43: =((SUMIF(Games!$A:$A,A43,Games!$I:$I))+(SUMIF(Games!$B:$B,A43,Games!$H:$H)))/((COUNTIF(Games!$A:$A,A43))+(COUNTIF(Games!$B:$B,A43))) -> -0.9075222427 | D43: -1.040855576 | E43: 42 | F43: 49 | G43: =(((SUMIF(Games!A:A,A43,Games!C:C)+(SUMIF(Games!B:B,A43,Games!D:D)))))/(COUNTIF(Games!A:A,A43)+COUNTIF(Games!B:B,A43)) -> 10.8 | H43: =(((SUMIF(Games!A:A,A43,Games!D:D)+(SUMIF(Games!B:B,A43,Games!C:C)))))/(COUNTIF(Games!A:A,A43)+COUNTIF(Games!B:B,A43)) -> 10.8 | I43: 0.5 | J43: =((COUNTIFS(Games!$A:$A,A43,Games!$F:$F,"W"))+(COUNTIFS(Games!$B:$B,A43,Games!$F:$F,"L")))/(COUNTIF(Games!$A:$A,A43)+COUNTIF(Games!$B:$B,A43)) -> 0.6 | K43: ='High Point'!$V$17 -> 0.4789247057 | L43: 35 | M43: Southern
A44: Robert Morris | B44: =((SUMIF(Games!$A:$A,A44,Games!$E:$E))+-(SUMIF(Games!$B:$B,A44,Games!$E:$E)))/((COUNTIF(Games!$A:$A,A44))+(COUNTIF(Games!$B:$B,A44))) -> -0.06666666667 | C44: =((SUMIF(Games!$A:$A,A44,Games!$I:$I))+(SUMIF(Games!$B:$B,A44,Games!$H:$H)))/((COUNTIF(Games!$A:$A,A44))+(COUNTIF(Games!$B:$B,A44))) -> -1.033188893 | D44: -1.09985556 | E44: 43 | F44: 51 | G44: =(((SUMIF(Games!A:A,A44,Games!C:C)+(SUMIF(Games!B:B,A44,Games!D:D)))))/(COUNTIF(Games!A:A,A44)+COUNTIF(Games!B:B,A44)) -> 11.33333333 | H44: =(((SUMIF(Games!A:A,A44,Games!D:D)+(SUMIF(Games!B:B,A44,Games!C:C)))))/(COUNTIF(Games!A:A,A44)+COUNTIF(Games!B:B,A44)) -> 11.4 | I44: 0.4954253345 | J44: =((COUNTIFS(Games!$A:$A,A44,Games!$F:$F,"W"))+(COUNTIFS(Games!$B:$B,A44,Games!$F:$F,"L")))/(COUNTIF(Games!$A:$A,A44)+COUNTIF(Games!$B:$B,A44)) -> 0.4666666667 | K44: ='Robert Morris'!$V$17 -> 0.4686631713 | L44: 37 | M44: Northeast
A45: Marist | B45: =((SUMIF(Games!$A:$A,A45,Games!$E:$E))+-(SUMIF(Games!$B:$B,A45,Games!$E:$E)))/((COUNTIF(Games!$A:$A,A45))+(COUNTIF(Games!$B:$B,A45))) -> 1 | C45: =((SUMIF(Games!$A:$A,A45,Games!$I:$I))+(SUMIF(Games!$B:$B,A45,Games!$H:$H)))/((COUNTIF(Games!$A:$A,A45))+(COUNTIF(Games!$B:$B,A45))) -> -2.206918481 | D45: -1.206918481 | E45: 44 | F45: 65 | G45: =(((SUMIF(Games!A:A,A45,Games!C:C)+(SUMIF(Games!B:B,A45,Games!D:D)))))/(COUNTIF(Games!A:A,A45)+COUNTIF(Games!B:B,A45)) -> 9.625 | H45: =(((SUMIF(Games!A:A,A45,Games!D:D)+(SUMIF(Games!B:B,A45,Games!C:C)))))/(COUNTIF(Games!A:A,A45)+COUNTIF(Games!B:B,A45)) -> 8.5625 | I45: 0.5902385536 | J45: =((COUNTIFS(Games!$A:$A,A45,Games!$F:$F,"W"))+(COUNTIFS(Games!$B:$B,A45,Games!$F:$F,"L")))/(COUNTIF(Games!$A:$A,A45)+COUNTIF(Games!$B:$B,A45)) -> 0.5625 | K45: =Marist!$V$17 -> 0.5680515185 | L45: 29 | M45: MAAC
A46: Georgetown | B46: =((SUMIF(Games!$A:$A,A46,Games!$E:$E))+-(SUMIF(Games!$B:$B,A46,Games!$E:$E)))/((COUNTIF(Games!$A:$A,A46))+(COUNTIF(Games!$B:$B,A46))) -> -3.285714286 | C46: =((SUMIF(Games!$A:$A,A46,Games!$I:$I))+(SUMIF(Games!$B:$B,A46,Games!$H:$H)))/((COUNTIF(Games!$A:$A,A46))+(COUNTIF(Games!$B:$B,A46))) -> 1.963962781 | D46: -1.321751505 | E46: 45 | F46: 7 | G46: =(((SUMIF(Games!A:A,A46,Games!C:C)+(SUMIF(Games!B:B,A46,Games!D:D)))))/(COUNTIF(Games!A:A,A46)+COUNTIF(Games!B:B,A46)) -> 7.142857143 | H46: =(((SUMIF(Games!A:A,A46,Games!D:D)+(SUMIF(Games!B:B,A46,Games!C:C)))))/(COUNTIF(Games!A:A,A46)+COUNTIF(Games!B:B,A46)) -> 11.07142857 | I46: 0.2030474599 | J46: =((COUNTIFS(Games!$A:$A,A46,Games!$F:$F,"W"))+(COUNTIFS(Games!$B:$B,A46,Games!$F:$F,"L")))/(COUNTIF(Games!$A:$A,A46)+COUNTIF(Games!$B:$B,A46)) -> 0.1428571429 | K46: =Georgetown!$V$17 -> 0.2613972817 | L46: 59 | M46: Big East
A47: Holy Cross | B47: =((SUMIF(Games!$A:$A,A47,Games!$E:$E))+-(SUMIF(Games!$B:$B,A47,Games!$E:$E)))/((COUNTIF(Games!$A:$A,A47))+(COUNTIF(Games!$B:$B,A47))) -> -2.4 | C47: =((SUMIF(Games!$A:$A,A47,Games!$I:$I))+(SUMIF(Games!$B:$B,A47,Games!$H:$H)))/((COUNTIF(Games!$A:$A,A47))+(COUNTIF(Games!$B:$B,A47))) -> 0.7616856262 | D47: -1.638314374 | E47: 46 | F47: 26 | G47: =(((SUMIF(Games!A:A,A47,Games!C:C)+(SUMIF(Games!B:B,A47,Games!D:D)))))/(COUNTIF(Games!A:A,A47)+COUNTIF(Games!B:B,A47)) -> 8.933333333 | H47: =(((SUMIF(Games!A:A,A47,Games!D:D)+(SUMIF(Games!B:B,A47,Games!C:C)))))/(COUNTIF(Games!A:A,A47)+COUNTIF(Games!B:B,A47)) -> 11.53333333 | I47: 0.3106655578 | J47: =((COUNTIFS(Games!$A:$A,A47,Games!$F:$F,"W"))+(COUNTIFS(Games!$B:$B,A47,Games!$F:$F,"L")))/(COUNTIF(Games!$A:$A,A47)+COUNTIF(Games!$B:$B,A47)) -> 0.2666666667 | K47: ='Holy Cross'!$V$17 -> 0.3040970713 | L47: 51 | M47: Patriot
A48: Bellarmine | B48: =((SUMIF(Games!$A:$A,A48,Games!$E:$E))+-(SUMIF(Games!$B:$B,A48,Games!$E:$E)))/((COUNTIF(Games!$A:$A,A48))+(COUNTIF(Games!$B:$B,A48))) -> -0.5333333333 | C48: =((SUMIF(Games!$A:$A,A48,Games!$I:$I))+(SUMIF(Games!$B:$B,A48,Games!$H:$H)))/((COUNTIF(Games!$A:$A,A48))+(COUNTIF(Games!$B:$B,A48))) -> -1.119609397 | D48: -1.65294273 | E48: 47 | F48: 53 | G48: =(((SUMIF(Games!A:A,A48,Games!C:C)+(SUMIF(Games!B:B,A48,Games!D:D)))))/(COUNTIF(Games!A:A,A48)+COUNTIF(Games!B:B,A48)) -> 8.6 | H48: =(((SUMIF(Games!A:A,A48,Games!D:D)+(SUMIF(Games!B:B,A48,Games!C:C)))))/(COUNTIF(Games!A:A,A48)+COUNTIF(Games!B:B,A48)) -> 9.133333333 | I48: 0.4532058951 | J48: =((COUNTIFS(Games!$A:$A,A48,Games!$F:$F,"W"))+(COUNTIFS(Games!$B:$B,A48,Games!$F:$F,"L")))/(COUNTIF(Games!$A:$A,A48)+COUNTIF(Games!$B:$B,A48)) -> 0.4 | K48: =Bellarmine!$V$17 -> 0.4422024839 | L48: 40 | M48: Southern
A49: Michigan | B49: =((SUMIF(Games!$A:$A,A49,Games!$E:$E))+-(SUMIF(Games!$B:$B,A49,Games!$E:$E)))/((COUNTIF(Games!$A:$A,A49))+(COUNTIF(Games!$B:$B,A49))) -> -3.076923077 | C49: =((SUMIF(Games!$A:$A,A49,Games!$I:$I))+(SUMIF(Games!$B:$B,A49,Games!$H:$H)))/((COUNTIF(Games!$A:$A,A49))+(COUNTIF(Games!$B:$B,A49))) -> 1.39018522 | D49: -1.686737857 | E49: 48 | F49: 17 | G49: =(((SUMIF(Games!A:A,A49,Games!C:C)+(SUMIF(Games!B:B,A49,Games!D:D)))))/(COUNTIF(Games!A:A,A49)+COUNTIF(Games!B:B,A49)) -> 9.384615385 | H49: =(((SUMIF(Games!A:A,A49,Games!D:D)+(SUMIF(Games!B:B,A49,Games!C:C)))))/(COUNTIF(Games!A:A,A49)+COUNTIF(Games!B:B,A49)) -> 12.76923077 | I49: 0.2767067941 | J49: =((COUNTIFS(Games!$A:$A,A49,Games!$F:$F,"W"))+(COUNTIFS(Games!$B:$B,A49,Games!$F:$F,"L")))/(COUNTIF(Games!$A:$A,A49)+COUNTIF(Games!$B:$B,A49)) -> 0.2307692308 | K49: =Michigan!$V$17 -> 0.2834264723 | L49: 56 | M49: Big Ten
A50: Colgate | B50: =((SUMIF(Games!$A:$A,A50,Games!$E:$E))+-(SUMIF(Games!$B:$B,A50,Games!$E:$E)))/((COUNTIF(Games!$A:$A,A50))+(COUNTIF(Games!$B:$B,A50))) -> -2.571428571 | C50: =((SUMIF(Games!$A:$A,A50,Games!$I:$I))+(SUMIF(Games!$B:$B,A50,Games!$H:$H)))/((COUNTIF(Games!$A:$A,A50))+(COUNTIF(Games!$B:$B,A50))) -> 0.4517127902 | D50: -2.119715781 | E50: 49 | F50: 29 | G50: =(((SUMIF(Games!A:A,A50,Games!C:C)+(SUMIF(Games!B:B,A50,Games!D:D)))))/(COUNTIF(Games!A:A,A50)+COUNTIF(Games!B:B,A50)) -> 7.642857143 | H50: =(((SUMIF(Games!A:A,A50,Games!D:D)+(SUMIF(Games!B:B,A50,Games!C:C)))))/(COUNTIF(Games!A:A,A50)+COUNTIF(Games!B:B,A50)) -> 10.57142857 | I50: 0.2665737062 | J50: =((COUNTIFS(Games!$A:$A,A50,Games!$F:$F,"W"))+(COUNTIFS(Games!$B:$B,A50,Games!$F:$F,"L")))/(COUNTIF(Games!$A:$A,A50)+COUNTIF(Games!$B:$B,A50)) -> 0.2857142857 | K50: =Colgate!$V$17 -> 0.2856122388 | L50: 55 | M50: Patriot
A51: Mt. St. Marys | B51: =((SUMIF(Games!$A:$A,A51,Games!$E:$E))+-(SUMIF(Games!$B:$B,A51,Games!$E:$E)))/((COUNTIF(Games!$A:$A,A51))+(COUNTIF(Games!$B:$B,A51))) -> -0.7142857143 | C51: =((SUMIF(Games!$A:$A,A51,Games!$I:$I))+(SUMIF(Games!$B:$B,A51,Games!$H:$H)))/((COUNTIF(Games!$A:$A,A51))+(COUNTIF(Games!$B:$B,A51))) -> -1.535005396 | D51: -2.24929111 | E51: 50 | F51: 54 | G51: =(((SUMIF(Games!A:A,A51,Games!C:C)+(SUMIF(Games!B:B,A51,Games!D:D)))))/(COUNTIF(Games!A:A,A51)+COUNTIF(Games!B:B,A51)) -> 9.571428571 | H51: =(((SUMIF(Games!A:A,A51,Games!D:D)+(SUMIF(Games!B:B,A51,Games!C:C)))))/(COUNTIF(Games!A:A,A51)+COUNTIF(Games!B:B,A51)) -> 10.14285714 | I51: 0.4548929096 | J51: =((COUNTIFS(Games!$A:$A,A51,Games!$F:$F,"W"))+(COUNTIFS(Games!$B:$B,A51,Games!$F:$F,"L")))/(COUNTIF(Games!$A:$A,A51)+COUNTIF(Games!$B:$B,A51)) -> 0.4285714286 | K51: ='Mt. St. Marys'!$V$17 -> 0.4230933647 | L51: 44 | M51: Northeast
A52: Delaware | B52: =((SUMIF(Games!$A:$A,A52,Games!$E:$E))+-(SUMIF(Games!$B:$B,A52,Games!$E:$E)))/((COUNTIF(Games!$A:$A,A52))+(COUNTIF(Games!$B:$B,A52))) -> -2.266666667 | C52: =((SUMIF(Games!$A:$A,A52,Games!$I:$I))+(SUMIF(Games!$B:$B,A52,Games!$H:$H)))/((COUNTIF(Games!$A:$A,A52))+(COUNTIF(Games!$B:$B,A52))) -> -0.0691176162 | D52: -2.335784283 | E52: 51 | F52: 42 | G52: =(((SUMIF(Games!A:A,A52,Games!C:C)+(SUMIF(Games!B:B,A52,Games!D:D)))))/(COUNTIF(Games!A:A,A52)+COUNTIF(Games!B:B,A52)) -> 8.2 | H52: =(((SUMIF(Games!A:A,A52,Games!D:D)+(SUMIF(Games!B:B,A52,Games!C:C)))))/(COUNTIF(Games!A:A,A52)+COUNTIF(Games!B:B,A52)) -> 10.46666667 | I52: 0.3183268243 | J52: =((COUNTIFS(Games!$A:$A,A52,Games!$F:$F,"W"))+(COUNTIFS(Games!$B:$B,A52,Games!$F:$F,"L")))/(COUNTIF(Games!$A:$A,A52)+COUNTIF(Games!$B:$B,A52)) -> 0.3333333333 | K52: =Delaware!$V$17 -> 0.2990090574 | L52: 53 | M52: CAA
A53: UMBC | B53: =((SUMIF(Games!$A:$A,A53,Games!$E:$E))+-(SUMIF(Games!$B:$B,A53,Games!$E:$E)))/((COUNTIF(Games!$A:$A,A53))+(COUNTIF(Games!$B:$B,A53))) -> -2.571428571 | C53: =((SUMIF(Games!$A:$A,A53,Games!$I:$I))+(SUMIF(Games!$B:$B,A53,Games!$H:$H)))/((COUNTIF(Games!$A:$A,A53))+(COUNTIF(Games!$B:$B,A53))) -> 0.1469145945 | D53: -2.424513977 | E53: 52 | F53: 35 | G53: =(((SUMIF(Games!A:A,A53,Games!C:C)+(SUMIF(Games!B:B,A53,Games!D:D)))))/(COUNTIF(Games!A:A,A53)+COUNTIF(Games!B:B,A53)) -> 9 | H53: =(((SUMIF(Games!A:A,A53,Games!D:D)+(SUMIF(Games!B:B,A53,Games!C:C)))))/(COUNTIF(Games!A:A,A53)+COUNTIF(Games!B:B,A53)) -> 11.71428571 | I53: 0.3052578999 | J53: =((COUNTIFS(Games!$A:$A,A53,Games!$F:$F,"W"))+(COUNTIFS(Games!$B:$B,A53,Games!$F:$F,"L")))/(COUNTIF(Games!$A:$A,A53)+COUNTIF(Games!$B:$B,A53)) -> 0.2857142857 | K53: =UMBC!$V$17 -> 0.2791526696 | L53: 57 | M53: America East
A54: Monmouth | B54: =((SUMIF(Games!$A:$A,A54,Games!$E:$E))+-(SUMIF(Games!$B:$B,A54,Games!$E:$E)))/((COUNTIF(Games!$A:$A,A54))+(COUNTIF(Games!$B:$B,A54))) -> 1.071428571 | C54: =((SUMIF(Games!$A:$A,A54,Games!$I:$I))+(SUMIF(Games!$B:$B,A54,Games!$H:$H)))/((COUNTIF(Games!$A:$A,A54))+(COUNTIF(Games!$B:$B,A54))) -> -3.61249089 | D54: -2.541062319 | E54: 53 | F54: 68 | G54: =(((SUMIF(Games!A:A,A54,Games!C:C)+(SUMIF(Games!B:B,A54,Games!D:D)))))/(COUNTIF(Games!A:A,A54)+COUNTIF(Games!B:B,A54)) -> 9.642857143 | H54: =(((SUMIF(Games!A:A,A54,Games!D:D)+(SUMIF(Games!B:B,A54,Games!C:C)))))/(COUNTIF(Games!A:A,A54)+COUNTIF(Games!B:B,A54)) -> 8.428571429 | I54: 0.6034644128 | J54: =((COUNTIFS(Games!$A:$A,A54,Games!$F:$F,"W"))+(COUNTIFS(Games!$B:$B,A54,Games!$F:$F,"L")))/(COUNTIF(Games!$A:$A,A54)+COUNTIF(Games!$B:$B,A54)) -> 0.5 | K54: =Monmouth!$V$17 -> 0.5932933017 | L54: 26 | M54: MAAC
A55: Binghamton | B55: =((SUMIF(Games!$A:$A,A55,Games!$E:$E))+-(SUMIF(Games!$B:$B,A55,Games!$E:$E)))/((COUNTIF(Games!$A:$A,A55))+(COUNTIF(Games!$B:$B,A55))) -> -2.714285714 | C55: =((SUMIF(Games!$A:$A,A55,Games!$I:$I))+(SUMIF(Games!$B:$B,A55,Games!$H:$H)))/((COUNTIF(Games!$A:$A,A55))+(COUNTIF(Games!$B:$B,A55))) -> -0.03148893087 | D55: -2.745774645 | E55: 54 | F55: 40 | G55: =(((SUMIF(Games!A:A,A55,Games!C:C)+(SUMIF(Games!B:B,A55,Games!D:D)))))/(COUNTIF(Games!A:A,A55)+COUNTIF(Games!B:B,A55)) -> 9.428571429 | H55: =(((SUMIF(Games!A:A,A55,Games!D:D)+(SUMIF(Games!B:B,A55,Games!C:C)))))/(COUNTIF(Games!A:A,A55)+COUNTIF(Games!B:B,A55)) -> 12.07142857 | I55: 0.3162753697 | J55: =((COUNTIFS(Games!$A:$A,A55,Games!$F:$F,"W"))+(COUNTIFS(Games!$B:$B,A55,Games!$F:$F,"L")))/(COUNTIF(Games!$A:$A,A55)+COUNTIF(Games!$B:$B,A55)) -> 0.2857142857 | K55: =Binghamton!$V$17 -> 0.2920245707 | L55: 54 | M55: America East
A56: Mercer | B56: =((SUMIF(Games!$A:$A,A56,Games!$E:$E))+-(SUMIF(Games!$B:$B,A56,Games!$E:$E)))/((COUNTIF(Games!$A:$A,A56))+(COUNTIF(Games!$B:$B,A56))) -> -1.769230769 | C56: =((SUMIF(Games!$A:$A,A56,Games!$I:$I))+(SUMIF(Games!$B:$B,A56,Games!$H:$H)))/((COUNTIF(Games!$A:$A,A56))+(COUNTIF(Games!$B:$B,A56))) -> -1.698441826 | D56: -3.467672595 | E56: 55 | F56: 57 | G56: =(((SUMIF(Games!A:A,A56,Games!C:C)+(SUMIF(Games!B:B,A56,Games!D:D)))))/(COUNTIF(Games!A:A,A56)+COUNTIF(Games!B:B,A56)) -> 9.230769231 | H56: =(((SUMIF(Games!A:A,A56,Games!D:D)+(SUMIF(Games!B:B,A56,Games!C:C)))))/(COUNTIF(Games!A:A,A56)+COUNTIF(Games!B:B,A56)) -> 10.92307692 | I56: 0.3716356622 | J56: =((COUNTIFS(Games!$A:$A,A56,Games!$F:$F,"W"))+(COUNTIFS(Games!$B:$B,A56,Games!$F:$F,"L")))/(COUNTIF(Games!$A:$A,A56)+COUNTIF(Games!$B:$B,A56)) -> 0.3846153846 | K56: =Mercer!$V$17 -> 0.3763539612 | L56: 47 | M56: Southern
A57: St. Johns | B57: =((SUMIF(Games!$A:$A,A57,Games!$E:$E))+-(SUMIF(Games!$B:$B,A57,Games!$E:$E)))/((COUNTIF(Games!$A:$A,A57))+(COUNTIF(Games!$B:$B,A57))) -> -5.214285714 | C57: =((SUMIF(Games!$A:$A,A57,Games!$I:$I))+(SUMIF(Games!$B:$B,A57,Games!$H:$H)))/((COUNTIF(Games!$A:$A,A57))+(COUNTIF(Games!$B:$B,A57))) -> 1.626649127 | D57: -3.587636587 | E57: 56 | F57: 13 | G57: =(((SUMIF(Games!A:A,A57,Games!C:C)+(SUMIF(Games!B:B,A57,Games!D:D)))))/(COUNTIF(Games!A:A,A57)+COUNTIF(Games!B:B,A57)) -> 8.142857143 | H57: =(((SUMIF(Games!A:A,A57,Games!D:D)+(SUMIF(Games!B:B,A57,Games!C:C)))))/(COUNTIF(Games!A:A,A57)+COUNTIF(Games!B:B,A57)) -> 13.42857143 | I57: 0.1735376527 | J57: =((COUNTIFS(Games!$A:$A,A57,Games!$F:$F,"W"))+(COUNTIFS(Games!$B:$B,A57,Games!$F:$F,"L")))/(COUNTIF(Games!$A:$A,A57)+COUNTIF(Games!$B:$B,A57)) -> 0.1428571429 | K57: ='St. Johns'!$V$17 -> 0.1738086224 | L57: 66 | M57: Big East
A58: Canisius | B58: =((SUMIF(Games!$A:$A,A58,Games!$E:$E))+-(SUMIF(Games!$B:$B,A58,Games!$E:$E)))/((COUNTIF(Games!$A:$A,A58))+(COUNTIF(Games!$B:$B,A58))) -> -1.75 | C58: =((SUMIF(Games!$A:$A,A58,Games!$I:$I))+(SUMIF(Games!$B:$B,A58,Games!$H:$H)))/((COUNTIF(Games!$A:$A,A58))+(COUNTIF(Games!$B:$B,A58))) -> -1.992755824 | D58: -3.742755824 | E58: 57 | F58: 61 | G58: =(((SUMIF(Games!A:A,A58,Games!C:C)+(SUMIF(Games!B:B,A58,Games!D:D)))))/(COUNTIF(Games!A:A,A58)+COUNTIF(Games!B:B,A58)) -> 9.166666667 | H58: =(((SUMIF(Games!A:A,A58,Games!D:D)+(SUMIF(Games!B:B,A58,Games!C:C)))))/(COUNTIF(Games!A:A,A58)+COUNTIF(Games!B:B,A58)) -> 10.91666667 | I58: 0.3669980641 | J58: =((COUNTIFS(Games!$A:$A,A58,Games!$F:$F,"W"))+(COUNTIFS(Games!$B:$B,A58,Games!$F:$F,"L")))/(COUNTIF(Games!$A:$A,A58)+COUNTIF(Games!$B:$B,A58)) -> 0.3333333333 | K58: =Canisius!$V$17 -> 0.3465965079 | L58: 50 | M58: MAAC
A59: Sacred Heart | B59: =((SUMIF(Games!$A:$A,A59,Games!$E:$E))+-(SUMIF(Games!$B:$B,A59,Games!$E:$E)))/((COUNTIF(Games!$A:$A,A59))+(COUNTIF(Games!$B:$B,A59))) -> -4.3125 | C59: =((SUMIF(Games!$A:$A,A59,Games!$I:$I))+(SUMIF(Games!$B:$B,A59,Games!$H:$H)))/((COUNTIF(Games!$A:$A,A59))+(COUNTIF(Games!$B:$B,A59))) -> 0.169465112 | D59: -4.143034888 | E59: 58 | F59: 33 | G59: =(((SUMIF(Games!A:A,A59,Games!C:C)+(SUMIF(Games!B:B,A59,Games!D:D)))))/(COUNTIF(Games!A:A,A59)+COUNTIF(Games!B:B,A59)) -> 7.8125 | H59: =(((SUMIF(Games!A:A,A59,Games!D:D)+(SUMIF(Games!B:B,A59,Games!C:C)))))/(COUNTIF(Games!A:A,A59)+COUNTIF(Games!B:B,A59)) -> 12.5625 | I59: 0.1851296768 | J59: =((COUNTIFS(Games!$A:$A,A59,Games!$F:$F,"W"))+(COUNTIFS(Games!$B:$B,A59,Games!$F:$F,"L")))/(COUNTIF(Games!$A:$A,A59)+COUNTIF(Games!$B:$B,A59)) -> 0.125 | K59: ='Sacred Heart'!$V$17 -> 0.209167249 | L59: 64 | M59: Northeast
A60: Furman | B60: =((SUMIF(Games!$A:$A,A60,Games!$E:$E))+-(SUMIF(Games!$B:$B,A60,Games!$E:$E)))/((COUNTIF(Games!$A:$A,A60))+(COUNTIF(Games!$B:$B,A60))) -> -3.538461538 | C60: =((SUMIF(Games!$A:$A,A60,Games!$I:$I))+(SUMIF(Games!$B:$B,A60,Games!$H:$H)))/((COUNTIF(Games!$A:$A,A60))+(COUNTIF(Games!$B:$B,A60))) -> -0.8721656628 | D60: -4.410627201 | E60: 59 | F60: 47 | G60: =(((SUMIF(Games!A:A,A60,Games!C:C)+(SUMIF(Games!B:B,A60,Games!D:D)))))/(COUNTIF(Games!A:A,A60)+COUNTIF(Games!B:B,A60)) -> 8 | H60: =(((SUMIF(Games!A:A,A60,Games!D:D)+(SUMIF(Games!B:B,A60,Games!C:C)))))/(COUNTIF(Games!A:A,A60)+COUNTIF(Games!B:B,A60)) -> 11.30769231 | I60: 0.2535722442 | J60: =((COUNTIFS(Games!$A:$A,A60,Games!$F:$F,"W"))+(COUNTIFS(Games!$B:$B,A60,Games!$F:$F,"L")))/(COUNTIF(Games!$A:$A,A60)+COUNTIF(Games!$B:$B,A60)) -> 0.1538461538 | K60: =Furman!$V$17 -> 0.235401137 | L60: 62 | M60: Southern
A61: Detroit | B61: =((SUMIF(Games!$A:$A,A61,Games!$E:$E))+-(SUMIF(Games!$B:$B,A61,Games!$E:$E)))/((COUNTIF(Games!$A:$A,A61))+(COUNTIF(Games!$B:$B,A61))) -> -3.583333333 | C61: =((SUMIF(Games!$A:$A,A61,Games!$I:$I))+(SUMIF(Games!$B:$B,A61,Games!$H:$H)))/((COUNTIF(Games!$A:$A,A61))+(COUNTIF(Games!$B:$B,A61))) -> -1.007939653 | D61: -4.591272987 | E61: 60 | F61: 50 | G61: =(((SUMIF(Games!A:A,A61,Games!C:C)+(SUMIF(Games!B:B,A61,Games!D:D)))))/(COUNTIF(Games!A:A,A61)+COUNTIF(Games!B:B,A61)) -> 6.083333333 | H61: =(((SUMIF(Games!A:A,A61,Games!D:D)+(SUMIF(Games!B:B,A61,Games!C:C)))))/(COUNTIF(Games!A:A,A61)+COUNTIF(Games!B:B,A61)) -> 9.833333333 | I61: 0.1826788257 | J61: =((COUNTIFS(Games!$A:$A,A61,Games!$F:$F,"W"))+(COUNTIFS(Games!$B:$B,A61,Games!$F:$F,"L")))/(COUNTIF(Games!$A:$A,A61)+COUNTIF(Games!$B:$B,A61)) -> 0.1666666667 | K61: =Detroit!$V$17 -> 0.2268881095 | L61: 63 | M61: MAAC
A62: Siena | B62: =((SUMIF(Games!$A:$A,A62,Games!$E:$E))+-(SUMIF(Games!$B:$B,A62,Games!$E:$E)))/((COUNTIF(Games!$A:$A,A62))+(COUNTIF(Games!$B:$B,A62))) -> -3 | C62: =((SUMIF(Games!$A:$A,A62,Games!$I:$I))+(SUMIF(Games!$B:$B,A62,Games!$H:$H)))/((COUNTIF(Games!$A:$A,A62))+(COUNTIF(Games!$B:$B,A62))) -> -1.657485177 | D62: -4.657485177 | E62: 61 | F62: 55 | G62: =(((SUMIF(Games!A:A,A62,Games!C:C)+(SUMIF(Games!B:B,A62,Games!D:D)))))/(COUNTIF(Games!A:A,A62)+COUNTIF(Games!B:B,A62)) -> 8.769230769 | H62: =(((SUMIF(Games!A:A,A62,Games!D:D)+(SUMIF(Games!B:B,A62,Games!C:C)))))/(COUNTIF(Games!A:A,A62)+COUNTIF(Games!B:B,A62)) -> 12.07692308 | I62: 0.2692270461 | J62: =((COUNTIFS(Games!$A:$A,A62,Games!$F:$F,"W"))+(COUNTIFS(Games!$B:$B,A62,Games!$F:$F,"L")))/(COUNTIF(Games!$A:$A,A62)+COUNTIF(Games!$B:$B,A62)) -> 0.2307692308 | K62: =Siena!$V$17 -> 0.2705311428 | L62: 58 | M62: MAAC
A63: Lafayette | B63: =((SUMIF(Games!$A:$A,A63,Games!$E:$E))+-(SUMIF(Games!$B:$B,A63,Games!$E:$E)))/((COUNTIF(Games!$A:$A,A63))+(COUNTIF(Games!$B:$B,A63))) -> -3.785714286 | C63: =((SUMIF(Games!$A:$A,A63,Games!$I:$I))+(SUMIF(Games!$B:$B,A63,Games!$H:$H)))/((COUNTIF(Games!$A:$A,A63))+(COUNTIF(Games!$B:$B,A63))) -> -1.044680116 | D63: -4.830394402 | E63: 62 | F63: 52 | G63: =(((SUMIF(Games!A:A,A63,Games!C:C)+(SUMIF(Games!B:B,A63,Games!D:D)))))/(COUNTIF(Games!A:A,A63)+COUNTIF(Games!B:B,A63)) -> 7.714285714 | H63: =(((SUMIF(Games!A:A,A63,Games!D:D)+(SUMIF(Games!B:B,A63,Games!C:C)))))/(COUNTIF(Games!A:A,A63)+COUNTIF(Games!B:B,A63)) -> 11.5 | I63: 0.2234397914 | J63: =((COUNTIFS(Games!$A:$A,A63,Games!$F:$F,"W"))+(COUNTIFS(Games!$B:$B,A63,Games!$F:$F,"L")))/(COUNTIF(Games!$A:$A,A63)+COUNTIF(Games!$B:$B,A63)) -> 0.2142857143 | K63: =Lafayette!$V$17 -> 0.2585339608 | L63: 60 | M63: Patriot
A64: Lowell | B64: =((SUMIF(Games!$A:$A,A64,Games!$E:$E))+-(SUMIF(Games!$B:$B,A64,Games!$E:$E)))/((COUNTIF(Games!$A:$A,A64))+(COUNTIF(Games!$B:$B,A64))) -> -3.0625 | C64: =((SUMIF(Games!$A:$A,A64,Games!$I:$I))+(SUMIF(Games!$B:$B,A64,Games!$H:$H)))/((COUNTIF(Games!$A:$A,A64))+(COUNTIF(Games!$B:$B,A64))) -> -1.793040611 | D64: -4.855540611 | E64: 63 | F64: 59 | G64: =(((SUMIF(Games!A:A,A64,Games!C:C)+(SUMIF(Games!B:B,A64,Games!D:D)))))/(COUNTIF(Games!A:A,A64)+COUNTIF(Games!B:B,A64)) -> 8.3125 | H64: =(((SUMIF(Games!A:A,A64,Games!D:D)+(SUMIF(Games!B:B,A64,Games!C:C)))))/(COUNTIF(Games!A:A,A64)+COUNTIF(Games!B:B,A64)) -> 11.4375 | I64: 0.2697862114 | J64: =((COUNTIFS(Games!$A:$A,A64,Games!$F:$F,"W"))+(COUNTIFS(Games!$B:$B,A64,Games!$F:$F,"L")))/(COUNTIF(Games!$A:$A,A64)+COUNTIF(Games!$B:$B,A64)) -> 0.25 | K64: =Lowell!$V$17 -> 0.3014900607 | L64: 52 | M64: America East
A65: Jacksonville | B65: =((SUMIF(Games!$A:$A,A65,Games!$E:$E))+-(SUMIF(Games!$B:$B,A65,Games!$E:$E)))/((COUNTIF(Games!$A:$A,A65))+(COUNTIF(Games!$B:$B,A65))) -> -3.076923077 | C65: =((SUMIF(Games!$A:$A,A65,Games!$I:$I))+(SUMIF(Games!$B:$B,A65,Games!$H:$H)))/((COUNTIF(Games!$A:$A,A65))+(COUNTIF(Games!$B:$B,A65))) -> -2.057316383 | D65: -5.13423946 | E65: 64 | F65: 63 | G65: =(((SUMIF(Games!A:A,A65,Games!C:C)+(SUMIF(Games!B:B,A65,Games!D:D)))))/(COUNTIF(Games!A:A,A65)+COUNTIF(Games!B:B,A65)) -> 8.230769231 | H65: =(((SUMIF(Games!A:A,A65,Games!D:D)+(SUMIF(Games!B:B,A65,Games!C:C)))))/(COUNTIF(Games!A:A,A65)+COUNTIF(Games!B:B,A65)) -> 11.38461538 | I65: 0.2665737062 | J65: =((COUNTIFS(Games!$A:$A,A65,Games!$F:$F,"W"))+(COUNTIFS(Games!$B:$B,A65,Games!$F:$F,"L")))/(COUNTIF(Games!$A:$A,A65)+COUNTIF(Games!$B:$B,A65)) -> 0.2307692308 | K65: =Jacksonville!$V$17 -> 0.2520114171 | L65: 61 | M65: Southern
A66: Dartmouth | B66: =((SUMIF(Games!$A:$A,A66,Games!$E:$E))+-(SUMIF(Games!$B:$B,A66,Games!$E:$E)))/((COUNTIF(Games!$A:$A,A66))+(COUNTIF(Games!$B:$B,A66))) -> -5.642857143 | C66: =((SUMIF(Games!$A:$A,A66,Games!$I:$I))+(SUMIF(Games!$B:$B,A66,Games!$H:$H)))/((COUNTIF(Games!$A:$A,A66))+(COUNTIF(Games!$B:$B,A66))) -> 0.02019779796 | D66: =B66+C66 -> -5.622659345 | E66: =RANK(D66,$D$2:$D$71) -> 65 | F66: =RANK(C66,$C$2:$C$71,0) -> 39 | G66: =(((SUMIF(Games!A:A,A66,Games!C:C)+(SUMIF(Games!B:B,A66,Games!D:D)))))/(COUNTIF(Games!A:A,A66)+COUNTIF(Games!B:B,A66)) -> 6.357142857 | H66: =(((SUMIF(Games!A:A,A66,Games!D:D)+(SUMIF(Games!B:B,A66,Games!C:C)))))/(COUNTIF(Games!A:A,A66)+COUNTIF(Games!B:B,A66)) -> 12.57142857 | I66: =(G66^3.12)/((G66^3.12)+(H66^3.12)) -> 0.1064654397 | J66: =((COUNTIFS(Games!$A:$A,A66,Games!$F:$F,"W"))+(COUNTIFS(Games!$B:$B,A66,Games!$F:$F,"L")))/(COUNTIF(Games!$A:$A,A66)+COUNTIF(Games!$B:$B,A66)) -> 0.07142857143 | K66: =Dartmouth!$V$17 -> 0.1688206369 | L66: =RANK(K66,$K$2:$K$71,0) -> 67 | M66: Ivy
A67: Wagner | B67: =((SUMIF(Games!$A:$A,A67,Games!$E:$E))+-(SUMIF(Games!$B:$B,A67,Games!$E:$E)))/((COUNTIF(Games!$A:$A,A67))+(COUNTIF(Games!$B:$B,A67))) -> -1.6 | C67: =((SUMIF(Games!$A:$A,A67,Games!$I:$I))+(SUMIF(Games!$B:$B,A67,Games!$H:$H)))/((COUNTIF(Games!$A:$A,A67))+(COUNTIF(Games!$B:$B,A67))) -> -4.090809046 | D67: -5.690809046 | E67: 66 | F67: 69 | G67: =(((SUMIF(Games!A:A,A67,Games!C:C)+(SUMIF(Games!B:B,A67,Games!D:D)))))/(COUNTIF(Games!A:A,A67)+COUNTIF(Games!B:B,A67)) -> 8.8 | H67: =(((SUMIF(Games!A:A,A67,Games!D:D)+(SUMIF(Games!B:B,A67,Games!C:C)))))/(COUNTIF(Games!A:A,A67)+COUNTIF(Games!B:B,A67)) -> 10.33333333 | I67: 0.3772717762 | J67: =((COUNTIFS(Games!$A:$A,A67,Games!$F:$F,"W"))+(COUNTIFS(Games!$B:$B,A67,Games!$F:$F,"L")))/(COUNTIF(Games!$A:$A,A67)+COUNTIF(Games!$B:$B,A67)) -> 0.4 | K67: =Wagner!$V$17 -> 0.3677521967 | L67: 48 | M67: Northeast
A68: Manhattan | B68: =((SUMIF(Games!$A:$A,A68,Games!$E:$E))+-(SUMIF(Games!$B:$B,A68,Games!$E:$E)))/((COUNTIF(Games!$A:$A,A68))+(COUNTIF(Games!$B:$B,A68))) -> -4.466666667 | C68: =((SUMIF(Games!$A:$A,A68,Games!$I:$I))+(SUMIF(Games!$B:$B,A68,Games!$H:$H)))/((COUNTIF(Games!$A:$A,A68))+(COUNTIF(Games!$B:$B,A68))) -> -2.033870796 | D68: -6.500537463 | E68: 67 | F68: 62 | G68: =(((SUMIF(Games!A:A,A68,Games!C:C)+(SUMIF(Games!B:B,A68,Games!D:D)))))/(COUNTIF(Games!A:A,A68)+COUNTIF(Games!B:B,A68)) -> 6.866666667 | H68: =(((SUMIF(Games!A:A,A68,Games!D:D)+(SUMIF(Games!B:B,A68,Games!C:C)))))/(COUNTIF(Games!A:A,A68)+COUNTIF(Games!B:B,A68)) -> 12.26666667 | I68: 0.1406085033 | J68: =((COUNTIFS(Games!$A:$A,A68,Games!$F:$F,"W"))+(COUNTIFS(Games!$B:$B,A68,Games!$F:$F,"L")))/(COUNTIF(Games!$A:$A,A68)+COUNTIF(Games!$B:$B,A68)) -> 0.2 | K68: =Manhattan!$V$17 -> 0.1890402493 | L68: 65 | M68: MAAC
A69: NJIT | B69: =((SUMIF(Games!$A:$A,A69,Games!$E:$E))+-(SUMIF(Games!$B:$B,A69,Games!$E:$E)))/((COUNTIF(Games!$A:$A,A69))+(COUNTIF(Games!$B:$B,A69))) -> -6.2 | C69: =((SUMIF(Games!$A:$A,A69,Games!$I:$I))+(SUMIF(Games!$B:$B,A69,Games!$H:$H)))/((COUNTIF(Games!$A:$A,A69))+(COUNTIF(Games!$B:$B,A69))) -> -2.361709574 | D69: -8.561709574 | E69: 68 | F69: 66 | G69: =(((SUMIF(Games!A:A,A69,Games!C:C)+(SUMIF(Games!B:B,A69,Games!D:D)))))/(COUNTIF(Games!A:A,A69)+COUNTIF(Games!B:B,A69)) -> 5.866666667 | H69: =(((SUMIF(Games!A:A,A69,Games!D:D)+(SUMIF(Games!B:B,A69,Games!C:C)))))/(COUNTIF(Games!A:A,A69)+COUNTIF(Games!B:B,A69)) -> 13.8 | I69: 0.06484019203 | J69: =((COUNTIFS(Games!$A:$A,A69,Games!$F:$F,"W"))+(COUNTIFS(Games!$B:$B,A69,Games!$F:$F,"L")))/(COUNTIF(Games!$A:$A,A69)+COUNTIF(Games!$B:$B,A69)) -> 0.06666666667 | K69: =NJIT!$V$17 -> 0.09918213945 | L69: 69 | M69: Independent
A70: VMI | B70: =((SUMIF(Games!$A:$A,A70,Games!$E:$E))+-(SUMIF(Games!$B:$B,A70,Games!$E:$E)))/((COUNTIF(Games!$A:$A,A70))+(COUNTIF(Games!$B:$B,A70))) -> -6.875 | C70: =((SUMIF(Games!$A:$A,A70,Games!$I:$I))+(SUMIF(Games!$B:$B,A70,Games!$H:$H)))/((COUNTIF(Games!$A:$A,A70))+(COUNTIF(Games!$B:$B,A70))) -> -2.895431817 | D70: -9.770431817 | E70: 69 | F70: 67 | G70: =(((SUMIF(Games!A:A,A70,Games!C:C)+(SUMIF(Games!B:B,A70,Games!D:D)))))/(COUNTIF(Games!A:A,A70)+COUNTIF(Games!B:B,A70)) -> 6 | H70: =(((SUMIF(Games!A:A,A70,Games!D:D)+(SUMIF(Games!B:B,A70,Games!C:C)))))/(COUNTIF(Games!A:A,A70)+COUNTIF(Games!B:B,A70)) -> 13.9375 | I70: 0.06725693949 | J70: =((COUNTIFS(Games!$A:$A,A70,Games!$F:$F,"W"))+(COUNTIFS(Games!$B:$B,A70,Games!$F:$F,"L")))/(COUNTIF(Games!$A:$A,A70)+COUNTIF(Games!$B:$B,A70)) -> 0.125 | K70: =VMI!$V$17 -> 0.1183531865 | L70: 68 | M70: Southern
A71: Hampton | B71: =((SUMIF(Games!$A:$A,A71,Games!$E:$E))+-(SUMIF(Games!$B:$B,A71,Games!$E:$E)))/((COUNTIF(Games!$A:$A,A71))+(COUNTIF(Games!$B:$B,A71))) -> -10 | C71: =((SUMIF(Games!$A:$A,A71,Games!$I:$I))+(SUMIF(Games!$B:$B,A71,Games!$H:$H)))/((COUNTIF(Games!$A:$A,A71))+(COUNTIF(Games!$B:$B,A71))) -> -7.730620432 | D71: -17.73062043 | E71: 70 | F71: 70 | G71: =(((SUMIF(Games!A:A,A71,Games!C:C)+(SUMIF(Games!B:B,A71,Games!D:D)))))/(COUNTIF(Games!A:A,A71)+COUNTIF(Games!B:B,A71)) -> 4 | H71: =(((SUMIF(Games!A:A,A71,Games!D:D)+(SUMIF(Games!B:B,A71,Games!C:C)))))/(COUNTIF(Games!A:A,A71)+COUNTIF(Games!B:B,A71)) -> 21.5 | I71: 0.005235275661 | J71: =((COUNTIFS(Games!$A:$A,A71,Games!$F:$F,"W"))+(COUNTIFS(Games!$B:$B,A71,Games!$F:$F,"L")))/(COUNTIF(Games!$A:$A,A71)+COUNTIF(Games!$B:$B,A71)) -> 0 | K71: =Hampton!$V$17 -> 0.003429659202 | L71: 70 | M71: Independent

Sheet RPI (hidden)
A1: Team | B1: Rec. | C1: Opp. Record | D1: Opp. Opp. Rec. | E1: RPI | F1: RANK
A2: Maryland | B2: =VLOOKUP(A2,Sheet1!A:M,10,FALSE) -> 0.875 | C2: =Maryland!$R$34 -> 0.6297504579 | D2: =Maryland!$S$34 -> 0.5419379767 | E2: =(0.25*B2)+(0.5*C2)+(0.25*D2) -> 0.6691097231 | F2: =RANK(E2,$E$2:$E$71) -> 1
A3: Notre Dame | B3: =VLOOKUP(A3,Sheet1!A:M,10,FALSE) -> 0.7692307692 | C3: ='Notre Dame'!$R$34 -> 0.5799693896 | D3: ='Notre Dame'!$S$34 -> 0.5528341728 | E3: 0.6205009303 | F3: 2
A4: Denver | B4: =VLOOKUP(A4,Sheet1!A:M,10,FALSE) -> 0.8666666667 | C4: =Denver!$R$34 -> 0.5187996481 | D4: =Denver!$S$34 -> 0.546363028 | E4: 0.6126572477 | F4: 3
A5: Yale | B5: =VLOOKUP(A5,Sheet1!A:M,10,FALSE) -> 0.8666666667 | C5: =Yale!$R$34 -> 0.5189041514 | D5: =Yale!$S$34 -> 0.5438292531 | E5: 0.6120760556 | F5: 5
A6: Brown | B6: =VLOOKUP(A6,Sheet1!A:M,10,FALSE) -> 0.875 | C6: =Brown!$R$34 -> 0.5194139194 | D6: =Brown!$S$34 -> 0.5352002375 | E6: 0.6122570191 | F6: 4
A7: Marquette | B7: =VLOOKUP(A7,Sheet1!A:M,10,FALSE) -> 0.7333333333 | C7: =Marquette!$R$34 -> 0.5718130889 | D7: =Marquette!$S$34 -> 0.5365907138 | E7: 0.6033875562 | F7: 6
A8: Loyola | B8: =VLOOKUP(A8,Sheet1!A:M,10,FALSE) -> 0.8 | C8: =Loyola!$R$34 -> 0.5408274079 | D8: =Loyola!$S$34 -> 0.5249536719 | E8: 0.6016521219 | F8: 7
A9: Albany | B9: =VLOOKUP(A9,Sheet1!A:M,10,FALSE) -> 0.8 | C9: =Albany!$R$34 -> 0.5421764347 | D9: =Albany!$S$34 -> 0.5150066717 | E9: 0.5998398853 | F9: 8
A10: Duke | B10: =VLOOKUP(A10,Sheet1!A:M,10,FALSE) -> 0.6111111111 | C10: =Duke!$R$34 -> 0.6213883339 | D10: =Duke!$S$34 -> 0.5242514427 | E10: 0.5945348054 | F10: 9
A11: Syracuse | B11: =VLOOKUP(A11,Sheet1!A:M,10,FALSE) -> 0.7333333333 | C11: =Syracuse!$R$34 -> 0.5304334554 | D11: =Syracuse!$S$34 -> 0.5464309939 | E11: 0.5851578095 | F11: 10
A12: Johns Hopkins | B12: =VLOOKUP(A12,Sheet1!A:M,10,FALSE) -> 0.5714285714 | C12: ='Johns Hopkins'!$R$34 -> 0.6027995814 | D12: ='Johns Hopkins'!$S$34 -> 0.5356095499 | E12: 0.578159321 | F12: 11
A13: Air Force | B13: =VLOOKUP(A13,Sheet1!A:M,10,FALSE) -> 0.8823529412 | C13: ='Air Force'!$R$34 -> 0.4583890158 | D13: ='Air Force'!$S$34 -> 0.4964887783 | E13: 0.5739049378 | F13: 12
A14: Towson | B14: =VLOOKUP(A14,Sheet1!A:M,10,FALSE) -> 0.875 | C14: =Towson!$R$34 -> 0.4434180403 | D14: =Towson!$S$34 -> 0.5304687802 | E14: 0.5730762152 | F14: 13
A15: Navy | B15: =VLOOKUP(A15,Sheet1!A:M,10,FALSE) -> 0.7142857143 | C15: =Navy!$R$34 -> 0.5255200157 | D15: =Navy!$S$34 -> 0.5134952457 | E15: 0.5697052479 | F15: 14
A16: Villanova | B16: =VLOOKUP(A16,Sheet1!A:M,10,FALSE) -> 0.6428571429 | C16: =Villanova!$R$34 -> 0.5396291209 | D16: =Villanova!$S$34 -> 0.5477720299 | E16: 0.5674718536 | F16: 15
A17: Bryant | B17: =VLOOKUP(A17,Sheet1!A:M,10,FALSE) -> 0.6666666667 | C17: =Bryant!$R$34 -> 0.5489835165 | D17: =Bryant!$S$34 -> 0.4872769364 | E17: 0.562977659 | F17: 16
A18: North Carolina | B18: =VLOOKUP(A18,Sheet1!A:M,10,FALSE) -> 0.5714285714 | C18: ='North Carolina'!$R$34 -> 0.5635654262 | D18: ='North Carolina'!$S$34 -> 0.5404410965 | E18: 0.5597501301 | F18: 17
A19: Stony Brook | B19: =VLOOKUP(A19,Sheet1!A:M,10,FALSE) -> 0.75 | C19: ='Stony Brook'!$R$34 -> 0.4933150183 | D19: ='Stony Brook'!$S$34 -> 0.4935367428 | E19: 0.5575416949 | F19: 18
A20: Rutgers | B20: =VLOOKUP(A20,Sheet1!A:M,10,FALSE) -> 0.6875 | C20: =Rutgers!$R$34 -> 0.5063272665 | D20: =Rutgers!$S$34 -> 0.5206931442 | E20: 0.5552119193 | F20: 19
A21: Harvard | B21: =VLOOKUP(A21,Sheet1!A:M,10,FALSE) -> 0.5 | C21: =Harvard!$R$34 -> 0.589376616 | D21: =Harvard!$S$34 -> 0.5369353472 | E21: 0.5539221448 | F21: 20
A22: Richmond | B22: =VLOOKUP(A22,Sheet1!A:M,10,FALSE) -> 0.6875 | C22: =Richmond!$R$34 -> 0.510830943 | D22: =Richmond!$S$34 -> 0.503072079 | E22: 0.5530584912 | F22: 21
A23: Fairfield | B23: =VLOOKUP(A23,Sheet1!A:M,10,FALSE) -> 0.5294117647 | C23: =Fairfield!$R$34 -> 0.5867269985 | D23: =Fairfield!$S$34 -> 0.4949625026 | E23: 0.5494570661 | F23: 22
A24: Bucknell | B24: =VLOOKUP(A24,Sheet1!A:M,10,FALSE) -> 0.6666666667 | C24: =Bucknell!$R$34 -> 0.5095695971 | D24: =Bucknell!$S$34 -> 0.5078329338 | E24: 0.5484096987 | F24: 23
A25: Quinnipiac | B25: =VLOOKUP(A25,Sheet1!A:M,10,FALSE) -> 0.7857142857 | C25: =Quinnipiac!$R$34 -> 0.4670522929 | D25: =Quinnipiac!$S$34 -> 0.4723134509 | E25: 0.5480330806 | F25: 24
A26: Penn State | B26: =VLOOKUP(A26,Sheet1!A:M,10,FALSE) -> 0.5333333333 | C26: ='Penn State'!$R$34 -> 0.5553357753 | D26: ='Penn State'!$S$34 -> 0.5470499649 | E26: 0.5477637122 | F26: 25
A27: Virginia | B27: =VLOOKUP(A27,Sheet1!A:M,10,FALSE) -> 0.4666666667 | C27: =Virginia!$R$34 -> 0.5778237449 | D27: =Virginia!$S$34 -> 0.5353326107 | E27: 0.5394116918 | F27: 26
A28: Penn | B28: =VLOOKUP(A28,Sheet1!A:M,10,FALSE) -> 0.5333333333 | C28: =Penn!$R$34 -> 0.5393162393 | D28: =Penn!$S$34 -> 0.5262699654 | E28: 0.5345589444 | F28: 27
A29: High Point | B29: =VLOOKUP(A29,Sheet1!A:M,10,FALSE) -> 0.6 | C29: ='High Point'!$R$34 -> 0.5051680672 | D29: ='High Point'!$S$34 -> 0.5012568063 | E29: 0.5278982352 | F29: 28
A30: Army | B30: =VLOOKUP(A30,Sheet1!A:M,10,FALSE) -> 0.5882352941 | C30: =Army!$R$34 -> 0.5099439776 | D30: =Army!$S$34 -> 0.4977821016 | E30: 0.5264763377 | F30: 29
A31: Hartford | B31: =VLOOKUP(A31,Sheet1!A:M,10,FALSE) -> 0.6470588235 | C31: =Hartford!$R$34 -> 0.4759534583 | D31: =Hartford!$S$34 -> 0.4899768713 | E31: 0.5222356529 | F31: 30
A32: Cornell | B32: =VLOOKUP(A32,Sheet1!A:M,10,FALSE) -> 0.4615384615 | C32: =Cornell!$R$34 -> 0.5442378135 | D32: =Cornell!$S$34 -> 0.5235288548 | E32: 0.5183857358 | F32: 31
A33: St. Josephs | B33: =VLOOKUP(A33,Sheet1!A:M,10,FALSE) -> 0.75 | C33: ='St. Josephs'!$R$34 -> 0.4187957875 | D33: ='St. Josephs'!$S$34 -> 0.4849520305 | E33: 0.5181359014 | F33: 32
A34: Ohio State | B34: =VLOOKUP(A34,Sheet1!A:M,10,FALSE) -> 0.4666666667 | C34: ='Ohio State'!$R$34 -> 0.5369441669 | D34: ='Ohio State'!$S$34 -> 0.5306223744 | E34: =(0.25*B34)+(0.5*C34)+(0.25*D34) -> 0.5177943437 | F34: =RANK(E34,$E$2:$E$71) -> 33
A35: Drexel | B35: =VLOOKUP(A35,Sheet1!A:M,10,FALSE) -> 0.4 | C35: =Drexel!$R$34 -> 0.5658730159 | D35: =Drexel!$S$34 -> 0.5162145744 | E35: 0.5119901515 | F35: 34
A36: Hobart | B36: =VLOOKUP(A36,Sheet1!A:M,10,FALSE) -> 0.625 | C36: =Hobart!$R$34 -> 0.463523976 | D36: =Hobart!$S$34 -> 0.4949895589 | E36: 0.5117593777 | F36: 35
A37: Boston | B37: =VLOOKUP(A37,Sheet1!A:M,10,FALSE) -> 0.5333333333 | C37: =Boston!$R$34 -> 0.490439185 | D37: =Boston!$S$34 -> 0.5023333424 | E37: 0.5041362614 | F37: 36
A38: Princeton | B38: =VLOOKUP(A38,Sheet1!A:M,10,FALSE) -> 0.3846153846 | C38: =Princeton!$R$34 -> 0.5546632854 | D38: =Princeton!$S$34 -> 0.5141548746 | E38: 0.5020242075 | F38: 37
A39: Massachusetts | B39: =VLOOKUP(A39,Sheet1!A:M,10,FALSE) -> 0.3076923077 | C39: =Massachusetts!$R$34 -> 0.5874471682 | D39: =Massachusetts!$S$34 -> 0.5232432227 | E39: 0.5014574667 | F39: 38
A40: Robert Morris | B40: =VLOOKUP(A40,Sheet1!A:M,10,FALSE) -> 0.4666666667 | C40: ='Robert Morris'!$R$34 -> 0.5233449883 | D40: ='Robert Morris'!$S$34 -> 0.4731574449 | E40: 0.4966285221 | F40: 39
A41: Hofstra | B41: =VLOOKUP(A41,Sheet1!A:M,10,FALSE) -> 0.6 | C41: =Hofstra!$R$34 -> 0.4299420024 | D41: =Hofstra!$S$34 -> 0.5225399992 | E41: 0.495606001 | F41: 40
A42: Providence | B42: =VLOOKUP(A42,Sheet1!A:M,10,FALSE) -> 0.4375 | C42: =Providence!$R$34 -> 0.5095839057 | D42: =Providence!$S$34 -> 0.5118375552 | E42: 0.4921263416 | F42: 41
A43: Marist | B43: =VLOOKUP(A43,Sheet1!A:M,10,FALSE) -> 0.5625 | C43: =Marist!$R$34 -> 0.4585185648 | D43: =Marist!$S$34 -> 0.4602805699 | E43: 0.4849544249 | F43: 42
A44: Bellarmine | B44: =VLOOKUP(A44,Sheet1!A:M,10,FALSE) -> 0.4 | C44: =Bellarmine!$R$34 -> 0.5121334221 | D44: =Bellarmine!$S$34 -> 0.4888926678 | E44: 0.478289878 | F44: 43
A45: Georgetown | B45: =VLOOKUP(A45,Sheet1!A:M,10,FALSE) -> 0.1428571429 | C45: =Georgetown!$R$34 -> 0.5912187952 | D45: =Georgetown!$S$34 -> 0.5272628261 | E45: 0.4631393899 | F45: 44
A46: UMBC | B46: =VLOOKUP(A46,Sheet1!A:M,10,FALSE) -> 0.2857142857 | C46: =UMBC!$R$34 -> 0.5310112507 | D46: =UMBC!$S$34 -> 0.4842451839 | E46: 0.4579954927 | F46: 45
A47: Lehigh | B47: =VLOOKUP(A47,Sheet1!A:M,10,FALSE) -> 0.4 | C47: =Lehigh!$R$34 -> 0.4595209366 | D47: =Lehigh!$S$34 -> 0.506119385 | E47: 0.4562903145 | F47: 46
A48: Holy Cross | B48: =VLOOKUP(A48,Sheet1!A:M,10,FALSE) -> 0.2666666667 | C48: ='Holy Cross'!$R$34 -> 0.5231105006 | D48: ='Holy Cross'!$S$34 -> 0.489234292 | E48: 0.45053049 | F48: 47
A49: Binghamton | B49: =VLOOKUP(A49,Sheet1!A:M,10,FALSE) -> 0.2857142857 | C49: =Binghamton!$R$34 -> 0.5172416869 | D49: =Binghamton!$S$34 -> 0.480862508 | E49: 0.4502650419 | F49: 48
A50: Vermont | B50: =VLOOKUP(A50,Sheet1!A:M,10,FALSE) -> 0.5294117647 | C50: =Vermont!$R$34 -> 0.3951421128 | D50: =Vermont!$S$34 -> 0.4811241336 | E50: 0.450205031 | F50: 49
A51: Mt. St. Marys | B51: =VLOOKUP(A51,Sheet1!A:M,10,FALSE) -> 0.4285714286 | C51: ='Mt. St. Marys'!$R$34 -> 0.4417582418 | D51: ='Mt. St. Marys'!$S$34 -> 0.4850649537 | E51: 0.4492882164 | F51: 50
A52: Delaware | B52: =VLOOKUP(A52,Sheet1!A:M,10,FALSE) -> 0.3333333333 | C52: =Delaware!$R$34 -> 0.4834920635 | D52: =Delaware!$S$34 -> 0.4934576601 | E52: 0.4484437801 | F52: 51
A53: Michigan | B53: =VLOOKUP(A53,Sheet1!A:M,10,FALSE) -> 0.2307692308 | C53: =Michigan!$R$34 -> 0.5127817695 | D53: =Michigan!$S$34 -> 0.5189224732 | E53: 0.4438138107 | F53: 52
A54: Colgate | B54: =VLOOKUP(A54,Sheet1!A:M,10,FALSE) -> 0.2857142857 | C54: =Colgate!$R$34 -> 0.4877845369 | D54: =Colgate!$S$34 -> 0.5092640655 | E54: 0.4426368563 | F54: 53
A55: St. Johns | B55: =VLOOKUP(A55,Sheet1!A:M,10,FALSE) -> 0.1428571429 | C55: ='St. Johns'!$R$34 -> 0.5564756672 | D55: ='St. Johns'!$S$34 -> 0.5031085652 | E55: 0.4397292606 | F55: 54
A56: Mercer | B56: =VLOOKUP(A56,Sheet1!A:M,10,FALSE) -> 0.3846153846 | C56: =Mercer!$R$34 -> 0.4378978864 | D56: =Mercer!$S$34 -> 0.4894914017 | E56: 0.4374756398 | F56: 55
A57: Sacred Heart | B57: =VLOOKUP(A57,Sheet1!A:M,10,FALSE) -> 0.125 | C57: ='Sacred Heart'!$R$34 -> 0.5621336996 | D57: ='Sacred Heart'!$S$34 -> 0.4688844363 | E57: 0.4295379589 | F57: 56
A58: Canisius | B58: =VLOOKUP(A58,Sheet1!A:M,10,FALSE) -> 0.3333333333 | C58: =Canisius!$R$34 -> 0.4552346959 | D58: =Canisius!$S$34 -> 0.4595007225 | E58: 0.4258258619 | F58: 57
A59: Monmouth | B59: =VLOOKUP(A59,Sheet1!A:M,10,FALSE) -> 0.5 | C59: =Monmouth!$R$34 -> 0.3660886732 | D59: =Monmouth!$S$34 -> 0.4323067858 | E59: 0.4161210331 | F59: 58
A60: Detroit | B60: =VLOOKUP(A60,Sheet1!A:M,10,FALSE) -> 0.1666666667 | C60: =Detroit!$R$34 -> 0.4960865523 | D60: =Detroit!$S$34 -> 0.4761299618 | E60: 0.4087424333 | F60: 59
A61: Siena | B61: =VLOOKUP(A61,Sheet1!A:M,10,FALSE) -> 0.2307692308 | C61: =Siena!$R$34 -> 0.4488351392 | D61: =Siena!$S$34 -> 0.4674094886 | E61: 0.3989622495 | F61: 60
A62: Furman | B62: =VLOOKUP(A62,Sheet1!A:M,10,FALSE) -> 0.1538461538 | C62: =Furman!$R$34 -> 0.4817202029 | D62: =Furman!$S$34 -> 0.4785509556 | E62: 0.3989593788 | F62: 61
A63: Lowell | B63: =VLOOKUP(A63,Sheet1!A:M,10,FALSE) -> 0.25 | C63: =Lowell!$R$34 -> 0.406198489 | D63: =Lowell!$S$34 -> 0.4692429336 | E63: 0.3829099779 | F63: 62
A64: Lafayette | B64: =VLOOKUP(A64,Sheet1!A:M,10,FALSE) -> 0.2142857143 | C64: =Lafayette!$R$34 -> 0.4158195971 | D64: =Lafayette!$S$34 -> 0.4825349181 | E64: 0.3821149566 | F64: 63
A65: Jacksonville | B65: =VLOOKUP(A65,Sheet1!A:M,10,FALSE) -> 0.2307692308 | C65: =Jacksonville!$R$34 -> 0.4000495168 | D65: =Jacksonville!$S$34 -> 0.4746687922 | E65: 0.3763842642 | F65: 64
A66: Manhattan | B66: =VLOOKUP(A66,Sheet1!A:M,10,FALSE) -> 0.2 | C66: =Manhattan!$R$34 -> 0.4206832057 | D66: =Manhattan!$S$34 -> 0.454824832 | E66: =(0.25*B66)+(0.5*C66)+(0.25*D66) -> 0.3740478108 | F66: =RANK(E66,$E$2:$E$71) -> 65
A67: Dartmouth | B67: =VLOOKUP(A67,Sheet1!A:M,10,FALSE) -> 0.07142857143 | C67: =Dartmouth!$R$34 -> 0.4676020408 | D67: =Dartmouth!$S$34 -> 0.4878271138 | E67: 0.3736149417 | F67: 66
A68: Wagner | B68: =VLOOKUP(A68,Sheet1!A:M,10,FALSE) -> 0.4 | C68: =Wagner!$R$34 -> 0.3267155067 | D68: =Wagner!$S$34 -> 0.4355215036 | E68: 0.3722381293 | F68: 67
A69: VMI | B69: =VLOOKUP(A69,Sheet1!A:M,10,FALSE) -> 0.125 | C69: =VMI!$R$34 -> 0.3961509844 | D69: =VMI!$S$34 -> 0.4391386961 | E69: 0.3391101662 | F69: 68
A70: NJIT | B70: =VLOOKUP(A70,Sheet1!A:M,10,FALSE) -> 0.06666666667 | C70: =NJIT!$R$34 -> 0.383507326 | D70: =NJIT!$S$34 -> 0.4386912624 | E70: 0.3180931453 | F70: 69
A71: Hampton | B71: =VLOOKUP(A71,Sheet1!A:M,10,FALSE) -> 0 | C71: =Hampton!$R$34 -> 0.2119047619 | D71: =Hampton!$S$34 -> 0.3614332456 | E71: 0.1963106923 | F71: 70

Sheet Conferences (hidden)
A1: League | B1: Avg. SRS | C1: Rank | D1: Avg. Rank | E1: Rank
A2: ACC | B2: =AVERAGEIF(Sheet1!$M:$M,A2,Sheet1!D:D) -> 4.381673066 | C2: =RANK(B2,$B$2:$B$11) -> 1 | D2: =AVERAGEIF(Sheet1!$M:$M,A2,Sheet1!E:E) -> 9.4 | E2: =RANK(D2,$D$2:$D$11,1) -> 1
A3: Big Ten | B3: =AVERAGEIF(Sheet1!$M:$M,A3,Sheet1!D:D) -> 2.358238209 | C3: 2 | D3: =AVERAGEIF(Sheet1!$M:$M,A3,Sheet1!E:E) -> 21.66666667 | E3: 2
A4: Ivy | B4: =AVERAGEIF(Sheet1!$M:$M,A4,Sheet1!D:D) -> 1.864830561 | C4: 3 | D4: =AVERAGEIF(Sheet1!$M:$M,A4,Sheet1!E:E) -> 25.57142857 | E4: 3
A5: Big East | B5: =AVERAGEIF(Sheet1!$M:$M,A5,Sheet1!D:D) -> 1.292918882 | C5: 4 | D5: =AVERAGEIF(Sheet1!$M:$M,A5,Sheet1!E:E) -> 27.83333333 | E5: 4
A6: CAA | B6: =AVERAGEIF(Sheet1!$M:$M,A6,Sheet1!D:D) -> 0.7623548064 | C6: 5 | D6: =AVERAGEIF(Sheet1!$M:$M,A6,Sheet1!E:E) -> 30.83333333 | E6: 5
A7: Patriot | B7: =AVERAGEIF(Sheet1!$M:$M,A7,Sheet1!D:D) -> 0.2324813977 | C7: 6 | D7: =AVERAGEIF(Sheet1!$M:$M,A7,Sheet1!E:E) -> 33.77777778 | E7: 6
A8: America East | B8: =AVERAGEIF(Sheet1!$M:$M,A8,Sheet1!D:D) -> -0.3557927255 | C8: 7 | D8: =AVERAGEIF(Sheet1!$M:$M,A8,Sheet1!E:E) -> 37.28571429 | E8: 7
A9: Northeast | B9: =AVERAGEIF(Sheet1!$M:$M,A9,Sheet1!D:D) -> -1.332695127 | C9: 8 | D9: =AVERAGEIF(Sheet1!$M:$M,A9,Sheet1!E:E) -> 43.14285714 | E9: 8
A10: Southern | B10: =AVERAGEIF(Sheet1!$M:$M,A10,Sheet1!D:D) -> -3.005107496 | C10: 9 | D10: =AVERAGEIF(Sheet1!$M:$M,A10,Sheet1!E:E) -> 49.625 | E10: 9
A11: MAAC | B11: =AVERAGEIF(Sheet1!$M:$M,A11,Sheet1!D:D) -> -3.276902171 | C11: 10 | D11: =AVERAGEIF(Sheet1!$M:$M,A11,Sheet1!E:E) -> 53.57142857 | E11: 10

Sheet Air Force
A1: Team: | B1: Air Force
A2: Season: | B2: 2016
A3: Conference: | B3: Southern
A5: 2016 Schedule | U5: TEAM PROFILE
A7: Opponent | B7: =B1 -> Air Force | C7: Opponent | D7: Win | E7: Loss | F7: Site | G7: Pred. Spread | H7: Win Prob. % | I7: Opp. SRS Ranking | L7: Neutral | M7: Away | N7: Home | O7: League | P7: Opp.GF | Q7: Opp.GA | R7: Opp. Rec | S7: Opp Opp Rec | U7: All Record: | V7: =(COUNTIF(D8:D33,"W")&"-"&(COUNTIF(E8:E33,"L"))) -> 15-2
A8: Navy | B8: 6 | C8: 10 | D8: =IF(B8>0, IF(B8>C8,"W",0),0) -> 0 | E8: =IF(C8>0, IF(C8>B8,"L",0),0) -> L | F8: A | G8: =IF(F8="N",L8,IF(F8="A",M8,N8)) -> 3 | H8: =NORMDIST(0,G8,Games!$C$539,TRUE) -> 0.2033726451 | I8: =VLOOKUP(A8,Sheet1!A:K,5,FALSE) -> 16 | J8: =IF(H8>0.5,"W","L") -> L | K8: =B8-C8 -> -4 | L8: =ROUND(((VLOOKUP(A8,Sheet1!$A:$J,4,FALSE))-(VLOOKUP($B$1,Sheet1!$A:$J,4,FALSE)))/0.5,0)*0.5 -> 2 | M8: =ROUND(((VLOOKUP(A8,Sheet1!$A:$J,4,FALSE))-(VLOOKUP($B$1,Sheet1!$A:$J,4,FALSE))+Games!$C$542)/0.5,0)*0.5 -> 3 | N8: =ROUND(((VLOOKUP(A8,Sheet1!$A:$J,4,FALSE))-(VLOOKUP($B$1,Sheet1!$A:$J,4,FALSE))-Games!$C$542)/0.5,0)*0.5 -> 0.5 | O8: =VLOOKUP(A8,Sheet1!$A:$M,13,FALSE) -> Patriot | P8: =IF(K8<>0,VLOOKUP(A8,Sheet1!A:H,7,FALSE),"#N/A") -> 9.642857143 | Q8: =IF(K8<>0,VLOOKUP(A8,Sheet1!A:H,8,FALSE),"#N/A") -> 6.928571429 | R8: =IF(K8<>0,((COUNTIFS(Games!A:A,A8,Games!F:F,"W")+COUNTIFS(Games!B:B,A8,Games!F:F,"L")-COUNTIFS(Games!A:A,A8,Games!B:B,$B$1,Games!F:F,"W")-COUNTIFS(Games!$B:$B,A8,Games!$A:$A,$B$1,Games!F:F,"L"))/(COUNTIFS(Games!A:A,A8)+COUNTIF(Games!B:B,A8)-COUNTIFS(Games!A:A,A8,Games!B:B,$B$1)-COUNTIFS(Games!B:B,A8,Games!A:A,$B$1))),"#DIV/0!") -> 0.6923076923 | S8: =VLOOKUP(A8,RPI!A:C,3,FALSE) -> 0.5255200157 | U8: Conf. Record: | V8: =(COUNTIFS(D8:D33,"W",O8:O33,B3)&"-"&(COUNTIFS(E8:E33,"L",O8:O33,B3))) -> 9-0
A9: Denver | B9: 9 | C9: 10 | D9: =IF(B9>0, IF(B9>C9,"W",0),0) -> 0 | E9: =IF(C9>0, IF(C9>B9,"L",0),0) -> L | F9: H | G9: =IF(F9="N",L9,IF(F9="A",M9,N9)) -> 3 | H9: =NORMDIST(0,G9,Games!$C$539,TRUE) -> 0.2033726451 | I9: =VLOOKUP(A9,Sheet1!A:K,5,FALSE) -> 3 | J9: =IF(H9>0.5,"W","L") -> L | K9: =B9-C9 -> -1 | L9: =ROUND(((VLOOKUP(A9,Sheet1!$A:$J,4,FALSE))-(VLOOKUP($B$1,Sheet1!$A:$J,4,FALSE)))/0.5,0)*0.5 -> 4.5 | M9: =ROUND(((VLOOKUP(A9,Sheet1!$A:$J,4,FALSE))-(VLOOKUP($B$1,Sheet1!$A:$J,4,FALSE))+Games!$C$542)/0.5,0)*0.5 -> 5.5 | N9: =ROUND(((VLOOKUP(A9,Sheet1!$A:$J,4,FALSE))-(VLOOKUP($B$1,Sheet1!$A:$J,4,FALSE))-Games!$C$542)/0.5,0)*0.5 -> 3 | O9: =VLOOKUP(A9,Sheet1!$A:$M,13,FALSE) -> Big East | P9: =IF(K9<>0,VLOOKUP(A9,Sheet1!A:H,7,FALSE),"#N/A") -> 13.86666667 | Q9: =IF(K9<>0,VLOOKUP(A9,Sheet1!A:H,8,FALSE),"#N/A") -> 9.066666667 | R9: =IF(K9<>0,((COUNTIFS(Games!A:A,A9,Games!F:F,"W")+COUNTIFS(Games!B:B,A9,Games!F:F,"L")-COUNTIFS(Games!A:A,A9,Games!B:B,$B$1,Games!F:F,"W")-COUNTIFS(Games!$B:$B,A9,Games!$A:$A,$B$1,Games!F:F,"L"))/(COUNTIFS(Games!A:A,A9)+COUNTIF(Games!B:B,A9)-COUNTIFS(Games!A:A,A9,Games!B:B,$B$1)-COUNTIFS(Games!B:B,A9,Games!A:A,$B$1))),"#DIV/0!") -> 0.8571428571 | S9: =VLOOKUP(A9,RPI!A:C,3,FALSE) -> 0.5187996481 | U9: SRS Value: | V9: =VLOOKUP(B1,Sheet1!$A:$L,4,FALSE) -> 1.194703694
A10: Marist | B10: 7 | C10: 6 | D10: W | E10: 0 | F10: A | G10: -1 | H10: =NORMDIST(0,G10,Games!$C$539,TRUE) -> 0.6089352247 | I10: =VLOOKUP(A10,Sheet1!A:K,5,FALSE) -> 44 | J10: W | K10: 1 | L10: =ROUND(((VLOOKUP(A10,Sheet1!$A:$J,4,FALSE))-(VLOOKUP($B$1,Sheet1!$A:$J,4,FALSE)))/0.5,0)*0.5 -> -2.5 | M10: =ROUND(((VLOOKUP(A10,Sheet1!$A:$J,4,FALSE))-(VLOOKUP($B$1,Sheet1!$A:$J,4,FALSE))+Games!$C$542)/0.5,0)*0.5 -> -1 | N10: =ROUND(((VLOOKUP(A10,Sheet1!$A:$J,4,FALSE))-(VLOOKUP($B$1,Sheet1!$A:$J,4,FALSE))-Games!$C$542)/0.5,0)*0.5 -> -3.5 | O10: =VLOOKUP(A10,Sheet1!$A:$M,13,FALSE) -> MAAC | P10: =IF(K10<>0,VLOOKUP(A10,Sheet1!A:H,7,FALSE),"#N/A") -> 9.625 | Q10: =IF(K10<>0,VLOOKUP(A10,Sheet1!A:H,8,FALSE),"#N/A") -> 8.5625 | R10: =IF(K10<>0,((COUNTIFS(Games!A:A,A10,Games!F:F,"W")+COUNTIFS(Games!B:B,A10,Games!F:F,"L")-COUNTIFS(Games!A:A,A10,Games!B:B,$B$1,Games!F:F,"W")-COUNTIFS(Games!$B:$B,A10,Games!$A:$A,$B$1,Games!F:F,"L"))/(COUNTIFS(Games!A:A,A10)+COUNTIF(Games!B:B,A10)-COUNTIFS(Games!A:A,A10,Games!B:B,$B$1)-COUNTIFS(Games!B:B,A10,Games!A:A,$B$1))),"#DIV/0!") -> 0.6 | S10: =VLOOKUP(A10,RPI!A:C,3,FALSE) -> 0.4585185648 | U10: SRS Ranking (NCAA): | V10: =VLOOKUP(B1,Sheet1!A:J,5,FALSE) -> 27
A11: Dartmouth | B11: 9 | C11: 3 | D11: W | E11: 0 | F11: N | G11: -7 | H11: =NORMDIST(0,G11,Games!$C$539,TRUE) -> 0.9735547911 | I11: =VLOOKUP(A11,Sheet1!A:K,5,FALSE) -> 65 | J11: W | K11: 6 | L11: =ROUND(((VLOOKUP(A11,Sheet1!$A:$J,4,FALSE))-(VLOOKUP($B$1,Sheet1!$A:$J,4,FALSE)))/0.5,0)*0.5 -> -7 | M11: =ROUND(((VLOOKUP(A11,Sheet1!$A:$J,4,FALSE))-(VLOOKUP($B$1,Sheet1!$A:$J,4,FALSE))+Games!$C$542)/0.5,0)*0.5 -> -5.5 | N11: =ROUND(((VLOOKUP(A11,Sheet1!$A:$J,4,FALSE))-(VLOOKUP($B$1,Sheet1!$A:$J,4,FALSE))-Games!$C$542)/0.5,0)*0.5 -> -8 | O11: =VLOOKUP(A11,Sheet1!$A:$M,13,FALSE) -> Ivy | P11: =IF(K11<>0,VLOOKUP(A11,Sheet1!A:H,7,FALSE),"#N/A") -> 6.357142857 | Q11: =IF(K11<>0,VLOOKUP(A11,Sheet1!A:H,8,FALSE),"#N/A") -> 12.57142857 | R11: =IF(K11<>0,((COUNTIFS(Games!A:A,A11,Games!F:F,"W")+COUNTIFS(Games!B:B,A11,Games!F:F,"L")-COUNTIFS(Games!A:A,A11,Games!B:B,$B$1,Games!F:F,"W")-COUNTIFS(Games!$B:$B,A11,Games!$A:$A,$B$1,Games!F:F,"L"))/(COUNTIFS(Games!A:A,A11)+COUNTIF(Games!B:B,A11)-COUNTIFS(Games!A:A,A11,Games!B:B,$B$1)-COUNTIFS(Games!B:B,A11,Games!A:A,$B$1))),"#DIV/0!") -> 0.07692307692 | S11: =VLOOKUP(A11,RPI!A:C,3,FALSE) -> 0.4676020408 | U11: SRS Ranking (Conf.): | V11: =1+SUMPRODUCT((Sheet1!M2:M71=B3)*(Sheet1!E2:E71<V10)) -> 1
A12: Sacred Heart | B12: 13 | C12: 10 | D12: W | E12: 0 | F12: N | G12: -5.5 | H12: =NORMDIST(0,G12,Games!$C$539,TRUE) -> 0.9358697236 | I12: =VLOOKUP(A12,Sheet1!A:K,5,FALSE) -> 58 | J12: W | K12: 3 | L12: =ROUND(((VLOOKUP(A12,Sheet1!$A:$J,4,FALSE))-(VLOOKUP($B$1,Sheet1!$A:$J,4,FALSE)))/0.5,0)*0.5 -> -5.5 | M12: =ROUND(((VLOOKUP(A12,Sheet1!$A:$J,4,FALSE))-(VLOOKUP($B$1,Sheet1!$A:$J,4,FALSE))+Games!$C$542)/0.5,0)*0.5 -> -4 | N12: =ROUND(((VLOOKUP(A12,Sheet1!$A:$J,4,FALSE))-(VLOOKUP($B$1,Sheet1!$A:$J,4,FALSE))-Games!$C$542)/0.5,0)*0.5 -> -6.5 | O12: =VLOOKUP(A12,Sheet1!$A:$M,13,FALSE) -> Northeast | P12: =IF(K12<>0,VLOOKUP(A12,Sheet1!A:H,7,FALSE),"#N/A") -> 7.8125 | Q12: =IF(K12<>0,VLOOKUP(A12,Sheet1!A:H,8,FALSE),"#N/A") -> 12.5625 | R12: =IF(K12<>0,((COUNTIFS(Games!A:A,A12,Games!F:F,"W")+COUNTIFS(Games!B:B,A12,Games!F:F,"L")-COUNTIFS(Games!A:A,A12,Games!B:B,$B$1,Games!F:F,"W")-COUNTIFS(Games!$B:$B,A12,Games!$A:$A,$B$1,Games!F:F,"L"))/(COUNTIFS(Games!A:A,A12)+COUNTIF(Games!B:B,A12)-COUNTIFS(Games!A:A,A12,Games!B:B,$B$1)-COUNTIFS(Games!B:B,A12,Games!A:A,$B$1))),"#DIV/0!") -> 0.1333333333 | S12: =VLOOKUP(A12,RPI!A:C,3,FALSE) -> 0.5621336996 | U12: SRS SoS Value: | V12: =VLOOKUP(B1,Sheet1!$A:$L,3,FALSE) -> -1.746472776
A13: Robert Morris | B13: 11 | C13: 10 | D13: W | E13: 0 | F13: A | G13: -1 | H13: =NORMDIST(0,G13,Games!$C$539,TRUE) -> 0.6089352247 | I13: =VLOOKUP(A13,Sheet1!A:K,5,FALSE) -> 43 | J13: W | K13: 1 | L13: =ROUND(((VLOOKUP(A13,Sheet1!$A:$J,4,FALSE))-(VLOOKUP($B$1,Sheet1!$A:$J,4,FALSE)))/0.5,0)*0.5 -> -2.5 | M13: =ROUND(((VLOOKUP(A13,Sheet1!$A:$J,4,FALSE))-(VLOOKUP($B$1,Sheet1!$A:$J,4,FALSE))+Games!$C$542)/0.5,0)*0.5 -> -1 | N13: =ROUND(((VLOOKUP(A13,Sheet1!$A:$J,4,FALSE))-(VLOOKUP($B$1,Sheet1!$A:$J,4,FALSE))-Games!$C$542)/0.5,0)*0.5 -> -3.5 | O13: =VLOOKUP(A13,Sheet1!$A:$M,13,FALSE) -> Northeast | P13: =IF(K13<>0,VLOOKUP(A13,Sheet1!A:H,7,FALSE),"#N/A") -> 11.33333333 | Q13: =IF(K13<>0,VLOOKUP(A13,Sheet1!A:H,8,FALSE),"#N/A") -> 11.4 | R13: =IF(K13<>0,((COUNTIFS(Games!A:A,A13,Games!F:F,"W")+COUNTIFS(Games!B:B,A13,Games!F:F,"L")-COUNTIFS(Games!A:A,A13,Games!B:B,$B$1,Games!F:F,"W")-COUNTIFS(Games!$B:$B,A13,Games!$A:$A,$B$1,Games!F:F,"L"))/(COUNTIFS(Games!A:A,A13)+COUNTIF(Games!B:B,A13)-COUNTIFS(Games!A:A,A13,Games!B:B,$B$1)-COUNTIFS(Games!B:B,A13,Games!A:A,$B$1))),"#DIV/0!") -> 0.5 | S13: =VLOOKUP(A13,RPI!A:C,3,FALSE) -> 0.5233449883 | U13: SRS SoS Ranking (NCAA): | V13: =VLOOKUP(B1,Sheet1!A:J,6,FALSE) -> 58
A14: Furman | B14: 14 | C14: 4 | D14: W | E14: 0 | F14: H | G14: -7 | H14: =NORMDIST(0,G14,Games!$C$539,TRUE) -> 0.9735547911 | I14: =VLOOKUP(A14,Sheet1!A:K,5,FALSE) -> 59 | J14: W | K14: 10 | L14: =ROUND(((VLOOKUP(A14,Sheet1!$A:$J,4,FALSE))-(VLOOKUP($B$1,Sheet1!$A:$J,4,FALSE)))/0.5,0)*0.5 -> -5.5 | M14: =ROUND(((VLOOKUP(A14,Sheet1!$A:$J,4,FALSE))-(VLOOKUP($B$1,Sheet1!$A:$J,4,FALSE))+Games!$C$542)/0.5,0)*0.5 -> -4.5 | N14: =ROUND(((VLOOKUP(A14,Sheet1!$A:$J,4,FALSE))-(VLOOKUP($B$1,Sheet1!$A:$J,4,FALSE))-Games!$C$542)/0.5,0)*0.5 -> -7 | O14: =VLOOKUP(A14,Sheet1!$A:$M,13,FALSE) -> Southern | P14: =IF(K14<>0,VLOOKUP(A14,Sheet1!A:H,7,FALSE),"#N/A") -> 8 | Q14: =IF(K14<>0,VLOOKUP(A14,Sheet1!A:H,8,FALSE),"#N/A") -> 11.30769231 | R14: =IF(K14<>0,((COUNTIFS(Games!A:A,A14,Games!F:F,"W")+COUNTIFS(Games!B:B,A14,Games!F:F,"L")-COUNTIFS(Games!A:A,A14,Games!B:B,$B$1,Games!F:F,"W")-COUNTIFS(Games!$B:$B,A14,Games!$A:$A,$B$1,Games!F:F,"L"))/(COUNTIFS(Games!A:A,A14)+COUNTIF(Games!B:B,A14)-COUNTIFS(Games!A:A,A14,Games!B:B,$B$1)-COUNTIFS(Games!B:B,A14,Games!A:A,$B$1))),"#DIV/0!") -> 0.1666666667 | S14: =VLOOKUP(A14,RPI!A:C,3,FALSE) -> 0.4817202029 | U14: SRS SoS Ranking (Conf.): | V14: =1+SUMPRODUCT((Sheet1!M2:M71=B3)*(Sheet1!F2:F71<V13)) -> 6
A15: High Point | B15: 13 | C15: 4 | D15: W | E15: 0 | F15: H | G15: -3.5 | H15: =NORMDIST(0,G15,Games!$C$539,TRUE) -> 0.83345466 | I15: =VLOOKUP(A15,Sheet1!A:K,5,FALSE) -> 42 | J15: W | K15: 9 | L15: =ROUND(((VLOOKUP(A15,Sheet1!$A:$J,4,FALSE))-(VLOOKUP($B$1,Sheet1!$A:$J,4,FALSE)))/0.5,0)*0.5 -> -2 | M15: =ROUND(((VLOOKUP(A15,Sheet1!$A:$J,4,FALSE))-(VLOOKUP($B$1,Sheet1!$A:$J,4,FALSE))+Games!$C$542)/0.5,0)*0.5 -> -1 | N15: =ROUND(((VLOOKUP(A15,Sheet1!$A:$J,4,FALSE))-(VLOOKUP($B$1,Sheet1!$A:$J,4,FALSE))-Games!$C$542)/0.5,0)*0.5 -> -3.5 | O15: =VLOOKUP(A15,Sheet1!$A:$M,13,FALSE) -> Southern | P15: =IF(K15<>0,VLOOKUP(A15,Sheet1!A:H,7,FALSE),"#N/A") -> 10.8 | Q15: =IF(K15<>0,VLOOKUP(A15,Sheet1!A:H,8,FALSE),"#N/A") -> 10.8 | R15: =IF(K15<>0,((COUNTIFS(Games!A:A,A15,Games!F:F,"W")+COUNTIFS(Games!B:B,A15,Games!F:F,"L")-COUNTIFS(Games!A:A,A15,Games!B:B,$B$1,Games!F:F,"W")-COUNTIFS(Games!$B:$B,A15,Games!$A:$A,$B$1,Games!F:F,"L"))/(COUNTIFS(Games!A:A,A15)+COUNTIF(Games!B:B,A15)-COUNTIFS(Games!A:A,A15,Games!B:B,$B$1)-COUNTIFS(Games!B:B,A15,Games!A:A,$B$1))),"#DIV/0!") -> 0.6428571429 | S15: =VLOOKUP(A15,RPI!A:C,3,FALSE) -> 0.5051680672
A16: Duke | B16: 10 | C16: 9 | D16: W | E16: 0 | F16: A | G16: 5 | H16: =NORMDIST(0,G16,Games!$C$539,TRUE) -> 0.08337465061 | I16: =VLOOKUP(A16,Sheet1!A:K,5,FALSE) -> 7 | J16: L | K16: 1 | L16: =ROUND(((VLOOKUP(A16,Sheet1!$A:$J,4,FALSE))-(VLOOKUP($B$1,Sheet1!$A:$J,4,FALSE)))/0.5,0)*0.5 -> 4 | M16: =ROUND(((VLOOKUP(A16,Sheet1!$A:$J,4,FALSE))-(VLOOKUP($B$1,Sheet1!$A:$J,4,FALSE))+Games!$C$542)/0.5,0)*0.5 -> 5 | N16: =ROUND(((VLOOKUP(A16,Sheet1!$A:$J,4,FALSE))-(VLOOKUP($B$1,Sheet1!$A:$J,4,FALSE))-Games!$C$542)/0.5,0)*0.5 -> 2.5 | O16: =VLOOKUP(A16,Sheet1!$A:$M,13,FALSE) -> ACC | P16: =IF(K16<>0,VLOOKUP(A16,Sheet1!A:H,7,FALSE),"#N/A") -> 13.5 | Q16: =IF(K16<>0,VLOOKUP(A16,Sheet1!A:H,8,FALSE),"#N/A") -> 9.611111111 | R16: =IF(K16<>0,((COUNTIFS(Games!A:A,A16,Games!F:F,"W")+COUNTIFS(Games!B:B,A16,Games!F:F,"L")-COUNTIFS(Games!A:A,A16,Games!B:B,$B$1,Games!F:F,"W")-COUNTIFS(Games!$B:$B,A16,Games!$A:$A,$B$1,Games!F:F,"L"))/(COUNTIFS(Games!A:A,A16)+COUNTIF(Games!B:B,A16)-COUNTIFS(Games!A:A,A16,Games!B:B,$B$1)-COUNTIFS(Games!B:B,A16,Games!A:A,$B$1))),"#DIV/0!") -> 0.6470588235 | S16: =VLOOKUP(A16,RPI!A:C,3,FALSE) -> 0.6213883339 | U16: Actual Win % (All): | V16: =COUNTIF(D8:D33,"W")/(COUNTIF(D8:D33,"W")+(COUNTIF(E8:E33,"L"))) -> 0.8823529412
A17: Detroit | B17: 7 | C17: 5 | D17: W | E17: 0 | F17: A | G17: -4.5 | H17: =NORMDIST(0,G17,Games!$C$539,TRUE) -> 0.8933334117 | I17: =VLOOKUP(A17,Sheet1!A:K,5,FALSE) -> 60 | J17: W | K17: 2 | L17: =ROUND(((VLOOKUP(A17,Sheet1!$A:$J,4,FALSE))-(VLOOKUP($B$1,Sheet1!$A:$J,4,FALSE)))/0.5,0)*0.5 -> -6 | M17: =ROUND(((VLOOKUP(A17,Sheet1!$A:$J,4,FALSE))-(VLOOKUP($B$1,Sheet1!$A:$J,4,FALSE))+Games!$C$542)/0.5,0)*0.5 -> -4.5 | N17: =ROUND(((VLOOKUP(A17,Sheet1!$A:$J,4,FALSE))-(VLOOKUP($B$1,Sheet1!$A:$J,4,FALSE))-Games!$C$542)/0.5,0)*0.5 -> -7 | O17: =VLOOKUP(A17,Sheet1!$A:$M,13,FALSE) -> MAAC | P17: =IF(K17<>0,VLOOKUP(A17,Sheet1!A:H,7,FALSE),"#N/A") -> 6.083333333 | Q17: =IF(K17<>0,VLOOKUP(A17,Sheet1!A:H,8,FALSE),"#N/A") -> 9.833333333 | R17: =IF(K17<>0,((COUNTIFS(Games!A:A,A17,Games!F:F,"W")+COUNTIFS(Games!B:B,A17,Games!F:F,"L")-COUNTIFS(Games!A:A,A17,Games!B:B,$B$1,Games!F:F,"W")-COUNTIFS(Games!$B:$B,A17,Games!$A:$A,$B$1,Games!F:F,"L"))/(COUNTIFS(Games!A:A,A17)+COUNTIF(Games!B:B,A17)-COUNTIFS(Games!A:A,A17,Games!B:B,$B$1)-COUNTIFS(Games!B:B,A17,Games!A:A,$B$1))),"#DIV/0!") -> 0.1818181818 | S17: =VLOOKUP(A17,RPI!A:C,3,FALSE) -> 0.4960865523 | U17: Expected SRS Win % (All): | V17: =SUMIFS(H8:H33,H8:H33,"<>N/A",K8:K33,"<>0")/(COUNTIF(K8:K33,"<>0")) -> 0.6784067401
A18: Bellarmine | B18: 8 | C18: 7 | D18: W | E18: 0 | F18: A | G18: -1.5 | H18: =NORMDIST(0,G18,Games!$C$539,TRUE) -> 0.6608622111 | I18: =VLOOKUP(A18,Sheet1!A:K,5,FALSE) -> 47 | J18: W | K18: 1 | L18: =ROUND(((VLOOKUP(A18,Sheet1!$A:$J,4,FALSE))-(VLOOKUP($B$1,Sheet1!$A:$J,4,FALSE)))/0.5,0)*0.5 -> -3 | M18: =ROUND(((VLOOKUP(A18,Sheet1!$A:$J,4,FALSE))-(VLOOKUP($B$1,Sheet1!$A:$J,4,FALSE))+Games!$C$542)/0.5,0)*0.5 -> -1.5 | N18: =ROUND(((VLOOKUP(A18,Sheet1!$A:$J,4,FALSE))-(VLOOKUP($B$1,Sheet1!$A:$J,4,FALSE))-Games!$C$542)/0.5,0)*0.5 -> -4 | O18: =VLOOKUP(A18,Sheet1!$A:$M,13,FALSE) -> Southern | P18: =IF(K18<>0,VLOOKUP(A18,Sheet1!A:H,7,FALSE),"#N/A") -> 8.6 | Q18: =IF(K18<>0,VLOOKUP(A18,Sheet1!A:H,8,FALSE),"#N/A") -> 9.133333333 | R18: =IF(K18<>0,((COUNTIFS(Games!A:A,A18,Games!F:F,"W")+COUNTIFS(Games!B:B,A18,Games!F:F,"L")-COUNTIFS(Games!A:A,A18,Games!B:B,$B$1,Games!F:F,"W")-COUNTIFS(Games!$B:$B,A18,Games!$A:$A,$B$1,Games!F:F,"L"))/(COUNTIFS(Games!A:A,A18)+COUNTIF(Games!B:B,A18)-COUNTIFS(Games!A:A,A18,Games!B:B,$B$1)-COUNTIFS(Games!B:B,A18,Games!A:A,$B$1))),"#DIV/0!") -> 0.4615384615 | S18: =VLOOKUP(A18,RPI!A:C,3,FALSE) -> 0.5121334221 | U18: Wins +/- Expectation (All): | V18: =(V16*(COUNTIF(G8:G33,"<>#N/A")))-(V17*(COUNTIF(G8:G33,"<>#N/A"))) -> 3.67103162
A19: Mercer | B19: 15 | C19: 13 | D19: W | E19: 0 | F19: H | G19: -6 | H19: =NORMDIST(0,G19,Games!$C$539,TRUE) -> 0.9514692626 | I19: =VLOOKUP(A19,Sheet1!A:K,5,FALSE) -> 55 | J19: W | K19: 2 | L19: =ROUND(((VLOOKUP(A19,Sheet1!$A:$J,4,FALSE))-(VLOOKUP($B$1,Sheet1!$A:$J,4,FALSE)))/0.5,0)*0.5 -> -4.5 | M19: =ROUND(((VLOOKUP(A19,Sheet1!$A:$J,4,FALSE))-(VLOOKUP($B$1,Sheet1!$A:$J,4,FALSE))+Games!$C$542)/0.5,0)*0.5 -> -3.5 | N19: =ROUND(((VLOOKUP(A19,Sheet1!$A:$J,4,FALSE))-(VLOOKUP($B$1,Sheet1!$A:$J,4,FALSE))-Games!$C$542)/0.5,0)*0.5 -> -6 | O19: =VLOOKUP(A19,Sheet1!$A:$M,13,FALSE) -> Southern | P19: =IF(K19<>0,VLOOKUP(A19,Sheet1!A:H,7,FALSE),"#N/A") -> 9.230769231 | Q19: =IF(K19<>0,VLOOKUP(A19,Sheet1!A:H,8,FALSE),"#N/A") -> 10.92307692 | R19: =IF(K19<>0,((COUNTIFS(Games!A:A,A19,Games!F:F,"W")+COUNTIFS(Games!B:B,A19,Games!F:F,"L")-COUNTIFS(Games!A:A,A19,Games!B:B,$B$1,Games!F:F,"W")-COUNTIFS(Games!$B:$B,A19,Games!$A:$A,$B$1,Games!F:F,"L"))/(COUNTIFS(Games!A:A,A19)+COUNTIF(Games!B:B,A19)-COUNTIFS(Games!A:A,A19,Games!B:B,$B$1)-COUNTIFS(Games!B:B,A19,Games!A:A,$B$1))),"#DIV/0!") -> 0.4166666667 | S19: =VLOOKUP(A19,RPI!A:C,3,FALSE) -> 0.4378978864 | U19: Expected Remaining Wins (All): | V19: =SUMIFS(H8:H33,G8:G33,"<>#N/A",K8:K33,"0") -> 0.06413027641
A20: VMI | B20: 13 | C20: 3 | D20: W | E20: 0 | F20: H | G20: -12 | H20: =NORMDIST(0,G20,Games!$C$539,TRUE) -> 0.999547552 | I20: =VLOOKUP(A20,Sheet1!A:K,5,FALSE) -> 69 | J20: W | K20: 10 | L20: =ROUND(((VLOOKUP(A20,Sheet1!$A:$J,4,FALSE))-(VLOOKUP($B$1,Sheet1!$A:$J,4,FALSE)))/0.5,0)*0.5 -> -11 | M20: =ROUND(((VLOOKUP(A20,Sheet1!$A:$J,4,FALSE))-(VLOOKUP($B$1,Sheet1!$A:$J,4,FALSE))+Games!$C$542)/0.5,0)*0.5 -> -9.5 | N20: =ROUND(((VLOOKUP(A20,Sheet1!$A:$J,4,FALSE))-(VLOOKUP($B$1,Sheet1!$A:$J,4,FALSE))-Games!$C$542)/0.5,0)*0.5 -> -12 | O20: =VLOOKUP(A20,Sheet1!$A:$M,13,FALSE) -> Southern | P20: =IF(K20<>0,VLOOKUP(A20,Sheet1!A:H,7,FALSE),"#N/A") -> 6 | Q20: =IF(K20<>0,VLOOKUP(A20,Sheet1!A:H,8,FALSE),"#N/A") -> 13.9375 | R20: =IF(K20<>0,((COUNTIFS(Games!A:A,A20,Games!F:F,"W")+COUNTIFS(Games!B:B,A20,Games!F:F,"L")-COUNTIFS(Games!A:A,A20,Games!B:B,$B$1,Games!F:F,"W")-COUNTIFS(Games!$B:$B,A20,Games!$A:$A,$B$1,Games!F:F,"L"))/(COUNTIFS(Games!A:A,A20)+COUNTIF(Games!B:B,A20)-COUNTIFS(Games!A:A,A20,Games!B:B,$B$1)-COUNTIFS(Games!B:B,A20,Games!A:A,$B$1))),"#DIV/0!") -> 0.1333333333 | S20: =VLOOKUP(A20,RPI!A:C,3,FALSE) -> 0.3961509844 | U20: Actual Margin (All): | V20: =SUM(K8:K33) -> 50
A21: Richmond | B21: 9 | C21: 8 | D21: W | E21: 0 | F21: A | G21: 0.5 | H21: =NORMDIST(0,G21,Games!$C$539,TRUE) -> 0.4450125419 | I21: =VLOOKUP(A21,Sheet1!A:K,5,FALSE) -> 34 | J21: L | K21: 1 | L21: =ROUND(((VLOOKUP(A21,Sheet1!$A:$J,4,FALSE))-(VLOOKUP($B$1,Sheet1!$A:$J,4,FALSE)))/0.5,0)*0.5 -> -1 | M21: =ROUND(((VLOOKUP(A21,Sheet1!$A:$J,4,FALSE))-(VLOOKUP($B$1,Sheet1!$A:$J,4,FALSE))+Games!$C$542)/0.5,0)*0.5 -> 0.5 | N21: =ROUND(((VLOOKUP(A21,Sheet1!$A:$J,4,FALSE))-(VLOOKUP($B$1,Sheet1!$A:$J,4,FALSE))-Games!$C$542)/0.5,0)*0.5 -> -2 | O21: =VLOOKUP(A21,Sheet1!$A:$M,13,FALSE) -> Southern | P21: =IF(K21<>0,VLOOKUP(A21,Sheet1!A:H,7,FALSE),"#N/A") -> 8.625 | Q21: =IF(K21<>0,VLOOKUP(A21,Sheet1!A:H,8,FALSE),"#N/A") -> 7.4375 | R21: =IF(K21<>0,((COUNTIFS(Games!A:A,A21,Games!F:F,"W")+COUNTIFS(Games!B:B,A21,Games!F:F,"L")-COUNTIFS(Games!A:A,A21,Games!B:B,$B$1,Games!F:F,"W")-COUNTIFS(Games!$B:$B,A21,Games!$A:$A,$B$1,Games!F:F,"L"))/(COUNTIFS(Games!A:A,A21)+COUNTIF(Games!B:B,A21)-COUNTIFS(Games!A:A,A21,Games!B:B,$B$1)-COUNTIFS(Games!B:B,A21,Games!A:A,$B$1))),"#DIV/0!") -> 0.7857142857 | S21: =VLOOKUP(A21,RPI!A:C,3,FALSE) -> 0.510830943 | U21: Predicted Margin (All): | V21: =-SUMIFS(G8:G33,G8:G33,"<>#N/A",K8:K33,"<>0") -> 45
A22: Jacksonville | B22: 11 | C22: 6 | D22: W | E22: 0 | F22: A | G22: -5 | H22: =NORMDIST(0,G22,Games!$C$539,TRUE) -> 0.9166253494 | I22: =VLOOKUP(A22,Sheet1!A:K,5,FALSE) -> 64 | J22: W | K22: 5 | L22: =ROUND(((VLOOKUP(A22,Sheet1!$A:$J,4,FALSE))-(VLOOKUP($B$1,Sheet1!$A:$J,4,FALSE)))/0.5,0)*0.5 -> -6.5 | M22: =ROUND(((VLOOKUP(A22,Sheet1!$A:$J,4,FALSE))-(VLOOKUP($B$1,Sheet1!$A:$J,4,FALSE))+Games!$C$542)/0.5,0)*0.5 -> -5 | N22: =ROUND(((VLOOKUP(A22,Sheet1!$A:$J,4,FALSE))-(VLOOKUP($B$1,Sheet1!$A:$J,4,FALSE))-Games!$C$542)/0.5,0)*0.5 -> -7.5 | O22: =VLOOKUP(A22,Sheet1!$A:$M,13,FALSE) -> Southern | P22: =IF(K22<>0,VLOOKUP(A22,Sheet1!A:H,7,FALSE),"#N/A") -> 8.230769231 | Q22: =IF(K22<>0,VLOOKUP(A22,Sheet1!A:H,8,FALSE),"#N/A") -> 11.38461538 | R22: =IF(K22<>0,((COUNTIFS(Games!A:A,A22,Games!F:F,"W")+COUNTIFS(Games!B:B,A22,Games!F:F,"L")-COUNTIFS(Games!A:A,A22,Games!B:B,$B$1,Games!F:F,"W")-COUNTIFS(Games!$B:$B,A22,Games!$A:$A,$B$1,Games!F:F,"L"))/(COUNTIFS(Games!A:A,A22)+COUNTIF(Games!B:B,A22)-COUNTIFS(Games!A:A,A22,Games!B:B,$B$1)-COUNTIFS(Games!B:B,A22,Games!A:A,$B$1))),"#DIV/0!") -> 0.25 | S22: =VLOOKUP(A22,RPI!A:C,3,FALSE) -> 0.4000495168
A23: Bellarmine | B23: 10 | C23: 8 | D23: W | E23: 0 | F23: N | G23: -3 | H23: =NORMDIST(0,G23,Games!$C$539,TRUE) -> 0.7966273549 | I23: =VLOOKUP(A23,Sheet1!A:K,5,FALSE) -> 47 | J23: W | K23: 2 | L23: =ROUND(((VLOOKUP(A23,Sheet1!$A:$J,4,FALSE))-(VLOOKUP($B$1,Sheet1!$A:$J,4,FALSE)))/0.5,0)*0.5 -> -3 | M23: =ROUND(((VLOOKUP(A23,Sheet1!$A:$J,4,FALSE))-(VLOOKUP($B$1,Sheet1!$A:$J,4,FALSE))+Games!$C$542)/0.5,0)*0.5 -> -1.5 | N23: =ROUND(((VLOOKUP(A23,Sheet1!$A:$J,4,FALSE))-(VLOOKUP($B$1,Sheet1!$A:$J,4,FALSE))-Games!$C$542)/0.5,0)*0.5 -> -4 | O23: =VLOOKUP(A23,Sheet1!$A:$M,13,FALSE) -> Southern | P23: =IF(K23<>0,VLOOKUP(A23,Sheet1!A:H,7,FALSE),"#N/A") -> 8.6 | Q23: =IF(K23<>0,VLOOKUP(A23,Sheet1!A:H,8,FALSE),"#N/A") -> 9.133333333 | R23: =IF(K23<>0,((COUNTIFS(Games!A:A,A23,Games!F:F,"W")+COUNTIFS(Games!B:B,A23,Games!F:F,"L")-COUNTIFS(Games!A:A,A23,Games!B:B,$B$1,Games!F:F,"W")-COUNTIFS(Games!$B:$B,A23,Games!$A:$A,$B$1,Games!F:F,"L"))/(COUNTIFS(Games!A:A,A23)+COUNTIF(Games!B:B,A23)-COUNTIFS(Games!A:A,A23,Games!B:B,$B$1)-COUNTIFS(Games!B:B,A23,Games!A:A,$B$1))),"#DIV/0!") -> 0.4615384615 | S23: =VLOOKUP(A23,RPI!A:C,3,FALSE) -> 0.5121334221 | U23: Actual Win % (Conf.): | V23: =COUNTIFS(D8:D33,"W",O8:O33,B3)/(COUNTIFS(D8:D33,"W",O8:O33,B3)+(COUNTIFS(E8:E33,"L",O8:O33,B3))) -> 1
A24: Richmond | B24: 9 | C24: 8 | D24: W | E24: 0 | F24: A | G24: 0.5 | H24: =NORMDIST(0,G24,Games!$C$539,TRUE) -> 0.4450125419 | I24: =VLOOKUP(A24,Sheet1!A:K,5,FALSE) -> 34 | K24: 1 | L24: =ROUND(((VLOOKUP(A24,Sheet1!$A:$J,4,FALSE))-(VLOOKUP($B$1,Sheet1!$A:$J,4,FALSE)))/0.5,0)*0.5 -> -1 | M24: =ROUND(((VLOOKUP(A24,Sheet1!$A:$J,4,FALSE))-(VLOOKUP($B$1,Sheet1!$A:$J,4,FALSE))+Games!$C$542)/0.5,0)*0.5 -> 0.5 | N24: =ROUND(((VLOOKUP(A24,Sheet1!$A:$J,4,FALSE))-(VLOOKUP($B$1,Sheet1!$A:$J,4,FALSE))-Games!$C$542)/0.5,0)*0.5 -> -2 | O24: =VLOOKUP(A24,Sheet1!$A:$M,13,FALSE) -> Southern | P24: =IF(K24<>0,VLOOKUP(A24,Sheet1!A:H,7,FALSE),"#N/A") -> 8.625 | Q24: =IF(K24<>0,VLOOKUP(A24,Sheet1!A:H,8,FALSE),"#N/A") -> 7.4375 | R24: =IF(K24<>0,((COUNTIFS(Games!A:A,A24,Games!F:F,"W")+COUNTIFS(Games!B:B,A24,Games!F:F,"L")-COUNTIFS(Games!A:A,A24,Games!B:B,$B$1,Games!F:F,"W")-COUNTIFS(Games!$B:$B,A24,Games!$A:$A,$B$1,Games!F:F,"L"))/(COUNTIFS(Games!A:A,A24)+COUNTIF(Games!B:B,A24)-COUNTIFS(Games!A:A,A24,Games!B:B,$B$1)-COUNTIFS(Games!B:B,A24,Games!A:A,$B$1))),"#DIV/0!") -> 0.7857142857 | S24: =IF(K24<>0,VLOOKUP(A24,RPI!A:C,3,FALSE),"#N/A") -> 0.510830943 | U24: Expected SRS Win % (Conf.): | V24: =SUMIFS(H8:H33,H8:H33,"<>N/A",K8:K33,"<>0",O8:O33,B3)/(COUNTIFS(K8:K33,"<>0",O8:O33,B3)) -> 0.7802406961
A25: Notre Dame | D25: 0 | E25: 0 | F25: A | G25: 5.5 | H25: =NORMDIST(0,G25,Games!$C$539,TRUE) -> 0.06413027641 | I25: =VLOOKUP(A25,Sheet1!A:K,5,FALSE) -> 2 | K25: 0 | L25: =ROUND(((VLOOKUP(A25,Sheet1!$A:$J,4,FALSE))-(VLOOKUP($B$1,Sheet1!$A:$J,4,FALSE)))/0.5,0)*0.5 -> 4.5 | M25: =ROUND(((VLOOKUP(A25,Sheet1!$A:$J,4,FALSE))-(VLOOKUP($B$1,Sheet1!$A:$J,4,FALSE))+Games!$C$542)/0.5,0)*0.5 -> 5.5 | N25: =ROUND(((VLOOKUP(A25,Sheet1!$A:$J,4,FALSE))-(VLOOKUP($B$1,Sheet1!$A:$J,4,FALSE))-Games!$C$542)/0.5,0)*0.5 -> 3 | O25: =VLOOKUP(A25,Sheet1!$A:$M,13,FALSE) -> ACC | P25: =IF(K25<>0,VLOOKUP(A25,Sheet1!A:H,7,FALSE),"#N/A") -> #N/A | Q25: =IF(K25<>0,VLOOKUP(A25,Sheet1!A:H,8,FALSE),"#N/A") -> #N/A | R25: =IF(K25<>0,((COUNTIFS(Games!A:A,A25,Games!F:F,"W")+COUNTIFS(Games!B:B,A25,Games!F:F,"L")-COUNTIFS(Games!A:A,A25,Games!B:B,$B$1,Games!F:F,"W")-COUNTIFS(Games!$B:$B,A25,Games!$A:$A,$B$1,Games!F:F,"L"))/(COUNTIFS(Games!A:A,A25)+COUNTIF(Games!B:B,A25)-COUNTIFS(Games!A:A,A25,Games!B:B,$B$1)-COUNTIFS(Games!B:B,A25,Games!A:A,$B$1))),"#DIV/0!") -> #DIV/0! | S25: =IF(K25<>0,VLOOKUP(A25,RPI!A:C,3,FALSE),"#N/A") -> #N/A | U25: Wins +/- Expectation (Conf.): | V25: =(V23*(COUNTIFS(G8:G33,"<>#N/A",O8:O33,B3)))-(V24*(COUNTIFS(G8:G33,"<>#N/A",O8:O33,B3))) -> 1.977833735
D26: 0 | E26: 0 | H26: =NORMDIST(0,G26,Games!$C$539,TRUE) ->  | I26: =VLOOKUP(A26,Sheet1!A:K,5,FALSE) ->  | K26: 0 | L26: =(VLOOKUP(A26,Sheet1!$A:$J,4,FALSE))-(VLOOKUP($B$1,Sheet1!$A:$J,4,FALSE)) ->  | M26: =(VLOOKUP(A26,Sheet1!$A:$J,4,FALSE))-(VLOOKUP($B$1,Sheet1!$A:$J,4,FALSE))+Games!$C$542 ->  | N26: =(VLOOKUP(A26,Sheet1!$A:$J,4,FALSE))-(VLOOKUP($B$1,Sheet1!$A:$J,4,FALSE))-Games!$C$542 ->  | O26: =VLOOKUP(A26,Sheet1!$A:$M,13,FALSE) ->  | P26: =IF(K26<>0,VLOOKUP(A26,Sheet1!A:H,7,FALSE),"#N/A") -> #N/A | Q26: =IF(K26<>0,VLOOKUP(A26,Sheet1!A:H,8,FALSE),"#N/A") -> #N/A | R26: =IF(K26<>0,((COUNTIFS(Games!A:A,A26,Games!F:F,"W")+COUNTIFS(Games!B:B,A26,Games!F:F,"L")-COUNTIFS(Games!A:A,A26,Games!B:B,$B$1,Games!F:F,"W")-COUNTIFS(Games!$B:$B,A26,Games!$A:$A,$B$1,Games!F:F,"L"))/(COUNTIFS(Games!A:A,A26)+COUNTIF(Games!B:B,A26)-COUNTIFS(Games!A:A,A26,Games!B:B,$B$1)-COUNTIFS(Games!B:B,A26,Games!A:A,$B$1))),"#DIV/0!") -> #DIV/0! | S26: =IF(K26<>0,VLOOKUP(A26,RPI!A:C,3,FALSE),"#N/A") -> #N/A | U26: Expected Remaining Wins (Conf.): | V26: =SUMIFS(H8:H33,G8:G33,"<>#N/A",K8:K33,"0",O8:O33,B3) -> 0
D27: 0 | E27: 0 | H27: =NORMDIST(0,G27,Games!$C$539,TRUE) ->  | I27: =VLOOKUP(A27,Sheet1!A:K,5,FALSE) ->  | K27: 0 | L27: =(VLOOKUP(A27,Sheet1!$A:$J,4,FALSE))-(VLOOKUP($B$1,Sheet1!$A:$J,4,FALSE)) ->  | M27: =(VLOOKUP(A27,Sheet1!$A:$J,4,FALSE))-(VLOOKUP($B$1,Sheet1!$A:$J,4,FALSE))+Games!$C$542 ->  | N27: =(VLOOKUP(A27,Sheet1!$A:$J,4,FALSE))-(VLOOKUP($B$1,Sheet1!$A:$J,4,FALSE))-Games!$C$542 ->  | O27: =VLOOKUP(A27,Sheet1!$A:$M,13,FALSE) ->  | P27: =IF(K27<>0,VLOOKUP(A27,Sheet1!A:H,7,FALSE),"#N/A") -> #N/A | Q27: =IF(K27<>0,VLOOKUP(A27,Sheet1!A:H,8,FALSE),"#N/A") -> #N/A | R27: =IF(K27<>0,((COUNTIFS(Games!A:A,A27,Games!F:F,"W")+COUNTIFS(Games!B:B,A27,Games!F:F,"L")-COUNTIFS(Games!A:A,A27,Games!B:B,$B$1,Games!F:F,"W")-COUNTIFS(Games!$B:$B,A27,Games!$A:$A,$B$1,Games!F:F,"L"))/(COUNTIFS(Games!A:A,A27)+COUNTIF(Games!B:B,A27)-COUNTIFS(Games!A:A,A27,Games!B:B,$B$1)-COUNTIFS(Games!B:B,A27,Games!A:A,$B$1))),"#DIV/0!") -> #DIV/0! | S27: =IF(K27<>0,VLOOKUP(A27,RPI!A:C,3,FALSE),"#N/A") -> #N/A | U27: Actual Margin (Conf.): | V27: =SUMIFS(K8:K33,O8:O33,B3) -> 41
D28: 0 | E28: 0 | H28: =NORMDIST(0,G28,Games!$C$539,TRUE) ->  | I28: =VLOOKUP(A28,Sheet1!A:K,5,FALSE) ->  | K28: 0 | L28: =(VLOOKUP(A28,Sheet1!$A:$J,4,FALSE))-(VLOOKUP($B$1,Sheet1!$A:$J,4,FALSE)) ->  | M28: =(VLOOKUP(A28,Sheet1!$A:$J,4,FALSE))-(VLOOKUP($B$1,Sheet1!$A:$J,4,FALSE))+Games!$C$542 ->  | N28: =(VLOOKUP(A28,Sheet1!$A:$J,4,FALSE))-(VLOOKUP($B$1,Sheet1!$A:$J,4,FALSE))-Games!$C$542 ->  | O28: =VLOOKUP(A28,Sheet1!$A:$M,13,FALSE) ->  | P28: =IF(K28<>0,VLOOKUP(A28,Sheet1!A:H,7,FALSE),"#N/A") -> #N/A | Q28: =IF(K28<>0,VLOOKUP(A28,Sheet1!A:H,8,FALSE),"#N/A") -> #N/A | R28: =IF(K28<>0,((COUNTIFS(Games!A:A,A28,Games!F:F,"W")+COUNTIFS(Games!B:B,A28,Games!F:F,"L")-COUNTIFS(Games!A:A,A28,Games!B:B,$B$1,Games!F:F,"W")-COUNTIFS(Games!$B:$B,A28,Games!$A:$A,$B$1,Games!F:F,"L"))/(COUNTIFS(Games!A:A,A28)+COUNTIF(Games!B:B,A28)-COUNTIFS(Games!A:A,A28,Games!B:B,$B$1)-COUNTIFS(Games!B:B,A28,Games!A:A,$B$1))),"#DIV/0!") -> #DIV/0! | S28: =IF(K28<>0,VLOOKUP(A28,RPI!A:C,3,FALSE),"#N/A") -> #N/A | U28: Predicted Margin (Conf.): | V28: =-SUMIFS(G8:G33,G8:G33,"<>#N/A",K8:K33,"<>0",O8:O33,B3) -> 37
D29: 0 | E29: 0 | H29: =NORMDIST(0,G29,Games!$C$539,TRUE) ->  | I29: =VLOOKUP(A29,Sheet1!A:K,5,FALSE) ->  | K29: 0 | L29: =(VLOOKUP(A29,Sheet1!$A:$J,4,FALSE))-(VLOOKUP($B$1,Sheet1!$A:$J,4,FALSE)) ->  | M29: =(VLOOKUP(A29,Sheet1!$A:$J,4,FALSE))-(VLOOKUP($B$1,Sheet1!$A:$J,4,FALSE))+Games!$C$542 ->  | N29: =(VLOOKUP(A29,Sheet1!$A:$J,4,FALSE))-(VLOOKUP($B$1,Sheet1!$A:$J,4,FALSE))-Games!$C$542 ->  | O29: =VLOOKUP(A29,Sheet1!$A:$M,13,FALSE) ->  | P29: =IF(K29<>0,VLOOKUP(A29,Sheet1!A:H,7,FALSE),"#N/A") -> #N/A | Q29: =IF(K29<>0,VLOOKUP(A29,Sheet1!A:H,8,FALSE),"#N/A") -> #N/A | R29: =IF(K29<>0,((COUNTIFS(Games!A:A,A29,Games!F:F,"W")+COUNTIFS(Games!B:B,A29,Games!F:F,"L")-COUNTIFS(Games!A:A,A29,Games!B:B,$B$1,Games!F:F,"W")-COUNTIFS(Games!$B:$B,A29,Games!$A:$A,$B$1,Games!F:F,"L"))/(COUNTIFS(Games!A:A,A29)+COUNTIF(Games!B:B,A29)-COUNTIFS(Games!A:A,A29,Games!B:B,$B$1)-COUNTIFS(Games!B:B,A29,Games!A:A,$B$1))),"#DIV/0!") -> #DIV/0! | S29: =IF(K29<>0,VLOOKUP(A29,RPI!A:C,3,FALSE),"#N/A") -> #N/A
D30: 0 | E30: 0 | H30: =NORMDIST(0,G30,Games!$C$539,TRUE) ->  | I30: =VLOOKUP(A30,Sheet1!A:K,5,FALSE) ->  | K30: 0 | L30: =(VLOOKUP(A30,Sheet1!$A:$J,4,FALSE))-(VLOOKUP($B$1,Sheet1!$A:$J,4,FALSE)) ->  | M30: =(VLOOKUP(A30,Sheet1!$A:$J,4,FALSE))-(VLOOKUP($B$1,Sheet1!$A:$J,4,FALSE))+Games!$C$542 ->  | N30: =(VLOOKUP(A30,Sheet1!$A:$J,4,FALSE))-(VLOOKUP($B$1,Sheet1!$A:$J,4,FALSE))-Games!$C$542 ->  | O30: =VLOOKUP(A30,Sheet1!$A:$M,13,FALSE) ->  | P30: =IF(K30<>0,VLOOKUP(A30,Sheet1!A:H,7,FALSE),"#N/A") -> #N/A | Q30: =IF(K30<>0,VLOOKUP(A30,Sheet1!A:H,8,FALSE),"#N/A") -> #N/A | R30: =IF(K30<>0,((COUNTIFS(Games!A:A,A30,Games!F:F,"W")+COUNTIFS(Games!B:B,A30,Games!F:F,"L")-COUNTIFS(Games!A:A,A30,Games!B:B,$B$1,Games!F:F,"W")-COUNTIFS(Games!$B:$B,A30,Games!$A:$A,$B$1,Games!F:F,"L"))/(COUNTIFS(Games!A:A,A30)+COUNTIF(Games!B:B,A30)-COUNTIFS(Games!A:A,A30,Games!B:B,$B$1)-COUNTIFS(Games!B:B,A30,Games!A:A,$B$1))),"#DIV/0!") -> #DIV/0! | S30: =IF(K30<>0,VLOOKUP(A30,RPI!A:C,3,FALSE),"#N/A") -> #N/A | U30: Avg. Goals For per Game (All): | V30: =AVERAGEIF(K8:K33,"<>#N/A",B8:B33) -> 10.23529412
D31: 0 | E31: 0 | H31: =NORMDIST(0,G31,Games!$C$539,TRUE) ->  | I31: =VLOOKUP(A31,Sheet1!A:K,5,FALSE) ->  | K31: 0 | L31: =(VLOOKUP(A31,Sheet1!$A:$J,4,FALSE))-(VLOOKUP($B$1,Sheet1!$A:$J,4,FALSE)) ->  | M31: =(VLOOKUP(A31,Sheet1!$A:$J,4,FALSE))-(VLOOKUP($B$1,Sheet1!$A:$J,4,FALSE))+Games!$C$542 ->  | N31: =(VLOOKUP(A31,Sheet1!$A:$J,4,FALSE))-(VLOOKUP($B$1,Sheet1!$A:$J,4,FALSE))-Games!$C$542 ->  | O31: =VLOOKUP(A31,Sheet1!$A:$M,13,FALSE) ->  | P31: =IF(K31<>0,VLOOKUP(A31,Sheet1!A:H,7,FALSE),"#N/A") -> #N/A | Q31: =IF(K31<>0,VLOOKUP(A31,Sheet1!A:H,8,FALSE),"#N/A") -> #N/A | R31: =IF(K31<>0,((COUNTIFS(Games!A:A,A31,Games!F:F,"W")+COUNTIFS(Games!B:B,A31,Games!F:F,"L")-COUNTIFS(Games!A:A,A31,Games!B:B,$B$1,Games!F:F,"W")-COUNTIFS(Games!$B:$B,A31,Games!$A:$A,$B$1,Games!F:F,"L"))/(COUNTIFS(Games!A:A,A31)+COUNTIF(Games!B:B,A31)-COUNTIFS(Games!A:A,A31,Games!B:B,$B$1)-COUNTIFS(Games!B:B,A31,Games!A:A,$B$1))),"#DIV/0!") -> #DIV/0! | S31: =IF(K31<>0,VLOOKUP(A31,RPI!A:C,3,FALSE),"#N/A") -> #N/A | U31: Avg. Goals Against per Game (All): | V31: =AVERAGEIF(K8:K33,"<>#N/A",C8:C33) -> 7.294117647
D32: 0 | E32: 0 | H32: =NORMDIST(0,G32,Games!$C$539,TRUE) ->  | I32: =VLOOKUP(A32,Sheet1!A:K,5,FALSE) ->  | K32: 0 | L32: =(VLOOKUP(A32,Sheet1!$A:$J,4,FALSE))-(VLOOKUP($B$1,Sheet1!$A:$J,4,FALSE)) ->  | M32: =(VLOOKUP(A32,Sheet1!$A:$J,4,FALSE))-(VLOOKUP($B$1,Sheet1!$A:$J,4,FALSE))+Games!$C$542 ->  | N32: =(VLOOKUP(A32,Sheet1!$A:$J,4,FALSE))-(VLOOKUP($B$1,Sheet1!$A:$J,4,FALSE))-Games!$C$542 ->  | O32: =VLOOKUP(A32,Sheet1!$A:$M,13,FALSE) ->  | P32: =IF(K32<>0,VLOOKUP(A32,Sheet1!A:H,7,FALSE),"#N/A") -> #N/A | Q32: =IF(K32<>0,VLOOKUP(A32,Sheet1!A:H,8,FALSE),"#N/A") -> #N/A | R32: =IF(K32<>0,((COUNTIFS(Games!A:A,A32,Games!F:F,"W")+COUNTIFS(Games!B:B,A32,Games!F:F,"L")-COUNTIFS(Games!A:A,A32,Games!B:B,$B$1,Games!F:F,"W")-COUNTIFS(Games!$B:$B,A32,Games!$A:$A,$B$1,Games!F:F,"L"))/(COUNTIFS(Games!A:A,A32)+COUNTIF(Games!B:B,A32)-COUNTIFS(Games!A:A,A32,Games!B:B,$B$1)-COUNTIFS(Games!B:B,A32,Games!A:A,$B$1))),"#DIV/0!") -> #DIV/0! | S32: =IF(K32<>0,VLOOKUP(A32,RPI!A:C,3,FALSE),"#N/A") -> #N/A | U32: Avg. Goals For per Game (Conf.): | V32: =AVERAGEIFS(B8:B33,K8:K33,"<>#N/A",O8:O33,B3) -> 11.33333333
D33: 0 | E33: 0 | H33: =NORMDIST(0,G33,Games!$C$539,TRUE) ->  | I33: =VLOOKUP(A33,Sheet1!A:K,5,FALSE) ->  | K33: 0 | L33: =(VLOOKUP(A33,Sheet1!$A:$J,4,FALSE))-(VLOOKUP($B$1,Sheet1!$A:$J,4,FALSE)) ->  | M33: =(VLOOKUP(A33,Sheet1!$A:$J,4,FALSE))-(VLOOKUP($B$1,Sheet1!$A:$J,4,FALSE))+Games!$C$542 ->  | N33: =(VLOOKUP(A33,Sheet1!$A:$J,4,FALSE))-(VLOOKUP($B$1,Sheet1!$A:$J,4,FALSE))-Games!$C$542 ->  | O33: =VLOOKUP(A33,Sheet1!$A:$M,13,FALSE) ->  | P33: =IF(K33<>0,VLOOKUP(A33,Sheet1!A:H,7,FALSE),"#N/A") -> #N/A | Q33: =IF(K33<>0,VLOOKUP(A33,Sheet1!A:H,8,FALSE),"#N/A") -> #N/A | R33: =IF(K33<>0,((COUNTIFS(Games!A:A,A33,Games!F:F,"W")+COUNTIFS(Games!B:B,A33,Games!F:F,"L")-COUNTIFS(Games!A:A,A33,Games!B:B,$B$1,Games!F:F,"W")-COUNTIFS(Games!$B:$B,A33,Games!$A:$A,$B$1,Games!F:F,"L"))/(COUNTIFS(Games!A:A,A33)+COUNTIF(Games!B:B,A33)-COUNTIFS(Games!A:A,A33,Games!B:B,$B$1)-COUNTIFS(Games!B:B,A33,Games!A:A,$B$1))),"#DIV/0!") -> #DIV/0! | S33: =IF(K33<>0,VLOOKUP(A33,RPI!A:C,3,FALSE),"#N/A") -> #N/A | U33: Avg. Goals Against per Game (Conf.): | V33: =AVERAGEIFS(C8:C33,K8:K33,"<>#N/A",O8:O33,B3) -> 6.777777778
P34: =AVERAGEIF(P8:P33,"<>#N/A",P8:P33) -> 9.113668929 | Q34: =AVERAGEIF(Q8:Q33,"<>#N/A",Q8:Q33) -> 10.11945073 | R34: =AVERAGEIF(R8:R33,"<>#DIV/0!",R8:R33) -> 0.4583890158 | S34: =AVERAGEIF(S8:S33,"<>#N/A",S8:S33) -> 0.4964887783

Sheet Albany
A1: Team: | B1: Albany
A2: Season: | B2: 2016
A3: Conference: | B3: America East
A5: 2016 Schedule | U5: TEAM PROFILE
A7: Opponent | B7: =B1 -> Albany | C7: Opponent | D7: Win | E7: Loss | F7: Site | G7: Pred. Spread | H7: Win Prob. % | I7: Opp. SRS Ranking | L7: Neutral | M7: Away | N7: Home | O7: League | P7: Opp.GF | Q7: Opp.GA | R7: Opp. Rec | S7: Opp Opp Rec | U7: All Record: | V7: =(COUNTIF(D8:D33,"W")&"-"&(COUNTIF(E8:E33,"L"))) -> 12-3
A8: Syracuse | B8: 7 | C8: 16 | D8: =IF(B8>0, IF(B8>C8,"W",0),0) -> 0 | E8: =IF(C8>0, IF(C8>B8,"L",0),0) -> L | F8: A | G8: =IF(F8="N",L8,IF(F8="A",M8,N8)) -> 3 | H8: =NORMDIST(0,G8,Games!$C$539,TRUE) -> 0.2033726451 | I8: =VLOOKUP(A8,Sheet1!A:K,5,FALSE) -> 5 | J8: =IF(H8>0.5,"W","L") -> L | K8: =B8-C8 -> -9 | L8: =ROUND(((VLOOKUP(A8,Sheet1!$A:$J,4,FALSE))-(VLOOKUP($B$1,Sheet1!$A:$J,4,FALSE)))/0.5,0)*0.5 -> 1.5 | M8: =ROUND(((VLOOKUP(A8,Sheet1!$A:$J,4,FALSE))-(VLOOKUP($B$1,Sheet1!$A:$J,4,FALSE))+Games!$C$542)/0.5,0)*0.5 -> 3 | N8: =ROUND(((VLOOKUP(A8,Sheet1!$A:$J,4,FALSE))-(VLOOKUP($B$1,Sheet1!$A:$J,4,FALSE))-Games!$C$542)/0.5,0)*0.5 -> 0.5 | O8: =VLOOKUP(A8,Sheet1!$A:$M,13,FALSE) -> ACC | P8: =IF(K8<>0,VLOOKUP(A8,Sheet1!A:H,7,FALSE),"#N/A") -> 12.93333333 | Q8: =IF(K8<>0,VLOOKUP(A8,Sheet1!A:H,8,FALSE),"#N/A") -> 8.466666667 | R8: =IF(K8<>0,((COUNTIFS(Games!A:A,A8,Games!F:F,"W")+COUNTIFS(Games!B:B,A8,Games!F:F,"L")-COUNTIFS(Games!A:A,A8,Games!B:B,$B$1,Games!F:F,"W")-COUNTIFS(Games!$B:$B,A8,Games!$A:$A,$B$1,Games!F:F,"L"))/(COUNTIFS(Games!A:A,A8)+COUNTIF(Games!B:B,A8)-COUNTIFS(Games!A:A,A8,Games!B:B,$B$1)-COUNTIFS(Games!B:B,A8,Games!A:A,$B$1))),"#DIV/0!") -> 0.7142857143 | S8: =VLOOKUP(A8,RPI!A:C,3,FALSE) -> 0.5304334554 | U8: Conf. Record: | V8: =(COUNTIFS(D8:D33,"W",O8:O33,B3)&"-"&(COUNTIFS(E8:E33,"L",O8:O33,B3))) -> 6-1
A9: Drexel | B9: 20 | C9: 14 | D9: =IF(B9>0, IF(B9>C9,"W",0),0) -> W | E9: =IF(C9>0, IF(C9>B9,"L",0),0) -> 0 | F9: H | G9: =IF(F9="N",L9,IF(F9="A",M9,N9)) -> -4.5 | H9: =NORMDIST(0,G9,Games!$C$539,TRUE) -> 0.8933334117 | I9: =VLOOKUP(A9,Sheet1!A:K,5,FALSE) -> 32 | J9: =IF(H9>0.5,"W","L") -> W | K9: =B9-C9 -> 6 | L9: =ROUND(((VLOOKUP(A9,Sheet1!$A:$J,4,FALSE))-(VLOOKUP($B$1,Sheet1!$A:$J,4,FALSE)))/0.5,0)*0.5 -> -3 | M9: =ROUND(((VLOOKUP(A9,Sheet1!$A:$J,4,FALSE))-(VLOOKUP($B$1,Sheet1!$A:$J,4,FALSE))+Games!$C$542)/0.5,0)*0.5 -> -2 | N9: =ROUND(((VLOOKUP(A9,Sheet1!$A:$J,4,FALSE))-(VLOOKUP($B$1,Sheet1!$A:$J,4,FALSE))-Games!$C$542)/0.5,0)*0.5 -> -4.5 | O9: =VLOOKUP(A9,Sheet1!$A:$M,13,FALSE) -> CAA | P9: =IF(K9<>0,VLOOKUP(A9,Sheet1!A:H,7,FALSE),"#N/A") -> 8.933333333 | Q9: =IF(K9<>0,VLOOKUP(A9,Sheet1!A:H,8,FALSE),"#N/A") -> 9.466666667 | R9: =IF(K9<>0,((COUNTIFS(Games!A:A,A9,Games!F:F,"W")+COUNTIFS(Games!B:B,A9,Games!F:F,"L")-COUNTIFS(Games!A:A,A9,Games!B:B,$B$1,Games!F:F,"W")-COUNTIFS(Games!$B:$B,A9,Games!$A:$A,$B$1,Games!F:F,"L"))/(COUNTIFS(Games!A:A,A9)+COUNTIF(Games!B:B,A9)-COUNTIFS(Games!A:A,A9,Games!B:B,$B$1)-COUNTIFS(Games!B:B,A9,Games!A:A,$B$1))),"#DIV/0!") -> 0.4285714286 | S9: =VLOOKUP(A9,RPI!A:C,3,FALSE) -> 0.5658730159 | U9: SRS Value: | V9: =VLOOKUP(B1,Sheet1!$A:$L,4,FALSE) -> 3.798556055
A10: Cornell | B10: 12 | C10: 8 | D10: W | E10: 0 | F10: H | G10: -4 | H10: =NORMDIST(0,G10,Games!$C$539,TRUE) -> 0.8656756359 | I10: =VLOOKUP(A10,Sheet1!A:K,5,FALSE) -> 30 | J10: W | K10: 4 | L10: =ROUND(((VLOOKUP(A10,Sheet1!$A:$J,4,FALSE))-(VLOOKUP($B$1,Sheet1!$A:$J,4,FALSE)))/0.5,0)*0.5 -> -3 | M10: =ROUND(((VLOOKUP(A10,Sheet1!$A:$J,4,FALSE))-(VLOOKUP($B$1,Sheet1!$A:$J,4,FALSE))+Games!$C$542)/0.5,0)*0.5 -> -1.5 | N10: =ROUND(((VLOOKUP(A10,Sheet1!$A:$J,4,FALSE))-(VLOOKUP($B$1,Sheet1!$A:$J,4,FALSE))-Games!$C$542)/0.5,0)*0.5 -> -4 | O10: =VLOOKUP(A10,Sheet1!$A:$M,13,FALSE) -> Ivy | P10: =IF(K10<>0,VLOOKUP(A10,Sheet1!A:H,7,FALSE),"#N/A") -> 9.307692308 | Q10: =IF(K10<>0,VLOOKUP(A10,Sheet1!A:H,8,FALSE),"#N/A") -> 10.23076923 | R10: =IF(K10<>0,((COUNTIFS(Games!A:A,A10,Games!F:F,"W")+COUNTIFS(Games!B:B,A10,Games!F:F,"L")-COUNTIFS(Games!A:A,A10,Games!B:B,$B$1,Games!F:F,"W")-COUNTIFS(Games!$B:$B,A10,Games!$A:$A,$B$1,Games!F:F,"L"))/(COUNTIFS(Games!A:A,A10)+COUNTIF(Games!B:B,A10)-COUNTIFS(Games!A:A,A10,Games!B:B,$B$1)-COUNTIFS(Games!B:B,A10,Games!A:A,$B$1))),"#DIV/0!") -> 0.5 | S10: =VLOOKUP(A10,RPI!A:C,3,FALSE) -> 0.5442378135 | U10: SRS Ranking (NCAA): | V10: =VLOOKUP(B1,Sheet1!A:J,5,FALSE) -> 11
A11: Massachusetts | B11: 16 | C11: 4 | D11: W | E11: 0 | F11: A | G11: -1.5 | H11: =NORMDIST(0,G11,Games!$C$539,TRUE) -> 0.6608622111 | I11: =VLOOKUP(A11,Sheet1!A:K,5,FALSE) -> 28 | J11: W | K11: 12 | L11: =ROUND(((VLOOKUP(A11,Sheet1!$A:$J,4,FALSE))-(VLOOKUP($B$1,Sheet1!$A:$J,4,FALSE)))/0.5,0)*0.5 -> -2.5 | M11: =ROUND(((VLOOKUP(A11,Sheet1!$A:$J,4,FALSE))-(VLOOKUP($B$1,Sheet1!$A:$J,4,FALSE))+Games!$C$542)/0.5,0)*0.5 -> -1.5 | N11: =ROUND(((VLOOKUP(A11,Sheet1!$A:$J,4,FALSE))-(VLOOKUP($B$1,Sheet1!$A:$J,4,FALSE))-Games!$C$542)/0.5,0)*0.5 -> -4 | O11: =VLOOKUP(A11,Sheet1!$A:$M,13,FALSE) -> CAA | P11: =IF(K11<>0,VLOOKUP(A11,Sheet1!A:H,7,FALSE),"#N/A") -> 8.615384615 | Q11: =IF(K11<>0,VLOOKUP(A11,Sheet1!A:H,8,FALSE),"#N/A") -> 9.846153846 | R11: =IF(K11<>0,((COUNTIFS(Games!A:A,A11,Games!F:F,"W")+COUNTIFS(Games!B:B,A11,Games!F:F,"L")-COUNTIFS(Games!A:A,A11,Games!B:B,$B$1,Games!F:F,"W")-COUNTIFS(Games!$B:$B,A11,Games!$A:$A,$B$1,Games!F:F,"L"))/(COUNTIFS(Games!A:A,A11)+COUNTIF(Games!B:B,A11)-COUNTIFS(Games!A:A,A11,Games!B:B,$B$1)-COUNTIFS(Games!B:B,A11,Games!A:A,$B$1))),"#DIV/0!") -> 0.3333333333 | S11: =VLOOKUP(A11,RPI!A:C,3,FALSE) -> 0.5874471682 | U11: SRS Ranking (Conf.): | V11: =1+SUMPRODUCT((Sheet1!M2:M71=B3)*(Sheet1!E2:E71<V10)) -> 2
A12: Maryland | B12: 7 | C12: 10 | D12: 0 | E12: L | F12: A | G12: 3 | H12: =NORMDIST(0,G12,Games!$C$539,TRUE) -> 0.2033726451 | I12: =VLOOKUP(A12,Sheet1!A:K,5,FALSE) -> 4 | J12: L | K12: -3 | L12: =ROUND(((VLOOKUP(A12,Sheet1!$A:$J,4,FALSE))-(VLOOKUP($B$1,Sheet1!$A:$J,4,FALSE)))/0.5,0)*0.5 -> 1.5 | M12: =ROUND(((VLOOKUP(A12,Sheet1!$A:$J,4,FALSE))-(VLOOKUP($B$1,Sheet1!$A:$J,4,FALSE))+Games!$C$542)/0.5,0)*0.5 -> 3 | N12: =ROUND(((VLOOKUP(A12,Sheet1!$A:$J,4,FALSE))-(VLOOKUP($B$1,Sheet1!$A:$J,4,FALSE))-Games!$C$542)/0.5,0)*0.5 -> 0.5 | O12: =VLOOKUP(A12,Sheet1!$A:$M,13,FALSE) -> Big Ten | P12: =IF(K12<>0,VLOOKUP(A12,Sheet1!A:H,7,FALSE),"#N/A") -> 11.125 | Q12: =IF(K12<>0,VLOOKUP(A12,Sheet1!A:H,8,FALSE),"#N/A") -> 7.875 | R12: =IF(K12<>0,((COUNTIFS(Games!A:A,A12,Games!F:F,"W")+COUNTIFS(Games!B:B,A12,Games!F:F,"L")-COUNTIFS(Games!A:A,A12,Games!B:B,$B$1,Games!F:F,"W")-COUNTIFS(Games!$B:$B,A12,Games!$A:$A,$B$1,Games!F:F,"L"))/(COUNTIFS(Games!A:A,A12)+COUNTIF(Games!B:B,A12)-COUNTIFS(Games!A:A,A12,Games!B:B,$B$1)-COUNTIFS(Games!B:B,A12,Games!A:A,$B$1))),"#DIV/0!") -> 0.8666666667 | S12: =VLOOKUP(A12,RPI!A:C,3,FALSE) -> 0.6297504579 | U12: SRS SoS Value: | V12: =VLOOKUP(B1,Sheet1!$A:$L,3,FALSE) -> 0.7318893884
A13: Stony Brook | B13: 16 | C13: 10 | D13: W | E13: 0 | F13: H | G13: -1 | H13: =NORMDIST(0,G13,Games!$C$539,TRUE) -> 0.6089352247 | I13: =VLOOKUP(A13,Sheet1!A:K,5,FALSE) -> 10 | J13: W | K13: 6 | L13: =ROUND(((VLOOKUP(A13,Sheet1!$A:$J,4,FALSE))-(VLOOKUP($B$1,Sheet1!$A:$J,4,FALSE)))/0.5,0)*0.5 -> 0 | M13: =ROUND(((VLOOKUP(A13,Sheet1!$A:$J,4,FALSE))-(VLOOKUP($B$1,Sheet1!$A:$J,4,FALSE))+Games!$C$542)/0.5,0)*0.5 -> 1.5 | N13: =ROUND(((VLOOKUP(A13,Sheet1!$A:$J,4,FALSE))-(VLOOKUP($B$1,Sheet1!$A:$J,4,FALSE))-Games!$C$542)/0.5,0)*0.5 -> -1 | O13: =VLOOKUP(A13,Sheet1!$A:$M,13,FALSE) -> America East | P13: =IF(K13<>0,VLOOKUP(A13,Sheet1!A:H,7,FALSE),"#N/A") -> 13.3125 | Q13: =IF(K13<>0,VLOOKUP(A13,Sheet1!A:H,8,FALSE),"#N/A") -> 9.125 | R13: =IF(K13<>0,((COUNTIFS(Games!A:A,A13,Games!F:F,"W")+COUNTIFS(Games!B:B,A13,Games!F:F,"L")-COUNTIFS(Games!A:A,A13,Games!B:B,$B$1,Games!F:F,"W")-COUNTIFS(Games!$B:$B,A13,Games!$A:$A,$B$1,Games!F:F,"L"))/(COUNTIFS(Games!A:A,A13)+COUNTIF(Games!B:B,A13)-COUNTIFS(Games!A:A,A13,Games!B:B,$B$1)-COUNTIFS(Games!B:B,A13,Games!A:A,$B$1))),"#DIV/0!") -> 0.8 | S13: =VLOOKUP(A13,RPI!A:C,3,FALSE) -> 0.4933150183 | U13: SRS SoS Ranking (NCAA): | V13: =VLOOKUP(B1,Sheet1!A:J,6,FALSE) -> 27
A14: Hartford | B14: 13 | C14: 9 | D14: W | E14: 0 | F14: A | G14: -2.5 | H14: =NORMDIST(0,G14,Games!$C$539,TRUE) -> 0.7553310679 | I14: =VLOOKUP(A14,Sheet1!A:K,5,FALSE) -> 35 | J14: W | K14: 4 | L14: =ROUND(((VLOOKUP(A14,Sheet1!$A:$J,4,FALSE))-(VLOOKUP($B$1,Sheet1!$A:$J,4,FALSE)))/0.5,0)*0.5 -> -4 | M14: =ROUND(((VLOOKUP(A14,Sheet1!$A:$J,4,FALSE))-(VLOOKUP($B$1,Sheet1!$A:$J,4,FALSE))+Games!$C$542)/0.5,0)*0.5 -> -2.5 | N14: =ROUND(((VLOOKUP(A14,Sheet1!$A:$J,4,FALSE))-(VLOOKUP($B$1,Sheet1!$A:$J,4,FALSE))-Games!$C$542)/0.5,0)*0.5 -> -5 | O14: =VLOOKUP(A14,Sheet1!$A:$M,13,FALSE) -> America East | P14: =IF(K14<>0,VLOOKUP(A14,Sheet1!A:H,7,FALSE),"#N/A") -> 10.94117647 | Q14: =IF(K14<>0,VLOOKUP(A14,Sheet1!A:H,8,FALSE),"#N/A") -> 9.941176471 | R14: =IF(K14<>0,((COUNTIFS(Games!A:A,A14,Games!F:F,"W")+COUNTIFS(Games!B:B,A14,Games!F:F,"L")-COUNTIFS(Games!A:A,A14,Games!B:B,$B$1,Games!F:F,"W")-COUNTIFS(Games!$B:$B,A14,Games!$A:$A,$B$1,Games!F:F,"L"))/(COUNTIFS(Games!A:A,A14)+COUNTIF(Games!B:B,A14)-COUNTIFS(Games!A:A,A14,Games!B:B,$B$1)-COUNTIFS(Games!B:B,A14,Games!A:A,$B$1))),"#DIV/0!") -> 0.6666666667 | S14: =VLOOKUP(A14,RPI!A:C,3,FALSE) -> 0.4759534583 | U14: SRS SoS Ranking (Conf.): | V14: =1+SUMPRODUCT((Sheet1!M2:M71=B3)*(Sheet1!F2:F71<V13)) -> 1
A15: Harvard | B15: 10 | C15: 9 | D15: W | E15: 0 | F15: H | G15: -2 | H15: =NORMDIST(0,G15,Games!$C$539,TRUE) -> 0.7098990644 | I15: =VLOOKUP(A15,Sheet1!A:K,5,FALSE) -> 15 | J15: W | K15: 1 | L15: =ROUND(((VLOOKUP(A15,Sheet1!$A:$J,4,FALSE))-(VLOOKUP($B$1,Sheet1!$A:$J,4,FALSE)))/0.5,0)*0.5 -> -0.5 | M15: =ROUND(((VLOOKUP(A15,Sheet1!$A:$J,4,FALSE))-(VLOOKUP($B$1,Sheet1!$A:$J,4,FALSE))+Games!$C$542)/0.5,0)*0.5 -> 0.5 | N15: =ROUND(((VLOOKUP(A15,Sheet1!$A:$J,4,FALSE))-(VLOOKUP($B$1,Sheet1!$A:$J,4,FALSE))-Games!$C$542)/0.5,0)*0.5 -> -2 | O15: =VLOOKUP(A15,Sheet1!$A:$M,13,FALSE) -> Ivy | P15: =IF(K15<>0,VLOOKUP(A15,Sheet1!A:H,7,FALSE),"#N/A") -> 11.4375 | Q15: =IF(K15<>0,VLOOKUP(A15,Sheet1!A:H,8,FALSE),"#N/A") -> 10.75 | R15: =IF(K15<>0,((COUNTIFS(Games!A:A,A15,Games!F:F,"W")+COUNTIFS(Games!B:B,A15,Games!F:F,"L")-COUNTIFS(Games!A:A,A15,Games!B:B,$B$1,Games!F:F,"W")-COUNTIFS(Games!$B:$B,A15,Games!$A:$A,$B$1,Games!F:F,"L"))/(COUNTIFS(Games!A:A,A15)+COUNTIF(Games!B:B,A15)-COUNTIFS(Games!A:A,A15,Games!B:B,$B$1)-COUNTIFS(Games!B:B,A15,Games!A:A,$B$1))),"#DIV/0!") -> 0.5333333333 | S15: =VLOOKUP(A15,RPI!A:C,3,FALSE) -> 0.589376616
A16: Lowell | B16: 16 | C16: 9 | D16: W | E16: 0 | F16: A | G16: -7.5 | H16: =NORMDIST(0,G16,Games!$C$539,TRUE) -> 0.9809643851 | I16: =VLOOKUP(A16,Sheet1!A:K,5,FALSE) -> 63 | J16: W | K16: 7 | L16: =ROUND(((VLOOKUP(A16,Sheet1!$A:$J,4,FALSE))-(VLOOKUP($B$1,Sheet1!$A:$J,4,FALSE)))/0.5,0)*0.5 -> -8.5 | M16: =ROUND(((VLOOKUP(A16,Sheet1!$A:$J,4,FALSE))-(VLOOKUP($B$1,Sheet1!$A:$J,4,FALSE))+Games!$C$542)/0.5,0)*0.5 -> -7.5 | N16: =ROUND(((VLOOKUP(A16,Sheet1!$A:$J,4,FALSE))-(VLOOKUP($B$1,Sheet1!$A:$J,4,FALSE))-Games!$C$542)/0.5,0)*0.5 -> -10 | O16: =VLOOKUP(A16,Sheet1!$A:$M,13,FALSE) -> America East | P16: =IF(K16<>0,VLOOKUP(A16,Sheet1!A:H,7,FALSE),"#N/A") -> 8.3125 | Q16: =IF(K16<>0,VLOOKUP(A16,Sheet1!A:H,8,FALSE),"#N/A") -> 11.4375 | R16: =IF(K16<>0,((COUNTIFS(Games!A:A,A16,Games!F:F,"W")+COUNTIFS(Games!B:B,A16,Games!F:F,"L")-COUNTIFS(Games!A:A,A16,Games!B:B,$B$1,Games!F:F,"W")-COUNTIFS(Games!$B:$B,A16,Games!$A:$A,$B$1,Games!F:F,"L"))/(COUNTIFS(Games!A:A,A16)+COUNTIF(Games!B:B,A16)-COUNTIFS(Games!A:A,A16,Games!B:B,$B$1)-COUNTIFS(Games!B:B,A16,Games!A:A,$B$1))),"#DIV/0!") -> 0.2666666667 | S16: =VLOOKUP(A16,RPI!A:C,3,FALSE) -> 0.406198489 | U16: Actual Win % (All): | V16: =COUNTIF(D8:D33,"W")/(COUNTIF(D8:D33,"W")+(COUNTIF(E8:E33,"L"))) -> 0.8
A17: Vermont | B17: 13 | C17: 7 | D17: W | E17: 0 | F17: H | G17: -5 | H17: =NORMDIST(0,G17,Games!$C$539,TRUE) -> 0.9166253494 | I17: =VLOOKUP(A17,Sheet1!A:K,5,FALSE) -> 36 | J17: W | K17: 6 | L17: =ROUND(((VLOOKUP(A17,Sheet1!$A:$J,4,FALSE))-(VLOOKUP($B$1,Sheet1!$A:$J,4,FALSE)))/0.5,0)*0.5 -> -4 | M17: =ROUND(((VLOOKUP(A17,Sheet1!$A:$J,4,FALSE))-(VLOOKUP($B$1,Sheet1!$A:$J,4,FALSE))+Games!$C$542)/0.5,0)*0.5 -> -3 | N17: =ROUND(((VLOOKUP(A17,Sheet1!$A:$J,4,FALSE))-(VLOOKUP($B$1,Sheet1!$A:$J,4,FALSE))-Games!$C$542)/0.5,0)*0.5 -> -5 | O17: =VLOOKUP(A17,Sheet1!$A:$M,13,FALSE) -> America East | P17: =IF(K17<>0,VLOOKUP(A17,Sheet1!A:H,7,FALSE),"#N/A") -> 12.35294118 | Q17: =IF(K17<>0,VLOOKUP(A17,Sheet1!A:H,8,FALSE),"#N/A") -> 10.64705882 | R17: =IF(K17<>0,((COUNTIFS(Games!A:A,A17,Games!F:F,"W")+COUNTIFS(Games!B:B,A17,Games!F:F,"L")-COUNTIFS(Games!A:A,A17,Games!B:B,$B$1,Games!F:F,"W")-COUNTIFS(Games!$B:$B,A17,Games!$A:$A,$B$1,Games!F:F,"L"))/(COUNTIFS(Games!A:A,A17)+COUNTIF(Games!B:B,A17)-COUNTIFS(Games!A:A,A17,Games!B:B,$B$1)-COUNTIFS(Games!B:B,A17,Games!A:A,$B$1))),"#DIV/0!") -> 0.5625 | S17: =VLOOKUP(A17,RPI!A:C,3,FALSE) -> 0.3951421128 | U17: Expected SRS Win % (All): | V17: =SUMIFS(H8:H33,H8:H33,"<>N/A",K8:K33,"<>0")/(COUNTIF(K8:K33,"<>0")) -> 0.723901035
A18: Binghamton | B18: 12 | C18: 8 | D18: W | E18: 0 | F18: H | G18: -8 | H18: =NORMDIST(0,G18,Games!$C$539,TRUE) -> 0.9865290822 | I18: =VLOOKUP(A18,Sheet1!A:K,5,FALSE) -> 54 | J18: W | K18: 4 | L18: =ROUND(((VLOOKUP(A18,Sheet1!$A:$J,4,FALSE))-(VLOOKUP($B$1,Sheet1!$A:$J,4,FALSE)))/0.5,0)*0.5 -> -6.5 | M18: =ROUND(((VLOOKUP(A18,Sheet1!$A:$J,4,FALSE))-(VLOOKUP($B$1,Sheet1!$A:$J,4,FALSE))+Games!$C$542)/0.5,0)*0.5 -> -5.5 | N18: =ROUND(((VLOOKUP(A18,Sheet1!$A:$J,4,FALSE))-(VLOOKUP($B$1,Sheet1!$A:$J,4,FALSE))-Games!$C$542)/0.5,0)*0.5 -> -8 | O18: =VLOOKUP(A18,Sheet1!$A:$M,13,FALSE) -> America East | P18: =IF(K18<>0,VLOOKUP(A18,Sheet1!A:H,7,FALSE),"#N/A") -> 9.428571429 | Q18: =IF(K18<>0,VLOOKUP(A18,Sheet1!A:H,8,FALSE),"#N/A") -> 12.07142857 | R18: =IF(K18<>0,((COUNTIFS(Games!A:A,A18,Games!F:F,"W")+COUNTIFS(Games!B:B,A18,Games!F:F,"L")-COUNTIFS(Games!A:A,A18,Games!B:B,$B$1,Games!F:F,"W")-COUNTIFS(Games!$B:$B,A18,Games!$A:$A,$B$1,Games!F:F,"L"))/(COUNTIFS(Games!A:A,A18)+COUNTIF(Games!B:B,A18)-COUNTIFS(Games!A:A,A18,Games!B:B,$B$1)-COUNTIFS(Games!B:B,A18,Games!A:A,$B$1))),"#DIV/0!") -> 0.3076923077 | S18: =VLOOKUP(A18,RPI!A:C,3,FALSE) -> 0.5172416869 | U18: Wins +/- Expectation (All): | V18: =(V16*(COUNTIF(G8:G33,"<>#N/A")))-(V17*(COUNTIF(G8:G33,"<>#N/A"))) -> 1.21758344
A19: Yale | B19: 14 | C19: 13 | D19: W | E19: 0 | F19: A | G19: 2.5 | H19: =NORMDIST(0,G19,Games!$C$539,TRUE) -> 0.2446689321 | I19: =VLOOKUP(A19,Sheet1!A:K,5,FALSE) -> 6 | J19: L | K19: 1 | L19: =ROUND(((VLOOKUP(A19,Sheet1!$A:$J,4,FALSE))-(VLOOKUP($B$1,Sheet1!$A:$J,4,FALSE)))/0.5,0)*0.5 -> 1.5 | M19: =ROUND(((VLOOKUP(A19,Sheet1!$A:$J,4,FALSE))-(VLOOKUP($B$1,Sheet1!$A:$J,4,FALSE))+Games!$C$542)/0.5,0)*0.5 -> 2.5 | N19: =ROUND(((VLOOKUP(A19,Sheet1!$A:$J,4,FALSE))-(VLOOKUP($B$1,Sheet1!$A:$J,4,FALSE))-Games!$C$542)/0.5,0)*0.5 -> 0 | O19: =VLOOKUP(A19,Sheet1!$A:$M,13,FALSE) -> Ivy | P19: =IF(K19<>0,VLOOKUP(A19,Sheet1!A:H,7,FALSE),"#N/A") -> 12.53333333 | Q19: =IF(K19<>0,VLOOKUP(A19,Sheet1!A:H,8,FALSE),"#N/A") -> 7.8 | R19: =IF(K19<>0,((COUNTIFS(Games!A:A,A19,Games!F:F,"W")+COUNTIFS(Games!B:B,A19,Games!F:F,"L")-COUNTIFS(Games!A:A,A19,Games!B:B,$B$1,Games!F:F,"W")-COUNTIFS(Games!$B:$B,A19,Games!$A:$A,$B$1,Games!F:F,"L"))/(COUNTIFS(Games!A:A,A19)+COUNTIF(Games!B:B,A19)-COUNTIFS(Games!A:A,A19,Games!B:B,$B$1)-COUNTIFS(Games!B:B,A19,Games!A:A,$B$1))),"#DIV/0!") -> 0.9285714286 | S19: =VLOOKUP(A19,RPI!A:C,3,FALSE) -> 0.5189041514 | U19: Expected Remaining Wins (All): | V19: =SUMIFS(H8:H33,G8:G33,"<>#N/A",K8:K33,"0") -> 0.2033726451
A20: Siena | B20: 17 | C20: 8 | D20: W | E20: 0 | F20: H | G20: -9.5 | H20: =NORMDIST(0,G20,Games!$C$539,TRUE) -> 0.9956951718 | I20: =VLOOKUP(A20,Sheet1!A:K,5,FALSE) -> 61 | J20: W | K20: 9 | L20: =ROUND(((VLOOKUP(A20,Sheet1!$A:$J,4,FALSE))-(VLOOKUP($B$1,Sheet1!$A:$J,4,FALSE)))/0.5,0)*0.5 -> -8.5 | M20: =ROUND(((VLOOKUP(A20,Sheet1!$A:$J,4,FALSE))-(VLOOKUP($B$1,Sheet1!$A:$J,4,FALSE))+Games!$C$542)/0.5,0)*0.5 -> -7 | N20: =ROUND(((VLOOKUP(A20,Sheet1!$A:$J,4,FALSE))-(VLOOKUP($B$1,Sheet1!$A:$J,4,FALSE))-Games!$C$542)/0.5,0)*0.5 -> -9.5 | O20: =VLOOKUP(A20,Sheet1!$A:$M,13,FALSE) -> MAAC | P20: =IF(K20<>0,VLOOKUP(A20,Sheet1!A:H,7,FALSE),"#N/A") -> 8.769230769 | Q20: =IF(K20<>0,VLOOKUP(A20,Sheet1!A:H,8,FALSE),"#N/A") -> 12.07692308 | R20: =IF(K20<>0,((COUNTIFS(Games!A:A,A20,Games!F:F,"W")+COUNTIFS(Games!B:B,A20,Games!F:F,"L")-COUNTIFS(Games!A:A,A20,Games!B:B,$B$1,Games!F:F,"W")-COUNTIFS(Games!$B:$B,A20,Games!$A:$A,$B$1,Games!F:F,"L"))/(COUNTIFS(Games!A:A,A20)+COUNTIF(Games!B:B,A20)-COUNTIFS(Games!A:A,A20,Games!B:B,$B$1)-COUNTIFS(Games!B:B,A20,Games!A:A,$B$1))),"#DIV/0!") -> 0.25 | S20: =VLOOKUP(A20,RPI!A:C,3,FALSE) -> 0.4488351392 | U20: Actual Margin (All): | V20: =SUM(K8:K33) -> 48
A21: UMBC | B21: 15 | C21: 14 | D21: W | E21: 0 | F21: A | G21: -5 | H21: =NORMDIST(0,G21,Games!$C$539,TRUE) -> 0.9166253494 | I21: =VLOOKUP(A21,Sheet1!A:K,5,FALSE) -> 52 | J21: W | K21: 1 | L21: =ROUND(((VLOOKUP(A21,Sheet1!$A:$J,4,FALSE))-(VLOOKUP($B$1,Sheet1!$A:$J,4,FALSE)))/0.5,0)*0.5 -> -6 | M21: =ROUND(((VLOOKUP(A21,Sheet1!$A:$J,4,FALSE))-(VLOOKUP($B$1,Sheet1!$A:$J,4,FALSE))+Games!$C$542)/0.5,0)*0.5 -> -5 | N21: =ROUND(((VLOOKUP(A21,Sheet1!$A:$J,4,FALSE))-(VLOOKUP($B$1,Sheet1!$A:$J,4,FALSE))-Games!$C$542)/0.5,0)*0.5 -> -7.5 | O21: =VLOOKUP(A21,Sheet1!$A:$M,13,FALSE) -> America East | P21: =IF(K21<>0,VLOOKUP(A21,Sheet1!A:H,7,FALSE),"#N/A") -> 9 | Q21: =IF(K21<>0,VLOOKUP(A21,Sheet1!A:H,8,FALSE),"#N/A") -> 11.71428571 | R21: =IF(K21<>0,((COUNTIFS(Games!A:A,A21,Games!F:F,"W")+COUNTIFS(Games!B:B,A21,Games!F:F,"L")-COUNTIFS(Games!A:A,A21,Games!B:B,$B$1,Games!F:F,"W")-COUNTIFS(Games!$B:$B,A21,Games!$A:$A,$B$1,Games!F:F,"L"))/(COUNTIFS(Games!A:A,A21)+COUNTIF(Games!B:B,A21)-COUNTIFS(Games!A:A,A21,Games!B:B,$B$1)-COUNTIFS(Games!B:B,A21,Games!A:A,$B$1))),"#DIV/0!") -> 0.3076923077 | S21: =VLOOKUP(A21,RPI!A:C,3,FALSE) -> 0.5310112507 | U21: Predicted Margin (All): | V21: =-SUMIFS(G8:G33,G8:G33,"<>#N/A",K8:K33,"<>0") -> 47
A22: Hartford | B22: 10 | C22: 11 | D22: 0 | E22: L | F22: H | G22: -5 | H22: =NORMDIST(0,G22,Games!$C$539,TRUE) -> 0.9166253494 | I22: =VLOOKUP(A22,Sheet1!A:K,5,FALSE) -> 35 | J22: W | K22: -1 | L22: =ROUND(((VLOOKUP(A22,Sheet1!$A:$J,4,FALSE))-(VLOOKUP($B$1,Sheet1!$A:$J,4,FALSE)))/0.5,0)*0.5 -> -4 | M22: =ROUND(((VLOOKUP(A22,Sheet1!$A:$J,4,FALSE))-(VLOOKUP($B$1,Sheet1!$A:$J,4,FALSE))+Games!$C$542)/0.5,0)*0.5 -> -2.5 | N22: =ROUND(((VLOOKUP(A22,Sheet1!$A:$J,4,FALSE))-(VLOOKUP($B$1,Sheet1!$A:$J,4,FALSE))-Games!$C$542)/0.5,0)*0.5 -> -5 | O22: =VLOOKUP(A22,Sheet1!$A:$M,13,FALSE) -> America East | P22: =IF(K22<>0,VLOOKUP(A22,Sheet1!A:H,7,FALSE),"#N/A") -> 10.94117647 | Q22: =IF(K22<>0,VLOOKUP(A22,Sheet1!A:H,8,FALSE),"#N/A") -> 9.941176471 | R22: =IF(K22<>0,((COUNTIFS(Games!A:A,A22,Games!F:F,"W")+COUNTIFS(Games!B:B,A22,Games!F:F,"L")-COUNTIFS(Games!A:A,A22,Games!B:B,$B$1,Games!F:F,"W")-COUNTIFS(Games!$B:$B,A22,Games!$A:$A,$B$1,Games!F:F,"L"))/(COUNTIFS(Games!A:A,A22)+COUNTIF(Games!B:B,A22)-COUNTIFS(Games!A:A,A22,Games!B:B,$B$1)-COUNTIFS(Games!B:B,A22,Games!A:A,$B$1))),"#DIV/0!") -> 0.6666666667 | S22: =VLOOKUP(A22,RPI!A:C,3,FALSE) -> 0.4759534583
A23: Syracuse | D23: 0 | E23: 0 | F23: A | G23: 3 | H23: =NORMDIST(0,G23,Games!$C$539,TRUE) -> 0.2033726451 | I23: =VLOOKUP(A23,Sheet1!A:K,5,FALSE) -> 5 | J23: L | K23: 0 | L23: =ROUND(((VLOOKUP(A23,Sheet1!$A:$J,4,FALSE))-(VLOOKUP($B$1,Sheet1!$A:$J,4,FALSE)))/0.5,0)*0.5 -> 1.5 | M23: =ROUND(((VLOOKUP(A23,Sheet1!$A:$J,4,FALSE))-(VLOOKUP($B$1,Sheet1!$A:$J,4,FALSE))+Games!$C$542)/0.5,0)*0.5 -> 3 | N23: =ROUND(((VLOOKUP(A23,Sheet1!$A:$J,4,FALSE))-(VLOOKUP($B$1,Sheet1!$A:$J,4,FALSE))-Games!$C$542)/0.5,0)*0.5 -> 0.5 | O23: =VLOOKUP(A23,Sheet1!$A:$M,13,FALSE) -> ACC | P23: =IF(K23<>0,VLOOKUP(A23,Sheet1!A:H,7,FALSE),"#N/A") -> #N/A | Q23: =IF(K23<>0,VLOOKUP(A23,Sheet1!A:H,8,FALSE),"#N/A") -> #N/A | R23: =IF(K23<>0,((COUNTIFS(Games!A:A,A23,Games!F:F,"W")+COUNTIFS(Games!B:B,A23,Games!F:F,"L")-COUNTIFS(Games!A:A,A23,Games!B:B,$B$1,Games!F:F,"W")-COUNTIFS(Games!$B:$B,A23,Games!$A:$A,$B$1,Games!F:F,"L"))/(COUNTIFS(Games!A:A,A23)+COUNTIF(Games!B:B,A23)-COUNTIFS(Games!A:A,A23,Games!B:B,$B$1)-COUNTIFS(Games!B:B,A23,Games!A:A,$B$1))),"#DIV/0!") -> #DIV/0! | S23: =VLOOKUP(A23,RPI!A:C,3,FALSE) -> 0.5304334554 | U23: Actual Win % (Conf.): | V23: =COUNTIFS(D8:D33,"W",O8:O33,B3)/(COUNTIFS(D8:D33,"W",O8:O33,B3)+(COUNTIFS(E8:E33,"L",O8:O33,B3))) -> 0.8571428571
D24: 0 | E24: 0 | H24: =NORMDIST(0,G24,Games!$C$539,TRUE) ->  | I24: =VLOOKUP(A24,Sheet1!A:K,5,FALSE) ->  | K24: 0 | L24: =ROUND(((VLOOKUP(A24,Sheet1!$A:$J,4,FALSE))-(VLOOKUP($B$1,Sheet1!$A:$J,4,FALSE)))/0.5,0)*0.5 ->  | M24: =ROUND(((VLOOKUP(A24,Sheet1!$A:$J,4,FALSE))-(VLOOKUP($B$1,Sheet1!$A:$J,4,FALSE))+Games!$C$542)/0.5,0)*0.5 ->  | N24: =ROUND(((VLOOKUP(A24,Sheet1!$A:$J,4,FALSE))-(VLOOKUP($B$1,Sheet1!$A:$J,4,FALSE))-Games!$C$542)/0.5,0)*0.5 ->  | O24: =VLOOKUP(A24,Sheet1!$A:$M,13,FALSE) ->  | P24: =IF(K24<>0,VLOOKUP(A24,Sheet1!A:H,7,FALSE),"#N/A") -> #N/A | Q24: =IF(K24<>0,VLOOKUP(A24,Sheet1!A:H,8,FALSE),"#N/A") -> #N/A | R24: =IF(K24<>0,((COUNTIFS(Games!A:A,A24,Games!F:F,"W")+COUNTIFS(Games!B:B,A24,Games!F:F,"L")-COUNTIFS(Games!A:A,A24,Games!B:B,$B$1,Games!F:F,"W")-COUNTIFS(Games!$B:$B,A24,Games!$A:$A,$B$1,Games!F:F,"L"))/(COUNTIFS(Games!A:A,A24)+COUNTIF(Games!B:B,A24)-COUNTIFS(Games!A:A,A24,Games!B:B,$B$1)-COUNTIFS(Games!B:B,A24,Games!A:A,$B$1))),"#DIV/0!") -> #DIV/0! | S24: =IF(K24<>0,VLOOKUP(A24,RPI!A:C,3,FALSE),"#N/A") -> #N/A | U24: Expected SRS Win % (Conf.): | V24: =SUMIFS(H8:H33,H8:H33,"<>N/A",K8:K33,"<>0",O8:O33,B3)/(COUNTIFS(K8:K33,"<>0",O8:O33,B3)) -> 0.8688051154
D25: 0 | E25: 0 | H25: =NORMDIST(0,G25,Games!$C$539,TRUE) ->  | I25: =VLOOKUP(A25,Sheet1!A:K,5,FALSE) ->  | K25: 0 | L25: =ROUND(((VLOOKUP(A25,Sheet1!$A:$J,4,FALSE))-(VLOOKUP($B$1,Sheet1!$A:$J,4,FALSE)))/0.5,0)*0.5 ->  | M25: =ROUND(((VLOOKUP(A25,Sheet1!$A:$J,4,FALSE))-(VLOOKUP($B$1,Sheet1!$A:$J,4,FALSE))+Games!$C$542)/0.5,0)*0.5 ->  | N25: =ROUND(((VLOOKUP(A25,Sheet1!$A:$J,4,FALSE))-(VLOOKUP($B$1,Sheet1!$A:$J,4,FALSE))-Games!$C$542)/0.5,0)*0.5 ->  | O25: =VLOOKUP(A25,Sheet1!$A:$M,13,FALSE) ->  | P25: =IF(K25<>0,VLOOKUP(A25,Sheet1!A:H,7,FALSE),"#N/A") -> #N/A | Q25: =IF(K25<>0,VLOOKUP(A25,Sheet1!A:H,8,FALSE),"#N/A") -> #N/A | R25: =IF(K25<>0,((COUNTIFS(Games!A:A,A25,Games!F:F,"W")+COUNTIFS(Games!B:B,A25,Games!F:F,"L")-COUNTIFS(Games!A:A,A25,Games!B:B,$B$1,Games!F:F,"W")-COUNTIFS(Games!$B:$B,A25,Games!$A:$A,$B$1,Games!F:F,"L"))/(COUNTIFS(Games!A:A,A25)+COUNTIF(Games!B:B,A25)-COUNTIFS(Games!A:A,A25,Games!B:B,$B$1)-COUNTIFS(Games!B:B,A25,Games!A:A,$B$1))),"#DIV/0!") -> #DIV/0! | S25: =IF(K25<>0,VLOOKUP(A25,RPI!A:C,3,FALSE),"#N/A") -> #N/A | U25: Wins +/- Expectation (Conf.): | V25: =(V23*(COUNTIFS(G8:G33,"<>#N/A",O8:O33,B3)))-(V24*(COUNTIFS(G8:G33,"<>#N/A",O8:O33,B3))) -> -0.08163580801
D26: 0 | E26: 0 | H26: =NORMDIST(0,G26,Games!$C$539,TRUE) ->  | I26: =VLOOKUP(A26,Sheet1!A:K,5,FALSE) ->  | K26: 0 | L26: =(VLOOKUP(A26,Sheet1!$A:$J,4,FALSE))-(VLOOKUP($B$1,Sheet1!$A:$J,4,FALSE)) ->  | M26: =(VLOOKUP(A26,Sheet1!$A:$J,4,FALSE))-(VLOOKUP($B$1,Sheet1!$A:$J,4,FALSE))+Games!$C$542 ->  | N26: =(VLOOKUP(A26,Sheet1!$A:$J,4,FALSE))-(VLOOKUP($B$1,Sheet1!$A:$J,4,FALSE))-Games!$C$542 ->  | O26: =VLOOKUP(A26,Sheet1!$A:$M,13,FALSE) ->  | P26: =IF(K26<>0,VLOOKUP(A26,Sheet1!A:H,7,FALSE),"#N/A") -> #N/A | Q26: =IF(K26<>0,VLOOKUP(A26,Sheet1!A:H,8,FALSE),"#N/A") -> #N/A | R26: =IF(K26<>0,((COUNTIFS(Games!A:A,A26,Games!F:F,"W")+COUNTIFS(Games!B:B,A26,Games!F:F,"L")-COUNTIFS(Games!A:A,A26,Games!B:B,$B$1,Games!F:F,"W")-COUNTIFS(Games!$B:$B,A26,Games!$A:$A,$B$1,Games!F:F,"L"))/(COUNTIFS(Games!A:A,A26)+COUNTIF(Games!B:B,A26)-COUNTIFS(Games!A:A,A26,Games!B:B,$B$1)-COUNTIFS(Games!B:B,A26,Games!A:A,$B$1))),"#DIV/0!") -> #DIV/0! | S26: =IF(K26<>0,VLOOKUP(A26,RPI!A:C,3,FALSE),"#N/A") -> #N/A | U26: Expected Remaining Wins (Conf.): | V26: =SUMIFS(H8:H33,G8:G33,"<>#N/A",K8:K33,"0",O8:O33,B3) -> 0
D27: 0 | E27: 0 | H27: =NORMDIST(0,G27,Games!$C$539,TRUE) ->  | I27: =VLOOKUP(A27,Sheet1!A:K,5,FALSE) ->  | K27: 0 | L27: =(VLOOKUP(A27,Sheet1!$A:$J,4,FALSE))-(VLOOKUP($B$1,Sheet1!$A:$J,4,FALSE)) ->  | M27: =(VLOOKUP(A27,Sheet1!$A:$J,4,FALSE))-(VLOOKUP($B$1,Sheet1!$A:$J,4,FALSE))+Games!$C$542 ->  | N27: =(VLOOKUP(A27,Sheet1!$A:$J,4,FALSE))-(VLOOKUP($B$1,Sheet1!$A:$J,4,FALSE))-Games!$C$542 ->  | O27: =VLOOKUP(A27,Sheet1!$A:$M,13,FALSE) ->  | P27: =IF(K27<>0,VLOOKUP(A27,Sheet1!A:H,7,FALSE),"#N/A") -> #N/A | Q27: =IF(K27<>0,VLOOKUP(A27,Sheet1!A:H,8,FALSE),"#N/A") -> #N/A | R27: =IF(K27<>0,((COUNTIFS(Games!A:A,A27,Games!F:F,"W")+COUNTIFS(Games!B:B,A27,Games!F:F,"L")-COUNTIFS(Games!A:A,A27,Games!B:B,$B$1,Games!F:F,"W")-COUNTIFS(Games!$B:$B,A27,Games!$A:$A,$B$1,Games!F:F,"L"))/(COUNTIFS(Games!A:A,A27)+COUNTIF(Games!B:B,A27)-COUNTIFS(Games!A:A,A27,Games!B:B,$B$1)-COUNTIFS(Games!B:B,A27,Games!A:A,$B$1))),"#DIV/0!") -> #DIV/0! | S27: =IF(K27<>0,VLOOKUP(A27,RPI!A:C,3,FALSE),"#N/A") -> #N/A | U27: Actual Margin (Conf.): | V27: =SUMIFS(K8:K33,O8:O33,B3) -> 27
D28: 0 | E28: 0 | H28: =NORMDIST(0,G28,Games!$C$539,TRUE) ->  | I28: =VLOOKUP(A28,Sheet1!A:K,5,FALSE) ->  | K28: 0 | L28: =(VLOOKUP(A28,Sheet1!$A:$J,4,FALSE))-(VLOOKUP($B$1,Sheet1!$A:$J,4,FALSE)) ->  | M28: =(VLOOKUP(A28,Sheet1!$A:$J,4,FALSE))-(VLOOKUP($B$1,Sheet1!$A:$J,4,FALSE))+Games!$C$542 ->  | N28: =(VLOOKUP(A28,Sheet1!$A:$J,4,FALSE))-(VLOOKUP($B$1,Sheet1!$A:$J,4,FALSE))-Games!$C$542 ->  | O28: =VLOOKUP(A28,Sheet1!$A:$M,13,FALSE) ->  | P28: =IF(K28<>0,VLOOKUP(A28,Sheet1!A:H,7,FALSE),"#N/A") -> #N/A | Q28: =IF(K28<>0,VLOOKUP(A28,Sheet1!A:H,8,FALSE),"#N/A") -> #N/A | R28: =IF(K28<>0,((COUNTIFS(Games!A:A,A28,Games!F:F,"W")+COUNTIFS(Games!B:B,A28,Games!F:F,"L")-COUNTIFS(Games!A:A,A28,Games!B:B,$B$1,Games!F:F,"W")-COUNTIFS(Games!$B:$B,A28,Games!$A:$A,$B$1,Games!F:F,"L"))/(COUNTIFS(Games!A:A,A28)+COUNTIF(Games!B:B,A28)-COUNTIFS(Games!A:A,A28,Games!B:B,$B$1)-COUNTIFS(Games!B:B,A28,Games!A:A,$B$1))),"#DIV/0!") -> #DIV/0! | S28: =IF(K28<>0,VLOOKUP(A28,RPI!A:C,3,FALSE),"#N/A") -> #N/A | U28: Predicted Margin (Conf.): | V28: =-SUMIFS(G8:G33,G8:G33,"<>#N/A",K8:K33,"<>0",O8:O33,B3) -> 34
D29: 0 | E29: 0 | H29: =NORMDIST(0,G29,Games!$C$539,TRUE) ->  | I29: =VLOOKUP(A29,Sheet1!A:K,5,FALSE) ->  | K29: 0 | L29: =(VLOOKUP(A29,Sheet1!$A:$J,4,FALSE))-(VLOOKUP($B$1,Sheet1!$A:$J,4,FALSE)) ->  | M29: =(VLOOKUP(A29,Sheet1!$A:$J,4,FALSE))-(VLOOKUP($B$1,Sheet1!$A:$J,4,FALSE))+Games!$C$542 ->  | N29: =(VLOOKUP(A29,Sheet1!$A:$J,4,FALSE))-(VLOOKUP($B$1,Sheet1!$A:$J,4,FALSE))-Games!$C$542 ->  | O29: =VLOOKUP(A29,Sheet1!$A:$M,13,FALSE) ->  | P29: =IF(K29<>0,VLOOKUP(A29,Sheet1!A:H,7,FALSE),"#N/A") -> #N/A | Q29: =IF(K29<>0,VLOOKUP(A29,Sheet1!A:H,8,FALSE),"#N/A") -> #N/A | R29: =IF(K29<>0,((COUNTIFS(Games!A:A,A29,Games!F:F,"W")+COUNTIFS(Games!B:B,A29,Games!F:F,"L")-COUNTIFS(Games!A:A,A29,Games!B:B,$B$1,Games!F:F,"W")-COUNTIFS(Games!$B:$B,A29,Games!$A:$A,$B$1,Games!F:F,"L"))/(COUNTIFS(Games!A:A,A29)+COUNTIF(Games!B:B,A29)-COUNTIFS(Games!A:A,A29,Games!B:B,$B$1)-COUNTIFS(Games!B:B,A29,Games!A:A,$B$1))),"#DIV/0!") -> #DIV/0! | S29: =IF(K29<>0,VLOOKUP(A29,RPI!A:C,3,FALSE),"#N/A") -> #N/A
D30: 0 | E30: 0 | H30: =NORMDIST(0,G30,Games!$C$539,TRUE) ->  | I30: =VLOOKUP(A30,Sheet1!A:K,5,FALSE) ->  | K30: 0 | L30: =(VLOOKUP(A30,Sheet1!$A:$J,4,FALSE))-(VLOOKUP($B$1,Sheet1!$A:$J,4,FALSE)) ->  | M30: =(VLOOKUP(A30,Sheet1!$A:$J,4,FALSE))-(VLOOKUP($B$1,Sheet1!$A:$J,4,FALSE))+Games!$C$542 ->  | N30: =(VLOOKUP(A30,Sheet1!$A:$J,4,FALSE))-(VLOOKUP($B$1,Sheet1!$A:$J,4,FALSE))-Games!$C$542 ->  | O30: =VLOOKUP(A30,Sheet1!$A:$M,13,FALSE) ->  | P30: =IF(K30<>0,VLOOKUP(A30,Sheet1!A:H,7,FALSE),"#N/A") -> #N/A | Q30: =IF(K30<>0,VLOOKUP(A30,Sheet1!A:H,8,FALSE),"#N/A") -> #N/A | R30: =IF(K30<>0,((COUNTIFS(Games!A:A,A30,Games!F:F,"W")+COUNTIFS(Games!B:B,A30,Games!F:F,"L")-COUNTIFS(Games!A:A,A30,Games!B:B,$B$1,Games!F:F,"W")-COUNTIFS(Games!$B:$B,A30,Games!$A:$A,$B$1,Games!F:F,"L"))/(COUNTIFS(Games!A:A,A30)+COUNTIF(Games!B:B,A30)-COUNTIFS(Games!A:A,A30,Games!B:B,$B$1)-COUNTIFS(Games!B:B,A30,Games!A:A,$B$1))),"#DIV/0!") -> #DIV/0! | S30: =IF(K30<>0,VLOOKUP(A30,RPI!A:C,3,FALSE),"#N/A") -> #N/A | U30: Avg. Goals For per Game (All): | V30: =AVERAGEIF(K8:K33,"<>#N/A",B8:B33) -> 13.2
D31: 0 | E31: 0 | H31: =NORMDIST(0,G31,Games!$C$539,TRUE) ->  | I31: =VLOOKUP(A31,Sheet1!A:K,5,FALSE) ->  | K31: 0 | L31: =(VLOOKUP(A31,Sheet1!$A:$J,4,FALSE))-(VLOOKUP($B$1,Sheet1!$A:$J,4,FALSE)) ->  | M31: =(VLOOKUP(A31,Sheet1!$A:$J,4,FALSE))-(VLOOKUP($B$1,Sheet1!$A:$J,4,FALSE))+Games!$C$542 ->  | N31: =(VLOOKUP(A31,Sheet1!$A:$J,4,FALSE))-(VLOOKUP($B$1,Sheet1!$A:$J,4,FALSE))-Games!$C$542 ->  | O31: =VLOOKUP(A31,Sheet1!$A:$M,13,FALSE) ->  | P31: =IF(K31<>0,VLOOKUP(A31,Sheet1!A:H,7,FALSE),"#N/A") -> #N/A | Q31: =IF(K31<>0,VLOOKUP(A31,Sheet1!A:H,8,FALSE),"#N/A") -> #N/A | R31: =IF(K31<>0,((COUNTIFS(Games!A:A,A31,Games!F:F,"W")+COUNTIFS(Games!B:B,A31,Games!F:F,"L")-COUNTIFS(Games!A:A,A31,Games!B:B,$B$1,Games!F:F,"W")-COUNTIFS(Games!$B:$B,A31,Games!$A:$A,$B$1,Games!F:F,"L"))/(COUNTIFS(Games!A:A,A31)+COUNTIF(Games!B:B,A31)-COUNTIFS(Games!A:A,A31,Games!B:B,$B$1)-COUNTIFS(Games!B:B,A31,Games!A:A,$B$1))),"#DIV/0!") -> #DIV/0! | S31: =IF(K31<>0,VLOOKUP(A31,RPI!A:C,3,FALSE),"#N/A") -> #N/A | U31: Avg. Goals Against per Game (All): | V31: =AVERAGEIF(K8:K33,"<>#N/A",C8:C33) -> 10
D32: 0 | E32: 0 | H32: =NORMDIST(0,G32,Games!$C$539,TRUE) ->  | I32: =VLOOKUP(A32,Sheet1!A:K,5,FALSE) ->  | K32: 0 | L32: =(VLOOKUP(A32,Sheet1!$A:$J,4,FALSE))-(VLOOKUP($B$1,Sheet1!$A:$J,4,FALSE)) ->  | M32: =(VLOOKUP(A32,Sheet1!$A:$J,4,FALSE))-(VLOOKUP($B$1,Sheet1!$A:$J,4,FALSE))+Games!$C$542 ->  | N32: =(VLOOKUP(A32,Sheet1!$A:$J,4,FALSE))-(VLOOKUP($B$1,Sheet1!$A:$J,4,FALSE))-Games!$C$542 ->  | O32: =VLOOKUP(A32,Sheet1!$A:$M,13,FALSE) ->  | P32: =IF(K32<>0,VLOOKUP(A32,Sheet1!A:H,7,FALSE),"#N/A") -> #N/A | Q32: =IF(K32<>0,VLOOKUP(A32,Sheet1!A:H,8,FALSE),"#N/A") -> #N/A | R32: =IF(K32<>0,((COUNTIFS(Games!A:A,A32,Games!F:F,"W")+COUNTIFS(Games!B:B,A32,Games!F:F,"L")-COUNTIFS(Games!A:A,A32,Games!B:B,$B$1,Games!F:F,"W")-COUNTIFS(Games!$B:$B,A32,Games!$A:$A,$B$1,Games!F:F,"L"))/(COUNTIFS(Games!A:A,A32)+COUNTIF(Games!B:B,A32)-COUNTIFS(Games!A:A,A32,Games!B:B,$B$1)-COUNTIFS(Games!B:B,A32,Games!A:A,$B$1))),"#DIV/0!") -> #DIV/0! | S32: =IF(K32<>0,VLOOKUP(A32,RPI!A:C,3,FALSE),"#N/A") -> #N/A | U32: Avg. Goals For per Game (Conf.): | V32: =AVERAGEIFS(B8:B33,K8:K33,"<>#N/A",O8:O33,B3) -> 13.57142857
D33: 0 | E33: 0 | H33: =NORMDIST(0,G33,Games!$C$539,TRUE) ->  | I33: =VLOOKUP(A33,Sheet1!A:K,5,FALSE) ->  | K33: 0 | L33: =(VLOOKUP(A33,Sheet1!$A:$J,4,FALSE))-(VLOOKUP($B$1,Sheet1!$A:$J,4,FALSE)) ->  | M33: =(VLOOKUP(A33,Sheet1!$A:$J,4,FALSE))-(VLOOKUP($B$1,Sheet1!$A:$J,4,FALSE))+Games!$C$542 ->  | N33: =(VLOOKUP(A33,Sheet1!$A:$J,4,FALSE))-(VLOOKUP($B$1,Sheet1!$A:$J,4,FALSE))-Games!$C$542 ->  | O33: =VLOOKUP(A33,Sheet1!$A:$M,13,FALSE) ->  | P33: =IF(K33<>0,VLOOKUP(A33,Sheet1!A:H,7,FALSE),"#N/A") -> #N/A | Q33: =IF(K33<>0,VLOOKUP(A33,Sheet1!A:H,8,FALSE),"#N/A") -> #N/A | R33: =IF(K33<>0,((COUNTIFS(Games!A:A,A33,Games!F:F,"W")+COUNTIFS(Games!B:B,A33,Games!F:F,"L")-COUNTIFS(Games!A:A,A33,Games!B:B,$B$1,Games!F:F,"W")-COUNTIFS(Games!$B:$B,A33,Games!$A:$A,$B$1,Games!F:F,"L"))/(COUNTIFS(Games!A:A,A33)+COUNTIF(Games!B:B,A33)-COUNTIFS(Games!A:A,A33,Games!B:B,$B$1)-COUNTIFS(Games!B:B,A33,Games!A:A,$B$1))),"#DIV/0!") -> #DIV/0! | S33: =IF(K33<>0,VLOOKUP(A33,RPI!A:C,3,FALSE),"#N/A") -> #N/A | U33: Avg. Goals Against per Game (Conf.): | V33: =AVERAGEIFS(C8:C33,K8:K33,"<>#N/A",O8:O33,B3) -> 9.714285714
P34: =AVERAGEIF(P8:P33,"<>#N/A",P8:P33) -> 10.52957822 | Q34: =AVERAGEIF(Q8:Q33,"<>#N/A",Q8:Q33) -> 10.0926537 | R34: =AVERAGEIF(R8:R33,"<>#DIV/0!",R8:R33) -> 0.5421764347 | S34: =AVERAGEIF(S8:S33,"<>#N/A",S8:S33) -> 0.5150066717

Sheet Army
A1: Team: | B1: Army
A2: Season: | B2: 2016
A3: Conference: | B3: Patriot
A5: 2016 Schedule | U5: TEAM PROFILE
A7: Opponent | B7: =B1 -> Army | C7: Opponent | D7: Win | E7: Loss | F7: Site | G7: Pred. Spread | H7: Win Prob. % | I7: Opp. SRS Ranking | L7: Neutral | M7: Away | N7: Home | O7: League | P7: Opp.GF | Q7: Opp.GA | R7: Opp. Rec | S7: Opp Opp Rec | U7: All Record: | V7: =(COUNTIF(D8:D33,"W")&"-"&(COUNTIF(E8:E33,"L"))) -> 10-7
A8: Massachusetts | B8: 9 | C8: 5 | D8: =IF(B8>0, IF(B8>C8,"W",0),0) -> W | E8: =IF(C8>0, IF(C8>B8,"L",0),0) -> 0 | F8: H | G8: =IF(F8="N",L8,IF(F8="A",M8,N8)) -> -3 | H8: =NORMDIST(0,G8,Games!$C$539,TRUE) -> 0.7966273549 | I8: =VLOOKUP(A8,Sheet1!A:K,5,FALSE) -> 28 | J8: =IF(H8>0.5,"W","L") -> W | K8: =B8-C8 -> 4 | L8: =ROUND(((VLOOKUP(A8,Sheet1!$A:$J,4,FALSE))-(VLOOKUP($B$1,Sheet1!$A:$J,4,FALSE)))/0.5,0)*0.5 -> -1.5 | M8: =ROUND(((VLOOKUP(A8,Sheet1!$A:$J,4,FALSE))-(VLOOKUP($B$1,Sheet1!$A:$J,4,FALSE))+Games!$C$542)/0.5,0)*0.5 -> -0.5 | N8: =ROUND(((VLOOKUP(A8,Sheet1!$A:$J,4,FALSE))-(VLOOKUP($B$1,Sheet1!$A:$J,4,FALSE))-Games!$C$542)/0.5,0)*0.5 -> -3 | O8: =VLOOKUP(A8,Sheet1!$A:$M,13,FALSE) -> CAA | P8: =IF(K8<>0,VLOOKUP(A8,Sheet1!A:H,7,FALSE),"#N/A") -> 8.615384615 | Q8: =IF(K8<>0,VLOOKUP(A8,Sheet1!A:H,8,FALSE),"#N/A") -> 9.846153846 | R8: =IF(K8<>0,((COUNTIFS(Games!A:A,A8,Games!F:F,"W")+COUNTIFS(Games!B:B,A8,Games!F:F,"L")-COUNTIFS(Games!A:A,A8,Games!B:B,$B$1,Games!F:F,"W")-COUNTIFS(Games!$B:$B,A8,Games!$A:$A,$B$1,Games!F:F,"L"))/(COUNTIFS(Games!A:A,A8)+COUNTIF(Games!B:B,A8)-COUNTIFS(Games!A:A,A8,Games!B:B,$B$1)-COUNTIFS(Games!B:B,A8,Games!A:A,$B$1))),"#DIV/0!") -> 0.3333333333 | S8: =VLOOKUP(A8,RPI!A:C,3,FALSE) -> 0.5874471682 | U8: Conf. Record: | V8: =(COUNTIFS(D8:D33,"W",O8:O33,B3)&"-"&(COUNTIFS(E8:E33,"L",O8:O33,B3))) -> 7-4
A9: Rutgers | B9: 11 | C9: 13 | D9: =IF(B9>0, IF(B9>C9,"W",0),0) -> 0 | E9: =IF(C9>0, IF(C9>B9,"L",0),0) -> L | F9: H | G9: =IF(F9="N",L9,IF(F9="A",M9,N9)) -> -1.5 | H9: =NORMDIST(0,G9,Games!$C$539,TRUE) -> 0.6608622111 | I9: =VLOOKUP(A9,Sheet1!A:K,5,FALSE) -> 19 | J9: =IF(H9>0.5,"W","L") -> W | K9: =B9-C9 -> -2 | L9: =ROUND(((VLOOKUP(A9,Sheet1!$A:$J,4,FALSE))-(VLOOKUP($B$1,Sheet1!$A:$J,4,FALSE)))/0.5,0)*0.5 -> 0 | M9: =ROUND(((VLOOKUP(A9,Sheet1!$A:$J,4,FALSE))-(VLOOKUP($B$1,Sheet1!$A:$J,4,FALSE))+Games!$C$542)/0.5,0)*0.5 -> 1 | N9: =ROUND(((VLOOKUP(A9,Sheet1!$A:$J,4,FALSE))-(VLOOKUP($B$1,Sheet1!$A:$J,4,FALSE))-Games!$C$542)/0.5,0)*0.5 -> -1.5 | O9: =VLOOKUP(A9,Sheet1!$A:$M,13,FALSE) -> Big Ten | P9: =IF(K9<>0,VLOOKUP(A9,Sheet1!A:H,7,FALSE),"#N/A") -> 12.4375 | Q9: =IF(K9<>0,VLOOKUP(A9,Sheet1!A:H,8,FALSE),"#N/A") -> 9.875 | R9: =IF(K9<>0,((COUNTIFS(Games!A:A,A9,Games!F:F,"W")+COUNTIFS(Games!B:B,A9,Games!F:F,"L")-COUNTIFS(Games!A:A,A9,Games!B:B,$B$1,Games!F:F,"W")-COUNTIFS(Games!$B:$B,A9,Games!$A:$A,$B$1,Games!F:F,"L"))/(COUNTIFS(Games!A:A,A9)+COUNTIF(Games!B:B,A9)-COUNTIFS(Games!A:A,A9,Games!B:B,$B$1)-COUNTIFS(Games!B:B,A9,Games!A:A,$B$1))),"#DIV/0!") -> 0.6666666667 | S9: =VLOOKUP(A9,RPI!A:C,3,FALSE) -> 0.5063272665 | U9: SRS Value: | V9: =VLOOKUP(B1,Sheet1!$A:$L,4,FALSE) -> 2.862322697
A10: VMI | B10: 22 | C10: 3 | D10: W | E10: 0 | F10: H | G10: -14 | H10: =NORMDIST(0,G10,Games!$C$539,TRUE) -> 0.9999459448 | I10: =VLOOKUP(A10,Sheet1!A:K,5,FALSE) -> 69 | J10: W | K10: 19 | L10: =ROUND(((VLOOKUP(A10,Sheet1!$A:$J,4,FALSE))-(VLOOKUP($B$1,Sheet1!$A:$J,4,FALSE)))/0.5,0)*0.5 -> -12.5 | M10: =ROUND(((VLOOKUP(A10,Sheet1!$A:$J,4,FALSE))-(VLOOKUP($B$1,Sheet1!$A:$J,4,FALSE))+Games!$C$542)/0.5,0)*0.5 -> -11.5 | N10: =ROUND(((VLOOKUP(A10,Sheet1!$A:$J,4,FALSE))-(VLOOKUP($B$1,Sheet1!$A:$J,4,FALSE))-Games!$C$542)/0.5,0)*0.5 -> -14 | O10: =VLOOKUP(A10,Sheet1!$A:$M,13,FALSE) -> Southern | P10: =IF(K10<>0,VLOOKUP(A10,Sheet1!A:H,7,FALSE),"#N/A") -> 6 | Q10: =IF(K10<>0,VLOOKUP(A10,Sheet1!A:H,8,FALSE),"#N/A") -> 13.9375 | R10: =IF(K10<>0,((COUNTIFS(Games!A:A,A10,Games!F:F,"W")+COUNTIFS(Games!B:B,A10,Games!F:F,"L")-COUNTIFS(Games!A:A,A10,Games!B:B,$B$1,Games!F:F,"W")-COUNTIFS(Games!$B:$B,A10,Games!$A:$A,$B$1,Games!F:F,"L"))/(COUNTIFS(Games!A:A,A10)+COUNTIF(Games!B:B,A10)-COUNTIFS(Games!A:A,A10,Games!B:B,$B$1)-COUNTIFS(Games!B:B,A10,Games!A:A,$B$1))),"#DIV/0!") -> 0.1333333333 | S10: =VLOOKUP(A10,RPI!A:C,3,FALSE) -> 0.3961509844 | U10: SRS Ranking (NCAA): | V10: =VLOOKUP(B1,Sheet1!A:J,5,FALSE) -> 18
A11: Syracuse | B11: 8 | C11: 9 | D11: 0 | E11: L | F11: A | G11: 4 | H11: =NORMDIST(0,G11,Games!$C$539,TRUE) -> 0.1343243641 | I11: =VLOOKUP(A11,Sheet1!A:K,5,FALSE) -> 5 | J11: L | K11: -1 | L11: =ROUND(((VLOOKUP(A11,Sheet1!$A:$J,4,FALSE))-(VLOOKUP($B$1,Sheet1!$A:$J,4,FALSE)))/0.5,0)*0.5 -> 2.5 | M11: =ROUND(((VLOOKUP(A11,Sheet1!$A:$J,4,FALSE))-(VLOOKUP($B$1,Sheet1!$A:$J,4,FALSE))+Games!$C$542)/0.5,0)*0.5 -> 4 | N11: =ROUND(((VLOOKUP(A11,Sheet1!$A:$J,4,FALSE))-(VLOOKUP($B$1,Sheet1!$A:$J,4,FALSE))-Games!$C$542)/0.5,0)*0.5 -> 1.5 | O11: =VLOOKUP(A11,Sheet1!$A:$M,13,FALSE) -> ACC | P11: =IF(K11<>0,VLOOKUP(A11,Sheet1!A:H,7,FALSE),"#N/A") -> 12.93333333 | Q11: =IF(K11<>0,VLOOKUP(A11,Sheet1!A:H,8,FALSE),"#N/A") -> 8.466666667 | R11: =IF(K11<>0,((COUNTIFS(Games!A:A,A11,Games!F:F,"W")+COUNTIFS(Games!B:B,A11,Games!F:F,"L")-COUNTIFS(Games!A:A,A11,Games!B:B,$B$1,Games!F:F,"W")-COUNTIFS(Games!$B:$B,A11,Games!$A:$A,$B$1,Games!F:F,"L"))/(COUNTIFS(Games!A:A,A11)+COUNTIF(Games!B:B,A11)-COUNTIFS(Games!A:A,A11,Games!B:B,$B$1)-COUNTIFS(Games!B:B,A11,Games!A:A,$B$1))),"#DIV/0!") -> 0.7142857143 | S11: =VLOOKUP(A11,RPI!A:C,3,FALSE) -> 0.5304334554 | U11: SRS Ranking (Conf.): | V11: =1+SUMPRODUCT((Sheet1!M2:M71=B3)*(Sheet1!E2:E71<V10)) -> 3
A12: Lafayette | B12: 14 | C12: 5 | D12: W | E12: 0 | F12: A | G12: -6.5 | H12: =NORMDIST(0,G12,Games!$C$539,TRUE) -> 0.9638751984 | I12: =VLOOKUP(A12,Sheet1!A:K,5,FALSE) -> 62 | J12: W | K12: 9 | L12: =ROUND(((VLOOKUP(A12,Sheet1!$A:$J,4,FALSE))-(VLOOKUP($B$1,Sheet1!$A:$J,4,FALSE)))/0.5,0)*0.5 -> -7.5 | M12: =ROUND(((VLOOKUP(A12,Sheet1!$A:$J,4,FALSE))-(VLOOKUP($B$1,Sheet1!$A:$J,4,FALSE))+Games!$C$542)/0.5,0)*0.5 -> -6.5 | N12: =ROUND(((VLOOKUP(A12,Sheet1!$A:$J,4,FALSE))-(VLOOKUP($B$1,Sheet1!$A:$J,4,FALSE))-Games!$C$542)/0.5,0)*0.5 -> -9 | O12: =VLOOKUP(A12,Sheet1!$A:$M,13,FALSE) -> Patriot | P12: =IF(K12<>0,VLOOKUP(A12,Sheet1!A:H,7,FALSE),"#N/A") -> 7.714285714 | Q12: =IF(K12<>0,VLOOKUP(A12,Sheet1!A:H,8,FALSE),"#N/A") -> 11.5 | R12: =IF(K12<>0,((COUNTIFS(Games!A:A,A12,Games!F:F,"W")+COUNTIFS(Games!B:B,A12,Games!F:F,"L")-COUNTIFS(Games!A:A,A12,Games!B:B,$B$1,Games!F:F,"W")-COUNTIFS(Games!$B:$B,A12,Games!$A:$A,$B$1,Games!F:F,"L"))/(COUNTIFS(Games!A:A,A12)+COUNTIF(Games!B:B,A12)-COUNTIFS(Games!A:A,A12,Games!B:B,$B$1)-COUNTIFS(Games!B:B,A12,Games!A:A,$B$1))),"#DIV/0!") -> 0.2307692308 | S12: =VLOOKUP(A12,RPI!A:C,3,FALSE) -> 0.4158195971 | U12: SRS SoS Value: | V12: =VLOOKUP(B1,Sheet1!$A:$L,3,FALSE) -> 0.0976168143
A13: Lehigh | B13: 13 | C13: 10 | D13: W | E13: 0 | F13: H | G13: -5 | H13: =NORMDIST(0,G13,Games!$C$539,TRUE) -> 0.9166253494 | I13: =VLOOKUP(A13,Sheet1!A:K,5,FALSE) -> 41 | J13: W | K13: 3 | L13: =ROUND(((VLOOKUP(A13,Sheet1!$A:$J,4,FALSE))-(VLOOKUP($B$1,Sheet1!$A:$J,4,FALSE)))/0.5,0)*0.5 -> -4 | M13: =ROUND(((VLOOKUP(A13,Sheet1!$A:$J,4,FALSE))-(VLOOKUP($B$1,Sheet1!$A:$J,4,FALSE))+Games!$C$542)/0.5,0)*0.5 -> -2.5 | N13: =ROUND(((VLOOKUP(A13,Sheet1!$A:$J,4,FALSE))-(VLOOKUP($B$1,Sheet1!$A:$J,4,FALSE))-Games!$C$542)/0.5,0)*0.5 -> -5 | O13: =VLOOKUP(A13,Sheet1!$A:$M,13,FALSE) -> Patriot | P13: =IF(K13<>0,VLOOKUP(A13,Sheet1!A:H,7,FALSE),"#N/A") -> 10.26666667 | Q13: =IF(K13<>0,VLOOKUP(A13,Sheet1!A:H,8,FALSE),"#N/A") -> 10.86666667 | R13: =IF(K13<>0,((COUNTIFS(Games!A:A,A13,Games!F:F,"W")+COUNTIFS(Games!B:B,A13,Games!F:F,"L")-COUNTIFS(Games!A:A,A13,Games!B:B,$B$1,Games!F:F,"W")-COUNTIFS(Games!$B:$B,A13,Games!$A:$A,$B$1,Games!F:F,"L"))/(COUNTIFS(Games!A:A,A13)+COUNTIF(Games!B:B,A13)-COUNTIFS(Games!A:A,A13,Games!B:B,$B$1)-COUNTIFS(Games!B:B,A13,Games!A:A,$B$1))),"#DIV/0!") -> 0.4615384615 | S13: =VLOOKUP(A13,RPI!A:C,3,FALSE) -> 0.4595209366 | U13: SRS SoS Ranking (NCAA): | V13: =VLOOKUP(B1,Sheet1!A:J,6,FALSE) -> 36
A14: NJIT | B14: 16 | C14: 6 | D14: W | E14: 0 | F14: H | G14: -12.5 | H14: =NORMDIST(0,G14,Games!$C$539,TRUE) -> 0.9997266967 | I14: =VLOOKUP(A14,Sheet1!A:K,5,FALSE) -> 68 | J14: W | K14: 10 | L14: =ROUND(((VLOOKUP(A14,Sheet1!$A:$J,4,FALSE))-(VLOOKUP($B$1,Sheet1!$A:$J,4,FALSE)))/0.5,0)*0.5 -> -11.5 | M14: =ROUND(((VLOOKUP(A14,Sheet1!$A:$J,4,FALSE))-(VLOOKUP($B$1,Sheet1!$A:$J,4,FALSE))+Games!$C$542)/0.5,0)*0.5 -> -10 | N14: =ROUND(((VLOOKUP(A14,Sheet1!$A:$J,4,FALSE))-(VLOOKUP($B$1,Sheet1!$A:$J,4,FALSE))-Games!$C$542)/0.5,0)*0.5 -> -12.5 | O14: =VLOOKUP(A14,Sheet1!$A:$M,13,FALSE) -> Independent | P14: =IF(K14<>0,VLOOKUP(A14,Sheet1!A:H,7,FALSE),"#N/A") -> 5.866666667 | Q14: =IF(K14<>0,VLOOKUP(A14,Sheet1!A:H,8,FALSE),"#N/A") -> 13.8 | R14: =IF(K14<>0,((COUNTIFS(Games!A:A,A14,Games!F:F,"W")+COUNTIFS(Games!B:B,A14,Games!F:F,"L")-COUNTIFS(Games!A:A,A14,Games!B:B,$B$1,Games!F:F,"W")-COUNTIFS(Games!$B:$B,A14,Games!$A:$A,$B$1,Games!F:F,"L"))/(COUNTIFS(Games!A:A,A14)+COUNTIF(Games!B:B,A14)-COUNTIFS(Games!A:A,A14,Games!B:B,$B$1)-COUNTIFS(Games!B:B,A14,Games!A:A,$B$1))),"#DIV/0!") -> 0.07142857143 | S14: =VLOOKUP(A14,RPI!A:C,3,FALSE) -> 0.383507326 | U14: SRS SoS Ranking (Conf.): | V14: =1+SUMPRODUCT((Sheet1!M2:M71=B3)*(Sheet1!F2:F71<V13)) -> 7
A15: Holy Cross | B15: 16 | C15: 7 | D15: W | E15: 0 | F15: H | G15: -5.5 | H15: =NORMDIST(0,G15,Games!$C$539,TRUE) -> 0.9358697236 | I15: =VLOOKUP(A15,Sheet1!A:K,5,FALSE) -> 46 | J15: W | K15: 9 | L15: =ROUND(((VLOOKUP(A15,Sheet1!$A:$J,4,FALSE))-(VLOOKUP($B$1,Sheet1!$A:$J,4,FALSE)))/0.5,0)*0.5 -> -4.5 | M15: =ROUND(((VLOOKUP(A15,Sheet1!$A:$J,4,FALSE))-(VLOOKUP($B$1,Sheet1!$A:$J,4,FALSE))+Games!$C$542)/0.5,0)*0.5 -> -3.5 | N15: =ROUND(((VLOOKUP(A15,Sheet1!$A:$J,4,FALSE))-(VLOOKUP($B$1,Sheet1!$A:$J,4,FALSE))-Games!$C$542)/0.5,0)*0.5 -> -5.5 | O15: =VLOOKUP(A15,Sheet1!$A:$M,13,FALSE) -> Patriot | P15: =IF(K15<>0,VLOOKUP(A15,Sheet1!A:H,7,FALSE),"#N/A") -> 8.933333333 | Q15: =IF(K15<>0,VLOOKUP(A15,Sheet1!A:H,8,FALSE),"#N/A") -> 11.53333333 | R15: =IF(K15<>0,((COUNTIFS(Games!A:A,A15,Games!F:F,"W")+COUNTIFS(Games!B:B,A15,Games!F:F,"L")-COUNTIFS(Games!A:A,A15,Games!B:B,$B$1,Games!F:F,"W")-COUNTIFS(Games!$B:$B,A15,Games!$A:$A,$B$1,Games!F:F,"L"))/(COUNTIFS(Games!A:A,A15)+COUNTIF(Games!B:B,A15)-COUNTIFS(Games!A:A,A15,Games!B:B,$B$1)-COUNTIFS(Games!B:B,A15,Games!A:A,$B$1))),"#DIV/0!") -> 0.2857142857 | S15: =VLOOKUP(A15,RPI!A:C,3,FALSE) -> 0.5231105006
A16: Colgate | B16: 11 | C16: 7 | D16: W | E16: 0 | F16: A | G16: -4 | H16: =NORMDIST(0,G16,Games!$C$539,TRUE) -> 0.8656756359 | I16: =VLOOKUP(A16,Sheet1!A:K,5,FALSE) -> 49 | J16: W | K16: 4 | L16: =ROUND(((VLOOKUP(A16,Sheet1!$A:$J,4,FALSE))-(VLOOKUP($B$1,Sheet1!$A:$J,4,FALSE)))/0.5,0)*0.5 -> -5 | M16: =ROUND(((VLOOKUP(A16,Sheet1!$A:$J,4,FALSE))-(VLOOKUP($B$1,Sheet1!$A:$J,4,FALSE))+Games!$C$542)/0.5,0)*0.5 -> -4 | N16: =ROUND(((VLOOKUP(A16,Sheet1!$A:$J,4,FALSE))-(VLOOKUP($B$1,Sheet1!$A:$J,4,FALSE))-Games!$C$542)/0.5,0)*0.5 -> -6 | O16: =VLOOKUP(A16,Sheet1!$A:$M,13,FALSE) -> Patriot | P16: =IF(K16<>0,VLOOKUP(A16,Sheet1!A:H,7,FALSE),"#N/A") -> 7.642857143 | Q16: =IF(K16<>0,VLOOKUP(A16,Sheet1!A:H,8,FALSE),"#N/A") -> 10.57142857 | R16: =IF(K16<>0,((COUNTIFS(Games!A:A,A16,Games!F:F,"W")+COUNTIFS(Games!B:B,A16,Games!F:F,"L")-COUNTIFS(Games!A:A,A16,Games!B:B,$B$1,Games!F:F,"W")-COUNTIFS(Games!$B:$B,A16,Games!$A:$A,$B$1,Games!F:F,"L"))/(COUNTIFS(Games!A:A,A16)+COUNTIF(Games!B:B,A16)-COUNTIFS(Games!A:A,A16,Games!B:B,$B$1)-COUNTIFS(Games!B:B,A16,Games!A:A,$B$1))),"#DIV/0!") -> 0.3076923077 | S16: =VLOOKUP(A16,RPI!A:C,3,FALSE) -> 0.4877845369 | U16: Actual Win % (All): | V16: =COUNTIF(D8:D33,"W")/(COUNTIF(D8:D33,"W")+(COUNTIF(E8:E33,"L"))) -> 0.5882352941
A17: Bucknell | B17: 7 | C17: 8 | D17: 0 | E17: L | F17: H | G17: -1.5 | H17: =NORMDIST(0,G17,Games!$C$539,TRUE) -> 0.6608622111 | I17: =VLOOKUP(A17,Sheet1!A:K,5,FALSE) -> 21 | J17: W | K17: -1 | L17: =ROUND(((VLOOKUP(A17,Sheet1!$A:$J,4,FALSE))-(VLOOKUP($B$1,Sheet1!$A:$J,4,FALSE)))/0.5,0)*0.5 -> -0.5 | M17: =ROUND(((VLOOKUP(A17,Sheet1!$A:$J,4,FALSE))-(VLOOKUP($B$1,Sheet1!$A:$J,4,FALSE))+Games!$C$542)/0.5,0)*0.5 -> 0.5 | N17: =ROUND(((VLOOKUP(A17,Sheet1!$A:$J,4,FALSE))-(VLOOKUP($B$1,Sheet1!$A:$J,4,FALSE))-Games!$C$542)/0.5,0)*0.5 -> -1.5 | O17: =VLOOKUP(A17,Sheet1!$A:$M,13,FALSE) -> Patriot | P17: =IF(K17<>0,VLOOKUP(A17,Sheet1!A:H,7,FALSE),"#N/A") -> 11.06666667 | Q17: =IF(K17<>0,VLOOKUP(A17,Sheet1!A:H,8,FALSE),"#N/A") -> 9.066666667 | R17: =IF(K17<>0,((COUNTIFS(Games!A:A,A17,Games!F:F,"W")+COUNTIFS(Games!B:B,A17,Games!F:F,"L")-COUNTIFS(Games!A:A,A17,Games!B:B,$B$1,Games!F:F,"W")-COUNTIFS(Games!$B:$B,A17,Games!$A:$A,$B$1,Games!F:F,"L"))/(COUNTIFS(Games!A:A,A17)+COUNTIF(Games!B:B,A17)-COUNTIFS(Games!A:A,A17,Games!B:B,$B$1)-COUNTIFS(Games!B:B,A17,Games!A:A,$B$1))),"#DIV/0!") -> 0.6428571429 | S17: =VLOOKUP(A17,RPI!A:C,3,FALSE) -> 0.5095695971 | U17: Expected SRS Win % (All): | V17: =SUMIFS(H8:H33,H8:H33,"<>N/A",K8:K33,"<>0")/(COUNTIF(K8:K33,"<>0")) -> 0.6661460113
A18: Boston | B18: 15 | C18: 4 | D18: W | E18: 0 | F18: A | G18: -2 | H18: =NORMDIST(0,G18,Games!$C$539,TRUE) -> 0.7098990644 | I18: =VLOOKUP(A18,Sheet1!A:K,5,FALSE) -> 39 | J18: W | K18: 11 | L18: =ROUND(((VLOOKUP(A18,Sheet1!$A:$J,4,FALSE))-(VLOOKUP($B$1,Sheet1!$A:$J,4,FALSE)))/0.5,0)*0.5 -> -3.5 | M18: =ROUND(((VLOOKUP(A18,Sheet1!$A:$J,4,FALSE))-(VLOOKUP($B$1,Sheet1!$A:$J,4,FALSE))+Games!$C$542)/0.5,0)*0.5 -> -2 | N18: =ROUND(((VLOOKUP(A18,Sheet1!$A:$J,4,FALSE))-(VLOOKUP($B$1,Sheet1!$A:$J,4,FALSE))-Games!$C$542)/0.5,0)*0.5 -> -4.5 | O18: =VLOOKUP(A18,Sheet1!$A:$M,13,FALSE) -> Patriot | P18: =IF(K18<>0,VLOOKUP(A18,Sheet1!A:H,7,FALSE),"#N/A") -> 9.333333333 | Q18: =IF(K18<>0,VLOOKUP(A18,Sheet1!A:H,8,FALSE),"#N/A") -> 9.866666667 | R18: =IF(K18<>0,((COUNTIFS(Games!A:A,A18,Games!F:F,"W")+COUNTIFS(Games!B:B,A18,Games!F:F,"L")-COUNTIFS(Games!A:A,A18,Games!B:B,$B$1,Games!F:F,"W")-COUNTIFS(Games!$B:$B,A18,Games!$A:$A,$B$1,Games!F:F,"L"))/(COUNTIFS(Games!A:A,A18)+COUNTIF(Games!B:B,A18)-COUNTIFS(Games!A:A,A18,Games!B:B,$B$1)-COUNTIFS(Games!B:B,A18,Games!A:A,$B$1))),"#DIV/0!") -> 0.5714285714 | S18: =VLOOKUP(A18,RPI!A:C,3,FALSE) -> 0.490439185 | U18: Wins +/- Expectation (All): | V18: =(V16*(COUNTIF(G8:G33,"<>#N/A")))-(V17*(COUNTIF(G8:G33,"<>#N/A"))) -> -1.324482192
A19: Navy | B19: 10 | C19: 11 | D19: 0 | E19: L | F19: H | G19: -1 | H19: =NORMDIST(0,G19,Games!$C$539,TRUE) -> 0.6089352247 | I19: =VLOOKUP(A19,Sheet1!A:K,5,FALSE) -> 16 | J19: W | K19: -1 | L19: =ROUND(((VLOOKUP(A19,Sheet1!$A:$J,4,FALSE))-(VLOOKUP($B$1,Sheet1!$A:$J,4,FALSE)))/0.5,0)*0.5 -> 0 | M19: =ROUND(((VLOOKUP(A19,Sheet1!$A:$J,4,FALSE))-(VLOOKUP($B$1,Sheet1!$A:$J,4,FALSE))+Games!$C$542)/0.5,0)*0.5 -> 1.5 | N19: =ROUND(((VLOOKUP(A19,Sheet1!$A:$J,4,FALSE))-(VLOOKUP($B$1,Sheet1!$A:$J,4,FALSE))-Games!$C$542)/0.5,0)*0.5 -> -1 | O19: =VLOOKUP(A19,Sheet1!$A:$M,13,FALSE) -> Patriot | P19: =IF(K19<>0,VLOOKUP(A19,Sheet1!A:H,7,FALSE),"#N/A") -> 9.642857143 | Q19: =IF(K19<>0,VLOOKUP(A19,Sheet1!A:H,8,FALSE),"#N/A") -> 6.928571429 | R19: =IF(K19<>0,((COUNTIFS(Games!A:A,A19,Games!F:F,"W")+COUNTIFS(Games!B:B,A19,Games!F:F,"L")-COUNTIFS(Games!A:A,A19,Games!B:B,$B$1,Games!F:F,"W")-COUNTIFS(Games!$B:$B,A19,Games!$A:$A,$B$1,Games!F:F,"L"))/(COUNTIFS(Games!A:A,A19)+COUNTIF(Games!B:B,A19)-COUNTIFS(Games!A:A,A19,Games!B:B,$B$1)-COUNTIFS(Games!B:B,A19,Games!A:A,$B$1))),"#DIV/0!") -> 0.75 | S19: =VLOOKUP(A19,RPI!A:C,3,FALSE) -> 0.5255200157 | U19: Expected Remaining Wins (All): | V19: =SUMIFS(H8:H33,G8:G33,"<>#N/A",K8:K33,"0") -> 0
A20: Loyola | B20: 6 | C20: 12 | D20: 0 | E20: L | F20: A | G20: 2 | H20: =NORMDIST(0,G20,Games!$C$539,TRUE) -> 0.2901009356 | I20: =VLOOKUP(A20,Sheet1!A:K,5,FALSE) -> 12 | J20: L | K20: -6 | L20: =ROUND(((VLOOKUP(A20,Sheet1!$A:$J,4,FALSE))-(VLOOKUP($B$1,Sheet1!$A:$J,4,FALSE)))/0.5,0)*0.5 -> 1 | M20: =ROUND(((VLOOKUP(A20,Sheet1!$A:$J,4,FALSE))-(VLOOKUP($B$1,Sheet1!$A:$J,4,FALSE))+Games!$C$542)/0.5,0)*0.5 -> 2 | N20: =ROUND(((VLOOKUP(A20,Sheet1!$A:$J,4,FALSE))-(VLOOKUP($B$1,Sheet1!$A:$J,4,FALSE))-Games!$C$542)/0.5,0)*0.5 -> -0.5 | O20: =VLOOKUP(A20,Sheet1!$A:$M,13,FALSE) -> Patriot | P20: =IF(K20<>0,VLOOKUP(A20,Sheet1!A:H,7,FALSE),"#N/A") -> 10.53333333 | Q20: =IF(K20<>0,VLOOKUP(A20,Sheet1!A:H,8,FALSE),"#N/A") -> 7.866666667 | R20: =IF(K20<>0,((COUNTIFS(Games!A:A,A20,Games!F:F,"W")+COUNTIFS(Games!B:B,A20,Games!F:F,"L")-COUNTIFS(Games!A:A,A20,Games!B:B,$B$1,Games!F:F,"W")-COUNTIFS(Games!$B:$B,A20,Games!$A:$A,$B$1,Games!F:F,"L"))/(COUNTIFS(Games!A:A,A20)+COUNTIF(Games!B:B,A20)-COUNTIFS(Games!A:A,A20,Games!B:B,$B$1)-COUNTIFS(Games!B:B,A20,Games!A:A,$B$1))),"#DIV/0!") -> 0.7692307692 | S20: =VLOOKUP(A20,RPI!A:C,3,FALSE) -> 0.5408274079 | U20: Actual Margin (All): | V20: =SUM(K8:K33) -> 57
A21: Lehigh | B21: 13 | C21: 6 | D21: W | E21: 0 | F21: H | G21: -5 | H21: =NORMDIST(0,G21,Games!$C$539,TRUE) -> 0.9166253494 | I21: =VLOOKUP(A21,Sheet1!A:K,5,FALSE) -> 41 | J21: W | K21: 7 | L21: =ROUND(((VLOOKUP(A21,Sheet1!$A:$J,4,FALSE))-(VLOOKUP($B$1,Sheet1!$A:$J,4,FALSE)))/0.5,0)*0.5 -> -4 | M21: =ROUND(((VLOOKUP(A21,Sheet1!$A:$J,4,FALSE))-(VLOOKUP($B$1,Sheet1!$A:$J,4,FALSE))+Games!$C$542)/0.5,0)*0.5 -> -2.5 | N21: =ROUND(((VLOOKUP(A21,Sheet1!$A:$J,4,FALSE))-(VLOOKUP($B$1,Sheet1!$A:$J,4,FALSE))-Games!$C$542)/0.5,0)*0.5 -> -5 | O21: =VLOOKUP(A21,Sheet1!$A:$M,13,FALSE) -> Patriot | P21: =IF(K21<>0,VLOOKUP(A21,Sheet1!A:H,7,FALSE),"#N/A") -> 10.26666667 | Q21: =IF(K21<>0,VLOOKUP(A21,Sheet1!A:H,8,FALSE),"#N/A") -> 10.86666667 | R21: =IF(K21<>0,((COUNTIFS(Games!A:A,A21,Games!F:F,"W")+COUNTIFS(Games!B:B,A21,Games!F:F,"L")-COUNTIFS(Games!A:A,A21,Games!B:B,$B$1,Games!F:F,"W")-COUNTIFS(Games!$B:$B,A21,Games!$A:$A,$B$1,Games!F:F,"L"))/(COUNTIFS(Games!A:A,A21)+COUNTIF(Games!B:B,A21)-COUNTIFS(Games!A:A,A21,Games!B:B,$B$1)-COUNTIFS(Games!B:B,A21,Games!A:A,$B$1))),"#DIV/0!") -> 0.4615384615 | S21: =VLOOKUP(A21,RPI!A:C,3,FALSE) -> 0.4595209366 | U21: Predicted Margin (All): | V21: =-SUMIFS(G8:G33,G8:G33,"<>#N/A",K8:K33,"<>0") -> 49
A22: Navy | B22: 9 | C22: 3 | D22: W | E22: 0 | F22: A | G22: 1.5 | H22: =NORMDIST(0,G22,Games!$C$539,TRUE) -> 0.3391377889 | I22: =VLOOKUP(A22,Sheet1!A:K,5,FALSE) -> 16 | J22: L | K22: 6 | L22: =ROUND(((VLOOKUP(A22,Sheet1!$A:$J,4,FALSE))-(VLOOKUP($B$1,Sheet1!$A:$J,4,FALSE)))/0.5,0)*0.5 -> 0 | M22: =ROUND(((VLOOKUP(A22,Sheet1!$A:$J,4,FALSE))-(VLOOKUP($B$1,Sheet1!$A:$J,4,FALSE))+Games!$C$542)/0.5,0)*0.5 -> 1.5 | N22: =ROUND(((VLOOKUP(A22,Sheet1!$A:$J,4,FALSE))-(VLOOKUP($B$1,Sheet1!$A:$J,4,FALSE))-Games!$C$542)/0.5,0)*0.5 -> -1 | O22: =VLOOKUP(A22,Sheet1!$A:$M,13,FALSE) -> Patriot | P22: =IF(K22<>0,VLOOKUP(A22,Sheet1!A:H,7,FALSE),"#N/A") -> 9.642857143 | Q22: =IF(K22<>0,VLOOKUP(A22,Sheet1!A:H,8,FALSE),"#N/A") -> 6.928571429 | R22: =IF(K22<>0,((COUNTIFS(Games!A:A,A22,Games!F:F,"W")+COUNTIFS(Games!B:B,A22,Games!F:F,"L")-COUNTIFS(Games!A:A,A22,Games!B:B,$B$1,Games!F:F,"W")-COUNTIFS(Games!$B:$B,A22,Games!$A:$A,$B$1,Games!F:F,"L"))/(COUNTIFS(Games!A:A,A22)+COUNTIF(Games!B:B,A22)-COUNTIFS(Games!A:A,A22,Games!B:B,$B$1)-COUNTIFS(Games!B:B,A22,Games!A:A,$B$1))),"#DIV/0!") -> 0.75 | S22: =VLOOKUP(A22,RPI!A:C,3,FALSE) -> 0.5255200157
A23: Loyola | B23: 6 | C23: 14 | D23: 0 | E23: L | F23: N | G23: 1 | H23: =NORMDIST(0,G23,Games!$C$539,TRUE) -> 0.3910647753 | I23: =VLOOKUP(A23,Sheet1!A:K,5,FALSE) -> 12 | J23: L | K23: -8 | L23: =ROUND(((VLOOKUP(A23,Sheet1!$A:$J,4,FALSE))-(VLOOKUP($B$1,Sheet1!$A:$J,4,FALSE)))/0.5,0)*0.5 -> 1 | M23: =ROUND(((VLOOKUP(A23,Sheet1!$A:$J,4,FALSE))-(VLOOKUP($B$1,Sheet1!$A:$J,4,FALSE))+Games!$C$542)/0.5,0)*0.5 -> 2 | N23: =ROUND(((VLOOKUP(A23,Sheet1!$A:$J,4,FALSE))-(VLOOKUP($B$1,Sheet1!$A:$J,4,FALSE))-Games!$C$542)/0.5,0)*0.5 -> -0.5 | O23: =VLOOKUP(A23,Sheet1!$A:$M,13,FALSE) -> Patriot | P23: =IF(K23<>0,VLOOKUP(A23,Sheet1!A:H,7,FALSE),"#N/A") -> 10.53333333 | Q23: =IF(K23<>0,VLOOKUP(A23,Sheet1!A:H,8,FALSE),"#N/A") -> 7.866666667 | R23: =IF(K23<>0,((COUNTIFS(Games!A:A,A23,Games!F:F,"W")+COUNTIFS(Games!B:B,A23,Games!F:F,"L")-COUNTIFS(Games!A:A,A23,Games!B:B,$B$1,Games!F:F,"W")-COUNTIFS(Games!$B:$B,A23,Games!$A:$A,$B$1,Games!F:F,"L"))/(COUNTIFS(Games!A:A,A23)+COUNTIF(Games!B:B,A23)-COUNTIFS(Games!A:A,A23,Games!B:B,$B$1)-COUNTIFS(Games!B:B,A23,Games!A:A,$B$1))),"#DIV/0!") -> 0.7692307692 | S23: =VLOOKUP(A23,RPI!A:C,3,FALSE) -> 0.5408274079 | U23: Actual Win % (Conf.): | V23: =COUNTIFS(D8:D33,"W",O8:O33,B3)/(COUNTIFS(D8:D33,"W",O8:O33,B3)+(COUNTIFS(E8:E33,"L",O8:O33,B3))) -> 0.6363636364
A24: Notre Dame | B24: 7 | C24: 13 | D24: 0 | E24: L | F24: A | G24: 4 | H24: =NORMDIST(0,G24,Games!$C$539,TRUE) -> 0.1343243641 | I24: =VLOOKUP(A24,Sheet1!A:K,5,FALSE) -> 2 | K24: -6 | L24: =ROUND(((VLOOKUP(A24,Sheet1!$A:$J,4,FALSE))-(VLOOKUP($B$1,Sheet1!$A:$J,4,FALSE)))/0.5,0)*0.5 -> 3 | M24: =ROUND(((VLOOKUP(A24,Sheet1!$A:$J,4,FALSE))-(VLOOKUP($B$1,Sheet1!$A:$J,4,FALSE))+Games!$C$542)/0.5,0)*0.5 -> 4 | N24: =ROUND(((VLOOKUP(A24,Sheet1!$A:$J,4,FALSE))-(VLOOKUP($B$1,Sheet1!$A:$J,4,FALSE))-Games!$C$542)/0.5,0)*0.5 -> 1.5 | O24: =VLOOKUP(A24,Sheet1!$A:$M,13,FALSE) -> ACC | P24: =IF(K24<>0,VLOOKUP(A24,Sheet1!A:H,7,FALSE),"#N/A") -> 10.84615385 | Q24: =IF(K24<>0,VLOOKUP(A24,Sheet1!A:H,8,FALSE),"#N/A") -> 7.692307692 | R24: =IF(K24<>0,((COUNTIFS(Games!A:A,A24,Games!F:F,"W")+COUNTIFS(Games!B:B,A24,Games!F:F,"L")-COUNTIFS(Games!A:A,A24,Games!B:B,$B$1,Games!F:F,"W")-COUNTIFS(Games!$B:$B,A24,Games!$A:$A,$B$1,Games!F:F,"L"))/(COUNTIFS(Games!A:A,A24)+COUNTIF(Games!B:B,A24)-COUNTIFS(Games!A:A,A24,Games!B:B,$B$1)-COUNTIFS(Games!B:B,A24,Games!A:A,$B$1))),"#DIV/0!") -> 0.75 | S24: =IF(K24<>0,VLOOKUP(A24,RPI!A:C,3,FALSE),"#N/A") -> 0.5799693896 | U24: Expected SRS Win % (Conf.): | V24: =SUMIFS(H8:H33,H8:H33,"<>N/A",K8:K33,"<>0",O8:O33,B3)/(COUNTIFS(K8:K33,"<>0",O8:O33,B3)) -> 0.6907882961
D25: 0 | E25: 0 | H25: =NORMDIST(0,G25,Games!$C$539,TRUE) ->  | I25: =VLOOKUP(A25,Sheet1!A:K,5,FALSE) ->  | K25: 0 | L25: =ROUND(((VLOOKUP(A25,Sheet1!$A:$J,4,FALSE))-(VLOOKUP($B$1,Sheet1!$A:$J,4,FALSE)))/0.5,0)*0.5 ->  | M25: =ROUND(((VLOOKUP(A25,Sheet1!$A:$J,4,FALSE))-(VLOOKUP($B$1,Sheet1!$A:$J,4,FALSE))+Games!$C$542)/0.5,0)*0.5 ->  | N25: =ROUND(((VLOOKUP(A25,Sheet1!$A:$J,4,FALSE))-(VLOOKUP($B$1,Sheet1!$A:$J,4,FALSE))-Games!$C$542)/0.5,0)*0.5 ->  | O25: =VLOOKUP(A25,Sheet1!$A:$M,13,FALSE) ->  | P25: =IF(K25<>0,VLOOKUP(A25,Sheet1!A:H,7,FALSE),"#N/A") -> #N/A | Q25: =IF(K25<>0,VLOOKUP(A25,Sheet1!A:H,8,FALSE),"#N/A") -> #N/A | R25: =IF(K25<>0,((COUNTIFS(Games!A:A,A25,Games!F:F,"W")+COUNTIFS(Games!B:B,A25,Games!F:F,"L")-COUNTIFS(Games!A:A,A25,Games!B:B,$B$1,Games!F:F,"W")-COUNTIFS(Games!$B:$B,A25,Games!$A:$A,$B$1,Games!F:F,"L"))/(COUNTIFS(Games!A:A,A25)+COUNTIF(Games!B:B,A25)-COUNTIFS(Games!A:A,A25,Games!B:B,$B$1)-COUNTIFS(Games!B:B,A25,Games!A:A,$B$1))),"#DIV/0!") -> #DIV/0! | S25: =IF(K25<>0,VLOOKUP(A25,RPI!A:C,3,FALSE),"#N/A") -> #N/A | U25: Wins +/- Expectation (Conf.): | V25: =(V23*(COUNTIFS(G8:G33,"<>#N/A",O8:O33,B3)))-(V24*(COUNTIFS(G8:G33,"<>#N/A",O8:O33,B3))) -> -0.5986712567
D26: 0 | E26: 0 | H26: =NORMDIST(0,G26,Games!$C$539,TRUE) ->  | I26: =VLOOKUP(A26,Sheet1!A:K,5,FALSE) ->  | K26: 0 | L26: =(VLOOKUP(A26,Sheet1!$A:$J,4,FALSE))-(VLOOKUP($B$1,Sheet1!$A:$J,4,FALSE)) ->  | M26: =(VLOOKUP(A26,Sheet1!$A:$J,4,FALSE))-(VLOOKUP($B$1,Sheet1!$A:$J,4,FALSE))+Games!$C$542 ->  | N26: =(VLOOKUP(A26,Sheet1!$A:$J,4,FALSE))-(VLOOKUP($B$1,Sheet1!$A:$J,4,FALSE))-Games!$C$542 ->  | O26: =VLOOKUP(A26,Sheet1!$A:$M,13,FALSE) ->  | P26: =IF(K26<>0,VLOOKUP(A26,Sheet1!A:H,7,FALSE),"#N/A") -> #N/A | Q26: =IF(K26<>0,VLOOKUP(A26,Sheet1!A:H,8,FALSE),"#N/A") -> #N/A | R26: =IF(K26<>0,((COUNTIFS(Games!A:A,A26,Games!F:F,"W")+COUNTIFS(Games!B:B,A26,Games!F:F,"L")-COUNTIFS(Games!A:A,A26,Games!B:B,$B$1,Games!F:F,"W")-COUNTIFS(Games!$B:$B,A26,Games!$A:$A,$B$1,Games!F:F,"L"))/(COUNTIFS(Games!A:A,A26)+COUNTIF(Games!B:B,A26)-COUNTIFS(Games!A:A,A26,Games!B:B,$B$1)-COUNTIFS(Games!B:B,A26,Games!A:A,$B$1))),"#DIV/0!") -> #DIV/0! | S26: =IF(K26<>0,VLOOKUP(A26,RPI!A:C,3,FALSE),"#N/A") -> #N/A | U26: Expected Remaining Wins (Conf.): | V26: =SUMIFS(H8:H33,G8:G33,"<>#N/A",K8:K33,"0",O8:O33,B3) -> 0
D27: 0 | E27: 0 | H27: =NORMDIST(0,G27,Games!$C$539,TRUE) ->  | I27: =VLOOKUP(A27,Sheet1!A:K,5,FALSE) ->  | K27: 0 | L27: =(VLOOKUP(A27,Sheet1!$A:$J,4,FALSE))-(VLOOKUP($B$1,Sheet1!$A:$J,4,FALSE)) ->  | M27: =(VLOOKUP(A27,Sheet1!$A:$J,4,FALSE))-(VLOOKUP($B$1,Sheet1!$A:$J,4,FALSE))+Games!$C$542 ->  | N27: =(VLOOKUP(A27,Sheet1!$A:$J,4,FALSE))-(VLOOKUP($B$1,Sheet1!$A:$J,4,FALSE))-Games!$C$542 ->  | O27: =VLOOKUP(A27,Sheet1!$A:$M,13,FALSE) ->  | P27: =IF(K27<>0,VLOOKUP(A27,Sheet1!A:H,7,FALSE),"#N/A") -> #N/A | Q27: =IF(K27<>0,VLOOKUP(A27,Sheet1!A:H,8,FALSE),"#N/A") -> #N/A | R27: =IF(K27<>0,((COUNTIFS(Games!A:A,A27,Games!F:F,"W")+COUNTIFS(Games!B:B,A27,Games!F:F,"L")-COUNTIFS(Games!A:A,A27,Games!B:B,$B$1,Games!F:F,"W")-COUNTIFS(Games!$B:$B,A27,Games!$A:$A,$B$1,Games!F:F,"L"))/(COUNTIFS(Games!A:A,A27)+COUNTIF(Games!B:B,A27)-COUNTIFS(Games!A:A,A27,Games!B:B,$B$1)-COUNTIFS(Games!B:B,A27,Games!A:A,$B$1))),"#DIV/0!") -> #DIV/0! | S27: =IF(K27<>0,VLOOKUP(A27,RPI!A:C,3,FALSE),"#N/A") -> #N/A | U27: Actual Margin (Conf.): | V27: =SUMIFS(K8:K33,O8:O33,B3) -> 33
D28: 0 | E28: 0 | H28: =NORMDIST(0,G28,Games!$C$539,TRUE) ->  | I28: =VLOOKUP(A28,Sheet1!A:K,5,FALSE) ->  | K28: 0 | L28: =(VLOOKUP(A28,Sheet1!$A:$J,4,FALSE))-(VLOOKUP($B$1,Sheet1!$A:$J,4,FALSE)) ->  | M28: =(VLOOKUP(A28,Sheet1!$A:$J,4,FALSE))-(VLOOKUP($B$1,Sheet1!$A:$J,4,FALSE))+Games!$C$542 ->  | N28: =(VLOOKUP(A28,Sheet1!$A:$J,4,FALSE))-(VLOOKUP($B$1,Sheet1!$A:$J,4,FALSE))-Games!$C$542 ->  | O28: =VLOOKUP(A28,Sheet1!$A:$M,13,FALSE) ->  | P28: =IF(K28<>0,VLOOKUP(A28,Sheet1!A:H,7,FALSE),"#N/A") -> #N/A | Q28: =IF(K28<>0,VLOOKUP(A28,Sheet1!A:H,8,FALSE),"#N/A") -> #N/A | R28: =IF(K28<>0,((COUNTIFS(Games!A:A,A28,Games!F:F,"W")+COUNTIFS(Games!B:B,A28,Games!F:F,"L")-COUNTIFS(Games!A:A,A28,Games!B:B,$B$1,Games!F:F,"W")-COUNTIFS(Games!$B:$B,A28,Games!$A:$A,$B$1,Games!F:F,"L"))/(COUNTIFS(Games!A:A,A28)+COUNTIF(Games!B:B,A28)-COUNTIFS(Games!A:A,A28,Games!B:B,$B$1)-COUNTIFS(Games!B:B,A28,Games!A:A,$B$1))),"#DIV/0!") -> #DIV/0! | S28: =IF(K28<>0,VLOOKUP(A28,RPI!A:C,3,FALSE),"#N/A") -> #N/A | U28: Predicted Margin (Conf.): | V28: =-SUMIFS(G8:G33,G8:G33,"<>#N/A",K8:K33,"<>0",O8:O33,B3) -> 26
D29: 0 | E29: 0 | H29: =NORMDIST(0,G29,Games!$C$539,TRUE) ->  | I29: =VLOOKUP(A29,Sheet1!A:K,5,FALSE) ->  | K29: 0 | L29: =(VLOOKUP(A29,Sheet1!$A:$J,4,FALSE))-(VLOOKUP($B$1,Sheet1!$A:$J,4,FALSE)) ->  | M29: =(VLOOKUP(A29,Sheet1!$A:$J,4,FALSE))-(VLOOKUP($B$1,Sheet1!$A:$J,4,FALSE))+Games!$C$542 ->  | N29: =(VLOOKUP(A29,Sheet1!$A:$J,4,FALSE))-(VLOOKUP($B$1,Sheet1!$A:$J,4,FALSE))-Games!$C$542 ->  | O29: =VLOOKUP(A29,Sheet1!$A:$M,13,FALSE) ->  | P29: =IF(K29<>0,VLOOKUP(A29,Sheet1!A:H,7,FALSE),"#N/A") -> #N/A | Q29: =IF(K29<>0,VLOOKUP(A29,Sheet1!A:H,8,FALSE),"#N/A") -> #N/A | R29: =IF(K29<>0,((COUNTIFS(Games!A:A,A29,Games!F:F,"W")+COUNTIFS(Games!B:B,A29,Games!F:F,"L")-COUNTIFS(Games!A:A,A29,Games!B:B,$B$1,Games!F:F,"W")-COUNTIFS(Games!$B:$B,A29,Games!$A:$A,$B$1,Games!F:F,"L"))/(COUNTIFS(Games!A:A,A29)+COUNTIF(Games!B:B,A29)-COUNTIFS(Games!A:A,A29,Games!B:B,$B$1)-COUNTIFS(Games!B:B,A29,Games!A:A,$B$1))),"#DIV/0!") -> #DIV/0! | S29: =IF(K29<>0,VLOOKUP(A29,RPI!A:C,3,FALSE),"#N/A") -> #N/A
D30: 0 | E30: 0 | H30: =NORMDIST(0,G30,Games!$C$539,TRUE) ->  | I30: =VLOOKUP(A30,Sheet1!A:K,5,FALSE) ->  | K30: 0 | L30: =(VLOOKUP(A30,Sheet1!$A:$J,4,FALSE))-(VLOOKUP($B$1,Sheet1!$A:$J,4,FALSE)) ->  | M30: =(VLOOKUP(A30,Sheet1!$A:$J,4,FALSE))-(VLOOKUP($B$1,Sheet1!$A:$J,4,FALSE))+Games!$C$542 ->  | N30: =(VLOOKUP(A30,Sheet1!$A:$J,4,FALSE))-(VLOOKUP($B$1,Sheet1!$A:$J,4,FALSE))-Games!$C$542 ->  | O30: =VLOOKUP(A30,Sheet1!$A:$M,13,FALSE) ->  | P30: =IF(K30<>0,VLOOKUP(A30,Sheet1!A:H,7,FALSE),"#N/A") -> #N/A | Q30: =IF(K30<>0,VLOOKUP(A30,Sheet1!A:H,8,FALSE),"#N/A") -> #N/A | R30: =IF(K30<>0,((COUNTIFS(Games!A:A,A30,Games!F:F,"W")+COUNTIFS(Games!B:B,A30,Games!F:F,"L")-COUNTIFS(Games!A:A,A30,Games!B:B,$B$1,Games!F:F,"W")-COUNTIFS(Games!$B:$B,A30,Games!$A:$A,$B$1,Games!F:F,"L"))/(COUNTIFS(Games!A:A,A30)+COUNTIF(Games!B:B,A30)-COUNTIFS(Games!A:A,A30,Games!B:B,$B$1)-COUNTIFS(Games!B:B,A30,Games!A:A,$B$1))),"#DIV/0!") -> #DIV/0! | S30: =IF(K30<>0,VLOOKUP(A30,RPI!A:C,3,FALSE),"#N/A") -> #N/A | U30: Avg. Goals For per Game (All): | V30: =AVERAGEIF(K8:K33,"<>#N/A",B8:B33) -> 11.35294118
D31: 0 | E31: 0 | H31: =NORMDIST(0,G31,Games!$C$539,TRUE) ->  | I31: =VLOOKUP(A31,Sheet1!A:K,5,FALSE) ->  | K31: 0 | L31: =(VLOOKUP(A31,Sheet1!$A:$J,4,FALSE))-(VLOOKUP($B$1,Sheet1!$A:$J,4,FALSE)) ->  | M31: =(VLOOKUP(A31,Sheet1!$A:$J,4,FALSE))-(VLOOKUP($B$1,Sheet1!$A:$J,4,FALSE))+Games!$C$542 ->  | N31: =(VLOOKUP(A31,Sheet1!$A:$J,4,FALSE))-(VLOOKUP($B$1,Sheet1!$A:$J,4,FALSE))-Games!$C$542 ->  | O31: =VLOOKUP(A31,Sheet1!$A:$M,13,FALSE) ->  | P31: =IF(K31<>0,VLOOKUP(A31,Sheet1!A:H,7,FALSE),"#N/A") -> #N/A | Q31: =IF(K31<>0,VLOOKUP(A31,Sheet1!A:H,8,FALSE),"#N/A") -> #N/A | R31: =IF(K31<>0,((COUNTIFS(Games!A:A,A31,Games!F:F,"W")+COUNTIFS(Games!B:B,A31,Games!F:F,"L")-COUNTIFS(Games!A:A,A31,Games!B:B,$B$1,Games!F:F,"W")-COUNTIFS(Games!$B:$B,A31,Games!$A:$A,$B$1,Games!F:F,"L"))/(COUNTIFS(Games!A:A,A31)+COUNTIF(Games!B:B,A31)-COUNTIFS(Games!A:A,A31,Games!B:B,$B$1)-COUNTIFS(Games!B:B,A31,Games!A:A,$B$1))),"#DIV/0!") -> #DIV/0! | S31: =IF(K31<>0,VLOOKUP(A31,RPI!A:C,3,FALSE),"#N/A") -> #N/A | U31: Avg. Goals Against per Game (All): | V31: =AVERAGEIF(K8:K33,"<>#N/A",C8:C33) -> 8
D32: 0 | E32: 0 | H32: =NORMDIST(0,G32,Games!$C$539,TRUE) ->  | I32: =VLOOKUP(A32,Sheet1!A:K,5,FALSE) ->  | K32: 0 | L32: =(VLOOKUP(A32,Sheet1!$A:$J,4,FALSE))-(VLOOKUP($B$1,Sheet1!$A:$J,4,FALSE)) ->  | M32: =(VLOOKUP(A32,Sheet1!$A:$J,4,FALSE))-(VLOOKUP($B$1,Sheet1!$A:$J,4,FALSE))+Games!$C$542 ->  | N32: =(VLOOKUP(A32,Sheet1!$A:$J,4,FALSE))-(VLOOKUP($B$1,Sheet1!$A:$J,4,FALSE))-Games!$C$542 ->  | O32: =VLOOKUP(A32,Sheet1!$A:$M,13,FALSE) ->  | P32: =IF(K32<>0,VLOOKUP(A32,Sheet1!A:H,7,FALSE),"#N/A") -> #N/A | Q32: =IF(K32<>0,VLOOKUP(A32,Sheet1!A:H,8,FALSE),"#N/A") -> #N/A | R32: =IF(K32<>0,((COUNTIFS(Games!A:A,A32,Games!F:F,"W")+COUNTIFS(Games!B:B,A32,Games!F:F,"L")-COUNTIFS(Games!A:A,A32,Games!B:B,$B$1,Games!F:F,"W")-COUNTIFS(Games!$B:$B,A32,Games!$A:$A,$B$1,Games!F:F,"L"))/(COUNTIFS(Games!A:A,A32)+COUNTIF(Games!B:B,A32)-COUNTIFS(Games!A:A,A32,Games!B:B,$B$1)-COUNTIFS(Games!B:B,A32,Games!A:A,$B$1))),"#DIV/0!") -> #DIV/0! | S32: =IF(K32<>0,VLOOKUP(A32,RPI!A:C,3,FALSE),"#N/A") -> #N/A | U32: Avg. Goals For per Game (Conf.): | V32: =AVERAGEIFS(B8:B33,K8:K33,"<>#N/A",O8:O33,B3) -> 10.90909091
D33: 0 | E33: 0 | H33: =NORMDIST(0,G33,Games!$C$539,TRUE) ->  | I33: =VLOOKUP(A33,Sheet1!A:K,5,FALSE) ->  | K33: 0 | L33: =(VLOOKUP(A33,Sheet1!$A:$J,4,FALSE))-(VLOOKUP($B$1,Sheet1!$A:$J,4,FALSE)) ->  | M33: =(VLOOKUP(A33,Sheet1!$A:$J,4,FALSE))-(VLOOKUP($B$1,Sheet1!$A:$J,4,FALSE))+Games!$C$542 ->  | N33: =(VLOOKUP(A33,Sheet1!$A:$J,4,FALSE))-(VLOOKUP($B$1,Sheet1!$A:$J,4,FALSE))-Games!$C$542 ->  | O33: =VLOOKUP(A33,Sheet1!$A:$M,13,FALSE) ->  | P33: =IF(K33<>0,VLOOKUP(A33,Sheet1!A:H,7,FALSE),"#N/A") -> #N/A | Q33: =IF(K33<>0,VLOOKUP(A33,Sheet1!A:H,8,FALSE),"#N/A") -> #N/A | R33: =IF(K33<>0,((COUNTIFS(Games!A:A,A33,Games!F:F,"W")+COUNTIFS(Games!B:B,A33,Games!F:F,"L")-COUNTIFS(Games!A:A,A33,Games!B:B,$B$1,Games!F:F,"W")-COUNTIFS(Games!$B:$B,A33,Games!$A:$A,$B$1,Games!F:F,"L"))/(COUNTIFS(Games!A:A,A33)+COUNTIF(Games!B:B,A33)-COUNTIFS(Games!A:A,A33,Games!B:B,$B$1)-COUNTIFS(Games!B:B,A33,Games!A:A,$B$1))),"#DIV/0!") -> #DIV/0! | S33: =IF(K33<>0,VLOOKUP(A33,RPI!A:C,3,FALSE),"#N/A") -> #N/A | U33: Avg. Goals Against per Game (Conf.): | V33: =AVERAGEIFS(C8:C33,K8:K33,"<>#N/A",O8:O33,B3) -> 7.909090909
P34: =AVERAGEIF(P8:P33,"<>#N/A",P8:P33) -> 9.545601702 | Q34: =AVERAGEIF(Q8:Q33,"<>#N/A",Q8:Q33) -> 9.851737233 | R34: =AVERAGEIF(R8:R33,"<>#DIV/0!",R8:R33) -> 0.5099439776 | S34: =AVERAGEIF(S8:S33,"<>#N/A",S8:S33) -> 0.4977821016

Sheet Bellarmine
A1: Team: | B1: Bellarmine
A2: Season: | B2: 2016
A3: Conference: | B3: Southern
A5: 2016 Schedule | U5: TEAM PROFILE
A7: Opponent | B7: =B1 -> Bellarmine | C7: Opponent | D7: Win | E7: Loss | F7: Site | G7: Pred. Spread | H7: Win Prob. % | I7: Opp. SRS Ranking | L7: Neutral | M7: Away | N7: Home | O7: League | P7: Opp.GF | Q7: Opp.GA | R7: Opp. Rec | S7: Opp Opp Rec | U7: All Record: | V7: =(COUNTIF(D8:D33,"W")&"-"&(COUNTIF(E8:E33,"L"))) -> 6-9
A8: Robert Morris | B8: 11 | C8: 10 | D8: =IF(B8>0, IF(B8>C8,"W",0),0) -> W | E8: =IF(C8>0, IF(C8>B8,"L",0),0) -> 0 | F8: H | G8: =IF(F8="N",L8,IF(F8="A",M8,N8)) -> -0.5 | H8: =NORMDIST(0,G8,Games!$C$539,TRUE) -> 0.5549874581 | I8: =VLOOKUP(A8,Sheet1!A:K,5,FALSE) -> 43 | J8: =IF(H8>0.5,"W","L") -> W | K8: =B8-C8 -> 1 | L8: =ROUND(((VLOOKUP(A8,Sheet1!$A:$J,4,FALSE))-(VLOOKUP($B$1,Sheet1!$A:$J,4,FALSE)))/0.5,0)*0.5 -> 0.5 | M8: =ROUND(((VLOOKUP(A8,Sheet1!$A:$J,4,FALSE))-(VLOOKUP($B$1,Sheet1!$A:$J,4,FALSE))+Games!$C$542)/0.5,0)*0.5 -> 2 | N8: =ROUND(((VLOOKUP(A8,Sheet1!$A:$J,4,FALSE))-(VLOOKUP($B$1,Sheet1!$A:$J,4,FALSE))-Games!$C$542)/0.5,0)*0.5 -> -0.5 | O8: =VLOOKUP(A8,Sheet1!$A:$M,13,FALSE) -> Northeast | P8: =IF(K8<>0,VLOOKUP(A8,Sheet1!A:H,7,FALSE),"#N/A") -> 11.33333333 | Q8: =IF(K8<>0,VLOOKUP(A8,Sheet1!A:H,8,FALSE),"#N/A") -> 11.4 | R8: =IF(K8<>0,((COUNTIFS(Games!A:A,A8,Games!F:F,"W")+COUNTIFS(Games!B:B,A8,Games!F:F,"L")-COUNTIFS(Games!A:A,A8,Games!B:B,$B$1,Games!F:F,"W")-COUNTIFS(Games!$B:$B,A8,Games!$A:$A,$B$1,Games!F:F,"L"))/(COUNTIFS(Games!A:A,A8)+COUNTIF(Games!B:B,A8)-COUNTIFS(Games!A:A,A8,Games!B:B,$B$1)-COUNTIFS(Games!B:B,A8,Games!A:A,$B$1))),"#DIV/0!") -> 0.5 | S8: =VLOOKUP(A8,RPI!A:C,3,FALSE) -> 0.5233449883 | U8: Conf. Record: | V8: =(COUNTIFS(D8:D33,"W",O8:O33,B3)&"-"&(COUNTIFS(E8:E33,"L",O8:O33,B3))) -> 4-4
A9: Marquette | B9: 7 | C9: 9 | D9: =IF(B9>0, IF(B9>C9,"W",0),0) -> 0 | E9: =IF(C9>0, IF(C9>B9,"L",0),0) -> L | F9: A | G9: =IF(F9="N",L9,IF(F9="A",M9,N9)) -> 6 | H9: =NORMDIST(0,G9,Games!$C$539,TRUE) -> 0.0485307374 | I9: =VLOOKUP(A9,Sheet1!A:K,5,FALSE) -> 17 | J9: =IF(H9>0.5,"W","L") -> L | K9: =B9-C9 -> -2 | L9: =ROUND(((VLOOKUP(A9,Sheet1!$A:$J,4,FALSE))-(VLOOKUP($B$1,Sheet1!$A:$J,4,FALSE)))/0.5,0)*0.5 -> 4.5 | M9: =ROUND(((VLOOKUP(A9,Sheet1!$A:$J,4,FALSE))-(VLOOKUP($B$1,Sheet1!$A:$J,4,FALSE))+Games!$C$542)/0.5,0)*0.5 -> 6 | N9: =ROUND(((VLOOKUP(A9,Sheet1!$A:$J,4,FALSE))-(VLOOKUP($B$1,Sheet1!$A:$J,4,FALSE))-Games!$C$542)/0.5,0)*0.5 -> 3.5 | O9: =VLOOKUP(A9,Sheet1!$A:$M,13,FALSE) -> Big East | P9: =IF(K9<>0,VLOOKUP(A9,Sheet1!A:H,7,FALSE),"#N/A") -> 9.333333333 | Q9: =IF(K9<>0,VLOOKUP(A9,Sheet1!A:H,8,FALSE),"#N/A") -> 8 | R9: =IF(K9<>0,((COUNTIFS(Games!A:A,A9,Games!F:F,"W")+COUNTIFS(Games!B:B,A9,Games!F:F,"L")-COUNTIFS(Games!A:A,A9,Games!B:B,$B$1,Games!F:F,"W")-COUNTIFS(Games!$B:$B,A9,Games!$A:$A,$B$1,Games!F:F,"L"))/(COUNTIFS(Games!A:A,A9)+COUNTIF(Games!B:B,A9)-COUNTIFS(Games!A:A,A9,Games!B:B,$B$1)-COUNTIFS(Games!B:B,A9,Games!A:A,$B$1))),"#DIV/0!") -> 0.7142857143 | S9: =VLOOKUP(A9,RPI!A:C,3,FALSE) -> 0.5718130889 | U9: SRS Value: | V9: =VLOOKUP(B1,Sheet1!$A:$L,4,FALSE) -> -1.65294273
A10: Notre Dame | B10: 6 | C10: 11 | D10: 0 | E10: L | F10: A | G10: 8.5 | H10: =NORMDIST(0,G10,Games!$C$539,TRUE) -> 0.009370780526 | I10: =VLOOKUP(A10,Sheet1!A:K,5,FALSE) -> 2 | J10: L | K10: -5 | L10: =ROUND(((VLOOKUP(A10,Sheet1!$A:$J,4,FALSE))-(VLOOKUP($B$1,Sheet1!$A:$J,4,FALSE)))/0.5,0)*0.5 -> 7.5 | M10: =ROUND(((VLOOKUP(A10,Sheet1!$A:$J,4,FALSE))-(VLOOKUP($B$1,Sheet1!$A:$J,4,FALSE))+Games!$C$542)/0.5,0)*0.5 -> 8.5 | N10: =ROUND(((VLOOKUP(A10,Sheet1!$A:$J,4,FALSE))-(VLOOKUP($B$1,Sheet1!$A:$J,4,FALSE))-Games!$C$542)/0.5,0)*0.5 -> 6 | O10: =VLOOKUP(A10,Sheet1!$A:$M,13,FALSE) -> ACC | P10: =IF(K10<>0,VLOOKUP(A10,Sheet1!A:H,7,FALSE),"#N/A") -> 10.84615385 | Q10: =IF(K10<>0,VLOOKUP(A10,Sheet1!A:H,8,FALSE),"#N/A") -> 7.692307692 | R10: =IF(K10<>0,((COUNTIFS(Games!A:A,A10,Games!F:F,"W")+COUNTIFS(Games!B:B,A10,Games!F:F,"L")-COUNTIFS(Games!A:A,A10,Games!B:B,$B$1,Games!F:F,"W")-COUNTIFS(Games!$B:$B,A10,Games!$A:$A,$B$1,Games!F:F,"L"))/(COUNTIFS(Games!A:A,A10)+COUNTIF(Games!B:B,A10)-COUNTIFS(Games!A:A,A10,Games!B:B,$B$1)-COUNTIFS(Games!B:B,A10,Games!A:A,$B$1))),"#DIV/0!") -> 0.75 | S10: =VLOOKUP(A10,RPI!A:C,3,FALSE) -> 0.5799693896 | U10: SRS Ranking (NCAA): | V10: =VLOOKUP(B1,Sheet1!A:J,5,FALSE) -> 47
A11: Quinnipiac | B11: 6 | C11: 12 | D11: 0 | E11: L | F11: H | G11: 0.5 | H11: =NORMDIST(0,G11,Games!$C$539,TRUE) -> 0.4450125419 | I11: =VLOOKUP(A11,Sheet1!A:K,5,FALSE) -> 33 | J11: L | K11: -6 | L11: =ROUND(((VLOOKUP(A11,Sheet1!$A:$J,4,FALSE))-(VLOOKUP($B$1,Sheet1!$A:$J,4,FALSE)))/0.5,0)*0.5 -> 2 | M11: =ROUND(((VLOOKUP(A11,Sheet1!$A:$J,4,FALSE))-(VLOOKUP($B$1,Sheet1!$A:$J,4,FALSE))+Games!$C$542)/0.5,0)*0.5 -> 3 | N11: =ROUND(((VLOOKUP(A11,Sheet1!$A:$J,4,FALSE))-(VLOOKUP($B$1,Sheet1!$A:$J,4,FALSE))-Games!$C$542)/0.5,0)*0.5 -> 0.5 | O11: =VLOOKUP(A11,Sheet1!$A:$M,13,FALSE) -> MAAC | P11: =IF(K11<>0,VLOOKUP(A11,Sheet1!A:H,7,FALSE),"#N/A") -> 10.35714286 | Q11: =IF(K11<>0,VLOOKUP(A11,Sheet1!A:H,8,FALSE),"#N/A") -> 8.357142857 | R11: =IF(K11<>0,((COUNTIFS(Games!A:A,A11,Games!F:F,"W")+COUNTIFS(Games!B:B,A11,Games!F:F,"L")-COUNTIFS(Games!A:A,A11,Games!B:B,$B$1,Games!F:F,"W")-COUNTIFS(Games!$B:$B,A11,Games!$A:$A,$B$1,Games!F:F,"L"))/(COUNTIFS(Games!A:A,A11)+COUNTIF(Games!B:B,A11)-COUNTIFS(Games!A:A,A11,Games!B:B,$B$1)-COUNTIFS(Games!B:B,A11,Games!A:A,$B$1))),"#DIV/0!") -> 0.7692307692 | S11: =VLOOKUP(A11,RPI!A:C,3,FALSE) -> 0.4670522929 | U11: SRS Ranking (Conf.): | V11: =1+SUMPRODUCT((Sheet1!M2:M71=B3)*(Sheet1!E2:E71<V10)) -> 4
A12: Detroit | B12: 7 | C12: 6 | D12: W | E12: 0 | F12: N | G12: -3 | H12: =NORMDIST(0,G12,Games!$C$539,TRUE) -> 0.7966273549 | I12: =VLOOKUP(A12,Sheet1!A:K,5,FALSE) -> 60 | J12: W | K12: 1 | L12: =ROUND(((VLOOKUP(A12,Sheet1!$A:$J,4,FALSE))-(VLOOKUP($B$1,Sheet1!$A:$J,4,FALSE)))/0.5,0)*0.5 -> -3 | M12: =ROUND(((VLOOKUP(A12,Sheet1!$A:$J,4,FALSE))-(VLOOKUP($B$1,Sheet1!$A:$J,4,FALSE))+Games!$C$542)/0.5,0)*0.5 -> -1.5 | N12: =ROUND(((VLOOKUP(A12,Sheet1!$A:$J,4,FALSE))-(VLOOKUP($B$1,Sheet1!$A:$J,4,FALSE))-Games!$C$542)/0.5,0)*0.5 -> -4 | O12: =VLOOKUP(A12,Sheet1!$A:$M,13,FALSE) -> MAAC | P12: =IF(K12<>0,VLOOKUP(A12,Sheet1!A:H,7,FALSE),"#N/A") -> 6.083333333 | Q12: =IF(K12<>0,VLOOKUP(A12,Sheet1!A:H,8,FALSE),"#N/A") -> 9.833333333 | R12: =IF(K12<>0,((COUNTIFS(Games!A:A,A12,Games!F:F,"W")+COUNTIFS(Games!B:B,A12,Games!F:F,"L")-COUNTIFS(Games!A:A,A12,Games!B:B,$B$1,Games!F:F,"W")-COUNTIFS(Games!$B:$B,A12,Games!$A:$A,$B$1,Games!F:F,"L"))/(COUNTIFS(Games!A:A,A12)+COUNTIF(Games!B:B,A12)-COUNTIFS(Games!A:A,A12,Games!B:B,$B$1)-COUNTIFS(Games!B:B,A12,Games!A:A,$B$1))),"#DIV/0!") -> 0.1818181818 | S12: =VLOOKUP(A12,RPI!A:C,3,FALSE) -> 0.4960865523 | U12: SRS SoS Value: | V12: =VLOOKUP(B1,Sheet1!$A:$L,3,FALSE) -> -1.119609397
A13: Ohio State | B13: 5 | C13: 9 | D13: 0 | E13: L | F13: A | G13: 4.5 | H13: =NORMDIST(0,G13,Games!$C$539,TRUE) -> 0.1066665883 | I13: =VLOOKUP(A13,Sheet1!A:K,5,FALSE) -> 26 | J13: L | K13: -4 | L13: =ROUND(((VLOOKUP(A13,Sheet1!$A:$J,4,FALSE))-(VLOOKUP($B$1,Sheet1!$A:$J,4,FALSE)))/0.5,0)*0.5 -> 3 | M13: =ROUND(((VLOOKUP(A13,Sheet1!$A:$J,4,FALSE))-(VLOOKUP($B$1,Sheet1!$A:$J,4,FALSE))+Games!$C$542)/0.5,0)*0.5 -> 4.5 | N13: =ROUND(((VLOOKUP(A13,Sheet1!$A:$J,4,FALSE))-(VLOOKUP($B$1,Sheet1!$A:$J,4,FALSE))-Games!$C$542)/0.5,0)*0.5 -> 2 | O13: =VLOOKUP(A13,Sheet1!$A:$M,13,FALSE) -> Big Ten | P13: =IF(K13<>0,VLOOKUP(A13,Sheet1!A:H,7,FALSE),"#N/A") -> 9.4 | Q13: =IF(K13<>0,VLOOKUP(A13,Sheet1!A:H,8,FALSE),"#N/A") -> 9.066666667 | R13: =IF(K13<>0,((COUNTIFS(Games!A:A,A13,Games!F:F,"W")+COUNTIFS(Games!B:B,A13,Games!F:F,"L")-COUNTIFS(Games!A:A,A13,Games!B:B,$B$1,Games!F:F,"W")-COUNTIFS(Games!$B:$B,A13,Games!$A:$A,$B$1,Games!F:F,"L"))/(COUNTIFS(Games!A:A,A13)+COUNTIF(Games!B:B,A13)-COUNTIFS(Games!A:A,A13,Games!B:B,$B$1)-COUNTIFS(Games!B:B,A13,Games!A:A,$B$1))),"#DIV/0!") -> 0.4285714286 | S13: =VLOOKUP(A13,RPI!A:C,3,FALSE) -> 0.5369441669 | U13: SRS SoS Ranking (NCAA): | V13: =VLOOKUP(B1,Sheet1!A:J,6,FALSE) -> 53
A14: Mercer | B14: 11 | C14: 7 | D14: W | E14: 0 | F14: H | G14: -3 | H14: =NORMDIST(0,G14,Games!$C$539,TRUE) -> 0.7966273549 | I14: =VLOOKUP(A14,Sheet1!A:K,5,FALSE) -> 55 | J14: W | K14: 4 | L14: =ROUND(((VLOOKUP(A14,Sheet1!$A:$J,4,FALSE))-(VLOOKUP($B$1,Sheet1!$A:$J,4,FALSE)))/0.5,0)*0.5 -> -2 | M14: =ROUND(((VLOOKUP(A14,Sheet1!$A:$J,4,FALSE))-(VLOOKUP($B$1,Sheet1!$A:$J,4,FALSE))+Games!$C$542)/0.5,0)*0.5 -> -0.5 | N14: =ROUND(((VLOOKUP(A14,Sheet1!$A:$J,4,FALSE))-(VLOOKUP($B$1,Sheet1!$A:$J,4,FALSE))-Games!$C$542)/0.5,0)*0.5 -> -3 | O14: =VLOOKUP(A14,Sheet1!$A:$M,13,FALSE) -> Southern | P14: =IF(K14<>0,VLOOKUP(A14,Sheet1!A:H,7,FALSE),"#N/A") -> 9.230769231 | Q14: =IF(K14<>0,VLOOKUP(A14,Sheet1!A:H,8,FALSE),"#N/A") -> 10.92307692 | R14: =IF(K14<>0,((COUNTIFS(Games!A:A,A14,Games!F:F,"W")+COUNTIFS(Games!B:B,A14,Games!F:F,"L")-COUNTIFS(Games!A:A,A14,Games!B:B,$B$1,Games!F:F,"W")-COUNTIFS(Games!$B:$B,A14,Games!$A:$A,$B$1,Games!F:F,"L"))/(COUNTIFS(Games!A:A,A14)+COUNTIF(Games!B:B,A14)-COUNTIFS(Games!A:A,A14,Games!B:B,$B$1)-COUNTIFS(Games!B:B,A14,Games!A:A,$B$1))),"#DIV/0!") -> 0.4166666667 | S14: =VLOOKUP(A14,RPI!A:C,3,FALSE) -> 0.4378978864 | U14: SRS SoS Ranking (Conf.): | V14: =1+SUMPRODUCT((Sheet1!M2:M71=B3)*(Sheet1!F2:F71<V13)) -> 4
A15: Jacksonville | B15: 10 | C15: 9 | D15: W | E15: 0 | F15: A | G15: -2.5 | H15: =NORMDIST(0,G15,Games!$C$539,TRUE) -> 0.7553310679 | I15: =VLOOKUP(A15,Sheet1!A:K,5,FALSE) -> 64 | J15: W | K15: 1 | L15: =ROUND(((VLOOKUP(A15,Sheet1!$A:$J,4,FALSE))-(VLOOKUP($B$1,Sheet1!$A:$J,4,FALSE)))/0.5,0)*0.5 -> -3.5 | M15: =ROUND(((VLOOKUP(A15,Sheet1!$A:$J,4,FALSE))-(VLOOKUP($B$1,Sheet1!$A:$J,4,FALSE))+Games!$C$542)/0.5,0)*0.5 -> -2.5 | N15: =ROUND(((VLOOKUP(A15,Sheet1!$A:$J,4,FALSE))-(VLOOKUP($B$1,Sheet1!$A:$J,4,FALSE))-Games!$C$542)/0.5,0)*0.5 -> -4.5 | O15: =VLOOKUP(A15,Sheet1!$A:$M,13,FALSE) -> Southern | P15: =IF(K15<>0,VLOOKUP(A15,Sheet1!A:H,7,FALSE),"#N/A") -> 8.230769231 | Q15: =IF(K15<>0,VLOOKUP(A15,Sheet1!A:H,8,FALSE),"#N/A") -> 11.38461538 | R15: =IF(K15<>0,((COUNTIFS(Games!A:A,A15,Games!F:F,"W")+COUNTIFS(Games!B:B,A15,Games!F:F,"L")-COUNTIFS(Games!A:A,A15,Games!B:B,$B$1,Games!F:F,"W")-COUNTIFS(Games!$B:$B,A15,Games!$A:$A,$B$1,Games!F:F,"L"))/(COUNTIFS(Games!A:A,A15)+COUNTIF(Games!B:B,A15)-COUNTIFS(Games!A:A,A15,Games!B:B,$B$1)-COUNTIFS(Games!B:B,A15,Games!A:A,$B$1))),"#DIV/0!") -> 0.25 | S15: =VLOOKUP(A15,RPI!A:C,3,FALSE) -> 0.4000495168
A16: Providence | B16: 7 | C16: 9 | D16: 0 | E16: L | F16: A | G16: 2.5 | H16: =NORMDIST(0,G16,Games!$C$539,TRUE) -> 0.2446689321 | I16: =VLOOKUP(A16,Sheet1!A:K,5,FALSE) -> 38 | J16: L | K16: -2 | L16: =ROUND(((VLOOKUP(A16,Sheet1!$A:$J,4,FALSE))-(VLOOKUP($B$1,Sheet1!$A:$J,4,FALSE)))/0.5,0)*0.5 -> 1.5 | M16: =ROUND(((VLOOKUP(A16,Sheet1!$A:$J,4,FALSE))-(VLOOKUP($B$1,Sheet1!$A:$J,4,FALSE))+Games!$C$542)/0.5,0)*0.5 -> 2.5 | N16: =ROUND(((VLOOKUP(A16,Sheet1!$A:$J,4,FALSE))-(VLOOKUP($B$1,Sheet1!$A:$J,4,FALSE))-Games!$C$542)/0.5,0)*0.5 -> 0 | O16: =VLOOKUP(A16,Sheet1!$A:$M,13,FALSE) -> Big East | P16: =IF(K16<>0,VLOOKUP(A16,Sheet1!A:H,7,FALSE),"#N/A") -> 9.75 | Q16: =IF(K16<>0,VLOOKUP(A16,Sheet1!A:H,8,FALSE),"#N/A") -> 10.8125 | R16: =IF(K16<>0,((COUNTIFS(Games!A:A,A16,Games!F:F,"W")+COUNTIFS(Games!B:B,A16,Games!F:F,"L")-COUNTIFS(Games!A:A,A16,Games!B:B,$B$1,Games!F:F,"W")-COUNTIFS(Games!$B:$B,A16,Games!$A:$A,$B$1,Games!F:F,"L"))/(COUNTIFS(Games!A:A,A16)+COUNTIF(Games!B:B,A16)-COUNTIFS(Games!A:A,A16,Games!B:B,$B$1)-COUNTIFS(Games!B:B,A16,Games!A:A,$B$1))),"#DIV/0!") -> 0.4 | S16: =VLOOKUP(A16,RPI!A:C,3,FALSE) -> 0.5095839057 | U16: Actual Win % (All): | V16: =COUNTIF(D8:D33,"W")/(COUNTIF(D8:D33,"W")+(COUNTIF(E8:E33,"L"))) -> 0.4
A17: Air Force | B17: 7 | C17: 8 | D17: 0 | E17: L | F17: H | G17: 1.5 | H17: =NORMDIST(0,G17,Games!$C$539,TRUE) -> 0.3391377889 | I17: =VLOOKUP(A17,Sheet1!A:K,5,FALSE) -> 27 | J17: L | K17: -1 | L17: =ROUND(((VLOOKUP(A17,Sheet1!$A:$J,4,FALSE))-(VLOOKUP($B$1,Sheet1!$A:$J,4,FALSE)))/0.5,0)*0.5 -> 3 | M17: =ROUND(((VLOOKUP(A17,Sheet1!$A:$J,4,FALSE))-(VLOOKUP($B$1,Sheet1!$A:$J,4,FALSE))+Games!$C$542)/0.5,0)*0.5 -> 4 | N17: =ROUND(((VLOOKUP(A17,Sheet1!$A:$J,4,FALSE))-(VLOOKUP($B$1,Sheet1!$A:$J,4,FALSE))-Games!$C$542)/0.5,0)*0.5 -> 1.5 | O17: =VLOOKUP(A17,Sheet1!$A:$M,13,FALSE) -> Southern | P17: =IF(K17<>0,VLOOKUP(A17,Sheet1!A:H,7,FALSE),"#N/A") -> 10.23529412 | Q17: =IF(K17<>0,VLOOKUP(A17,Sheet1!A:H,8,FALSE),"#N/A") -> 7.294117647 | R17: =IF(K17<>0,((COUNTIFS(Games!A:A,A17,Games!F:F,"W")+COUNTIFS(Games!B:B,A17,Games!F:F,"L")-COUNTIFS(Games!A:A,A17,Games!B:B,$B$1,Games!F:F,"W")-COUNTIFS(Games!$B:$B,A17,Games!$A:$A,$B$1,Games!F:F,"L"))/(COUNTIFS(Games!A:A,A17)+COUNTIF(Games!B:B,A17)-COUNTIFS(Games!A:A,A17,Games!B:B,$B$1)-COUNTIFS(Games!B:B,A17,Games!A:A,$B$1))),"#DIV/0!") -> 0.8666666667 | S17: =VLOOKUP(A17,RPI!A:C,3,FALSE) -> 0.4583890158 | U17: Expected SRS Win % (All): | V17: =SUMIFS(H8:H33,H8:H33,"<>N/A",K8:K33,"<>0")/(COUNTIF(K8:K33,"<>0")) -> 0.4422024839
A18: High Point | B18: 7 | C18: 13 | D18: 0 | E18: L | F18: A | G18: 2 | H18: =NORMDIST(0,G18,Games!$C$539,TRUE) -> 0.2901009356 | I18: =VLOOKUP(A18,Sheet1!A:K,5,FALSE) -> 42 | J18: L | K18: -6 | L18: =ROUND(((VLOOKUP(A18,Sheet1!$A:$J,4,FALSE))-(VLOOKUP($B$1,Sheet1!$A:$J,4,FALSE)))/0.5,0)*0.5 -> 0.5 | M18: =ROUND(((VLOOKUP(A18,Sheet1!$A:$J,4,FALSE))-(VLOOKUP($B$1,Sheet1!$A:$J,4,FALSE))+Games!$C$542)/0.5,0)*0.5 -> 2 | N18: =ROUND(((VLOOKUP(A18,Sheet1!$A:$J,4,FALSE))-(VLOOKUP($B$1,Sheet1!$A:$J,4,FALSE))-Games!$C$542)/0.5,0)*0.5 -> -0.5 | O18: =VLOOKUP(A18,Sheet1!$A:$M,13,FALSE) -> Southern | P18: =IF(K18<>0,VLOOKUP(A18,Sheet1!A:H,7,FALSE),"#N/A") -> 10.8 | Q18: =IF(K18<>0,VLOOKUP(A18,Sheet1!A:H,8,FALSE),"#N/A") -> 10.8 | R18: =IF(K18<>0,((COUNTIFS(Games!A:A,A18,Games!F:F,"W")+COUNTIFS(Games!B:B,A18,Games!F:F,"L")-COUNTIFS(Games!A:A,A18,Games!B:B,$B$1,Games!F:F,"W")-COUNTIFS(Games!$B:$B,A18,Games!$A:$A,$B$1,Games!F:F,"L"))/(COUNTIFS(Games!A:A,A18)+COUNTIF(Games!B:B,A18)-COUNTIFS(Games!A:A,A18,Games!B:B,$B$1)-COUNTIFS(Games!B:B,A18,Games!A:A,$B$1))),"#DIV/0!") -> 0.5714285714 | S18: =VLOOKUP(A18,RPI!A:C,3,FALSE) -> 0.5051680672 | U18: Wins +/- Expectation (All): | V18: =(V16*(COUNTIF(G8:G33,"<>#N/A")))-(V17*(COUNTIF(G8:G33,"<>#N/A"))) -> -0.6330372578
A19: Richmond | B19: 7 | C19: 10 | D19: 0 | E19: L | F19: A | G19: 3 | H19: =NORMDIST(0,G19,Games!$C$539,TRUE) -> 0.2033726451 | I19: =VLOOKUP(A19,Sheet1!A:K,5,FALSE) -> 34 | J19: L | K19: -3 | L19: =ROUND(((VLOOKUP(A19,Sheet1!$A:$J,4,FALSE))-(VLOOKUP($B$1,Sheet1!$A:$J,4,FALSE)))/0.5,0)*0.5 -> 2 | M19: =ROUND(((VLOOKUP(A19,Sheet1!$A:$J,4,FALSE))-(VLOOKUP($B$1,Sheet1!$A:$J,4,FALSE))+Games!$C$542)/0.5,0)*0.5 -> 3 | N19: =ROUND(((VLOOKUP(A19,Sheet1!$A:$J,4,FALSE))-(VLOOKUP($B$1,Sheet1!$A:$J,4,FALSE))-Games!$C$542)/0.5,0)*0.5 -> 0.5 | O19: =VLOOKUP(A19,Sheet1!$A:$M,13,FALSE) -> Southern | P19: =IF(K19<>0,VLOOKUP(A19,Sheet1!A:H,7,FALSE),"#N/A") -> 8.625 | Q19: =IF(K19<>0,VLOOKUP(A19,Sheet1!A:H,8,FALSE),"#N/A") -> 7.4375 | R19: =IF(K19<>0,((COUNTIFS(Games!A:A,A19,Games!F:F,"W")+COUNTIFS(Games!B:B,A19,Games!F:F,"L")-COUNTIFS(Games!A:A,A19,Games!B:B,$B$1,Games!F:F,"W")-COUNTIFS(Games!$B:$B,A19,Games!$A:$A,$B$1,Games!F:F,"L"))/(COUNTIFS(Games!A:A,A19)+COUNTIF(Games!B:B,A19)-COUNTIFS(Games!A:A,A19,Games!B:B,$B$1)-COUNTIFS(Games!B:B,A19,Games!A:A,$B$1))),"#DIV/0!") -> 0.6666666667 | S19: =VLOOKUP(A19,RPI!A:C,3,FALSE) -> 0.510830943 | U19: Expected Remaining Wins (All): | V19: =SUMIFS(H8:H33,G8:G33,"<>#N/A",K8:K33,"0") -> 0
A20: VMI | B20: 15 | C20: 6 | D20: W | E20: 0 | F20: A | G20: -7 | H20: =NORMDIST(0,G20,Games!$C$539,TRUE) -> 0.9735547911 | I20: =VLOOKUP(A20,Sheet1!A:K,5,FALSE) -> 69 | J20: W | K20: 9 | L20: =ROUND(((VLOOKUP(A20,Sheet1!$A:$J,4,FALSE))-(VLOOKUP($B$1,Sheet1!$A:$J,4,FALSE)))/0.5,0)*0.5 -> -8 | M20: =ROUND(((VLOOKUP(A20,Sheet1!$A:$J,4,FALSE))-(VLOOKUP($B$1,Sheet1!$A:$J,4,FALSE))+Games!$C$542)/0.5,0)*0.5 -> -7 | N20: =ROUND(((VLOOKUP(A20,Sheet1!$A:$J,4,FALSE))-(VLOOKUP($B$1,Sheet1!$A:$J,4,FALSE))-Games!$C$542)/0.5,0)*0.5 -> -9.5 | O20: =VLOOKUP(A20,Sheet1!$A:$M,13,FALSE) -> Southern | P20: =IF(K20<>0,VLOOKUP(A20,Sheet1!A:H,7,FALSE),"#N/A") -> 6 | Q20: =IF(K20<>0,VLOOKUP(A20,Sheet1!A:H,8,FALSE),"#N/A") -> 13.9375 | R20: =IF(K20<>0,((COUNTIFS(Games!A:A,A20,Games!F:F,"W")+COUNTIFS(Games!B:B,A20,Games!F:F,"L")-COUNTIFS(Games!A:A,A20,Games!B:B,$B$1,Games!F:F,"W")-COUNTIFS(Games!$B:$B,A20,Games!$A:$A,$B$1,Games!F:F,"L"))/(COUNTIFS(Games!A:A,A20)+COUNTIF(Games!B:B,A20)-COUNTIFS(Games!A:A,A20,Games!B:B,$B$1)-COUNTIFS(Games!B:B,A20,Games!A:A,$B$1))),"#DIV/0!") -> 0.1333333333 | S20: =VLOOKUP(A20,RPI!A:C,3,FALSE) -> 0.3961509844 | U20: Actual Margin (All): | V20: =SUM(K8:K33) -> -8
A21: Furman | B21: 15 | C21: 8 | D21: W | E21: 0 | F21: H | G21: -4 | H21: =NORMDIST(0,G21,Games!$C$539,TRUE) -> 0.8656756359 | I21: =VLOOKUP(A21,Sheet1!A:K,5,FALSE) -> 59 | J21: W | K21: 7 | L21: =ROUND(((VLOOKUP(A21,Sheet1!$A:$J,4,FALSE))-(VLOOKUP($B$1,Sheet1!$A:$J,4,FALSE)))/0.5,0)*0.5 -> -3 | M21: =ROUND(((VLOOKUP(A21,Sheet1!$A:$J,4,FALSE))-(VLOOKUP($B$1,Sheet1!$A:$J,4,FALSE))+Games!$C$542)/0.5,0)*0.5 -> -1.5 | N21: =ROUND(((VLOOKUP(A21,Sheet1!$A:$J,4,FALSE))-(VLOOKUP($B$1,Sheet1!$A:$J,4,FALSE))-Games!$C$542)/0.5,0)*0.5 -> -4 | O21: =VLOOKUP(A21,Sheet1!$A:$M,13,FALSE) -> Southern | P21: =IF(K21<>0,VLOOKUP(A21,Sheet1!A:H,7,FALSE),"#N/A") -> 8 | Q21: =IF(K21<>0,VLOOKUP(A21,Sheet1!A:H,8,FALSE),"#N/A") -> 11.30769231 | R21: =IF(K21<>0,((COUNTIFS(Games!A:A,A21,Games!F:F,"W")+COUNTIFS(Games!B:B,A21,Games!F:F,"L")-COUNTIFS(Games!A:A,A21,Games!B:B,$B$1,Games!F:F,"W")-COUNTIFS(Games!$B:$B,A21,Games!$A:$A,$B$1,Games!F:F,"L"))/(COUNTIFS(Games!A:A,A21)+COUNTIF(Games!B:B,A21)-COUNTIFS(Games!A:A,A21,Games!B:B,$B$1)-COUNTIFS(Games!B:B,A21,Games!A:A,$B$1))),"#DIV/0!") -> 0.1666666667 | S21: =VLOOKUP(A21,RPI!A:C,3,FALSE) -> 0.4817202029 | U21: Predicted Margin (All): | V21: =-SUMIFS(G8:G33,G8:G33,"<>#N/A",K8:K33,"<>0") -> -11.5
A22: Air Force | B22: 8 | C22: 10 | D22: 0 | E22: L | F22: N | G22: 3 | H22: =NORMDIST(0,G22,Games!$C$539,TRUE) -> 0.2033726451 | I22: =VLOOKUP(A22,Sheet1!A:K,5,FALSE) -> 27 | J22: L | K22: -2 | L22: =ROUND(((VLOOKUP(A22,Sheet1!$A:$J,4,FALSE))-(VLOOKUP($B$1,Sheet1!$A:$J,4,FALSE)))/0.5,0)*0.5 -> 3 | M22: =ROUND(((VLOOKUP(A22,Sheet1!$A:$J,4,FALSE))-(VLOOKUP($B$1,Sheet1!$A:$J,4,FALSE))+Games!$C$542)/0.5,0)*0.5 -> 4 | N22: =ROUND(((VLOOKUP(A22,Sheet1!$A:$J,4,FALSE))-(VLOOKUP($B$1,Sheet1!$A:$J,4,FALSE))-Games!$C$542)/0.5,0)*0.5 -> 1.5 | O22: =VLOOKUP(A22,Sheet1!$A:$M,13,FALSE) -> Southern | P22: =IF(K22<>0,VLOOKUP(A22,Sheet1!A:H,7,FALSE),"#N/A") -> 10.23529412 | Q22: =IF(K22<>0,VLOOKUP(A22,Sheet1!A:H,8,FALSE),"#N/A") -> 7.294117647 | R22: =IF(K22<>0,((COUNTIFS(Games!A:A,A22,Games!F:F,"W")+COUNTIFS(Games!B:B,A22,Games!F:F,"L")-COUNTIFS(Games!A:A,A22,Games!B:B,$B$1,Games!F:F,"W")-COUNTIFS(Games!$B:$B,A22,Games!$A:$A,$B$1,Games!F:F,"L"))/(COUNTIFS(Games!A:A,A22)+COUNTIF(Games!B:B,A22)-COUNTIFS(Games!A:A,A22,Games!B:B,$B$1)-COUNTIFS(Games!B:B,A22,Games!A:A,$B$1))),"#DIV/0!") -> 0.8666666667 | S22: =VLOOKUP(A22,RPI!A:C,3,FALSE) -> 0.4583890158
D23: 0 | E23: 0 | H23: =NORMDIST(0,G23,Games!$C$539,TRUE) ->  | I23: =VLOOKUP(A23,Sheet1!A:K,5,FALSE) ->  | K23: 0 | L23: =ROUND(((VLOOKUP(A23,Sheet1!$A:$J,4,FALSE))-(VLOOKUP($B$1,Sheet1!$A:$J,4,FALSE)))/0.5,0)*0.5 ->  | M23: =ROUND(((VLOOKUP(A23,Sheet1!$A:$J,4,FALSE))-(VLOOKUP($B$1,Sheet1!$A:$J,4,FALSE))+Games!$C$542)/0.5,0)*0.5 ->  | N23: =ROUND(((VLOOKUP(A23,Sheet1!$A:$J,4,FALSE))-(VLOOKUP($B$1,Sheet1!$A:$J,4,FALSE))-Games!$C$542)/0.5,0)*0.5 ->  | O23: =VLOOKUP(A23,Sheet1!$A:$M,13,FALSE) ->  | P23: =IF(K23<>0,VLOOKUP(A23,Sheet1!A:H,7,FALSE),"#N/A") -> #N/A | Q23: =IF(K23<>0,VLOOKUP(A23,Sheet1!A:H,8,FALSE),"#N/A") -> #N/A | R23: =IF(K23<>0,((COUNTIFS(Games!A:A,A23,Games!F:F,"W")+COUNTIFS(Games!B:B,A23,Games!F:F,"L")-COUNTIFS(Games!A:A,A23,Games!B:B,$B$1,Games!F:F,"W")-COUNTIFS(Games!$B:$B,A23,Games!$A:$A,$B$1,Games!F:F,"L"))/(COUNTIFS(Games!A:A,A23)+COUNTIF(Games!B:B,A23)-COUNTIFS(Games!A:A,A23,Games!B:B,$B$1)-COUNTIFS(Games!B:B,A23,Games!A:A,$B$1))),"#DIV/0!") -> #DIV/0! | S23: =VLOOKUP(A23,RPI!A:C,3,FALSE) ->  | U23: Actual Win % (Conf.): | V23: =COUNTIFS(D8:D33,"W",O8:O33,B3)/(COUNTIFS(D8:D33,"W",O8:O33,B3)+(COUNTIFS(E8:E33,"L",O8:O33,B3))) -> 0.5
D24: 0 | E24: 0 | H24: =NORMDIST(0,G24,Games!$C$539,TRUE) ->  | I24: =VLOOKUP(A24,Sheet1!A:K,5,FALSE) ->  | K24: 0 | L24: =ROUND(((VLOOKUP(A24,Sheet1!$A:$J,4,FALSE))-(VLOOKUP($B$1,Sheet1!$A:$J,4,FALSE)))/0.5,0)*0.5 ->  | M24: =ROUND(((VLOOKUP(A24,Sheet1!$A:$J,4,FALSE))-(VLOOKUP($B$1,Sheet1!$A:$J,4,FALSE))+Games!$C$542)/0.5,0)*0.5 ->  | N24: =ROUND(((VLOOKUP(A24,Sheet1!$A:$J,4,FALSE))-(VLOOKUP($B$1,Sheet1!$A:$J,4,FALSE))-Games!$C$542)/0.5,0)*0.5 ->  | O24: =VLOOKUP(A24,Sheet1!$A:$M,13,FALSE) ->  | P24: =IF(K24<>0,VLOOKUP(A24,Sheet1!A:H,7,FALSE),"#N/A") -> #N/A | Q24: =IF(K24<>0,VLOOKUP(A24,Sheet1!A:H,8,FALSE),"#N/A") -> #N/A | R24: =IF(K24<>0,((COUNTIFS(Games!A:A,A24,Games!F:F,"W")+COUNTIFS(Games!B:B,A24,Games!F:F,"L")-COUNTIFS(Games!A:A,A24,Games!B:B,$B$1,Games!F:F,"W")-COUNTIFS(Games!$B:$B,A24,Games!$A:$A,$B$1,Games!F:F,"L"))/(COUNTIFS(Games!A:A,A24)+COUNTIF(Games!B:B,A24)-COUNTIFS(Games!A:A,A24,Games!B:B,$B$1)-COUNTIFS(Games!B:B,A24,Games!A:A,$B$1))),"#DIV/0!") -> #DIV/0! | S24: =IF(K24<>0,VLOOKUP(A24,RPI!A:C,3,FALSE),"#N/A") -> #N/A | U24: Expected SRS Win % (Conf.): | V24: =SUMIFS(H8:H33,H8:H33,"<>N/A",K8:K33,"<>0",O8:O33,B3)/(COUNTIFS(K8:K33,"<>0",O8:O33,B3)) -> 0.5533966081
D25: 0 | E25: 0 | H25: =NORMDIST(0,G25,Games!$C$539,TRUE) ->  | I25: =VLOOKUP(A25,Sheet1!A:K,5,FALSE) ->  | K25: 0 | L25: =ROUND(((VLOOKUP(A25,Sheet1!$A:$J,4,FALSE))-(VLOOKUP($B$1,Sheet1!$A:$J,4,FALSE)))/0.5,0)*0.5 ->  | M25: =ROUND(((VLOOKUP(A25,Sheet1!$A:$J,4,FALSE))-(VLOOKUP($B$1,Sheet1!$A:$J,4,FALSE))+Games!$C$542)/0.5,0)*0.5 ->  | N25: =ROUND(((VLOOKUP(A25,Sheet1!$A:$J,4,FALSE))-(VLOOKUP($B$1,Sheet1!$A:$J,4,FALSE))-Games!$C$542)/0.5,0)*0.5 ->  | O25: =VLOOKUP(A25,Sheet1!$A:$M,13,FALSE) ->  | P25: =IF(K25<>0,VLOOKUP(A25,Sheet1!A:H,7,FALSE),"#N/A") -> #N/A | Q25: =IF(K25<>0,VLOOKUP(A25,Sheet1!A:H,8,FALSE),"#N/A") -> #N/A | R25: =IF(K25<>0,((COUNTIFS(Games!A:A,A25,Games!F:F,"W")+COUNTIFS(Games!B:B,A25,Games!F:F,"L")-COUNTIFS(Games!A:A,A25,Games!B:B,$B$1,Games!F:F,"W")-COUNTIFS(Games!$B:$B,A25,Games!$A:$A,$B$1,Games!F:F,"L"))/(COUNTIFS(Games!A:A,A25)+COUNTIF(Games!B:B,A25)-COUNTIFS(Games!A:A,A25,Games!B:B,$B$1)-COUNTIFS(Games!B:B,A25,Games!A:A,$B$1))),"#DIV/0!") -> #DIV/0! | S25: =IF(K25<>0,VLOOKUP(A25,RPI!A:C,3,FALSE),"#N/A") -> #N/A | U25: Wins +/- Expectation (Conf.): | V25: =(V23*(COUNTIFS(G8:G33,"<>#N/A",O8:O33,B3)))-(V24*(COUNTIFS(G8:G33,"<>#N/A",O8:O33,B3))) -> -0.4271728645
D26: 0 | E26: 0 | H26: =NORMDIST(0,G26,Games!$C$539,TRUE) ->  | I26: =VLOOKUP(A26,Sheet1!A:K,5,FALSE) ->  | K26: 0 | L26: =(VLOOKUP(A26,Sheet1!$A:$J,4,FALSE))-(VLOOKUP($B$1,Sheet1!$A:$J,4,FALSE)) ->  | M26: =(VLOOKUP(A26,Sheet1!$A:$J,4,FALSE))-(VLOOKUP($B$1,Sheet1!$A:$J,4,FALSE))+Games!$C$542 ->  | N26: =(VLOOKUP(A26,Sheet1!$A:$J,4,FALSE))-(VLOOKUP($B$1,Sheet1!$A:$J,4,FALSE))-Games!$C$542 ->  | O26: =VLOOKUP(A26,Sheet1!$A:$M,13,FALSE) ->  | P26: =IF(K26<>0,VLOOKUP(A26,Sheet1!A:H,7,FALSE),"#N/A") -> #N/A | Q26: =IF(K26<>0,VLOOKUP(A26,Sheet1!A:H,8,FALSE),"#N/A") -> #N/A | R26: =IF(K26<>0,((COUNTIFS(Games!A:A,A26,Games!F:F,"W")+COUNTIFS(Games!B:B,A26,Games!F:F,"L")-COUNTIFS(Games!A:A,A26,Games!B:B,$B$1,Games!F:F,"W")-COUNTIFS(Games!$B:$B,A26,Games!$A:$A,$B$1,Games!F:F,"L"))/(COUNTIFS(Games!A:A,A26)+COUNTIF(Games!B:B,A26)-COUNTIFS(Games!A:A,A26,Games!B:B,$B$1)-COUNTIFS(Games!B:B,A26,Games!A:A,$B$1))),"#DIV/0!") -> #DIV/0! | S26: =IF(K26<>0,VLOOKUP(A26,RPI!A:C,3,FALSE),"#N/A") -> #N/A | U26: Expected Remaining Wins (Conf.): | V26: =SUMIFS(H8:H33,G8:G33,"<>#N/A",K8:K33,"0",O8:O33,B3) -> 0
D27: 0 | E27: 0 | H27: =NORMDIST(0,G27,Games!$C$539,TRUE) ->  | I27: =VLOOKUP(A27,Sheet1!A:K,5,FALSE) ->  | K27: 0 | L27: =(VLOOKUP(A27,Sheet1!$A:$J,4,FALSE))-(VLOOKUP($B$1,Sheet1!$A:$J,4,FALSE)) ->  | M27: =(VLOOKUP(A27,Sheet1!$A:$J,4,FALSE))-(VLOOKUP($B$1,Sheet1!$A:$J,4,FALSE))+Games!$C$542 ->  | N27: =(VLOOKUP(A27,Sheet1!$A:$J,4,FALSE))-(VLOOKUP($B$1,Sheet1!$A:$J,4,FALSE))-Games!$C$542 ->  | O27: =VLOOKUP(A27,Sheet1!$A:$M,13,FALSE) ->  | P27: =IF(K27<>0,VLOOKUP(A27,Sheet1!A:H,7,FALSE),"#N/A") -> #N/A | Q27: =IF(K27<>0,VLOOKUP(A27,Sheet1!A:H,8,FALSE),"#N/A") -> #N/A | R27: =IF(K27<>0,((COUNTIFS(Games!A:A,A27,Games!F:F,"W")+COUNTIFS(Games!B:B,A27,Games!F:F,"L")-COUNTIFS(Games!A:A,A27,Games!B:B,$B$1,Games!F:F,"W")-COUNTIFS(Games!$B:$B,A27,Games!$A:$A,$B$1,Games!F:F,"L"))/(COUNTIFS(Games!A:A,A27)+COUNTIF(Games!B:B,A27)-COUNTIFS(Games!A:A,A27,Games!B:B,$B$1)-COUNTIFS(Games!B:B,A27,Games!A:A,$B$1))),"#DIV/0!") -> #DIV/0! | S27: =IF(K27<>0,VLOOKUP(A27,RPI!A:C,3,FALSE),"#N/A") -> #N/A | U27: Actual Margin (Conf.): | V27: =SUMIFS(K8:K33,O8:O33,B3) -> 9
D28: 0 | E28: 0 | H28: =NORMDIST(0,G28,Games!$C$539,TRUE) ->  | I28: =VLOOKUP(A28,Sheet1!A:K,5,FALSE) ->  | K28: 0 | L28: =(VLOOKUP(A28,Sheet1!$A:$J,4,FALSE))-(VLOOKUP($B$1,Sheet1!$A:$J,4,FALSE)) ->  | M28: =(VLOOKUP(A28,Sheet1!$A:$J,4,FALSE))-(VLOOKUP($B$1,Sheet1!$A:$J,4,FALSE))+Games!$C$542 ->  | N28: =(VLOOKUP(A28,Sheet1!$A:$J,4,FALSE))-(VLOOKUP($B$1,Sheet1!$A:$J,4,FALSE))-Games!$C$542 ->  | O28: =VLOOKUP(A28,Sheet1!$A:$M,13,FALSE) ->  | P28: =IF(K28<>0,VLOOKUP(A28,Sheet1!A:H,7,FALSE),"#N/A") -> #N/A | Q28: =IF(K28<>0,VLOOKUP(A28,Sheet1!A:H,8,FALSE),"#N/A") -> #N/A | R28: =IF(K28<>0,((COUNTIFS(Games!A:A,A28,Games!F:F,"W")+COUNTIFS(Games!B:B,A28,Games!F:F,"L")-COUNTIFS(Games!A:A,A28,Games!B:B,$B$1,Games!F:F,"W")-COUNTIFS(Games!$B:$B,A28,Games!$A:$A,$B$1,Games!F:F,"L"))/(COUNTIFS(Games!A:A,A28)+COUNTIF(Games!B:B,A28)-COUNTIFS(Games!A:A,A28,Games!B:B,$B$1)-COUNTIFS(Games!B:B,A28,Games!A:A,$B$1))),"#DIV/0!") -> #DIV/0! | S28: =IF(K28<>0,VLOOKUP(A28,RPI!A:C,3,FALSE),"#N/A") -> #N/A | U28: Predicted Margin (Conf.): | V28: =-SUMIFS(G8:G33,G8:G33,"<>#N/A",K8:K33,"<>0",O8:O33,B3) -> 7
D29: 0 | E29: 0 | H29: =NORMDIST(0,G29,Games!$C$539,TRUE) ->  | I29: =VLOOKUP(A29,Sheet1!A:K,5,FALSE) ->  | K29: 0 | L29: =(VLOOKUP(A29,Sheet1!$A:$J,4,FALSE))-(VLOOKUP($B$1,Sheet1!$A:$J,4,FALSE)) ->  | M29: =(VLOOKUP(A29,Sheet1!$A:$J,4,FALSE))-(VLOOKUP($B$1,Sheet1!$A:$J,4,FALSE))+Games!$C$542 ->  | N29: =(VLOOKUP(A29,Sheet1!$A:$J,4,FALSE))-(VLOOKUP($B$1,Sheet1!$A:$J,4,FALSE))-Games!$C$542 ->  | O29: =VLOOKUP(A29,Sheet1!$A:$M,13,FALSE) ->  | P29: =IF(K29<>0,VLOOKUP(A29,Sheet1!A:H,7,FALSE),"#N/A") -> #N/A | Q29: =IF(K29<>0,VLOOKUP(A29,Sheet1!A:H,8,FALSE),"#N/A") -> #N/A | R29: =IF(K29<>0,((COUNTIFS(Games!A:A,A29,Games!F:F,"W")+COUNTIFS(Games!B:B,A29,Games!F:F,"L")-COUNTIFS(Games!A:A,A29,Games!B:B,$B$1,Games!F:F,"W")-COUNTIFS(Games!$B:$B,A29,Games!$A:$A,$B$1,Games!F:F,"L"))/(COUNTIFS(Games!A:A,A29)+COUNTIF(Games!B:B,A29)-COUNTIFS(Games!A:A,A29,Games!B:B,$B$1)-COUNTIFS(Games!B:B,A29,Games!A:A,$B$1))),"#DIV/0!") -> #DIV/0! | S29: =IF(K29<>0,VLOOKUP(A29,RPI!A:C,3,FALSE),"#N/A") -> #N/A
D30: 0 | E30: 0 | H30: =NORMDIST(0,G30,Games!$C$539,TRUE) ->  | I30: =VLOOKUP(A30,Sheet1!A:K,5,FALSE) ->  | K30: 0 | L30: =(VLOOKUP(A30,Sheet1!$A:$J,4,FALSE))-(VLOOKUP($B$1,Sheet1!$A:$J,4,FALSE)) ->  | M30: =(VLOOKUP(A30,Sheet1!$A:$J,4,FALSE))-(VLOOKUP($B$1,Sheet1!$A:$J,4,FALSE))+Games!$C$542 ->  | N30: =(VLOOKUP(A30,Sheet1!$A:$J,4,FALSE))-(VLOOKUP($B$1,Sheet1!$A:$J,4,FALSE))-Games!$C$542 ->  | O30: =VLOOKUP(A30,Sheet1!$A:$M,13,FALSE) ->  | P30: =IF(K30<>0,VLOOKUP(A30,Sheet1!A:H,7,FALSE),"#N/A") -> #N/A | Q30: =IF(K30<>0,VLOOKUP(A30,Sheet1!A:H,8,FALSE),"#N/A") -> #N/A | R30: =IF(K30<>0,((COUNTIFS(Games!A:A,A30,Games!F:F,"W")+COUNTIFS(Games!B:B,A30,Games!F:F,"L")-COUNTIFS(Games!A:A,A30,Games!B:B,$B$1,Games!F:F,"W")-COUNTIFS(Games!$B:$B,A30,Games!$A:$A,$B$1,Games!F:F,"L"))/(COUNTIFS(Games!A:A,A30)+COUNTIF(Games!B:B,A30)-COUNTIFS(Games!A:A,A30,Games!B:B,$B$1)-COUNTIFS(Games!B:B,A30,Games!A:A,$B$1))),"#DIV/0!") -> #DIV/0! | S30: =IF(K30<>0,VLOOKUP(A30,RPI!A:C,3,FALSE),"#N/A") -> #N/A | U30: Avg. Goals For per Game (All): | V30: =AVERAGEIF(K8:K33,"<>#N/A",B8:B33) -> 8.6
D31: 0 | E31: 0 | H31: =NORMDIST(0,G31,Games!$C$539,TRUE) ->  | I31: =VLOOKUP(A31,Sheet1!A:K,5,FALSE) ->  | K31: 0 | L31: =(VLOOKUP(A31,Sheet1!$A:$J,4,FALSE))-(VLOOKUP($B$1,Sheet1!$A:$J,4,FALSE)) ->  | M31: =(VLOOKUP(A31,Sheet1!$A:$J,4,FALSE))-(VLOOKUP($B$1,Sheet1!$A:$J,4,FALSE))+Games!$C$542 ->  | N31: =(VLOOKUP(A31,Sheet1!$A:$J,4,FALSE))-(VLOOKUP($B$1,Sheet1!$A:$J,4,FALSE))-Games!$C$542 ->  | O31: =VLOOKUP(A31,Sheet1!$A:$M,13,FALSE) ->  | P31: =IF(K31<>0,VLOOKUP(A31,Sheet1!A:H,7,FALSE),"#N/A") -> #N/A | Q31: =IF(K31<>0,VLOOKUP(A31,Sheet1!A:H,8,FALSE),"#N/A") -> #N/A | R31: =IF(K31<>0,((COUNTIFS(Games!A:A,A31,Games!F:F,"W")+COUNTIFS(Games!B:B,A31,Games!F:F,"L")-COUNTIFS(Games!A:A,A31,Games!B:B,$B$1,Games!F:F,"W")-COUNTIFS(Games!$B:$B,A31,Games!$A:$A,$B$1,Games!F:F,"L"))/(COUNTIFS(Games!A:A,A31)+COUNTIF(Games!B:B,A31)-COUNTIFS(Games!A:A,A31,Games!B:B,$B$1)-COUNTIFS(Games!B:B,A31,Games!A:A,$B$1))),"#DIV/0!") -> #DIV/0! | S31: =IF(K31<>0,VLOOKUP(A31,RPI!A:C,3,FALSE),"#N/A") -> #N/A | U31: Avg. Goals Against per Game (All): | V31: =AVERAGEIF(K8:K33,"<>#N/A",C8:C33) -> 9.133333333
D32: 0 | E32: 0 | H32: =NORMDIST(0,G32,Games!$C$539,TRUE) ->  | I32: =VLOOKUP(A32,Sheet1!A:K,5,FALSE) ->  | K32: 0 | L32: =(VLOOKUP(A32,Sheet1!$A:$J,4,FALSE))-(VLOOKUP($B$1,Sheet1!$A:$J,4,FALSE)) ->  | M32: =(VLOOKUP(A32,Sheet1!$A:$J,4,FALSE))-(VLOOKUP($B$1,Sheet1!$A:$J,4,FALSE))+Games!$C$542 ->  | N32: =(VLOOKUP(A32,Sheet1!$A:$J,4,FALSE))-(VLOOKUP($B$1,Sheet1!$A:$J,4,FALSE))-Games!$C$542 ->  | O32: =VLOOKUP(A32,Sheet1!$A:$M,13,FALSE) ->  | P32: =IF(K32<>0,VLOOKUP(A32,Sheet1!A:H,7,FALSE),"#N/A") -> #N/A | Q32: =IF(K32<>0,VLOOKUP(A32,Sheet1!A:H,8,FALSE),"#N/A") -> #N/A | R32: =IF(K32<>0,((COUNTIFS(Games!A:A,A32,Games!F:F,"W")+COUNTIFS(Games!B:B,A32,Games!F:F,"L")-COUNTIFS(Games!A:A,A32,Games!B:B,$B$1,Games!F:F,"W")-COUNTIFS(Games!$B:$B,A32,Games!$A:$A,$B$1,Games!F:F,"L"))/(COUNTIFS(Games!A:A,A32)+COUNTIF(Games!B:B,A32)-COUNTIFS(Games!A:A,A32,Games!B:B,$B$1)-COUNTIFS(Games!B:B,A32,Games!A:A,$B$1))),"#DIV/0!") -> #DIV/0! | S32: =IF(K32<>0,VLOOKUP(A32,RPI!A:C,3,FALSE),"#N/A") -> #N/A | U32: Avg. Goals For per Game (Conf.): | V32: =AVERAGEIFS(B8:B33,K8:K33,"<>#N/A",O8:O33,B3) -> 10
D33: 0 | E33: 0 | H33: =NORMDIST(0,G33,Games!$C$539,TRUE) ->  | I33: =VLOOKUP(A33,Sheet1!A:K,5,FALSE) ->  | K33: 0 | L33: =(VLOOKUP(A33,Sheet1!$A:$J,4,FALSE))-(VLOOKUP($B$1,Sheet1!$A:$J,4,FALSE)) ->  | M33: =(VLOOKUP(A33,Sheet1!$A:$J,4,FALSE))-(VLOOKUP($B$1,Sheet1!$A:$J,4,FALSE))+Games!$C$542 ->  | N33: =(VLOOKUP(A33,Sheet1!$A:$J,4,FALSE))-(VLOOKUP($B$1,Sheet1!$A:$J,4,FALSE))-Games!$C$542 ->  | O33: =VLOOKUP(A33,Sheet1!$A:$M,13,FALSE) ->  | P33: =IF(K33<>0,VLOOKUP(A33,Sheet1!A:H,7,FALSE),"#N/A") -> #N/A | Q33: =IF(K33<>0,VLOOKUP(A33,Sheet1!A:H,8,FALSE),"#N/A") -> #N/A | R33: =IF(K33<>0,((COUNTIFS(Games!A:A,A33,Games!F:F,"W")+COUNTIFS(Games!B:B,A33,Games!F:F,"L")-COUNTIFS(Games!A:A,A33,Games!B:B,$B$1,Games!F:F,"W")-COUNTIFS(Games!$B:$B,A33,Games!$A:$A,$B$1,Games!F:F,"L"))/(COUNTIFS(Games!A:A,A33)+COUNTIF(Games!B:B,A33)-COUNTIFS(Games!A:A,A33,Games!B:B,$B$1)-COUNTIFS(Games!B:B,A33,Games!A:A,$B$1))),"#DIV/0!") -> #DIV/0! | S33: =IF(K33<>0,VLOOKUP(A33,RPI!A:C,3,FALSE),"#N/A") -> #N/A | U33: Avg. Goals Against per Game (Conf.): | V33: =AVERAGEIFS(C8:C33,K8:K33,"<>#N/A",O8:O33,B3) -> 8.875
P34: =AVERAGEIF(P8:P33,"<>#N/A",P8:P33) -> 9.230694893 | Q34: =AVERAGEIF(Q8:Q33,"<>#N/A",Q8:Q33) -> 9.702704697 | R34: =AVERAGEIF(R8:R33,"<>#DIV/0!",R8:R33) -> 0.5121334221 | S34: =AVERAGEIF(S8:S33,"<>#N/A",S8:S33) -> 0.4888926678

Sheet Binghamton
A1: Team: | B1: Binghamton
A2: Season: | B2: 2016
A3: Conference: | B3: America East
A5: 2016 Schedule | U5: TEAM PROFILE
A7: Opponent | B7: =B1 -> Binghamton | C7: Opponent | D7: Win | E7: Loss | F7: Site | G7: Pred. Spread | H7: Win Prob. % | I7: Opp. SRS Ranking | L7: Neutral | M7: Away | N7: Home | O7: League | P7: Opp.GF | Q7: Opp.GA | R7: Opp. Rec | S7: Opp Opp Rec | U7: All Record: | V7: =(COUNTIF(D8:D33,"W")&"-"&(COUNTIF(E8:E33,"L"))) -> 4-10
A8: Colgate | B8: 4 | C8: 11 | D8: =IF(B8>0, IF(B8>C8,"W",0),0) -> 0 | E8: =IF(C8>0, IF(C8>B8,"L",0),0) -> L | F8: A | G8: =IF(F8="N",L8,IF(F8="A",M8,N8)) -> 2 | H8: =NORMDIST(0,G8,Games!$C$539,TRUE) -> 0.2901009356 | I8: =VLOOKUP(A8,Sheet1!A:K,5,FALSE) -> 49 | J8: =IF(H8>0.5,"W","L") -> L | K8: =B8-C8 -> -7 | L8: =ROUND(((VLOOKUP(A8,Sheet1!$A:$J,4,FALSE))-(VLOOKUP($B$1,Sheet1!$A:$J,4,FALSE)))/0.5,0)*0.5 -> 0.5 | M8: =ROUND(((VLOOKUP(A8,Sheet1!$A:$J,4,FALSE))-(VLOOKUP($B$1,Sheet1!$A:$J,4,FALSE))+Games!$C$542)/0.5,0)*0.5 -> 2 | N8: =ROUND(((VLOOKUP(A8,Sheet1!$A:$J,4,FALSE))-(VLOOKUP($B$1,Sheet1!$A:$J,4,FALSE))-Games!$C$542)/0.5,0)*0.5 -> -0.5 | O8: =VLOOKUP(A8,Sheet1!$A:$M,13,FALSE) -> Patriot | P8: =IF(K8<>0,VLOOKUP(A8,Sheet1!A:H,7,FALSE),"#N/A") -> 7.642857143 | Q8: =IF(K8<>0,VLOOKUP(A8,Sheet1!A:H,8,FALSE),"#N/A") -> 10.57142857 | R8: =IF(K8<>0,((COUNTIFS(Games!A:A,A8,Games!F:F,"W")+COUNTIFS(Games!B:B,A8,Games!F:F,"L")-COUNTIFS(Games!A:A,A8,Games!B:B,$B$1,Games!F:F,"W")-COUNTIFS(Games!$B:$B,A8,Games!$A:$A,$B$1,Games!F:F,"L"))/(COUNTIFS(Games!A:A,A8)+COUNTIF(Games!B:B,A8)-COUNTIFS(Games!A:A,A8,Games!B:B,$B$1)-COUNTIFS(Games!B:B,A8,Games!A:A,$B$1))),"#DIV/0!") -> 0.2307692308 | S8: =VLOOKUP(A8,RPI!A:C,3,FALSE) -> 0.4877845369 | U8: Conf. Record: | V8: =(COUNTIFS(D8:D33,"W",O8:O33,B3)&"-"&(COUNTIFS(E8:E33,"L",O8:O33,B3))) -> 2-4
A9: Marist | B9: 8 | C9: 10 | D9: =IF(B9>0, IF(B9>C9,"W",0),0) -> 0 | E9: =IF(C9>0, IF(C9>B9,"L",0),0) -> L | F9: A | G9: =IF(F9="N",L9,IF(F9="A",M9,N9)) -> 3 | H9: =NORMDIST(0,G9,Games!$C$539,TRUE) -> 0.2033726451 | I9: =VLOOKUP(A9,Sheet1!A:K,5,FALSE) -> 44 | J9: =IF(H9>0.5,"W","L") -> L | K9: =B9-C9 -> -2 | L9: =ROUND(((VLOOKUP(A9,Sheet1!$A:$J,4,FALSE))-(VLOOKUP($B$1,Sheet1!$A:$J,4,FALSE)))/0.5,0)*0.5 -> 1.5 | M9: =ROUND(((VLOOKUP(A9,Sheet1!$A:$J,4,FALSE))-(VLOOKUP($B$1,Sheet1!$A:$J,4,FALSE))+Games!$C$542)/0.5,0)*0.5 -> 3 | N9: =ROUND(((VLOOKUP(A9,Sheet1!$A:$J,4,FALSE))-(VLOOKUP($B$1,Sheet1!$A:$J,4,FALSE))-Games!$C$542)/0.5,0)*0.5 -> 0.5 | O9: =VLOOKUP(A9,Sheet1!$A:$M,13,FALSE) -> MAAC | P9: =IF(K9<>0,VLOOKUP(A9,Sheet1!A:H,7,FALSE),"#N/A") -> 9.625 | Q9: =IF(K9<>0,VLOOKUP(A9,Sheet1!A:H,8,FALSE),"#N/A") -> 8.5625 | R9: =IF(K9<>0,((COUNTIFS(Games!A:A,A9,Games!F:F,"W")+COUNTIFS(Games!B:B,A9,Games!F:F,"L")-COUNTIFS(Games!A:A,A9,Games!B:B,$B$1,Games!F:F,"W")-COUNTIFS(Games!$B:$B,A9,Games!$A:$A,$B$1,Games!F:F,"L"))/(COUNTIFS(Games!A:A,A9)+COUNTIF(Games!B:B,A9)-COUNTIFS(Games!A:A,A9,Games!B:B,$B$1)-COUNTIFS(Games!B:B,A9,Games!A:A,$B$1))),"#DIV/0!") -> 0.5333333333 | S9: =VLOOKUP(A9,RPI!A:C,3,FALSE) -> 0.4585185648 | U9: SRS Value: | V9: =VLOOKUP(B1,Sheet1!$A:$L,4,FALSE) -> -2.745774645
A10: Hobart | B10: 6 | C10: 12 | D10: 0 | E10: L | F10: A | G10: 3.5 | H10: =NORMDIST(0,G10,Games!$C$539,TRUE) -> 0.16654534 | I10: =VLOOKUP(A10,Sheet1!A:K,5,FALSE) -> 40 | J10: L | K10: -6 | L10: =ROUND(((VLOOKUP(A10,Sheet1!$A:$J,4,FALSE))-(VLOOKUP($B$1,Sheet1!$A:$J,4,FALSE)))/0.5,0)*0.5 -> 2 | M10: =ROUND(((VLOOKUP(A10,Sheet1!$A:$J,4,FALSE))-(VLOOKUP($B$1,Sheet1!$A:$J,4,FALSE))+Games!$C$542)/0.5,0)*0.5 -> 3.5 | N10: =ROUND(((VLOOKUP(A10,Sheet1!$A:$J,4,FALSE))-(VLOOKUP($B$1,Sheet1!$A:$J,4,FALSE))-Games!$C$542)/0.5,0)*0.5 -> 1 | O10: =VLOOKUP(A10,Sheet1!$A:$M,13,FALSE) -> Northeast | P10: =IF(K10<>0,VLOOKUP(A10,Sheet1!A:H,7,FALSE),"#N/A") -> 9.5 | Q10: =IF(K10<>0,VLOOKUP(A10,Sheet1!A:H,8,FALSE),"#N/A") -> 9.625 | R10: =IF(K10<>0,((COUNTIFS(Games!A:A,A10,Games!F:F,"W")+COUNTIFS(Games!B:B,A10,Games!F:F,"L")-COUNTIFS(Games!A:A,A10,Games!B:B,$B$1,Games!F:F,"W")-COUNTIFS(Games!$B:$B,A10,Games!$A:$A,$B$1,Games!F:F,"L"))/(COUNTIFS(Games!A:A,A10)+COUNTIF(Games!B:B,A10)-COUNTIFS(Games!A:A,A10,Games!B:B,$B$1)-COUNTIFS(Games!B:B,A10,Games!A:A,$B$1))),"#DIV/0!") -> 0.6 | S10: =VLOOKUP(A10,RPI!A:C,3,FALSE) -> 0.463523976 | U10: SRS Ranking (NCAA): | V10: =VLOOKUP(B1,Sheet1!A:J,5,FALSE) -> 54
A11: Delaware | B11: 11 | C11: 12 | D11: 0 | E11: L | F11: H | G11: -1 | H11: =NORMDIST(0,G11,Games!$C$539,TRUE) -> 0.6089352247 | I11: =VLOOKUP(A11,Sheet1!A:K,5,FALSE) -> 51 | J11: W | K11: -1 | L11: =ROUND(((VLOOKUP(A11,Sheet1!$A:$J,4,FALSE))-(VLOOKUP($B$1,Sheet1!$A:$J,4,FALSE)))/0.5,0)*0.5 -> 0.5 | M11: =ROUND(((VLOOKUP(A11,Sheet1!$A:$J,4,FALSE))-(VLOOKUP($B$1,Sheet1!$A:$J,4,FALSE))+Games!$C$542)/0.5,0)*0.5 -> 1.5 | N11: =ROUND(((VLOOKUP(A11,Sheet1!$A:$J,4,FALSE))-(VLOOKUP($B$1,Sheet1!$A:$J,4,FALSE))-Games!$C$542)/0.5,0)*0.5 -> -1 | O11: =VLOOKUP(A11,Sheet1!$A:$M,13,FALSE) -> CAA | P11: =IF(K11<>0,VLOOKUP(A11,Sheet1!A:H,7,FALSE),"#N/A") -> 8.2 | Q11: =IF(K11<>0,VLOOKUP(A11,Sheet1!A:H,8,FALSE),"#N/A") -> 10.46666667 | R11: =IF(K11<>0,((COUNTIFS(Games!A:A,A11,Games!F:F,"W")+COUNTIFS(Games!B:B,A11,Games!F:F,"L")-COUNTIFS(Games!A:A,A11,Games!B:B,$B$1,Games!F:F,"W")-COUNTIFS(Games!$B:$B,A11,Games!$A:$A,$B$1,Games!F:F,"L"))/(COUNTIFS(Games!A:A,A11)+COUNTIF(Games!B:B,A11)-COUNTIFS(Games!A:A,A11,Games!B:B,$B$1)-COUNTIFS(Games!B:B,A11,Games!A:A,$B$1))),"#DIV/0!") -> 0.2857142857 | S11: =VLOOKUP(A11,RPI!A:C,3,FALSE) -> 0.4834920635 | U11: SRS Ranking (Conf.): | V11: =1+SUMPRODUCT((Sheet1!M2:M71=B3)*(Sheet1!E2:E71<V10)) -> 6
A12: UMBC | B12: 16 | C12: 10 | D12: W | E12: 0 | F12: H | G12: -1 | H12: =NORMDIST(0,G12,Games!$C$539,TRUE) -> 0.6089352247 | I12: =VLOOKUP(A12,Sheet1!A:K,5,FALSE) -> 52 | J12: W | K12: 6 | L12: =ROUND(((VLOOKUP(A12,Sheet1!$A:$J,4,FALSE))-(VLOOKUP($B$1,Sheet1!$A:$J,4,FALSE)))/0.5,0)*0.5 -> 0.5 | M12: =ROUND(((VLOOKUP(A12,Sheet1!$A:$J,4,FALSE))-(VLOOKUP($B$1,Sheet1!$A:$J,4,FALSE))+Games!$C$542)/0.5,0)*0.5 -> 1.5 | N12: =ROUND(((VLOOKUP(A12,Sheet1!$A:$J,4,FALSE))-(VLOOKUP($B$1,Sheet1!$A:$J,4,FALSE))-Games!$C$542)/0.5,0)*0.5 -> -1 | O12: =VLOOKUP(A12,Sheet1!$A:$M,13,FALSE) -> America East | P12: =IF(K12<>0,VLOOKUP(A12,Sheet1!A:H,7,FALSE),"#N/A") -> 9 | Q12: =IF(K12<>0,VLOOKUP(A12,Sheet1!A:H,8,FALSE),"#N/A") -> 11.71428571 | R12: =IF(K12<>0,((COUNTIFS(Games!A:A,A12,Games!F:F,"W")+COUNTIFS(Games!B:B,A12,Games!F:F,"L")-COUNTIFS(Games!A:A,A12,Games!B:B,$B$1,Games!F:F,"W")-COUNTIFS(Games!$B:$B,A12,Games!$A:$A,$B$1,Games!F:F,"L"))/(COUNTIFS(Games!A:A,A12)+COUNTIF(Games!B:B,A12)-COUNTIFS(Games!A:A,A12,Games!B:B,$B$1)-COUNTIFS(Games!B:B,A12,Games!A:A,$B$1))),"#DIV/0!") -> 0.3076923077 | S12: =VLOOKUP(A12,RPI!A:C,3,FALSE) -> 0.5310112507 | U12: SRS SoS Value: | V12: =VLOOKUP(B1,Sheet1!$A:$L,3,FALSE) -> -0.03148893087
A13: Drexel | B13: 10 | C13: 7 | D13: W | E13: 0 | F13: H | G13: 2 | H13: =NORMDIST(0,G13,Games!$C$539,TRUE) -> 0.2901009356 | I13: =VLOOKUP(A13,Sheet1!A:K,5,FALSE) -> 32 | J13: L | K13: 3 | L13: =ROUND(((VLOOKUP(A13,Sheet1!$A:$J,4,FALSE))-(VLOOKUP($B$1,Sheet1!$A:$J,4,FALSE)))/0.5,0)*0.5 -> 3.5 | M13: =ROUND(((VLOOKUP(A13,Sheet1!$A:$J,4,FALSE))-(VLOOKUP($B$1,Sheet1!$A:$J,4,FALSE))+Games!$C$542)/0.5,0)*0.5 -> 4.5 | N13: =ROUND(((VLOOKUP(A13,Sheet1!$A:$J,4,FALSE))-(VLOOKUP($B$1,Sheet1!$A:$J,4,FALSE))-Games!$C$542)/0.5,0)*0.5 -> 2 | O13: =VLOOKUP(A13,Sheet1!$A:$M,13,FALSE) -> CAA | P13: =IF(K13<>0,VLOOKUP(A13,Sheet1!A:H,7,FALSE),"#N/A") -> 8.933333333 | Q13: =IF(K13<>0,VLOOKUP(A13,Sheet1!A:H,8,FALSE),"#N/A") -> 9.466666667 | R13: =IF(K13<>0,((COUNTIFS(Games!A:A,A13,Games!F:F,"W")+COUNTIFS(Games!B:B,A13,Games!F:F,"L")-COUNTIFS(Games!A:A,A13,Games!B:B,$B$1,Games!F:F,"W")-COUNTIFS(Games!$B:$B,A13,Games!$A:$A,$B$1,Games!F:F,"L"))/(COUNTIFS(Games!A:A,A13)+COUNTIF(Games!B:B,A13)-COUNTIFS(Games!A:A,A13,Games!B:B,$B$1)-COUNTIFS(Games!B:B,A13,Games!A:A,$B$1))),"#DIV/0!") -> 0.4285714286 | S13: =VLOOKUP(A13,RPI!A:C,3,FALSE) -> 0.5658730159 | U13: SRS SoS Ranking (NCAA): | V13: =VLOOKUP(B1,Sheet1!A:J,6,FALSE) -> 40
A14: Towson | B14: 6 | C14: 15 | D14: 0 | E14: L | F14: A | G14: 7 | H14: =NORMDIST(0,G14,Games!$C$539,TRUE) -> 0.02644520893 | I14: =VLOOKUP(A14,Sheet1!A:K,5,FALSE) -> 14 | J14: L | K14: -9 | L14: =ROUND(((VLOOKUP(A14,Sheet1!$A:$J,4,FALSE))-(VLOOKUP($B$1,Sheet1!$A:$J,4,FALSE)))/0.5,0)*0.5 -> 6 | M14: =ROUND(((VLOOKUP(A14,Sheet1!$A:$J,4,FALSE))-(VLOOKUP($B$1,Sheet1!$A:$J,4,FALSE))+Games!$C$542)/0.5,0)*0.5 -> 7 | N14: =ROUND(((VLOOKUP(A14,Sheet1!$A:$J,4,FALSE))-(VLOOKUP($B$1,Sheet1!$A:$J,4,FALSE))-Games!$C$542)/0.5,0)*0.5 -> 5 | O14: =VLOOKUP(A14,Sheet1!$A:$M,13,FALSE) -> CAA | P14: =IF(K14<>0,VLOOKUP(A14,Sheet1!A:H,7,FALSE),"#N/A") -> 10.6875 | Q14: =IF(K14<>0,VLOOKUP(A14,Sheet1!A:H,8,FALSE),"#N/A") -> 7.125 | R14: =IF(K14<>0,((COUNTIFS(Games!A:A,A14,Games!F:F,"W")+COUNTIFS(Games!B:B,A14,Games!F:F,"L")-COUNTIFS(Games!A:A,A14,Games!B:B,$B$1,Games!F:F,"W")-COUNTIFS(Games!$B:$B,A14,Games!$A:$A,$B$1,Games!F:F,"L"))/(COUNTIFS(Games!A:A,A14)+COUNTIF(Games!B:B,A14)-COUNTIFS(Games!A:A,A14,Games!B:B,$B$1)-COUNTIFS(Games!B:B,A14,Games!A:A,$B$1))),"#DIV/0!") -> 0.8666666667 | S14: =VLOOKUP(A14,RPI!A:C,3,FALSE) -> 0.4434180403 | U14: SRS SoS Ranking (Conf.): | V14: =1+SUMPRODUCT((Sheet1!M2:M71=B3)*(Sheet1!F2:F71<V13)) -> 3
A15: Hartford | B15: 9 | C15: 17 | D15: 0 | E15: L | F15: A | G15: 4 | H15: =NORMDIST(0,G15,Games!$C$539,TRUE) -> 0.1343243641 | I15: =VLOOKUP(A15,Sheet1!A:K,5,FALSE) -> 35 | J15: L | K15: -8 | L15: =ROUND(((VLOOKUP(A15,Sheet1!$A:$J,4,FALSE))-(VLOOKUP($B$1,Sheet1!$A:$J,4,FALSE)))/0.5,0)*0.5 -> 3 | M15: =ROUND(((VLOOKUP(A15,Sheet1!$A:$J,4,FALSE))-(VLOOKUP($B$1,Sheet1!$A:$J,4,FALSE))+Games!$C$542)/0.5,0)*0.5 -> 4 | N15: =ROUND(((VLOOKUP(A15,Sheet1!$A:$J,4,FALSE))-(VLOOKUP($B$1,Sheet1!$A:$J,4,FALSE))-Games!$C$542)/0.5,0)*0.5 -> 1.5 | O15: =VLOOKUP(A15,Sheet1!$A:$M,13,FALSE) -> America East | P15: =IF(K15<>0,VLOOKUP(A15,Sheet1!A:H,7,FALSE),"#N/A") -> 10.94117647 | Q15: =IF(K15<>0,VLOOKUP(A15,Sheet1!A:H,8,FALSE),"#N/A") -> 9.941176471 | R15: =IF(K15<>0,((COUNTIFS(Games!A:A,A15,Games!F:F,"W")+COUNTIFS(Games!B:B,A15,Games!F:F,"L")-COUNTIFS(Games!A:A,A15,Games!B:B,$B$1,Games!F:F,"W")-COUNTIFS(Games!$B:$B,A15,Games!$A:$A,$B$1,Games!F:F,"L"))/(COUNTIFS(Games!A:A,A15)+COUNTIF(Games!B:B,A15)-COUNTIFS(Games!A:A,A15,Games!B:B,$B$1)-COUNTIFS(Games!B:B,A15,Games!A:A,$B$1))),"#DIV/0!") -> 0.625 | S15: =VLOOKUP(A15,RPI!A:C,3,FALSE) -> 0.4759534583
